Workbook

Sheet Start
K12: Dit begrotingsmodel is ontwikkeld door Infinite Financieel
K13: in opdracht van het Steunpunt Passend Onderwijs van de
K14: PO-Raad en de VO-raad.
A33: Versie 8.0

Sheet Menu
A21: =Start!$A$33 -> Versie 8.0

Sheet Handleiding (hidden)
A1: Handleiding bestand klaarmaken voor het volgende jaar:
A3: 1. | B3: Verbergen kolommen van het voorbije jaar, gegevens uit deze kolommen verwijderen.
A4: 2. | B4: In sub llakkoord het jaartal aanpassen van de jaren waarvan de oude gegevens als waarden worden geplakt.
A5: 3. | B5: Vanaf 2021 kan het tabblad Herbestedingsverplichting eruit.
A6: 4. | B6: In de module mFilterjaren moeten de bereiken die de macro evalueert worden aangepast (de voorbije jaren hoeven niet meer meegenomen te worden)
A7: 5. | B7: De filteropties in bovenaan de tabbladen moeten ook naar de goede jaren verwijzen op het tabblad Variabelen
B8: De meeste filteropties worden m.b.v. voorgedefinieerde namen geregeld (kalenderjaar en gekozenjaar heten die namen)

Sheet SWV gegevens (hidden)
C7: Uw gegevens:
C8: SWV nummer: | E8: VO0001
C9: Naam: | E9: =VLOOKUP(E8,VerbandenVO!A3:P77,2,FALSE) -> Vereniging Reformatorisch Passend Onderwijs voor Voortgezet Onderwijs
C15: =Start!$A$33 -> Versie 8.0

Sheet Begrotingsmodel (hidden)
C9: Algemene vragen
C10: U gaat uw begroting baseren op | D10: schooljaar | F10: kalenderjaar | G10: kalenderjaar

Sheet Programma's (hidden)
B1: =Start!$A$33 -> Versie 8.0 | K1: =IF(L1="Programma ## 'naam programma'","Programma ",IF(L1="Pr. ## 'naam programma'","Pr. ","")) -> Programma | L1: Programma ## 'naam programma'
B2: Naam programma | D2: Nummer | F2: Verkorte naam | H2: Label tbv benchmark | J2: Werkblad | L2: Weergave in overzichten | P2: =20 - COUNTBLANK(INDIRECT("L3:L22")) -> 0

Sheet LLaantal (hidden)
AU1: 1 | AV1: =INDEX(kalenderjaren_LL_aantal,AU1) -> 2011 | AW1: =INDEX(kalenderjaren_LL_aantal,AX1) -> 2026 | AX1: 16
C2: =Start!$A$33 -> Versie 8.0 | K2: 0.03354037267 | M2: 0.03715095591 | O2: 0.03477737665 | Q2: 0.03551553805 | S2: 0.03551553805 | U2: 0.03351553805
F3: =E3 ->  | H3: =G3 ->  | J3: =I3 ->  | L3: =K3 ->  | N3: =M3 ->  | P3: =O3 ->  | R3: =Q3 ->  | T3: =S3 ->  | V3: =U3 ->  | X3: =W3 ->  | Y3: =IF(AND(YEAR(Y$4)>=$AV$1,YEAR(Y$4)<=$AW$1),"","x") ->  | Z3: =Y3 ->  | AA3: =IF(AND(YEAR(AA$4)>=$AV$1,YEAR(AA$4)<=$AW$1),"","x") ->  | AB3: =AA3 ->  | AC3: =IF(AND(YEAR(AC$4)>=$AV$1,YEAR(AC$4)<=$AW$1),"","x") ->  | AD3: =AC3 ->  | AE3: =IF(AND(YEAR(AE$4)>=$AV$1,YEAR(AE$4)<=$AW$1),"","x") ->  | AF3: =AE3 ->  | AG3: =IF(AND(YEAR(AG$4)>=$AV$1,YEAR(AG$4)<=$AW$1),"","x") ->  | AH3: =AG3 ->  | AI3: =IF(AND(YEAR(AI$4)>=$AV$1,YEAR(AI$4)<=$AW$1),"","x") ->  | AJ3: =AI3 ->  | AK3: =IF(AND(YEAR(AK$4)>=$AV$1,YEAR(AK$4)<=$AW$1),"","x") -> x | AL3: =AK3 -> x | AM3: =IF(AND(YEAR(AM$4)>=$AV$1,YEAR(AM$4)<=$AW$1),"","x") -> x | AN3: =AM3 -> x | AO3: =IF(AND(YEAR(AO$4)>=$AV$1,YEAR(AO$4)<=$AW$1),"","x") -> x | AP3: =AO3 -> x | AQ3: =IF(AND(YEAR(AQ$4)>=$AV$1,YEAR(AQ$4)<=$AW$1),"","x") -> x | AR3: =AQ3 -> x
C4: Leerlingen op teldatum | E4: 2011-10-01 | G4: 2012-10-01 | I4: 2013-10-01 | K4: 2014-10-01 | M4: 2015-10-01 | O4: 2016-10-01 | Q4: 2017-10-01 | S4: 2018-10-01 | U4: 2019-10-01 | W4: 2020-10-01 | Y4: 2021-10-01 | AA4: 2022-10-01 | AC4: 2023-10-01 | AE4: 2024-10-01 | AG4: 2025-10-01 | AI4: 2026-10-01 | AK4: 2027-10-01 | AM4: 2028-10-01 | AO4: 2029-10-01 | AQ4: 2030-10-01
C5: vo overige | E5: =IF(VLOOKUP('SWV gegevens'!$E$8,VerbandenVO!$DN$1:$ER$77,1)='SWV gegevens'!$E$8,VLOOKUP('SWV gegevens'!$E$8,VerbandenVO!$DN$3:$ER$77,ROW()-2)) -> 20517.5 | G5: =IF(VLOOKUP('SWV gegevens'!$E$8,VerbandenVO!$CI$1:$DL$77,1)='SWV gegevens'!$E$8,VLOOKUP('SWV gegevens'!$E$8,VerbandenVO!$CI$3:$DL$77,ROW()-2)) -> 20414.5 | I5: =IF(VLOOKUP('SWV gegevens'!$E$8,VerbandenVO!$BD$1:$CH$77,1)='SWV gegevens'!$E$8,VLOOKUP('SWV gegevens'!$E$8,VerbandenVO!$BD$3:$CH$77,ROW()-2)) -> 20477 | K5: =IF(VLOOKUP('SWV gegevens'!$E$8,VerbandenVO!$AT$1:$BB$77,1)='SWV gegevens'!$E$8,VLOOKUP('SWV gegevens'!$E$8,VerbandenVO!$AT$3:$BB$77,ROW()-2)) -> 20582 | M5: =IF(VLOOKUP('SWV gegevens'!$E$8,VerbandenVO!$AH$1:$AR$77,1)='SWV gegevens'!$E$8,VLOOKUP('SWV gegevens'!$E$8,VerbandenVO!$AH$3:$AR$77,ROW()-2)) -> 20417 | O5: =IF(VLOOKUP('SWV gegevens'!$E$8,VerbandenVO!$Q$1:$AF$77,1)='SWV gegevens'!$E$8,VLOOKUP('SWV gegevens'!$E$8,VerbandenVO!$Q$3:$AF$77,ROW()-2)) -> 20174.5 | Q5: =IF(VLOOKUP('SWV gegevens'!$E$8,VerbandenVO!$A$1:$P$77,1)='SWV gegevens'!$E$8,VLOOKUP('SWV gegevens'!$E$8,VerbandenVO!$A$3:$P$77,ROW()-2)) -> 20091 | S5: =IF(VLOOKUP('SWV gegevens'!$E$8,VerbandenVO!$ET$1:$FI$77,1)='SWV gegevens'!$E$8,VLOOKUP('SWV gegevens'!$E$8,VerbandenVO!$ET$1:$FI$77,ROW()-2)) -> 19881.5 | U5: =IF(VLOOKUP('SWV gegevens'!$E$8,VerbandenVO!$FL$1:$GA$77,1)='SWV gegevens'!$E$8,VLOOKUP('SWV gegevens'!$E$8,VerbandenVO!$FL$1:$GA$77,ROW()-2)) -> 19733.5 | W5: =W8-W6-W7 -> 0 | Y5: =Y8-Y6-Y7 -> 0 | AA5: =AA8-AA6-AA7 -> 0 | AC5: =AC8-AC6-AC7 -> 0 | AE5: =AE8-AE6-AE7 -> 0 | AG5: =AG8-AG6-AG7 -> 0 | AI5: =AI8-AI6-AI7 -> 0 | AK5: =AK8-AK6-AK7 -> 0 | AM5: =AM8-AM6-AM7 -> 0 | AO5: =AO8-AO6-AO7 -> 0 | AQ5: =AQ8-AQ6-AQ7 -> 0
C6: leerlingen lwoo | E6: =IF(VLOOKUP('SWV gegevens'!$E$8,VerbandenVO!$DN$1:$ER$77,1)='SWV gegevens'!$E$8,VLOOKUP('SWV gegevens'!$E$8,VerbandenVO!$DN$3:$ER$77,ROW()-2)) -> 1406 | G6: =IF(VLOOKUP('SWV gegevens'!$E$8,VerbandenVO!$CI$1:$DL$77,1)='SWV gegevens'!$E$8,VLOOKUP('SWV gegevens'!$E$8,VerbandenVO!$CI$3:$DL$77,ROW()-2)) -> 1532 | I6: =IF(VLOOKUP('SWV gegevens'!$E$8,VerbandenVO!$BD$1:$CH$77,1)='SWV gegevens'!$E$8,VLOOKUP('SWV gegevens'!$E$8,VerbandenVO!$BD$3:$CH$77,ROW()-2)) -> 1614 | K6: =IF(VLOOKUP('SWV gegevens'!$E$8,VerbandenVO!$AT$1:$BB$77,1)='SWV gegevens'!$E$8,VLOOKUP('SWV gegevens'!$E$8,VerbandenVO!$AT$3:$BB$77,ROW()-2)) -> 1685 | M6: =IF(VLOOKUP('SWV gegevens'!$E$8,VerbandenVO!$AH$1:$AR$77,1)='SWV gegevens'!$E$8,VLOOKUP('SWV gegevens'!$E$8,VerbandenVO!$AH$3:$AR$77,ROW()-2)) -> 1588 | O6: =IF(VLOOKUP('SWV gegevens'!$E$8,VerbandenVO!$Q$1:$AF$77,1)='SWV gegevens'!$E$8,VLOOKUP('SWV gegevens'!$E$8,VerbandenVO!$Q$3:$AF$77,ROW()-2)) -> 1549 | Q6: =IF(VLOOKUP('SWV gegevens'!$E$8,VerbandenVO!$A$1:$P$77,1)='SWV gegevens'!$E$8,VLOOKUP('SWV gegevens'!$E$8,VerbandenVO!$A$3:$P$77,ROW()-2)) -> 1460 | S6: =IF(VLOOKUP('SWV gegevens'!$E$8,VerbandenVO!$ET$1:$FI$77,1)='SWV gegevens'!$E$8,VLOOKUP('SWV gegevens'!$E$8,VerbandenVO!$ET$1:$FI$77,ROW()-2)) -> 1423 | U6: =IF(VLOOKUP('SWV gegevens'!$E$8,VerbandenVO!$FL$1:$GA$77,1)='SWV gegevens'!$E$8,VLOOKUP('SWV gegevens'!$E$8,VerbandenVO!$FL$1:$GA$77,ROW()-2)) -> 1408
C7: leerlingen pro | E7: =IF(VLOOKUP('SWV gegevens'!$E$8,VerbandenVO!$DN$1:$ER$77,1)='SWV gegevens'!$E$8,VLOOKUP('SWV gegevens'!$E$8,VerbandenVO!$DN$3:$ER$77,ROW()-2)) -> 352 | G7: =IF(VLOOKUP('SWV gegevens'!$E$8,VerbandenVO!$CI$1:$DL$77,1)='SWV gegevens'!$E$8,VLOOKUP('SWV gegevens'!$E$8,VerbandenVO!$CI$3:$DL$77,ROW()-2)) -> 391 | I7: =IF(VLOOKUP('SWV gegevens'!$E$8,VerbandenVO!$BD$1:$CH$77,1)='SWV gegevens'!$E$8,VLOOKUP('SWV gegevens'!$E$8,VerbandenVO!$BD$3:$CH$77,ROW()-2)) -> 434 | K7: =IF(VLOOKUP('SWV gegevens'!$E$8,VerbandenVO!$AT$1:$BB$77,1)='SWV gegevens'!$E$8,VLOOKUP('SWV gegevens'!$E$8,VerbandenVO!$AT$3:$BB$77,ROW()-2)) -> 471 | M7: =IF(VLOOKUP('SWV gegevens'!$E$8,VerbandenVO!$AH$1:$AR$77,1)='SWV gegevens'!$E$8,VLOOKUP('SWV gegevens'!$E$8,VerbandenVO!$AH$3:$AR$77,ROW()-2)) -> 479 | O7: =IF(VLOOKUP('SWV gegevens'!$E$8,VerbandenVO!$Q$1:$AF$77,1)='SWV gegevens'!$E$8,VLOOKUP('SWV gegevens'!$E$8,VerbandenVO!$Q$3:$AF$77,ROW()-2)) -> 472 | Q7: =IF(VLOOKUP('SWV gegevens'!$E$8,VerbandenVO!$A$1:$P$77,1)='SWV gegevens'!$E$8,VLOOKUP('SWV gegevens'!$E$8,VerbandenVO!$A$3:$P$77,ROW()-2)) -> 465 | S7: =IF(VLOOKUP('SWV gegevens'!$E$8,VerbandenVO!$ET$1:$FI$77,1)='SWV gegevens'!$E$8,VLOOKUP('SWV gegevens'!$E$8,VerbandenVO!$ET$1:$FI$77,ROW()-2)) -> 425 | U7: =IF(VLOOKUP('SWV gegevens'!$E$8,VerbandenVO!$FL$1:$GA$77,1)='SWV gegevens'!$E$8,VLOOKUP('SWV gegevens'!$E$8,VerbandenVO!$FL$1:$GA$77,ROW()-2)) -> 454
C8: Totaal vo | E8: =SUM(E5:E7) -> 22275.5 | G8: =SUM(G5:G7) -> 22337.5 | I8: =SUM(I5:I7) -> 22525 | K8: =SUM(K5:K7) -> 22738 | M8: =SUM(M5:M7) -> 22484 | O8: =SUM(O5:O7) -> 22195.5 | Q8: =SUM(Q5:Q7) -> 22016 | S8: =SUM(S5:S7) -> 21729.5 | U8: =SUM(U5:U7) -> 21595.5
C9: Nieuwkomers <1 jaar in NL
C10: Aantal leerlingen vavo tg (worden voor 50% in mindering gebracht op totaal)
C11: Totaal | E11: =E8+E9-(E10*0.5) -> 22275.5 | G11: =G8+G9-(G10*0.5) -> 22337.5 | I11: =I8+I9-(I10*0.5) -> 22525 | K11: =K8+K9-(K10*0.5) -> 22738 | M11: =M8+M9-(M10*0.5) -> 22484 | O11: =O8+O9-(O10*0.5) -> 22195.5 | Q11: =Q8+Q9-(Q10*0.5) -> 22016 | S11: =S8+S9-(S10*0.5) -> 21729.5 | U11: =U8+U9-(U10*0.5) -> 21595.5 | W11: =W8+W9-(W10*0.5) -> 0 | Y11: =Y8+Y9-(Y10*0.5) -> 0 | AA11: =AA8+AA9-(AA10*0.5) -> 0 | AC11: =AC8+AC9-(AC10*0.5) -> 0 | AE11: =AE8+AE9-(AE10*0.5) -> 0 | AG11: =AG8+AG9-(AG10*0.5) -> 0 | AI11: =AI8+AI9-(AI10*0.5) -> 0 | AK11: =AK8+AK9-(AK10*0.5) -> 0 | AM11: =AM8+AM9-(AM10*0.5) -> 0 | AO11: =AO8+AO9-(AO10*0.5) -> 0 | AQ11: =AQ8+AQ9-(AQ10*0.5) -> 0
C14: vso lln op teldatum | E14: =E4 -> 2011-10-01 | G14: =G4 -> 2012-10-01 | I14: =I4 -> 2013-10-01 | K14: =K4 -> 2014-10-01 | M14: =M4 -> 2015-10-01 | O14: =O4 -> 2016-10-01 | Q14: =Q4 -> 2017-10-01 | S14: =S4 -> 2018-10-01 | U14: 2019-10-01 | W14: 2020-10-01 | Y14: 2021-10-01 | AA14: 2022-10-01 | AC14: =AC4 -> 2023-10-01 | AE14: =AE4 -> 2024-10-01 | AG14: =AG4 -> 2025-10-01 | AI14: =AI4 -> 2026-10-01 | AK14: =AK4 -> 2027-10-01 | AM14: =AM4 -> 2028-10-01 | AO14: =AO4 -> 2029-10-01 | AQ14: =AQ4 -> 2030-10-01
C15: categorie 1 (cluster 4) | E15: =IF(VLOOKUP('SWV gegevens'!$E$8,VerbandenVO!$DN$1:$ER$77,1)='SWV gegevens'!$E$8,VLOOKUP('SWV gegevens'!$E$8,VerbandenVO!$DN$3:$ER$77,11)) -> 114 | G15: =IF(VLOOKUP('SWV gegevens'!$E$8,VerbandenVO!$CI$1:$DL$77,1)='SWV gegevens'!$E$8,VLOOKUP('SWV gegevens'!$E$8,VerbandenVO!$CI$3:$DL$77,11)) -> 112 | I15: =IF(VLOOKUP('SWV gegevens'!$E$8,VerbandenVO!$BD$1:$CH$77,1)='SWV gegevens'!$E$8,VLOOKUP('SWV gegevens'!$E$8,VerbandenVO!$BD$3:$CH$77,11)) -> 104
C16: categorie 1 (LZ) | E16: =IF(VLOOKUP('SWV gegevens'!$E$8,VerbandenVO!$DN$1:$ER$77,1)='SWV gegevens'!$E$8,VLOOKUP('SWV gegevens'!$E$8,VerbandenVO!$DN$3:$ER$77,14)) -> 0 | G16: =IF(VLOOKUP('SWV gegevens'!$E$8,VerbandenVO!$CI$1:$DL$77,1)='SWV gegevens'!$E$8,VLOOKUP('SWV gegevens'!$E$8,VerbandenVO!$CI$3:$DL$77,14)) -> 0 | I16: =IF(VLOOKUP('SWV gegevens'!$E$8,VerbandenVO!$BD$1:$CH$77,1)='SWV gegevens'!$E$8,VLOOKUP('SWV gegevens'!$E$8,VerbandenVO!$BD$3:$CH$77,14)) -> 0
C17: categorie 1 (ZMLK) | E17: =IF(VLOOKUP('SWV gegevens'!$E$8,VerbandenVO!$DN$1:$ER$77,1)='SWV gegevens'!$E$8,VLOOKUP('SWV gegevens'!$E$8,VerbandenVO!$DN$3:$ER$77,15)) -> 164 | G17: =IF(VLOOKUP('SWV gegevens'!$E$8,VerbandenVO!$CI$1:$DL$77,1)='SWV gegevens'!$E$8,VLOOKUP('SWV gegevens'!$E$8,VerbandenVO!$CI$3:$DL$77,15)) -> 169 | I17: =IF(VLOOKUP('SWV gegevens'!$E$8,VerbandenVO!$BD$1:$CH$77,1)='SWV gegevens'!$E$8,VLOOKUP('SWV gegevens'!$E$8,VerbandenVO!$BD$3:$CH$77,15)) -> 176
C18: categorie 1 (laag) | E18: =IF(VLOOKUP('SWV gegevens'!$E$8,VerbandenVO!$DN$1:$ER$77,1)='SWV gegevens'!$E$8,VLOOKUP('SWV gegevens'!$E$8,VerbandenVO!$DN$3:$ER$77,6)) -> 278 | G18: =IF(VLOOKUP('SWV gegevens'!$E$8,VerbandenVO!$CI$1:$DL$77,1)='SWV gegevens'!$E$8,VLOOKUP('SWV gegevens'!$E$8,VerbandenVO!$CI$3:$DL$77,6)) -> 281 | I18: =IF(VLOOKUP('SWV gegevens'!$E$8,VerbandenVO!$BD$1:$CH$77,1)='SWV gegevens'!$E$8,VLOOKUP('SWV gegevens'!$E$8,VerbandenVO!$BD$3:$CH$77,6)) -> 280 | K18: =IF(VLOOKUP('SWV gegevens'!$E$8,VerbandenVO!$AT$1:$BB$77,1)='SWV gegevens'!$E$8,VLOOKUP('SWV gegevens'!$E$8,VerbandenVO!$AT$3:$BB$77,6)) -> 294 | M18: =IF(VLOOKUP('SWV gegevens'!$E$8,VerbandenVO!$AH$1:$AR$77,1)='SWV gegevens'!$E$8,VLOOKUP('SWV gegevens'!$E$8,VerbandenVO!$AH$3:$AR$77,6)) -> 329 | O18: =IF(VLOOKUP('SWV gegevens'!$E$8,VerbandenVO!$Q$1:$AF$77,1)='SWV gegevens'!$E$8,VLOOKUP('SWV gegevens'!$E$8,VerbandenVO!$Q$3:$AF$77,6)) -> 335 | Q18: =IF(VLOOKUP('SWV gegevens'!$E$8,VerbandenVO!$A$1:$P$77,1)='SWV gegevens'!$E$8,VLOOKUP('SWV gegevens'!$E$8,VerbandenVO!$A$3:$P$77,6)) -> 357 | S18: =IF(VLOOKUP('SWV gegevens'!$E$8,VerbandenVO!$ET$1:$FI$77,1)='SWV gegevens'!$E$8,VLOOKUP('SWV gegevens'!$E$8,VerbandenVO!$ET$1:$FI$77,6)) -> 358 | U18: =IF(VLOOKUP('SWV gegevens'!$E$8,VerbandenVO!$FL$1:$GA$77,1)='SWV gegevens'!$E$8,VLOOKUP('SWV gegevens'!$E$8,VerbandenVO!$FL$1:$GA$77,6)) -> 346 | AK18: =SUM(AK15:AK17) -> 0 | AM18: =SUM(AM15:AM17) -> 0 | AO18: =SUM(AO15:AO17) -> 0 | AQ18: =SUM(AQ15:AQ17) -> 0
C19: categorie 2 (midden) | E19: =IF(VLOOKUP('SWV gegevens'!$E$8,VerbandenVO!$DN$1:$ER$77,1)='SWV gegevens'!$E$8,VLOOKUP('SWV gegevens'!$E$8,VerbandenVO!$DN$3:$ER$77,7)) -> 0 | G19: =IF(VLOOKUP('SWV gegevens'!$E$8,VerbandenVO!$CI$1:$DL$77,1)='SWV gegevens'!$E$8,VLOOKUP('SWV gegevens'!$E$8,VerbandenVO!$CI$3:$DL$77,7)) -> 0 | I19: =IF(VLOOKUP('SWV gegevens'!$E$8,VerbandenVO!$BD$1:$CH$77,1)='SWV gegevens'!$E$8,VLOOKUP('SWV gegevens'!$E$8,VerbandenVO!$BD$3:$CH$77,7)) -> 0 | K19: =IF(VLOOKUP('SWV gegevens'!$E$8,VerbandenVO!$AT$1:$BB$77,1)='SWV gegevens'!$E$8,VLOOKUP('SWV gegevens'!$E$8,VerbandenVO!$AT$3:$BB$77,7)) -> 1 | M19: =IF(VLOOKUP('SWV gegevens'!$E$8,VerbandenVO!$AH$1:$AR$77,1)='SWV gegevens'!$E$8,VLOOKUP('SWV gegevens'!$E$8,VerbandenVO!$AH$3:$AR$77,7)) -> 0 | O19: =IF(VLOOKUP('SWV gegevens'!$E$8,VerbandenVO!$Q$1:$AF$77,1)='SWV gegevens'!$E$8,VLOOKUP('SWV gegevens'!$E$8,VerbandenVO!$Q$3:$AF$77,7)) -> 6 | Q19: =IF(VLOOKUP('SWV gegevens'!$E$8,VerbandenVO!$A$1:$P$77,1)='SWV gegevens'!$E$8,VLOOKUP('SWV gegevens'!$E$8,VerbandenVO!$A$3:$P$77,7)) -> 5 | S19: =IF(VLOOKUP('SWV gegevens'!$E$8,VerbandenVO!$ET$1:$FI$77,1)='SWV gegevens'!$E$8,VLOOKUP('SWV gegevens'!$E$8,VerbandenVO!$ET$1:$FI$77,7)) -> 7 | U19: =IF(VLOOKUP('SWV gegevens'!$E$8,VerbandenVO!$FL$1:$GA$77,1)='SWV gegevens'!$E$8,VLOOKUP('SWV gegevens'!$E$8,VerbandenVO!$FL$1:$GA$77,7)) -> 6
C20: categorie 3 (hoog) | E20: =IF(VLOOKUP('SWV gegevens'!$E$8,VerbandenVO!$DN$1:$ER$77,1)='SWV gegevens'!$E$8,VLOOKUP('SWV gegevens'!$E$8,VerbandenVO!$DN$3:$ER$77,8)) -> 44 | G20: =IF(VLOOKUP('SWV gegevens'!$E$8,VerbandenVO!$CI$1:$DL$77,1)='SWV gegevens'!$E$8,VLOOKUP('SWV gegevens'!$E$8,VerbandenVO!$CI$3:$DL$77,8)) -> 51 | I20: =IF(VLOOKUP('SWV gegevens'!$E$8,VerbandenVO!$BD$1:$CH$77,1)='SWV gegevens'!$E$8,VLOOKUP('SWV gegevens'!$E$8,VerbandenVO!$BD$3:$CH$77,8)) -> 55 | K20: =IF(VLOOKUP('SWV gegevens'!$E$8,VerbandenVO!$AT$1:$BB$77,1)='SWV gegevens'!$E$8,VLOOKUP('SWV gegevens'!$E$8,VerbandenVO!$AT$3:$BB$77,8)) -> 69 | M20: =IF(VLOOKUP('SWV gegevens'!$E$8,VerbandenVO!$AH$1:$AR$77,1)='SWV gegevens'!$E$8,VLOOKUP('SWV gegevens'!$E$8,VerbandenVO!$AH$3:$AR$77,8)) -> 81 | O20: =IF(VLOOKUP('SWV gegevens'!$E$8,VerbandenVO!$Q$1:$AF$77,1)='SWV gegevens'!$E$8,VLOOKUP('SWV gegevens'!$E$8,VerbandenVO!$Q$3:$AF$77,8)) -> 79 | Q20: =IF(VLOOKUP('SWV gegevens'!$E$8,VerbandenVO!$A$1:$P$77,1)='SWV gegevens'!$E$8,VLOOKUP('SWV gegevens'!$E$8,VerbandenVO!$A$3:$P$77,8)) -> 83 | S20: =IF(VLOOKUP('SWV gegevens'!$E$8,VerbandenVO!$ET$1:$FI$77,1)='SWV gegevens'!$E$8,VLOOKUP('SWV gegevens'!$E$8,VerbandenVO!$ET$1:$FI$77,8)) -> 91 | U20: =IF(VLOOKUP('SWV gegevens'!$E$8,VerbandenVO!$FL$1:$GA$77,1)='SWV gegevens'!$E$8,VLOOKUP('SWV gegevens'!$E$8,VerbandenVO!$FL$1:$GA$77,8)) -> 89
C21: Totaal vso | E21: =SUM(E18:E20) -> 322 | G21: =SUM(G18:G20) -> 332 | I21: =SUM(I18:I20) -> 335 | K21: =SUM(K18:K20) -> 364 | M21: =SUM(M18:M20) -> 410 | O21: =SUM(O18:O20) -> 420 | Q21: =SUM(Q18:Q20) -> 445 | S21: =SUM(S18:S20) -> 456 | U21: =SUM(U18:U20) -> 441 | W21: =SUM(W18:W20) -> 0 | Y21: =SUM(Y18:Y20) -> 0 | AA21: 0 | AC21: =SUM(AC18:AC20) -> 0 | AE21: =SUM(AE18:AE20) -> 0 | AG21: =SUM(AG18:AG20) -> 0 | AI21: =SUM(AI18:AI20) -> 0 | AK21: =SUM(AK18:AK20) -> 0 | AM21: =SUM(AM18:AM20) -> 0 | AO21: =SUM(AO18:AO20) -> 0 | AQ21: =SUM(AQ18:AQ20) -> 0
C24: Groei vso ll op peildatum | K24: 2015-02-01 | M24: 2016-02-01 | O24: 2017-02-01 | Q24: 2018-02-01 | S24: 2019-02-01 | U24: 2020-02-01 | W24: 2021-02-01 | Y24: 2022-02-01 | AA24: =DATE(YEAR(Y24)+1,MONTH(Y24),DAY(Y24)) -> 2023-02-01 | AC24: =DATE(YEAR(AA24)+1,MONTH(AA24),DAY(AA24)) -> 2024-02-01 | AE24: =DATE(YEAR(AC24)+1,MONTH(AC24),DAY(AC24)) -> 2025-02-01 | AG24: =DATE(YEAR(AE24)+1,MONTH(AE24),DAY(AE24)) -> 2026-02-01 | AI24: =DATE(YEAR(AG24)+1,MONTH(AG24),DAY(AG24)) -> 2027-02-01 | AK24: =DATE(YEAR(AI24)+1,MONTH(AI24),DAY(AI24)) -> 2028-02-01 | AM24: =DATE(YEAR(AK24)+1,MONTH(AK24),DAY(AK24)) -> 2029-02-01 | AO24: =DATE(YEAR(AM24)+1,MONTH(AM24),DAY(AM24)) -> 2030-02-01 | AQ24: =DATE(YEAR(AO24)+1,MONTH(AO24),DAY(AO24)) -> 2031-02-01
C25: categorie 1 (laag) | K25: =InUitstroomVSO!V922 -> 4
C26: categorie 2 (midden) | K26: =InUitstroomVSO!W922 -> 0
C27: categorie 3 (hoog) | K27: =InUitstroomVSO!X922 -> 0
C28: Totaal | K28: =SUM(K25:K27) -> 4 | M28: =SUM(M25:M27) -> 0 | O28: =SUM(O25:O27) -> 0 | Q28: =SUM(Q25:Q27) -> 0 | S28: =SUM(S25:S27) -> 0 | U28: =SUM(U25:U27) -> 0 | W28: =SUM(W25:W27) -> 0 | Y28: =SUM(Y25:Y27) -> 0 | AA28: =SUM(AA25:AA27) -> 0 | AC28: =SUM(AC25:AC27) -> 0 | AE28: =SUM(AE25:AE27) -> 0 | AG28: =SUM(AG25:AG27) -> 0 | AI28: =SUM(AI25:AI27) -> 0 | AK28: =SUM(AK25:AK27) -> 0 | AM28: =SUM(AM25:AM27) -> 0 | AO28: =SUM(AO25:AO27) -> 0 | AQ28: =SUM(AQ25:AQ27) -> 0

Sheet Variabelen (hidden)
A1: PROG_LAST_BIJDRAGE | B1: PROG_LAST_PERS | C1: PROG_LAST_AFSCHR | D1: PROG_LAST_HUISV | E1: PROG_LAST_OVERIGE | F1: PROG_BAT_ | G1: AANTAL_PROGS | H1: BEGROTINGSJAREN | I1: WEERGAVETABBLAD | J1: LABELS | K1: kalenderjaren | L1: schooljaren | M1: gekozen | O1: kalenderjaren LL aantal
A2: Basisondersteuning | B2: Extern personeel | C2: ICT | D2: Energie | E2: Accountantskosten | F2: Overige overheidsbijdragen en - subsidies | G2: 1 | H2: schooljaar | I2: Kies weergave programma | J2: Middelen basisondersteuning algemeen | K2: 2016 | L2: 2015/16 | M2: =IF(Begrotingsmodel!$G$10="kalenderjaar",Variabelen!K2,Variabelen!L2) -> 2016 | O2: 2011
A3: Extra ondersteuning | B3: Salarislasten/loonkosten detacheringen | C3: Meubilair | D3: Huur | E3: Activiteitenkosten | F3: Overige baten | G3: 2 | H3: kalenderjaar | I3: Programma ## 'naam programma' | J3: Middelen basisondersteuning toegekend aan scholen | K3: 2017 | L3: 2016/17 | M3: =IF(Begrotingsmodel!$G$10="kalenderjaar",Variabelen!K3,Variabelen!L3) -> 2017 | O3: 2012
A4: Ondersteuning LWOO | B4: Salarislasten/loonkosten personeel SWV | C4: Overig | D4: Huur werkplekken | E4: Administratie en beheer | G4: 3 | I4: Pr. ## 'naam programma' | J4: Inzet expert(s) voor ontwikkeling basisondersteuning | K4: 2018 | L4: 2017/18 | M4: =IF(Begrotingsmodel!$G$10="kalenderjaar",Variabelen!K4,Variabelen!L4) -> 2018 | O4: 2013
B5: Overige personele lasten | D5: ICT | E5: Bestuurskosten | G5: 4 | I5: (niets) | J5: Inzet voorziening(en) voor basisondersteuning | K5: 2019 | L5: 2018/19 | M5: =IF(Begrotingsmodel!$G$10="kalenderjaar",Variabelen!K5,Variabelen!L5) -> 2019 | O5: 2014
D6: Schoonmaak | E6: Communicatie/website/PR | G6: 5 | J6: Middelen extra ondersteuning algemeen | K6: 2020 | L6: 2019/20 | M6: =IF(Begrotingsmodel!$G$10="kalenderjaar",Variabelen!K6,Variabelen!L6) -> 2020 | O6: 2015
D7: Overige huisvestingslasten | E7: Extern advies | G7: 6 | J7: Middelen extra ondersteuning toegekend aan scholen | K7: 2021 | L7: 2020/21 | M7: =IF(Begrotingsmodel!$G$10="kalenderjaar",Variabelen!K7,Variabelen!L7) -> 2021 | O7: 2016
E8: Individuele arrangementen | G8: 7 | J8: Individuele arrangementen | K8: 2022 | L8: 2021/22 | M8: =IF(Begrotingsmodel!$G$10="kalenderjaar",Variabelen!K8,Variabelen!L8) -> 2022 | O8: 2017
E9: Inhuur administratiekantoor | G9: 8 | J9: Groeps arrangementen | K9: 2023 | L9: 2022/23 | M9: =IF(Begrotingsmodel!$G$10="kalenderjaar",Variabelen!K9,Variabelen!L9) -> 2023 | O9: 2018
E10: Inventaris. apparatuur en leermiddelen | G10: 9 | J10: Onderwijs-zorg arrangementen | K10: 2024 | L10: 2023/24 | M10: =IF(Begrotingsmodel!$G$10="kalenderjaar",Variabelen!K10,Variabelen!L10) -> 2024 | O10: 2019
E11: Kantoorkosten | G11: 10 | J11: Leraar arrangementen | K11: 2025 | L11: 2024/25 | M11: =IF(Begrotingsmodel!$G$10="kalenderjaar",Variabelen!K11,Variabelen!L11) -> 2025 | O11: 2020
E12: Monitoring | G12: 11 | J12: Bovenschoolse expert(s) | K12: 2026 | L12: 2025/26 | M12: =IF(Begrotingsmodel!$G$10="kalenderjaar",Variabelen!K12,Variabelen!L12) -> 2026 | O12: 2021
E13: OPR | G13: 12 | J13: Bovenschoolse voorziening(en) | K13: 2027 | L13: 2026/27 | M13: =IF(Begrotingsmodel!$G$10="kalenderjaar",Variabelen!K13,Variabelen!L13) -> 2027 | O13: 2022
E14: Professionalisering, netwerken etc. | G14: 13 | J14: LWOO/PRO ivm opting out | K14: 2028 | L14: 2027/28 | M14: =IF(Begrotingsmodel!$G$10="kalenderjaar",Variabelen!K14,Variabelen!L14) -> 2028 | O14: 2023
E15: Projecten, pilots, innovatieimpulsen | G15: 14 | J15: Aanvullende bekostiging sbo / so / vso | K15: 2029 | L15: 2028/29 | M15: =IF(Begrotingsmodel!$G$10="kalenderjaar",Variabelen!K15,Variabelen!L15) -> 2029 | O15: 2024
E16: Toetsing (overgang po-vo, lwoo-pro) | G16: 15 | J16: Overgang sectoren | K16: 2030 | L16: 2029/30 | M16: =IF(Begrotingsmodel!$G$10="kalenderjaar",Variabelen!K16,Variabelen!L16) -> 2030 | O16: 2025
E17: Overige kosten, activiteitenkosten | G17: 16 | J17: Samenwerking ketenpartners | O17: 2026
G18: 17 | J18: Bestuur, organisatie en administratie | O18: 2027
G19: 18 | J19: Ondersteuningstoewijzing | O19: 2028
G20: 19 | J20: Kwaliteitscyclus | O20: 2029
G21: 20 | J21: Verplichte herbesteding | O21: 2030
J22: Groeibekostiging
J23: Risicodekking / weerstandsvermogen
J24: Projecten
J25: Anders, namelijk..

Sheet MJB kalenderjaar
AU1: 1 | AV1: =INDEX(kalenderjaar,AU1) -> 2020 | AW1: =INDEX(kalenderjaar,AX1) -> 2028 | AX1: 9
A2: 0
C3: MEERJARENBEGROTING KALENDERJAAR | F3: =IF(AND(F5>=$AV$1,F5<=$AW$1),"","x") -> x | G3: =F3 -> x | H3: =IF(AND(H5>=$AV$1,H5<=$AW$1),"","x") -> x | I3: =H3 -> x | J3: =IF(AND(J5>=$AV$1,J5<=$AW$1),"","x") ->  | K3: =J3 ->  | L3: =IF(AND(RIGHT(L5,4)*1>=$AV$1,RIGHT(L5,4)*1<=$AW$1),"","x") ->  | M3: =J3 ->  | N3: =IF(AND(N5>=$AV$1,N5<=$AW$1),"","x") ->  | O3: =N3 ->  | P3: =IF(AND(P5>=$AV$1,P5<=$AW$1),"","x") ->  | Q3: =P3 ->  | R3: =IF(AND(R5>=$AV$1,R5<=$AW$1),"","x") ->  | S3: =R3 ->  | T3: =IF(AND(T5>=$AV$1,T5<=$AW$1),"","x") ->  | U3: =T3 ->  | V3: =IF(AND(V5>=$AV$1,V5<=$AW$1),"","x") ->  | W3: =V3 ->  | X3: =IF(AND(X5>=$AV$1,X5<=$AW$1),"","x") ->  | Y3: =X3 ->  | Z3: =IF(AND(Z5>=$AV$1,Z5<=$AW$1),"","x") ->  | AA3: =Z3 ->  | AB3: =IF(AND(AB5>=$AV$1,AB5<=$AW$1),"","x") ->  | AC3: =AB3 ->  | AD3: =IF(AND(AD5>=$AV$1,AD5<=$AW$1),"","x") -> x | AE3: =AD3 -> x | AF3: =IF(AND(AF5>=$AV$1,AF5<=$AW$1),"","x") -> x | AG3: =AF3 -> x
C4: =Start!$A$33 -> Versie 8.0
C5: Baten | F5: 2018 | H5: =F5+1 -> 2019 | J5: =H5+1 -> 2020 | L5: goedgekeurde begroting 2020 | N5: =J5+1 -> 2021 | P5: =N5+1 -> 2022 | R5: =P5+1 -> 2023 | T5: 2024 | U5: 2025 | V5: 2025 | X5: 2026 | Z5: =X5+1 -> 2027 | AB5: =Z5+1 -> 2028 | AC5: 2025 | AD5: =AB5+1 -> 2029 | AF5: =AD5+1 -> 2030
C6: lichte ondersteuning | G6: =Baten!J6 -> 10740569.86 | H6: =Baten!K8 -> 2129491 | I6: =Baten!L6 -> 11076715.35 | J6: =Baten!M8 -> 2214618.525 | K6: =Baten!L6 -> 11076715.35 | M6: =Baten!N6 -> 4694382.561 | N6: =Baten!O8 -> 0 | O6: =Baten!P6 -> 0 | P6: =Baten!Q8 -> 0 | Q6: =Baten!R6 -> 0 | R6: =Baten!S8 -> 0 | S6: =Baten!T6 -> 0 | T6: =Baten!U8 -> 0 | U6: =Baten!V6 -> 0 | V6: =Baten!W8 -> 0 | W6: =Baten!X6 -> 0 | X6: =Baten!Y8 -> 0 | Y6: =Baten!Z6 -> 0 | Z6: =Baten!AA8 -> 0 | AA6: =Baten!AB6 -> 0 | AB6: =Baten!AC8 -> 0 | AC6: =Baten!AD6 -> 0 | AD6: =Baten!AE8 -> 0 | AE6: =Baten!AF6 -> 0 | AF6: =Baten!AG8 -> 0 | AG6: =Baten!AH6 -> 0
C7: lwoo | H7: =Baten!K14 -> 6916307.152 | J7: =Baten!M14 -> 7211393.77 | N7: =Baten!O14 -> 0 | P7: =Baten!Q14 -> 0 | R7: =Baten!S14 -> 0 | T7: =Baten!U14 -> 0 | V7: =Baten!W14 -> 0 | X7: =Baten!Y14 -> 0 | Z7: =Baten!AA14 -> 0 | AB7: =Baten!AC14 -> 0 | AD7: =Baten!AE14 -> 0 | AF7: =Baten!AG14 -> 0
C8: pro | H8: =Baten!K18 -> 1765193.274 | J8: =Baten!M18 -> 1840505.851 | N8: =Baten!O18 -> 0 | P8: =Baten!Q18 -> 0 | R8: =Baten!S18 -> 0 | T8: =Baten!U18 -> 0 | V8: =Baten!W18 -> 0 | X8: =Baten!Y18 -> 0 | Z8: =Baten!AA18 -> 0 | AB8: =Baten!AC18 -> 0 | AD8: =Baten!AE18 -> 0 | AF8: =Baten!AG18 -> 0
C10: zware ondersteuning | H10: =Baten!K22 -> 13674011.18 | J10: =Baten!M22 -> 13902755.32 | N10: =Baten!O22 -> 7776863.483 | P10: =Baten!Q22 -> 0 | R10: =Baten!S22 -> 0 | T10: =Baten!U22 -> 0 | V10: =Baten!W22 -> 0 | X10: =Baten!Y22 -> 0 | Z10: =Baten!AA22 -> 0 | AB10: =Baten!AC22 -> 0 | AD10: =Baten!AE22 -> 0 | AF10: =Baten!AG22 -> 0
C11: verevening zware ondersteuning (pers) | H11: =Baten!K34 -> -2336802.314 | J11: =Baten!M34 -> -883332.1715 | N11: =Baten!O34 -> 0 | P11: =Baten!Q34 -> 0 | R11: =Baten!S34 -> 0 | T11: =Baten!U34 -> 0 | V11: =Baten!W34 -> 0 | X11: =Baten!Y34 -> 0 | Z11: =Baten!AA34 -> 0 | AB11: =Baten!AC34 -> 0 | AD11: =Baten!AE34 -> 0 | AF11: =Baten!AG34 -> 0
C12: verevening zware ondersteuning (mat) | H12: =Baten!K35 -> -85991.10694 | J12: =Baten!M35 -> 0 | N12: =Baten!O35 -> 0 | P12: =Baten!Q35 -> 0 | R12: =Baten!S35 -> 0 | T12: =Baten!U35 -> 0 | V12: =Baten!W35 -> 0 | X12: =Baten!Y35 -> 0 | Z12: =Baten!AA35 -> 0 | AB12: =Baten!AC35 -> 0 | AD12: =Baten!AE35 -> 0 | AF12: =Baten!AG35 -> 0
C13: verevening zware ondersteuning | H13: =H11+H12 -> -2422793.421 | J13: -883332.1715 | N13: =N11+N12 -> 0
C14: overige baten | H14: =Baten!K51 -> 0 | J14: =Baten!M51 -> 0 | N14: =Baten!O51 -> 0 | P14: =Baten!Q51 -> 0 | R14: =Baten!S51 -> 0 | T14: =Baten!U51 -> 0 | V14: =Baten!W51 -> 0 | X14: =Baten!Y51 -> 0 | Z14: =Baten!AA51 -> 0 | AB14: =Baten!AC51 -> 0 | AD14: =Baten!AE51 -> 0 | AF14: =Baten!AG51 -> 0
C15: geoormerkte subsidies en bijdragen voor specifieke programma's in het ondersteuningsplan | H15: =Baten!K53+Baten!K54 -> 0 | J15: =Baten!M53+Baten!M54 -> 0 | N15: =Baten!O53+Baten!O54 -> 0 | P15: =Baten!Q53+Baten!Q54 -> 0 | R15: =Baten!S53+Baten!S54 -> 0 | T15: =Baten!U53+Baten!U54 -> 0 | V15: =Baten!W53+Baten!W54 -> 0 | X15: =Baten!Y53+Baten!Y54 -> 0 | Z15: =Baten!AA53+Baten!AA54 -> 0 | AB15: =Baten!AC53+Baten!AC54 -> 0 | AD15: =Baten!AE53+Baten!AE54 -> 0 | AF15: =Baten!AG53+Baten!AG54 -> 0
C17: Totale baten | H17: =SUM(H6:H10)+SUM(H13:H15) -> 22062209.18 | J17: =SUM(J6:J10)+SUM(J13:J15) -> 24285941.29 | L17: =SUM(L6:L10)+SUM(L13:L15) -> 0 | N17: =SUM(N6:N10)+SUM(N13:N15) -> 7776863.483 | P17: =SUM(P6:P10)+SUM(P13:P15) -> 0 | R17: =SUM(R6:R10)+SUM(R13:R15) -> 0 | T17: =SUM(T6:T10)+SUM(T13:T15) -> 0 | V17: =SUM(V6:V10)+SUM(V13:V15) -> 0 | X17: =SUM(X6:X10)+SUM(X13:X15) -> 0 | Z17: =SUM(Z6:Z10)+SUM(Z13:Z15) -> 0 | AB17: =SUM(AB6:AB10)+SUM(AB13:AB15) -> 0 | AD17: =SUM(AD6:AD10)+SUM(AD13:AD15) -> 0 | AF17: =SUM(AF6:AF10)+SUM(AF13:AF15) -> 0
C19: Lasten | F19: =F5 -> 2018 | H19: =H5 -> 2019 | J19: =J5 -> 2020 | L19: =L5 -> goedgekeurde begroting 2020 | N19: =N5 -> 2021 | P19: =P5 -> 2022 | R19: =R5 -> 2023 | T19: =T5 -> 2024 | V19: =V5 -> 2025 | X19: =X5 -> 2026 | Z19: =Z5 -> 2027 | AB19: =AB5 -> 2028 | AD19: =AD5 -> 2029 | AF19: =AF5 -> 2030
C20: afdracht lwoo (via DUO) | H20: =Lasten!K34 -> 6603972.24 | J20: =Lasten!M34 -> 6855425.28 | N20: =Lasten!O34 -> 0 | P20: =Lasten!Q34 -> 0 | R20: =Lasten!S34 -> 0 | T20: =Lasten!U34 -> 0 | V20: =Lasten!W34 -> 0 | X20: =Lasten!Y34 -> 0 | Z20: =Lasten!AA34 -> 0 | AB20: =Lasten!AC34 -> 0 | AD20: =Lasten!AE34 -> 0 | AF20: =Lasten!AG34 -> 0
C21: afdracht pro (via DUO) | G21: =Lasten!J20 -> 0 | H21: =Lasten!K39 -> 1972374 | I21: =Lasten!L20 -> 0 | J21: =Lasten!M39 -> 2210485.14 | K21: =Lasten!L20 -> 0 | M21: =Lasten!N20 -> 0 | N21: =Lasten!O39 -> 0 | O21: =Lasten!P20 -> 0 | P21: =Lasten!Q39 -> 0 | Q21: =Lasten!R20 -> 0 | R21: =Lasten!S39 -> 0 | S21: =Lasten!T20 -> 0 | T21: =Lasten!U39 -> 0 | U21: =Lasten!V20 -> 0 | V21: =Lasten!W39 -> 0 | W21: =Lasten!X20 -> 0 | X21: =Lasten!Y39 -> 0 | Y21: =Lasten!Z20 -> 0 | Z21: =Lasten!AA39 -> 0 | AA21: =Lasten!AB20 -> 0 | AB21: =Lasten!AC39 -> 0 | AC21: =Lasten!AD20 -> 0 | AD21: =Lasten!AE39 -> 0 | AE21: =Lasten!AF20 -> 0 | AF21: =Lasten!AG39 -> 0 | AG21: =Lasten!AH20 -> 0
C22: maximering afdracht lwoo/pro, dit bedrag t.l.v. lumpsum schoolbesturen (indien van toepassing) | G22: =Lasten!J48 -> 0 | I22: =Lasten!L48 -> 0 | K22: =Lasten!L48 -> 0 | M22: =Lasten!N48 -> 0 | O22: =Lasten!P48 -> 0 | Q22: =Lasten!R48 -> 0 | S22: =Lasten!T48 -> 0 | U22: =Lasten!V48 -> 0 | W22: =Lasten!X48 -> 0 | Y22: =Lasten!Z48 -> 0 | AA22: =Lasten!AB48 -> 0 | AC22: =Lasten!AD48 -> 0 | AE22: =Lasten!AF48 -> 0 | AG22: =Lasten!AH48 -> 0
C23: afdracht vso, teldatum, (via DUO) | H23: =Lasten!K6 -> 6133193.627 | J23: =Lasten!M6 -> 6339424.118 | N23: =Lasten!O6 -> 3470223.348 | P23: =Lasten!Q6 -> 0 | R23: =Lasten!S6 -> 0 | T23: =Lasten!U6 -> 0 | V23: =Lasten!W6 -> 0 | X23: =Lasten!Y6 -> 0 | Z23: =Lasten!AA6 -> 0 | AB23: =Lasten!AC6 -> 0 | AD23: =Lasten!AE6 -> 0 | AF23: =Lasten!AG6 -> 0
C24: afdracht vso, peildatum, (tussentijdse groei vso), ondersteuningsbekostiging | H24: =Lasten!K20 -> 0 | J24: =Lasten!M20 -> 0 | N24: =Lasten!O20 -> 0 | P24: =Lasten!Q20 -> 0 | R24: =Lasten!S20 -> 0 | T24: =Lasten!U20 -> 0 | V24: =Lasten!W20 -> 0 | X24: =Lasten!Y20 -> 0 | Z24: =Lasten!AA20 -> 0 | AB24: =Lasten!AC20 -> 0 | AD24: =Lasten!AE20 -> 0 | AF24: =Lasten!AG20 -> 0
C25: afdracht vso, peildatum, (tussentijdse groei vso), basisbekostiging | H25: =Lasten!K48 -> 0 | J25: =Lasten!M48 -> 0 | N25: =Lasten!O48 -> 0 | P25: =Lasten!Q48 -> 0 | R25: =Lasten!S48 -> 0 | T25: =Lasten!U48 -> 0 | V25: =Lasten!W48 -> 0 | X25: =Lasten!Y48 -> 0 | Z25: =Lasten!AA48 -> 0 | AB25: =Lasten!AC48 -> 0 | AD25: =Lasten!AE48 -> 0 | AF25: =Lasten!AG48 -> 0
C26: totaal afdrachten | H26: =SUM(H20:H25) -> 14709539.87 | J26: =SUM(J20:J25) -> 15405334.54 | L26: =SUM(L20:L25) -> 0 | N26: =SUM(N20:N25) -> 3470223.348 | P26: =SUM(P20:P25) -> 0 | R26: =SUM(R20:R25) -> 0 | T26: =SUM(T20:T25) -> 0 | V26: =SUM(V20:V25) -> 0 | X26: =SUM(X20:X25) -> 0 | Z26: =SUM(Z20:Z25) -> 0 | AB26: =SUM(AB20:AB25) -> 0 | AD26: =SUM(AD20:AD25) -> 0 | AF26: =SUM(AF20:AF25) -> 0
C29: =INDIRECT("'Programma''s'!L3") -> 0 | D29: =IF(LEN(INDIRECT("C29"))>1,"Zichtbaar", "Onzichtbaar") -> Onzichtbaar | G29: =Lasten!J64 -> 0 | H29: =Lasten!K64 -> 0 | I29: =Lasten!L64 -> 0 | J29: =Lasten!M64 -> 0 | K29: =Lasten!L64 -> 0 | L29: =Lasten!M64 -> 0 | M29: =Lasten!N64 -> 0 | N29: =Lasten!O64 -> 0 | O29: =Lasten!P64 -> 0 | P29: =Lasten!Q64 -> 0 | Q29: =Lasten!R64 -> 0 | R29: =Lasten!S64 -> 0 | S29: =Lasten!T64 -> 0 | T29: =Lasten!U64 -> 0 | U29: =Lasten!V64 -> 0 | V29: =Lasten!W64 -> 0 | W29: =Lasten!X64 -> 0 | X29: =Lasten!Y64 -> 0 | Y29: =Lasten!Z64 -> 0 | Z29: =Lasten!AA64 -> 0 | AA29: =Lasten!AB64 -> 0 | AB29: =Lasten!AC64 -> 0 | AC29: =Lasten!AD64 -> 0 | AD29: =Lasten!AE64 -> 0 | AE29: =Lasten!AF64 -> 0 | AF29: =Lasten!AG64 -> 0 | AG29: =Lasten!AH64 -> 0
C30: =INDIRECT("'Programma''s'!L4") -> 0 | D30: =IF(LEN(INDIRECT("C30"))>1,"Zichtbaar", "Onzichtbaar") -> Onzichtbaar | G30: =Lasten!J65 -> 0 | H30: =Lasten!K65 -> 0 | I30: =Lasten!L65 -> 0 | J30: =Lasten!M65 -> 0 | K30: =Lasten!L65 -> 0 | L30: =Lasten!M65 -> 0 | M30: =Lasten!N65 -> 0 | N30: =Lasten!O65 -> 0 | O30: =Lasten!P65 -> 0 | P30: =Lasten!Q65 -> 0 | Q30: =Lasten!R65 -> 0 | R30: =Lasten!S65 -> 0 | S30: =Lasten!T65 -> 0 | T30: =Lasten!U65 -> 0 | U30: =Lasten!V65 -> 0 | V30: =Lasten!W65 -> 0 | W30: =Lasten!X65 -> 0 | X30: =Lasten!Y65 -> 0 | Y30: =Lasten!Z65 -> 0 | Z30: =Lasten!AA65 -> 0 | AA30: =Lasten!AB65 -> 0 | AB30: =Lasten!AC65 -> 0 | AC30: =Lasten!AD65 -> 0 | AD30: =Lasten!AE65 -> 0 | AE30: =Lasten!AF65 -> 0 | AF30: =Lasten!AG65 -> 0 | AG30: =Lasten!AH65 -> 0
C31: =INDIRECT("'Programma''s'!L5") -> 0 | D31: =IF(LEN(INDIRECT("C31"))>1,"Zichtbaar", "Onzichtbaar") -> Onzichtbaar | G31: =Lasten!J66 -> 0 | H31: =Lasten!K66 -> 0 | I31: =Lasten!L66 -> 0 | J31: =Lasten!M66 -> 0 | K31: =Lasten!L66 -> 0 | L31: =Lasten!M66 -> 0 | M31: =Lasten!N66 -> 0 | N31: =Lasten!O66 -> 0 | O31: =Lasten!P66 -> 0 | P31: =Lasten!Q66 -> 0 | Q31: =Lasten!R66 -> 0 | R31: =Lasten!S66 -> 0 | S31: =Lasten!T66 -> 0 | T31: =Lasten!U66 -> 0 | U31: =Lasten!V66 -> 0 | V31: =Lasten!W66 -> 0 | W31: =Lasten!X66 -> 0 | X31: =Lasten!Y66 -> 0 | Y31: =Lasten!Z66 -> 0 | Z31: =Lasten!AA66 -> 0 | AA31: =Lasten!AB66 -> 0 | AB31: =Lasten!AC66 -> 0 | AC31: =Lasten!AD66 -> 0 | AD31: =Lasten!AE66 -> 0 | AE31: =Lasten!AF66 -> 0 | AF31: =Lasten!AG66 -> 0 | AG31: =Lasten!AH66 -> 0
C32: =INDIRECT("'Programma''s'!L6") -> 0 | D32: =IF(LEN(INDIRECT("C32"))>1,"Zichtbaar", "Onzichtbaar") -> Onzichtbaar | G32: =Lasten!J67 -> 0 | H32: =Lasten!K67 -> 0 | I32: =Lasten!L67 -> 0 | J32: =Lasten!M67 -> 0 | K32: =Lasten!L67 -> 0 | L32: =Lasten!M67 -> 0 | M32: =Lasten!N67 -> 0 | N32: =Lasten!O67 -> 0 | O32: =Lasten!P67 -> 0 | P32: =Lasten!Q67 -> 0 | Q32: =Lasten!R67 -> 0 | R32: =Lasten!S67 -> 0 | S32: =Lasten!T67 -> 0 | T32: =Lasten!U67 -> 0 | U32: =Lasten!V67 -> 0 | V32: =Lasten!W67 -> 0 | W32: =Lasten!X67 -> 0 | X32: =Lasten!Y67 -> 0 | Y32: =Lasten!Z67 -> 0 | Z32: =Lasten!AA67 -> 0 | AA32: =Lasten!AB67 -> 0 | AB32: =Lasten!AC67 -> 0 | AC32: =Lasten!AD67 -> 0 | AD32: =Lasten!AE67 -> 0 | AE32: =Lasten!AF67 -> 0 | AF32: =Lasten!AG67 -> 0 | AG32: =Lasten!AH67 -> 0
C33: =INDIRECT("'Programma''s'!L7") -> 0 | D33: =IF(LEN(INDIRECT("C33"))>1,"Zichtbaar", "Onzichtbaar") -> Onzichtbaar | G33: =Lasten!J68 -> 0 | H33: =Lasten!K68 -> 0 | I33: =Lasten!L68 -> 0 | J33: =Lasten!M68 -> 0 | K33: =Lasten!L68 -> 0 | L33: =Lasten!M68 -> 0 | M33: =Lasten!N68 -> 0 | N33: =Lasten!O68 -> 0 | O33: =Lasten!P68 -> 0 | P33: =Lasten!Q68 -> 0 | Q33: =Lasten!R68 -> 0 | R33: =Lasten!S68 -> 0 | S33: =Lasten!T68 -> 0 | T33: =Lasten!U68 -> 0 | U33: =Lasten!V68 -> 0 | V33: =Lasten!W68 -> 0 | W33: =Lasten!X68 -> 0 | X33: =Lasten!Y68 -> 0 | Y33: =Lasten!Z68 -> 0 | Z33: =Lasten!AA68 -> 0 | AA33: =Lasten!AB68 -> 0 | AB33: =Lasten!AC68 -> 0 | AC33: =Lasten!AD68 -> 0 | AD33: =Lasten!AE68 -> 0 | AE33: =Lasten!AF68 -> 0 | AF33: =Lasten!AG68 -> 0 | AG33: =Lasten!AH68 -> 0
C34: =INDIRECT("'Programma''s'!L8") -> 0 | D34: =IF(LEN(INDIRECT("C34"))>1,"Zichtbaar", "Onzichtbaar") -> Onzichtbaar | G34: =Lasten!J69 -> 0 | H34: =Lasten!K69 -> 0 | I34: =Lasten!L69 -> 0 | J34: =Lasten!M69 -> 0 | K34: =Lasten!L69 -> 0 | L34: =Lasten!M69 -> 0 | M34: =Lasten!N69 -> 0 | N34: =Lasten!O69 -> 0 | O34: =Lasten!P69 -> 0 | P34: =Lasten!Q69 -> 0 | Q34: =Lasten!R69 -> 0 | R34: =Lasten!S69 -> 0 | S34: =Lasten!T69 -> 0 | T34: =Lasten!U69 -> 0 | U34: =Lasten!V69 -> 0 | V34: =Lasten!W69 -> 0 | W34: =Lasten!X69 -> 0 | X34: =Lasten!Y69 -> 0 | Y34: =Lasten!Z69 -> 0 | Z34: =Lasten!AA69 -> 0 | AA34: =Lasten!AB69 -> 0 | AB34: =Lasten!AC69 -> 0 | AC34: =Lasten!AD69 -> 0 | AD34: =Lasten!AE69 -> 0 | AE34: =Lasten!AF69 -> 0 | AF34: =Lasten!AG69 -> 0 | AG34: =Lasten!AH69 -> 0
C35: =INDIRECT("'Programma''s'!L9") -> 0 | D35: =IF(LEN(INDIRECT("C35"))>1,"Zichtbaar", "Onzichtbaar") -> Onzichtbaar | G35: =Lasten!J70 -> 0 | H35: =Lasten!K70 -> 0 | I35: =Lasten!L70 -> 0 | J35: =Lasten!M70 -> 0 | K35: =Lasten!L70 -> 0 | L35: =Lasten!M70 -> 0 | M35: =Lasten!N70 -> 0 | N35: =Lasten!O70 -> 0 | O35: =Lasten!P70 -> 0 | P35: =Lasten!Q70 -> 0 | Q35: =Lasten!R70 -> 0 | R35: =Lasten!S70 -> 0 | S35: =Lasten!T70 -> 0 | T35: =Lasten!U70 -> 0 | U35: =Lasten!V70 -> 0 | V35: =Lasten!W70 -> 0 | W35: =Lasten!X70 -> 0 | X35: =Lasten!Y70 -> 0 | Y35: =Lasten!Z70 -> 0 | Z35: =Lasten!AA70 -> 0 | AA35: =Lasten!AB70 -> 0 | AB35: =Lasten!AC70 -> 0 | AC35: =Lasten!AD70 -> 0 | AD35: =Lasten!AE70 -> 0 | AE35: =Lasten!AF70 -> 0 | AF35: =Lasten!AG70 -> 0 | AG35: =Lasten!AH70 -> 0
C36: =INDIRECT("'Programma''s'!L10") -> 0 | D36: =IF(LEN(INDIRECT("C36"))>1,"Zichtbaar", "Onzichtbaar") -> Onzichtbaar | G36: =Lasten!J71 -> 0 | H36: =Lasten!K71 -> 0 | I36: =Lasten!L71 -> 0 | J36: =Lasten!M71 -> 0 | K36: =Lasten!L71 -> 0 | L36: =Lasten!M71 -> 0 | M36: =Lasten!N71 -> 0 | N36: =Lasten!O71 -> 0 | O36: =Lasten!P71 -> 0 | P36: =Lasten!Q71 -> 0 | Q36: =Lasten!R71 -> 0 | R36: =Lasten!S71 -> 0 | S36: =Lasten!T71 -> 0 | T36: =Lasten!U71 -> 0 | U36: =Lasten!V71 -> 0 | V36: =Lasten!W71 -> 0 | W36: =Lasten!X71 -> 0 | X36: =Lasten!Y71 -> 0 | Y36: =Lasten!Z71 -> 0 | Z36: =Lasten!AA71 -> 0 | AA36: =Lasten!AB71 -> 0 | AB36: =Lasten!AC71 -> 0 | AC36: =Lasten!AD71 -> 0 | AD36: =Lasten!AE71 -> 0 | AE36: =Lasten!AF71 -> 0 | AF36: =Lasten!AG71 -> 0 | AG36: =Lasten!AH71 -> 0
C37: =INDIRECT("'Programma''s'!L11") -> 0 | D37: =IF(LEN(INDIRECT("C37"))>1,"Zichtbaar", "Onzichtbaar") -> Onzichtbaar | G37: =Lasten!J72 -> 0 | H37: =Lasten!K72 -> 0 | I37: =Lasten!L72 -> 0 | J37: =Lasten!M72 -> 0 | K37: =Lasten!L72 -> 0 | L37: =Lasten!M72 -> 0 | M37: =Lasten!N72 -> 0 | N37: =Lasten!O72 -> 0 | O37: =Lasten!P72 -> 0 | P37: =Lasten!Q72 -> 0 | Q37: =Lasten!R72 -> 0 | R37: =Lasten!S72 -> 0 | S37: =Lasten!T72 -> 0 | T37: =Lasten!U72 -> 0 | U37: =Lasten!V72 -> 0 | V37: =Lasten!W72 -> 0 | W37: =Lasten!X72 -> 0 | X37: =Lasten!Y72 -> 0 | Y37: =Lasten!Z72 -> 0 | Z37: =Lasten!AA72 -> 0 | AA37: =Lasten!AB72 -> 0 | AB37: =Lasten!AC72 -> 0 | AC37: =Lasten!AD72 -> 0 | AD37: =Lasten!AE72 -> 0 | AE37: =Lasten!AF72 -> 0 | AF37: =Lasten!AG72 -> 0 | AG37: =Lasten!AH72 -> 0
C38: =INDIRECT("'Programma''s'!L12") -> 0 | D38: =IF(LEN(INDIRECT("C38"))>1,"Zichtbaar", "Onzichtbaar") -> Onzichtbaar | G38: =Lasten!J73 -> 0 | H38: =Lasten!K73 -> 0 | I38: =Lasten!L73 -> 0 | J38: =Lasten!M73 -> 0 | K38: =Lasten!L73 -> 0 | L38: =Lasten!M73 -> 0 | M38: =Lasten!N73 -> 0 | N38: =Lasten!O73 -> 0 | O38: =Lasten!P73 -> 0 | P38: =Lasten!Q73 -> 0 | Q38: =Lasten!R73 -> 0 | R38: =Lasten!S73 -> 0 | S38: =Lasten!T73 -> 0 | T38: =Lasten!U73 -> 0 | U38: =Lasten!V73 -> 0 | V38: =Lasten!W73 -> 0 | W38: =Lasten!X73 -> 0 | X38: =Lasten!Y73 -> 0 | Y38: =Lasten!Z73 -> 0 | Z38: =Lasten!AA73 -> 0 | AA38: =Lasten!AB73 -> 0 | AB38: =Lasten!AC73 -> 0 | AC38: =Lasten!AD73 -> 0 | AD38: =Lasten!AE73 -> 0 | AE38: =Lasten!AF73 -> 0 | AF38: =Lasten!AG73 -> 0 | AG38: =Lasten!AH73 -> 0
C39: =INDIRECT("'Programma''s'!L13") -> 0 | D39: =IF(LEN(INDIRECT("C39"))>1,"Zichtbaar", "Onzichtbaar") -> Onzichtbaar | G39: =Lasten!J74 -> 0 | H39: =Lasten!K74 -> 0 | I39: =Lasten!L74 -> 0 | J39: =Lasten!M74 -> 0 | K39: =Lasten!L74 -> 0 | L39: =Lasten!M74 -> 0 | M39: =Lasten!N74 -> 0 | N39: =Lasten!O74 -> 0 | O39: =Lasten!P74 -> 0 | P39: =Lasten!Q74 -> 0 | Q39: =Lasten!R74 -> 0 | R39: =Lasten!S74 -> 0 | S39: =Lasten!T74 -> 0 | T39: =Lasten!U74 -> 0 | U39: =Lasten!V74 -> 0 | V39: =Lasten!W74 -> 0 | W39: =Lasten!X74 -> 0 | X39: =Lasten!Y74 -> 0 | Y39: =Lasten!Z74 -> 0 | Z39: =Lasten!AA74 -> 0 | AA39: =Lasten!AB74 -> 0 | AB39: =Lasten!AC74 -> 0 | AC39: =Lasten!AD74 -> 0 | AD39: =Lasten!AE74 -> 0 | AE39: =Lasten!AF74 -> 0 | AF39: =Lasten!AG74 -> 0 | AG39: =Lasten!AH74 -> 0
C40: =INDIRECT("'Programma''s'!L14") -> 0 | D40: =IF(LEN(INDIRECT("C40"))>1,"Zichtbaar", "Onzichtbaar") -> Onzichtbaar | G40: =Lasten!J75 -> 0 | H40: =Lasten!K75 -> 0 | I40: =Lasten!L75 -> 0 | J40: =Lasten!M75 -> 0 | K40: =Lasten!L75 -> 0 | L40: =Lasten!M75 -> 0 | M40: =Lasten!N75 -> 0 | N40: =Lasten!O75 -> 0 | O40: =Lasten!P75 -> 0 | P40: =Lasten!Q75 -> 0 | Q40: =Lasten!R75 -> 0 | R40: =Lasten!S75 -> 0 | S40: =Lasten!T75 -> 0 | T40: =Lasten!U75 -> 0 | U40: =Lasten!V75 -> 0 | V40: =Lasten!W75 -> 0 | W40: =Lasten!X75 -> 0 | X40: =Lasten!Y75 -> 0 | Y40: =Lasten!Z75 -> 0 | Z40: =Lasten!AA75 -> 0 | AA40: =Lasten!AB75 -> 0 | AB40: =Lasten!AC75 -> 0 | AC40: =Lasten!AD75 -> 0 | AD40: =Lasten!AE75 -> 0 | AE40: =Lasten!AF75 -> 0 | AF40: =Lasten!AG75 -> 0 | AG40: =Lasten!AH75 -> 0
C41: =INDIRECT("'Programma''s'!L15") -> 0 | D41: =IF(LEN(INDIRECT("C41"))>1,"Zichtbaar", "Onzichtbaar") -> Onzichtbaar | G41: =Lasten!J76 -> 0 | H41: =Lasten!K76 -> 0 | I41: =Lasten!L76 -> 0 | J41: =Lasten!M76 -> 0 | K41: =Lasten!L76 -> 0 | L41: =Lasten!M76 -> 0 | M41: =Lasten!N76 -> 0 | N41: =Lasten!O76 -> 0 | O41: =Lasten!P76 -> 0 | P41: =Lasten!Q76 -> 0 | Q41: =Lasten!R76 -> 0 | R41: =Lasten!S76 -> 0 | S41: =Lasten!T76 -> 0 | T41: =Lasten!U76 -> 0 | U41: =Lasten!V76 -> 0 | V41: =Lasten!W76 -> 0 | W41: =Lasten!X76 -> 0 | X41: =Lasten!Y76 -> 0 | Y41: =Lasten!Z76 -> 0 | Z41: =Lasten!AA76 -> 0 | AA41: =Lasten!AB76 -> 0 | AB41: =Lasten!AC76 -> 0 | AC41: =Lasten!AD76 -> 0 | AD41: =Lasten!AE76 -> 0 | AE41: =Lasten!AF76 -> 0 | AF41: =Lasten!AG76 -> 0 | AG41: =Lasten!AH76 -> 0
C42: =INDIRECT("'Programma''s'!L16") -> 0 | D42: =IF(LEN(INDIRECT("C42"))>1,"Zichtbaar", "Onzichtbaar") -> Onzichtbaar | G42: =Lasten!J77 -> 0 | H42: =Lasten!K77 -> 0 | I42: =Lasten!L77 -> 0 | J42: =Lasten!M77 -> 0 | K42: =Lasten!L77 -> 0 | L42: =Lasten!M77 -> 0 | M42: =Lasten!N77 -> 0 | N42: =Lasten!O77 -> 0 | O42: =Lasten!P77 -> 0 | P42: =Lasten!Q77 -> 0 | Q42: =Lasten!R77 -> 0 | R42: =Lasten!S77 -> 0 | S42: =Lasten!T77 -> 0 | T42: =Lasten!U77 -> 0 | U42: =Lasten!V77 -> 0 | V42: =Lasten!W77 -> 0 | W42: =Lasten!X77 -> 0 | X42: =Lasten!Y77 -> 0 | Y42: =Lasten!Z77 -> 0 | Z42: =Lasten!AA77 -> 0 | AA42: =Lasten!AB77 -> 0 | AB42: =Lasten!AC77 -> 0 | AC42: =Lasten!AD77 -> 0 | AD42: =Lasten!AE77 -> 0 | AE42: =Lasten!AF77 -> 0 | AF42: =Lasten!AG77 -> 0 | AG42: =Lasten!AH77 -> 0
C43: =INDIRECT("'Programma''s'!L17") -> 0 | D43: =IF(LEN(INDIRECT("C43"))>1,"Zichtbaar", "Onzichtbaar") -> Onzichtbaar | G43: =Lasten!J78 -> 0 | H43: =Lasten!K78 -> 0 | I43: =Lasten!L78 -> 0 | J43: =Lasten!M78 -> 0 | K43: =Lasten!L78 -> 0 | L43: =Lasten!M78 -> 0 | M43: =Lasten!N78 -> 0 | N43: =Lasten!O78 -> 0 | O43: =Lasten!P78 -> 0 | P43: =Lasten!Q78 -> 0 | Q43: =Lasten!R78 -> 0 | R43: =Lasten!S78 -> 0 | S43: =Lasten!T78 -> 0 | T43: =Lasten!U78 -> 0 | U43: =Lasten!V78 -> 0 | V43: =Lasten!W78 -> 0 | W43: =Lasten!X78 -> 0 | X43: =Lasten!Y78 -> 0 | Y43: =Lasten!Z78 -> 0 | Z43: =Lasten!AA78 -> 0 | AA43: =Lasten!AB78 -> 0 | AB43: =Lasten!AC78 -> 0 | AC43: =Lasten!AD78 -> 0 | AD43: =Lasten!AE78 -> 0 | AE43: =Lasten!AF78 -> 0 | AF43: =Lasten!AG78 -> 0 | AG43: =Lasten!AH78 -> 0
C44: =INDIRECT("'Programma''s'!L18") -> 0 | D44: =IF(LEN(INDIRECT("C44"))>1,"Zichtbaar", "Onzichtbaar") -> Onzichtbaar | G44: =Lasten!J79 -> 0 | H44: =Lasten!K79 -> 0 | I44: =Lasten!L79 -> 0 | J44: =Lasten!M79 -> 0 | K44: =Lasten!L79 -> 0 | L44: =Lasten!M79 -> 0 | M44: =Lasten!N79 -> 0 | N44: =Lasten!O79 -> 0 | O44: =Lasten!P79 -> 0 | P44: =Lasten!Q79 -> 0 | Q44: =Lasten!R79 -> 0 | R44: =Lasten!S79 -> 0 | S44: =Lasten!T79 -> 0 | T44: =Lasten!U79 -> 0 | U44: =Lasten!V79 -> 0 | V44: =Lasten!W79 -> 0 | W44: =Lasten!X79 -> 0 | X44: =Lasten!Y79 -> 0 | Y44: =Lasten!Z79 -> 0 | Z44: =Lasten!AA79 -> 0 | AA44: =Lasten!AB79 -> 0 | AB44: =Lasten!AC79 -> 0 | AC44: =Lasten!AD79 -> 0 | AD44: =Lasten!AE79 -> 0 | AE44: =Lasten!AF79 -> 0 | AF44: =Lasten!AG79 -> 0 | AG44: =Lasten!AH79 -> 0
C45: =INDIRECT("'Programma''s'!L19") -> 0 | D45: =IF(LEN(INDIRECT("C45"))>1,"Zichtbaar", "Onzichtbaar") -> Onzichtbaar | G45: =Lasten!J80 -> 0 | H45: =Lasten!K80 -> 0 | I45: =Lasten!L80 -> 0 | J45: =Lasten!M80 -> 0 | K45: =Lasten!L80 -> 0 | L45: =Lasten!M80 -> 0 | M45: =Lasten!N80 -> 0 | N45: =Lasten!O80 -> 0 | O45: =Lasten!P80 -> 0 | P45: =Lasten!Q80 -> 0 | Q45: =Lasten!R80 -> 0 | R45: =Lasten!S80 -> 0 | S45: =Lasten!T80 -> 0 | T45: =Lasten!U80 -> 0 | U45: =Lasten!V80 -> 0 | V45: =Lasten!W80 -> 0 | W45: =Lasten!X80 -> 0 | X45: =Lasten!Y80 -> 0 | Y45: =Lasten!Z80 -> 0 | Z45: =Lasten!AA80 -> 0 | AA45: =Lasten!AB80 -> 0 | AB45: =Lasten!AC80 -> 0 | AC45: =Lasten!AD80 -> 0 | AD45: =Lasten!AE80 -> 0 | AE45: =Lasten!AF80 -> 0 | AF45: =Lasten!AG80 -> 0 | AG45: =Lasten!AH80 -> 0
C46: =INDIRECT("'Programma''s'!L20") -> 0 | D46: =IF(LEN(INDIRECT("C46"))>1,"Zichtbaar", "Onzichtbaar") -> Onzichtbaar | G46: =Lasten!J81 -> 0 | H46: =Lasten!K81 -> 0 | I46: =Lasten!L81 -> 0 | J46: =Lasten!M81 -> 0 | K46: =Lasten!L81 -> 0 | L46: =Lasten!M81 -> 0 | M46: =Lasten!N81 -> 0 | N46: =Lasten!O81 -> 0 | O46: =Lasten!P81 -> 0 | P46: =Lasten!Q81 -> 0 | Q46: =Lasten!R81 -> 0 | R46: =Lasten!S81 -> 0 | S46: =Lasten!T81 -> 0 | T46: =Lasten!U81 -> 0 | U46: =Lasten!V81 -> 0 | V46: =Lasten!W81 -> 0 | W46: =Lasten!X81 -> 0 | X46: =Lasten!Y81 -> 0 | Y46: =Lasten!Z81 -> 0 | Z46: =Lasten!AA81 -> 0 | AA46: =Lasten!AB81 -> 0 | AB46: =Lasten!AC81 -> 0 | AC46: =Lasten!AD81 -> 0 | AD46: =Lasten!AE81 -> 0 | AE46: =Lasten!AF81 -> 0 | AF46: =Lasten!AG81 -> 0 | AG46: =Lasten!AH81 -> 0
C47: =INDIRECT("'Programma''s'!L21") -> 0 | D47: =IF(LEN(INDIRECT("C47"))>1,"Zichtbaar", "Onzichtbaar") -> Onzichtbaar | G47: =Lasten!J82 -> 0 | H47: =Lasten!K82 -> 0 | I47: =Lasten!L82 -> 0 | J47: =Lasten!M82 -> 0 | K47: =Lasten!L82 -> 0 | L47: =Lasten!M82 -> 0 | M47: =Lasten!N82 -> 0 | N47: =Lasten!O82 -> 0 | O47: =Lasten!P82 -> 0 | P47: =Lasten!Q82 -> 0 | Q47: =Lasten!R82 -> 0 | R47: =Lasten!S82 -> 0 | S47: =Lasten!T82 -> 0 | T47: =Lasten!U82 -> 0 | U47: =Lasten!V82 -> 0 | V47: =Lasten!W82 -> 0 | W47: =Lasten!X82 -> 0 | X47: =Lasten!Y82 -> 0 | Y47: =Lasten!Z82 -> 0 | Z47: =Lasten!AA82 -> 0 | AA47: =Lasten!AB82 -> 0 | AB47: =Lasten!AC82 -> 0 | AC47: =Lasten!AD82 -> 0 | AD47: =Lasten!AE82 -> 0 | AE47: =Lasten!AF82 -> 0 | AF47: =Lasten!AG82 -> 0 | AG47: =Lasten!AH82 -> 0
C48: =INDIRECT("'Programma''s'!L22") -> 0 | D48: =IF(LEN(INDIRECT("C48"))>1,"Zichtbaar", "Onzichtbaar") -> Onzichtbaar | G48: =Lasten!J83 -> 0 | H48: =Lasten!K83 -> 0 | I48: =Lasten!L83 -> 0 | J48: =Lasten!M83 -> 0 | K48: =Lasten!L83 -> 0 | L48: =Lasten!M83 -> 0 | M48: =Lasten!N83 -> 0 | N48: =Lasten!O83 -> 0 | O48: =Lasten!P83 -> 0 | P48: =Lasten!Q83 -> 0 | Q48: =Lasten!R83 -> 0 | R48: =Lasten!S83 -> 0 | S48: =Lasten!T83 -> 0 | T48: =Lasten!U83 -> 0 | U48: =Lasten!V83 -> 0 | V48: =Lasten!W83 -> 0 | W48: =Lasten!X83 -> 0 | X48: =Lasten!Y83 -> 0 | Y48: =Lasten!Z83 -> 0 | Z48: =Lasten!AA83 -> 0 | AA48: =Lasten!AB83 -> 0 | AB48: =Lasten!AC83 -> 0 | AC48: =Lasten!AD83 -> 0 | AD48: =Lasten!AE83 -> 0 | AE48: =Lasten!AF83 -> 0 | AF48: =Lasten!AG83 -> 0 | AG48: =Lasten!AH83 -> 0
C49: totaal programma's | G49: =SUM(G27:G48) -> 0 | H49: 0 | I49: 0 | J49: 0 | K49: =SUM(K27:K48) -> 0 | L49: 0 | M49: 0 | N49: 0 | O49: 0 | P49: 0 | Q49: 0 | R49: 0 | T49: =SUM(T27:T48) -> 0 | V49: =SUM(V27:V48) -> 0 | X49: =SUM(X27:X48) -> 0 | Y49: =SUM(Y27:Y48) -> 0 | Z49: 0 | AB49: =SUM(AB27:AB48) -> 0 | AD49: =SUM(AD27:AD48) -> 0 | AF49: =SUM(AF27:AF48) -> 0
C51: Totale lasten | G51: =SUM(G20:G25)+G$49 -> 0 | H51: 14709539.87 | I51: 0 | J51: 15405334.54 | K51: =SUM(K20:K25)+K$49 -> 0 | L51: 0 | M51: 0 | N51: 3470223.348 | O51: 0 | P51: 0 | Q51: 0 | R51: 0 | S51: 0 | T51: 0 | V51: =SUM(V20:V25)+V$49 -> 0 | X51: =SUM(X20:X25)+X$49 -> 0 | Y51: =SUM(Y20:Y25)+Y$49 -> 0 | Z51: 0 | AA51: 0 | AB51: 0 | AD51: =SUM(AD20:AD25)+AD$49 -> 0 | AF51: =SUM(AF20:AF25)+AF$49 -> 0
C53: Resultaat | H53: =H17-H51 -> 7352669.318 | J53: =J17-J51 -> 8880606.752 | L53: =L17-L51 -> 0 | N53: =N17-N51 -> 4306640.135 | P53: =P17-P51 -> 0 | R53: =R17-R51 -> 0 | T53: =T17-T51 -> 0 | V53: =V17-V51 -> 0 | X53: =X17-X51 -> 0 | Z53: =Z17-Z51 -> 0 | AB53: =AB17-AB51 -> 0 | AD53: =AD17-AD51 -> 0 | AF53: =AF17-AF51 -> 0
C57: Afdracht lichte ondersteuning
C58: de maximale afdracht lwoo en pro bedraagt (budget lichte ondersteuning): | H58: =SUM(H6:H9) -> 10810991.43 | J58: =SUM(J6:J9) -> 11266518.15 | N58: =SUM(N6:N9) -> 0 | P58: =SUM(P6:P9) -> 0 | R58: =SUM(R6:R9) -> 0 | T58: =SUM(T6:T9) -> 0 | V58: =SUM(V6:V9) -> 0 | X58: =SUM(X6:X9) -> 0 | Z58: =SUM(Z6:Z9) -> 0 | AB58: =SUM(AB6:AB9) -> 0 | AD58: =SUM(AD6:AD9) -> 0 | AF58: =SUM(AF6:AF9) -> 0
C59: de werkelijke afdracht (via DUO) is: | H59: =IFERROR((H20+H21)/H58,0) -> 0.7932987736 | J59: =IFERROR((J20+J21)/J58,0) -> 0.8046772129 | N59: =IFERROR((N20+N21)/N58,0) -> 0 | P59: =IFERROR((P20+P21)/P58,0) -> 0 | R59: =IFERROR((R20+R21)/R58,0) -> 0 | T59: =IFERROR((T20+T21)/T58,0) -> 0 | V59: =IFERROR((V20+V21)/V58,0) -> 0 | X59: =IFERROR((X20+X21)/X58,0) -> 0 | Z59: =IFERROR((Z20+Z21)/Z58,0) -> 0 | AB59: =IFERROR((AB20+AB21)/AB58,0) -> 0 | AD59: =IFERROR((AD20+AD21)/AD58,0) -> 0 | AF59: =IFERROR((AF20+AF21)/AF58,0) -> 0
C60: indien de baten lichte ondersteuning lager zijn dan de afdracht lwoo en pro wordt de lumpsum van de deelnemende scholen gekort: | H60: =IF(SUM(H6:H9)-H20-H21<0,H20+H21-SUM(H6:H9),0) -> 0 | J60: =IF(SUM(J6:J9)-J20-J21<0,J20+J21-SUM(J6:J9),0) -> 0 | N60: =IF(SUM(N6:N9)-N20-N21<0,N20+N21-SUM(N6:N9),0) -> 0 | P60: =IF(SUM(P6:P9)-P20-P21<0,P20+P21-SUM(P6:P9),0) -> 0 | R60: =IF(SUM(R6:R9)-R20-R21<0,R20+R21-SUM(R6:R9),0) -> 0 | T60: =IF(SUM(T6:T9)-T20-T21<0,T20+T21-SUM(T6:T9),0) -> 0 | V60: =IF(SUM(V6:V9)-V20-V21<0,V20+V21-SUM(V6:V9),0) -> 0 | X60: =IF(SUM(X6:X9)-X20-X21<0,X20+X21-SUM(X6:X9),0) -> 0 | Z60: =IF(SUM(Z6:Z9)-Z20-Z21<0,Z20+Z21-SUM(Z6:Z9),0) -> 0 | AB60: =IF(SUM(AB6:AB9)-AB20-AB21<0,AB20+AB21-SUM(AB6:AB9),0) -> 0 | AD60: =IF(SUM(AD6:AD9)-AD20-AD21<0,AD20+AD21-SUM(AD6:AD9),0) -> 0 | AF60: =IF(SUM(AF6:AF9)-AF20-AF21<0,AF20+AF21-SUM(AF6:AF9),0) -> 0
C61: per leerling (vo en vso): | H61: =IFERROR(H60/(LLaantal!S11+LLaantal!S21),0) -> 0 | J61: =IFERROR(J60/(LLaantal!U11+LLaantal!U21),0) -> 0 | N61: =IFERROR(N60/(LLaantal!W11+LLaantal!W21),0) -> 0 | P61: =IFERROR(P60/(LLaantal!Y11+LLaantal!Y21),0) -> 0 | R61: =IFERROR(R60/(LLaantal!AA11+LLaantal!AA21),0) -> 0 | T61: =IFERROR(T60/(LLaantal!AC11+LLaantal!AC21),0) -> 0 | V61: =IFERROR(V60/(LLaantal!AE11+LLaantal!AE21),0) -> 0 | X61: =IFERROR(X60/(LLaantal!AG11+LLaantal!AG21),0) -> 0 | Z61: =IFERROR(Z60/(LLaantal!AI11+LLaantal!AI21),0) -> 0 | AB61: =IFERROR(AB60/(LLaantal!AK11+LLaantal!AK21),0) -> 0 | AD61: =IFERROR(AD60/(LLaantal!AM11+LLaantal!AM21),0) -> 0 | AF61: =IFERROR(AF60/(LLaantal!AO11+LLaantal!AO21),0) -> 0
C63: Afdracht zware ondersteuning
C64: de maximale afdracht vso bedraagt (budget zware ondersteuning inclusief verevening): | H64: =H10+H13 -> 11251217.76 | J64: =J10+J13 -> 13019423.14 | N64: =N10+N13 -> 7776863.483 | P64: =P10+P13 -> 0 | R64: =R10+R13 -> 0 | T64: =T10+T13 -> 0 | V64: =V10+V13 -> 0 | X64: =X10+X13 -> 0 | Z64: =Z10+Z13 -> 0 | AB64: =AB10+AB13 -> 0 | AD64: =AD10+AD13 -> 0 | AF64: =AF10+AF13 -> 0
C65: de werkelijke afdracht (via DUO en swv) is: | H65: =IFERROR((H23+H24)/H64,0) -> 0.5451137609 | J65: =IFERROR((J23+J24)/J64,0) -> 0.4869205069 | N65: =IFERROR((N23+N24)/N64,0) -> 0.4462240279 | P65: =IFERROR((P23+P24)/P64,0) -> 0 | R65: =IFERROR((R23+R24)/R64,0) -> 0 | T65: =IFERROR((T23+T24)/T64,0) -> 0 | V65: =IFERROR((V23+V24)/V64,0) -> 0 | X65: =IFERROR((X23+X24)/X64,0) -> 0 | Z65: =IFERROR((Z23+Z24)/Z64,0) -> 0 | AB65: =IFERROR((AB23+AB24)/AB64,0) -> 0 | AD65: =IFERROR((AD23+AD24)/AD64,0) -> 0 | AF65: =IFERROR((AF23+AF24)/AF64,0) -> 0
C66: indien de baten zware ondersteuning lager zijn dan de afdracht vso wordt de lumpsum van de deelnemende scholen gekort: | H66: =IF((H64-H23)<0,(H23)-H64,0) -> 0 | J66: =IF((J64-J23)<0,(J23)-J64,0) -> 0 | N66: =IF((N64-N23)<0,(N23)-N64,0) -> 0 | P66: =IF((P64-P23)<0,(P23)-P64,0) -> 0 | R66: =IF((R64-R23)<0,(R23)-R64,0) -> 0 | T66: =IF((T64-T23)<0,(T23)-T64,0) -> 0 | V66: =IF((V64-V23)<0,(V23)-V64,0) -> 0 | X66: =IF((X64-X23)<0,(X23)-X64,0) -> 0 | Z66: =IF((Z64-Z23)<0,(Z23)-Z64,0) -> 0 | AB66: =IF((AB64-AB23)<0,(AB23)-AB64,0) -> 0 | AD66: =IF((AD64-AD23)<0,(AD23)-AD64,0) -> 0 | AF66: =IF((AF64-AF23)<0,(AF23)-AF64,0) -> 0
C67: per leerling (vo en vso): | H67: =IFERROR(H66/(LLaantal!S11+LLaantal!S21),0) -> 0 | J67: =IFERROR(J66/(LLaantal!U11+LLaantal!U21),0) -> 0 | N67: =IFERROR(N66/(LLaantal!W11+LLaantal!W21),0) -> 0 | P67: =IFERROR(P66/(LLaantal!Y11+LLaantal!Y21),0) -> 0 | R67: =IFERROR(R66/(LLaantal!AA11+LLaantal!AA21),0) -> 0 | T67: =IFERROR(T66/(LLaantal!AC11+LLaantal!AC21),0) -> 0 | V67: =IFERROR(V66/(LLaantal!AE11+LLaantal!AE21),0) -> 0 | X67: =IFERROR(X66/(LLaantal!AG11+LLaantal!AG21),0) -> 0 | Z67: =IFERROR(Z66/(LLaantal!AI11+LLaantal!AI21),0) -> 0 | AB67: =IFERROR(AB66/(LLaantal!AK11+LLaantal!AK21),0) -> 0 | AD67: =IFERROR(AD66/(LLaantal!AM11+LLaantal!AM21),0) -> 0 | AF67: =IFERROR(AF66/(LLaantal!AO11+LLaantal!AO21),0) -> 0

Sheet MJB schooljaar (hidden)
AS1: 1 | AU1: 1 | AV1: =INDEX(gekozenjaar,AU1) -> 2020 | AW1: =INDEX(gekozenjaar,AX1) -> 2028 | AX1: 9 | AZ1: 11
A2: 0
C3: MEERJARENBEGROTING SCHOOLJAAR | F3: =IF(AND(LEFT(F5,4)>=LEFT($AV$1,4),LEFT(F5,4)<=LEFT($AW$1,4)),"","x") -> x | G3: =F3 -> x | H3: =IF(AND(LEFT(H5,4)>=LEFT($AV$1,4),LEFT(H5,4)<=LEFT($AW$1,4)),"","x") -> x | I3: =H3 -> x | J3: =IF(AND(LEFT(J5,4)>=LEFT($AV$1,4),LEFT(J5,4)<=LEFT($AW$1,4)),"","x") -> x | K3: =J3 -> x | L3: =IF(AND(MID(L5,20,4)>=LEFT($AV$1,4),MID(L5,20,4)<=LEFT($AW$1,4)),"","x") -> x | M3: =L3 -> x | N3: =IF(AND(LEFT(N5,4)>=LEFT($AV$1,4),LEFT(N5,4)<=LEFT($AW$1,4)),"","x") ->  | O3: =N3 ->  | P3: =IF(AND(LEFT(P5,4)>=LEFT($AV$1,4),LEFT(P5,4)<=LEFT($AW$1,4)),"","x") ->  | Q3: =P3 ->  | R3: =IF(AND(LEFT(R5,4)>=LEFT($AV$1,4),LEFT(R5,4)<=LEFT($AW$1,4)),"","x") ->  | S3: =R3 ->  | T3: =IF(AND(LEFT(T5,4)>=LEFT($AV$1,4),LEFT(T5,4)<=LEFT($AW$1,4)),"","x") ->  | U3: =T3 ->  | V3: =IF(AND(LEFT(V5,4)>=LEFT($AV$1,4),LEFT(V5,4)<=LEFT($AW$1,4)),"","x") ->  | W3: =V3 ->  | X3: =IF(AND(LEFT(X5,4)>=LEFT($AV$1,4),LEFT(X5,4)<=LEFT($AW$1,4)),"","x") ->  | Y3: =X3 ->  | Z3: =IF(AND(LEFT(Z5,4)>=LEFT($AV$1,4),LEFT(Z5,4)<=LEFT($AW$1,4)),"","x") ->  | AA3: =Z3 ->  | AB3: =IF(AND(LEFT(AB5,4)>=LEFT($AV$1,4),LEFT(AB5,4)<=LEFT($AW$1,4)),"","x") ->  | AC3: =AB3 ->  | AD3: =IF(AND(LEFT(AD5,4)>=LEFT($AV$1,4),LEFT(AD5,4)<=LEFT($AW$1,4)),"","x") ->  | AE3: =AD3 ->  | AF3: =IF(AND(LEFT(AF5,4)>=LEFT($AV$1,4),LEFT(AF5,4)<=LEFT($AW$1,4)),"","x") -> x | AG3: =AF3 -> x | AH3: =IF(AND(LEFT(AH5,4)>=LEFT($AV$1,4),LEFT(AH5,4)<=LEFT($AW$1,4)),"","x") -> x | AI3: =AH3 -> x
C4: =Start!$A$33 -> Versie 8.0
C5: ='MJB kalenderjaar'!C5 -> Baten | F5: 2017/18 | H5: 2018/19 | J5: 2019/20 | L5: goedgekeurde begr. 2019/20 | N5: 2020/21 | P5: 2021/22 | R5: 2022/23 | T5: 2023/24 | V5: 2024/25 | X5: 2025/26 | Z5: 2026/27 | AB5: 2027/28 | AD5: 2028/29 | AF5: 2029/30 | AH5: 2030/31
C6: lichte ondersteuning | G6: =Baten!I6 -> 10641979.67 | H6: =Baten!J8 -> 2118256.417 | I6: =Baten!K6 -> 10810991.43 | J6: =Baten!L8 -> 2179148.723 | K6: =Baten!K6 -> 10810991.43 | L6: =Baten!L8 -> 2179148.723 | M6: =Baten!M6 -> 11266518.15 | N6: =Baten!N8 -> 922757.7188 | O6: =Baten!O6 -> 0 | P6: =Baten!P8 -> 0 | Q6: =Baten!Q6 -> 0 | R6: =Baten!R8 -> 0 | S6: =Baten!S6 -> 0 | T6: =Baten!T8 -> 0 | U6: =Baten!U6 -> 0 | V6: =Baten!V8 -> 0 | W6: =Baten!W6 -> 0 | X6: =Baten!X8 -> 0 | Y6: =Baten!Y6 -> 0 | Z6: =Baten!Z8 -> 0 | AA6: =Baten!AA6 -> 0 | AB6: =Baten!AB8 -> 0 | AC6: =Baten!AC6 -> 0 | AD6: =Baten!AD8 -> 0 | AE6: =Baten!AE6 -> 0 | AF6: =Baten!AF8 -> 0 | AG6: =Baten!AG6 -> 0 | AH6: =Baten!AH8 -> 0 | AI6: =Baten!AI6 -> 0
C7: =Baten!C14 -> lwoo | H7: =Baten!J14 -> 6869154.549 | J7: =Baten!L14 -> 7088441.012 | L7: =Baten!L14 -> 7088441.012 | N7: =Baten!N14 -> 3004747.404 | P7: =Baten!P14 -> 0 | R7: =Baten!R14 -> 0 | T7: =Baten!T14 -> 0 | V7: =Baten!V14 -> 0 | X7: =Baten!X14 -> 0 | Z7: =Baten!Z14 -> 0 | AB7: =Baten!AB14 -> 0 | AD7: =Baten!AD14 -> 0 | AF7: =Baten!AF14 -> 0 | AH7: =Baten!AH14 -> 0
C8: =Baten!C18 -> pro | H8: =Baten!J18 -> 1753158.896 | J8: =Baten!L18 -> 1809125.611 | L8: =Baten!L18 -> 1809125.611 | N8: =Baten!N18 -> 766877.438 | P8: =Baten!P18 -> 0 | R8: =Baten!R18 -> 0 | T8: =Baten!T18 -> 0 | V8: =Baten!V18 -> 0 | X8: =Baten!X18 -> 0 | Z8: =Baten!Z18 -> 0 | AB8: =Baten!AB18 -> 0 | AD8: =Baten!AD18 -> 0 | AF8: =Baten!AF18 -> 0 | AH8: =Baten!AH18 -> 0
C10: zware ondersteuning | H10: =Baten!J22 -> 13554198.81 | J10: =Baten!L22 -> 13844648.99 | L10: =Baten!L22 -> 13844648.99 | N10: =Baten!N22 -> 13602069.65 | P10: =Baten!P22 -> 0 | R10: =Baten!R22 -> 0 | T10: =Baten!T22 -> 0 | V10: =Baten!V22 -> 0 | X10: =Baten!X22 -> 0 | Z10: =Baten!Z22 -> 0 | AB10: =Baten!AB22 -> 0 | AD10: =Baten!AD22 -> 0 | AF10: =Baten!AF22 -> 0 | AH10: =Baten!AH22 -> 0
C11: verevening zware ondersteuning (pers) | H11: =Baten!J34 -> -2924315.594 | J11: =Baten!L34 -> -1514283.723 | L11: =Baten!L34 -> -1514283.723 | N11: =Baten!N34 -> 0 | P11: =Baten!P34 -> 0 | R11: =Baten!R34 -> 0 | T11: =Baten!T34 -> 0 | V11: =Baten!V34 -> 0 | X11: =Baten!X34 -> 0 | Z11: =Baten!Z34 -> 0 | AB11: =Baten!AB34 -> 0 | AD11: =Baten!AD34 -> 0 | AF11: =Baten!AF34 -> 0 | AH11: =Baten!AH34 -> 0
C12: verevening zware ondersteuning (mat) | H12: =Baten!J35 -> -120761.731 | J12: =Baten!L35 -> -35829.62789 | L12: =Baten!L35 -> -35829.62789 | N12: =Baten!N35 -> 0 | P12: =Baten!P35 -> 0 | R12: =Baten!R35 -> 0 | T12: =Baten!T35 -> 0 | V12: =Baten!V35 -> 0 | X12: =Baten!X35 -> 0 | Z12: =Baten!Z35 -> 0 | AB12: =Baten!AB35 -> 0 | AD12: =Baten!AD35 -> 0 | AF12: =Baten!AF35 -> 0 | AH12: =Baten!AH35 -> 0
C13: verevening zware ondersteuning | H13: =H11+H12 -> -3045077.325 | J13: =J11+J12 -> -1550113.35 | L13: =L11+L12 -> -1550113.35 | N13: =N11+N12 -> 0 | P13: =P11+P12 -> 0 | R13: =R11+R12 -> 0 | T13: =T11+T12 -> 0 | V13: =V11+V12 -> 0 | X13: =X11+X12 -> 0 | Z13: =Z11+Z12 -> 0 | AB13: =AB11+AB12 -> 0 | AD13: =AD11+AD12 -> 0 | AF13: =AF11+AF12 -> 0 | AH13: =AH11+AH12 -> 0
C14: overige baten | H14: =Baten!J51 -> 0 | J14: =Baten!L51 -> 0 | L14: =Baten!L51 -> 0 | N14: =Baten!N51 -> 0 | P14: =Baten!P51 -> 0 | R14: =Baten!R51 -> 0 | T14: =Baten!T51 -> 0 | V14: =Baten!V51 -> 0 | X14: =Baten!X51 -> 0 | Z14: =Baten!Z51 -> 0 | AB14: =Baten!AB51 -> 0 | AD14: =Baten!AD51 -> 0 | AF14: =Baten!AF51 -> 0 | AH14: =Baten!AH51 -> 0
C15: geoormerkte subsidies en bijdragen voor specifieke programma's in het ondersteuningsplan | H15: =Baten!J53+Baten!J54 -> 0 | J15: =Baten!L53+Baten!L54 -> 0 | L15: =Baten!L53+Baten!L54 -> 0 | N15: =Baten!N53+Baten!N54 -> 0 | P15: =Baten!P53+Baten!P54 -> 0 | R15: =Baten!R53+Baten!R54 -> 0 | T15: =Baten!T53+Baten!T54 -> 0 | V15: =Baten!V53+Baten!V54 -> 0 | X15: =Baten!X53+Baten!X54 -> 0 | Z15: =Baten!Z53+Baten!Z54 -> 0 | AB15: =Baten!AB53+Baten!AB54 -> 0 | AD15: =Baten!AD53+Baten!AD54 -> 0 | AF15: =Baten!AF53+Baten!AF54 -> 0 | AH15: =Baten!AH53+Baten!AH54 -> 0
C17: Totale baten | G17: =Baten!I51 -> 0 | H17: =SUM(H6:H10)+SUM(H13:H15) -> 21249691.34 | I17: =Baten!K51 -> 0 | J17: =SUM(J6:J10)+SUM(J13:J15) -> 23371250.99 | K17: =Baten!K51 -> 0 | L17: =SUM(L6:L10)+SUM(L13:L15) -> 23371250.99 | M17: =Baten!M51 -> 0 | N17: =SUM(N6:N10)+SUM(N13:N15) -> 18296452.21 | O17: =Baten!O51 -> 0 | P17: =SUM(P6:P10)+SUM(P13:P15) -> 0 | Q17: =Baten!Q51 -> 0 | R17: =SUM(R6:R10)+SUM(R13:R15) -> 0 | S17: =Baten!S51 -> 0 | T17: =SUM(T6:T10)+SUM(T13:T15) -> 0 | U17: =Baten!U51 -> 0 | V17: =SUM(V6:V10)+SUM(V13:V15) -> 0 | W17: =Baten!W51 -> 0 | X17: =SUM(X6:X10)+SUM(X13:X15) -> 0 | Y17: =Baten!Y51 -> 0 | Z17: =SUM(Z6:Z10)+SUM(Z13:Z15) -> 0 | AA17: =Baten!AA51 -> 0 | AB17: =SUM(AB6:AB10)+SUM(AB13:AB15) -> 0 | AC17: =Baten!AC51 -> 0 | AD17: =SUM(AD6:AD10)+SUM(AD13:AD15) -> 0 | AE17: =Baten!AE51 -> 0 | AF17: =SUM(AF6:AF10)+SUM(AF13:AF15) -> 0 | AG17: =Baten!AG51 -> 0 | AH17: =SUM(AH6:AH10)+SUM(AH13:AH15) -> 0 | AI17: =Baten!AI51 -> 0
C19: Lasten | F19: =F5 -> 2017/18 | H19: =H5 -> 2018/19 | J19: =J5 -> 2019/20 | L19: =L5 -> goedgekeurde begr. 2019/20 | N19: =N5 -> 2020/21 | P19: =P5 -> 2021/22 | R19: =R5 -> 2022/23 | T19: =T5 -> 2023/24 | V19: =V5 -> 2024/25 | X19: =X5 -> 2025/26 | Z19: =Z5 -> 2026/27 | AB19: =AB5 -> 2027/28 | AD19: =AD5 -> 2028/29 | AF19: =AF5 -> 2029/30 | AH19: =AH5 -> 2030/31
C20: afdracht LWOO (via DUO) | H20: =Lasten!J34 -> 6593187.307 | J20: =Lasten!L34 -> 6750653.18 | L20: =Lasten!L34 -> 6750653.18 | N20: =Lasten!N34 -> 2856427.2 | P20: =Lasten!P34 -> 0 | R20: =Lasten!R34 -> 0 | T20: =Lasten!T34 -> 0 | V20: =Lasten!V34 -> 0 | X20: =Lasten!X34 -> 0 | Z20: =Lasten!Z34 -> 0 | AB20: =Lasten!AB34 -> 0 | AD20: =Lasten!AD34 -> 0 | AF20: =Lasten!AF34 -> 0 | AH20: =Lasten!AH34 -> 0
C21: afdracht PRO (via DUO) | G21: =Lasten!J20 -> 0 | H21: =Lasten!J39 -> 2023499.875 | I21: =Lasten!L20 -> 0 | J21: =Lasten!L39 -> 2111272.165 | K21: =Lasten!L20 -> 0 | L21: =Lasten!L39 -> 2111272.165 | M21: =Lasten!N20 -> 0 | N21: =Lasten!N39 -> 921035.475 | O21: =Lasten!P20 -> 0 | P21: =Lasten!P39 -> 0 | Q21: =Lasten!R20 -> 0 | R21: =Lasten!R39 -> 0 | S21: =Lasten!T20 -> 0 | T21: =Lasten!T39 -> 0 | U21: =Lasten!V20 -> 0 | V21: =Lasten!V39 -> 0 | W21: =Lasten!X20 -> 0 | X21: =Lasten!X39 -> 0 | Y21: =Lasten!Z20 -> 0 | Z21: =Lasten!Z39 -> 0 | AA21: =Lasten!AB20 -> 0 | AB21: =Lasten!AB39 -> 0 | AC21: =Lasten!AD20 -> 0 | AD21: =Lasten!AD39 -> 0 | AE21: =Lasten!AF20 -> 0 | AF21: =Lasten!AF39 -> 0 | AG21: =Lasten!AH20 -> 0 | AH21: =Lasten!AH39 -> 0 | AI21: =Lasten!AJ20 -> 0
C22: maximering afdracht LWOO/PRO, dit bedrag t.l.v. lumpsum schoolbesturen (indien van toepassing) | G22: =Lasten!J48 -> 0 | I22: =Lasten!L48 -> 0 | K22: =Lasten!L48 -> 0 | M22: =Lasten!N48 -> 0 | O22: =Lasten!P48 -> 0 | Q22: =Lasten!R48 -> 0 | S22: =Lasten!T48 -> 0 | U22: =Lasten!V48 -> 0 | W22: =Lasten!X48 -> 0 | Y22: =Lasten!Z48 -> 0 | AA22: =Lasten!AB48 -> 0 | AC22: =Lasten!AD48 -> 0 | AE22: =Lasten!AF48 -> 0 | AG22: =Lasten!AH48 -> 0 | AI22: =Lasten!AJ48 -> 0
C23: afdracht VSO, teldatum, (via DUO) | H23: =Lasten!J6 -> 5946089.631 | J23: =Lasten!L6 -> 6382108.272 | L23: =Lasten!L6 -> 6382108.272 | N23: =Lasten!N6 -> 6088130.814 | P23: =Lasten!P6 -> 0 | R23: =Lasten!R6 -> 0 | T23: =Lasten!T6 -> 0 | V23: =Lasten!V6 -> 0 | X23: =Lasten!X6 -> 0 | Z23: =Lasten!Z6 -> 0 | AB23: =Lasten!AB6 -> 0 | AD23: =Lasten!AD6 -> 0 | AF23: =Lasten!AF6 -> 0 | AH23: =Lasten!AH6 -> 0
C24: afdracht VSO, peildatum, (tussentijdse groei VSO), ondersteuningsbekostiging | H24: =Lasten!J20 -> 0 | J24: =Lasten!L20 -> 0 | L24: =Lasten!L20 -> 0 | N24: =Lasten!N20 -> 0 | P24: =Lasten!P20 -> 0 | R24: =Lasten!R20 -> 0 | T24: =Lasten!T20 -> 0 | V24: =Lasten!V20 -> 0 | X24: =Lasten!X20 -> 0 | Z24: =Lasten!Z20 -> 0 | AB24: =Lasten!AB20 -> 0 | AD24: =Lasten!AD20 -> 0 | AF24: =Lasten!AF20 -> 0 | AH24: =Lasten!AH20 -> 0
C25: afdracht VSO, peildatum, (tussentijdse groei VSO), basisbekostiging | H25: =Lasten!J48 -> 0 | J25: =Lasten!L48 -> 0 | L25: =Lasten!L48 -> 0 | N25: =Lasten!N48 -> 0 | P25: =Lasten!P48 -> 0 | R25: =Lasten!R48 -> 0 | T25: =Lasten!T48 -> 0 | V25: =Lasten!V48 -> 0 | X25: =Lasten!X48 -> 0 | Z25: =Lasten!Z48 -> 0 | AB25: =Lasten!AB48 -> 0 | AD25: =Lasten!AD48 -> 0 | AF25: =Lasten!AF48 -> 0 | AH25: =Lasten!AH48 -> 0
C26: totaal afdrachten | H26: =SUM(H20:H25) -> 14562776.81 | J26: =SUM(J20:J25) -> 15244033.62 | L26: =SUM(L20:L25) -> 15244033.62 | N26: =SUM(N20:N25) -> 9865593.489 | P26: =SUM(P20:P25) -> 0 | R26: =SUM(R20:R25) -> 0 | T26: =SUM(T20:T25) -> 0 | V26: =SUM(V20:V25) -> 0 | X26: =SUM(X20:X25) -> 0 | Z26: =SUM(Z20:Z25) -> 0 | AB26: =SUM(AB20:AB25) -> 0 | AD26: =SUM(AD20:AD25) -> 0 | AF26: =SUM(AF20:AF25) -> 0 | AH26: =SUM(AH20:AH25) -> 0
C29: =INDIRECT("'Programma''s'!L3") -> 0 | D29: =IF(LEN(INDIRECT("C29"))>1,"Zichtbaar","Onzichtbaar") -> Onzichtbaar | G29: =Lasten!J64 -> 0 | H29: =Lasten!J64 -> 0 | I29: =Lasten!L64 -> 0 | J29: =Lasten!L64 -> 0 | K29: =Lasten!L64 -> 0 | L29: =Lasten!L64 -> 0 | M29: =Lasten!N64 -> 0 | N29: =Lasten!N64 -> 0 | O29: =Lasten!P64 -> 0 | P29: =Lasten!P64 -> 0 | Q29: =Lasten!R64 -> 0 | R29: =Lasten!R64 -> 0 | S29: =Lasten!T64 -> 0 | T29: =Lasten!T64 -> 0 | U29: =Lasten!V64 -> 0 | V29: =Lasten!V64 -> 0 | W29: =Lasten!X64 -> 0 | X29: =Lasten!X64 -> 0 | Y29: =Lasten!Z64 -> 0 | Z29: =Lasten!Z64 -> 0 | AA29: =Lasten!AB64 -> 0 | AB29: =Lasten!AB64 -> 0 | AC29: =Lasten!AD64 -> 0 | AD29: =Lasten!AD64 -> 0 | AE29: =Lasten!AF64 -> 0 | AF29: =Lasten!AF64 -> 0 | AG29: =Lasten!AH64 -> 0 | AH29: =Lasten!AH64 -> 0 | AI29: =Lasten!AJ64 -> 0
C30: =INDIRECT("'Programma''s'!L4") -> 0 | D30: =IF(LEN(INDIRECT("C30"))>1,"Zichtbaar","Onzichtbaar") -> Onzichtbaar | G30: =Lasten!J65 -> 0 | H30: =Lasten!J65 -> 0 | I30: =Lasten!L65 -> 0 | J30: =Lasten!L65 -> 0 | K30: =Lasten!L65 -> 0 | L30: =Lasten!L65 -> 0 | M30: =Lasten!N65 -> 0 | N30: =Lasten!N65 -> 0 | O30: =Lasten!P65 -> 0 | P30: =Lasten!P65 -> 0 | Q30: =Lasten!R65 -> 0 | R30: =Lasten!R65 -> 0 | S30: =Lasten!T65 -> 0 | T30: =Lasten!T65 -> 0 | U30: =Lasten!V65 -> 0 | V30: =Lasten!V65 -> 0 | W30: =Lasten!X65 -> 0 | X30: =Lasten!X65 -> 0 | Y30: =Lasten!Z65 -> 0 | Z30: =Lasten!Z65 -> 0 | AA30: =Lasten!AB65 -> 0 | AB30: =Lasten!AB65 -> 0 | AC30: =Lasten!AD65 -> 0 | AD30: =Lasten!AD65 -> 0 | AE30: =Lasten!AF65 -> 0 | AF30: =Lasten!AF65 -> 0 | AG30: =Lasten!AH65 -> 0 | AH30: =Lasten!AH65 -> 0 | AI30: =Lasten!AJ65 -> 0
C31: =INDIRECT("'Programma''s'!L5") -> 0 | D31: =IF(LEN(INDIRECT("C31"))>1,"Zichtbaar","Onzichtbaar") -> Onzichtbaar | G31: =Lasten!J66 -> 0 | H31: =Lasten!J66 -> 0 | I31: =Lasten!L66 -> 0 | J31: =Lasten!L66 -> 0 | K31: =Lasten!L66 -> 0 | L31: =Lasten!L66 -> 0 | M31: =Lasten!N66 -> 0 | N31: =Lasten!N66 -> 0 | O31: =Lasten!P66 -> 0 | P31: =Lasten!P66 -> 0 | Q31: =Lasten!R66 -> 0 | R31: =Lasten!R66 -> 0 | S31: =Lasten!T66 -> 0 | T31: =Lasten!T66 -> 0 | U31: =Lasten!V66 -> 0 | V31: =Lasten!V66 -> 0 | W31: =Lasten!X66 -> 0 | X31: =Lasten!X66 -> 0 | Y31: =Lasten!Z66 -> 0 | Z31: =Lasten!Z66 -> 0 | AA31: =Lasten!AB66 -> 0 | AB31: =Lasten!AB66 -> 0 | AC31: =Lasten!AD66 -> 0 | AD31: =Lasten!AD66 -> 0 | AE31: =Lasten!AF66 -> 0 | AF31: =Lasten!AF66 -> 0 | AG31: =Lasten!AH66 -> 0 | AH31: =Lasten!AH66 -> 0 | AI31: =Lasten!AJ66 -> 0
C32: =INDIRECT("'Programma''s'!L6") -> 0 | D32: =IF(LEN(INDIRECT("C32"))>1,"Zichtbaar","Onzichtbaar") -> Onzichtbaar | G32: =Lasten!J67 -> 0 | H32: =Lasten!J67 -> 0 | I32: =Lasten!L67 -> 0 | J32: =Lasten!L67 -> 0 | K32: =Lasten!L67 -> 0 | L32: =Lasten!L67 -> 0 | M32: =Lasten!N67 -> 0 | N32: =Lasten!N67 -> 0 | O32: =Lasten!P67 -> 0 | P32: =Lasten!P67 -> 0 | Q32: =Lasten!R67 -> 0 | R32: =Lasten!R67 -> 0 | S32: =Lasten!T67 -> 0 | T32: =Lasten!T67 -> 0 | U32: =Lasten!V67 -> 0 | V32: =Lasten!V67 -> 0 | W32: =Lasten!X67 -> 0 | X32: =Lasten!X67 -> 0 | Y32: =Lasten!Z67 -> 0 | Z32: =Lasten!Z67 -> 0 | AA32: =Lasten!AB67 -> 0 | AB32: =Lasten!AB67 -> 0 | AC32: =Lasten!AD67 -> 0 | AD32: =Lasten!AD67 -> 0 | AE32: =Lasten!AF67 -> 0 | AF32: =Lasten!AF67 -> 0 | AG32: =Lasten!AH67 -> 0 | AH32: =Lasten!AH67 -> 0 | AI32: =Lasten!AJ67 -> 0
C33: =INDIRECT("'Programma''s'!L7") -> 0 | D33: =IF(LEN(INDIRECT("C33"))>1,"Zichtbaar","Onzichtbaar") -> Onzichtbaar | G33: =Lasten!J68 -> 0 | H33: =Lasten!J68 -> 0 | I33: =Lasten!L68 -> 0 | J33: =Lasten!L68 -> 0 | K33: =Lasten!L68 -> 0 | L33: =Lasten!L68 -> 0 | M33: =Lasten!N68 -> 0 | N33: =Lasten!N68 -> 0 | O33: =Lasten!P68 -> 0 | P33: =Lasten!P68 -> 0 | Q33: =Lasten!R68 -> 0 | R33: =Lasten!R68 -> 0 | S33: =Lasten!T68 -> 0 | T33: =Lasten!T68 -> 0 | U33: =Lasten!V68 -> 0 | V33: =Lasten!V68 -> 0 | W33: =Lasten!X68 -> 0 | X33: =Lasten!X68 -> 0 | Y33: =Lasten!Z68 -> 0 | Z33: =Lasten!Z68 -> 0 | AA33: =Lasten!AB68 -> 0 | AB33: =Lasten!AB68 -> 0 | AC33: =Lasten!AD68 -> 0 | AD33: =Lasten!AD68 -> 0 | AE33: =Lasten!AF68 -> 0 | AF33: =Lasten!AF68 -> 0 | AG33: =Lasten!AH68 -> 0 | AH33: =Lasten!AH68 -> 0 | AI33: =Lasten!AJ68 -> 0
C34: =INDIRECT("'Programma''s'!L8") -> 0 | D34: =IF(LEN(INDIRECT("C34"))>1,"Zichtbaar","Onzichtbaar") -> Onzichtbaar | G34: =Lasten!J69 -> 0 | H34: =Lasten!J69 -> 0 | I34: =Lasten!L69 -> 0 | J34: =Lasten!L69 -> 0 | K34: =Lasten!L69 -> 0 | L34: =Lasten!L69 -> 0 | M34: =Lasten!N69 -> 0 | N34: =Lasten!N69 -> 0 | O34: =Lasten!P69 -> 0 | P34: =Lasten!P69 -> 0 | Q34: =Lasten!R69 -> 0 | R34: =Lasten!R69 -> 0 | S34: =Lasten!T69 -> 0 | T34: =Lasten!T69 -> 0 | U34: =Lasten!V69 -> 0 | V34: =Lasten!V69 -> 0 | W34: =Lasten!X69 -> 0 | X34: =Lasten!X69 -> 0 | Y34: =Lasten!Z69 -> 0 | Z34: =Lasten!Z69 -> 0 | AA34: =Lasten!AB69 -> 0 | AB34: =Lasten!AB69 -> 0 | AC34: =Lasten!AD69 -> 0 | AD34: =Lasten!AD69 -> 0 | AE34: =Lasten!AF69 -> 0 | AF34: =Lasten!AF69 -> 0 | AG34: =Lasten!AH69 -> 0 | AH34: =Lasten!AH69 -> 0 | AI34: =Lasten!AJ69 -> 0
C35: =INDIRECT("'Programma''s'!L9") -> 0 | D35: =IF(LEN(INDIRECT("C35"))>1,"Zichtbaar","Onzichtbaar") -> Onzichtbaar | G35: =Lasten!J70 -> 0 | H35: =Lasten!J70 -> 0 | I35: =Lasten!L70 -> 0 | J35: =Lasten!L70 -> 0 | K35: =Lasten!L70 -> 0 | L35: =Lasten!L70 -> 0 | M35: =Lasten!N70 -> 0 | N35: =Lasten!N70 -> 0 | O35: =Lasten!P70 -> 0 | P35: =Lasten!P70 -> 0 | Q35: =Lasten!R70 -> 0 | R35: =Lasten!R70 -> 0 | S35: =Lasten!T70 -> 0 | T35: =Lasten!T70 -> 0 | U35: =Lasten!V70 -> 0 | V35: =Lasten!V70 -> 0 | W35: =Lasten!X70 -> 0 | X35: =Lasten!X70 -> 0 | Y35: =Lasten!Z70 -> 0 | Z35: =Lasten!Z70 -> 0 | AA35: =Lasten!AB70 -> 0 | AB35: =Lasten!AB70 -> 0 | AC35: =Lasten!AD70 -> 0 | AD35: =Lasten!AD70 -> 0 | AE35: =Lasten!AF70 -> 0 | AF35: =Lasten!AF70 -> 0 | AG35: =Lasten!AH70 -> 0 | AH35: =Lasten!AH70 -> 0 | AI35: =Lasten!AJ70 -> 0
C36: =INDIRECT("'Programma''s'!L10") -> 0 | D36: =IF(LEN(INDIRECT("C36"))>1,"Zichtbaar","Onzichtbaar") -> Onzichtbaar | G36: =Lasten!J71 -> 0 | H36: =Lasten!J71 -> 0 | I36: =Lasten!L71 -> 0 | J36: =Lasten!L71 -> 0 | K36: =Lasten!L71 -> 0 | L36: =Lasten!L71 -> 0 | M36: =Lasten!N71 -> 0 | N36: =Lasten!N71 -> 0 | O36: =Lasten!P71 -> 0 | P36: =Lasten!P71 -> 0 | Q36: =Lasten!R71 -> 0 | R36: =Lasten!R71 -> 0 | S36: =Lasten!T71 -> 0 | T36: =Lasten!T71 -> 0 | U36: =Lasten!V71 -> 0 | V36: =Lasten!V71 -> 0 | W36: =Lasten!X71 -> 0 | X36: =Lasten!X71 -> 0 | Y36: =Lasten!Z71 -> 0 | Z36: =Lasten!Z71 -> 0 | AA36: =Lasten!AB71 -> 0 | AB36: =Lasten!AB71 -> 0 | AC36: =Lasten!AD71 -> 0 | AD36: =Lasten!AD71 -> 0 | AE36: =Lasten!AF71 -> 0 | AF36: =Lasten!AF71 -> 0 | AG36: =Lasten!AH71 -> 0 | AH36: =Lasten!AH71 -> 0 | AI36: =Lasten!AJ71 -> 0
C37: =INDIRECT("'Programma''s'!L11") -> 0 | D37: =IF(LEN(INDIRECT("C37"))>1,"Zichtbaar","Onzichtbaar") -> Onzichtbaar | G37: =Lasten!J72 -> 0 | H37: =Lasten!J72 -> 0 | I37: =Lasten!L72 -> 0 | J37: =Lasten!L72 -> 0 | K37: =Lasten!L72 -> 0 | L37: =Lasten!L72 -> 0 | M37: =Lasten!N72 -> 0 | N37: =Lasten!N72 -> 0 | O37: =Lasten!P72 -> 0 | P37: =Lasten!P72 -> 0 | Q37: =Lasten!R72 -> 0 | R37: =Lasten!R72 -> 0 | S37: =Lasten!T72 -> 0 | T37: =Lasten!T72 -> 0 | U37: =Lasten!V72 -> 0 | V37: =Lasten!V72 -> 0 | W37: =Lasten!X72 -> 0 | X37: =Lasten!X72 -> 0 | Y37: =Lasten!Z72 -> 0 | Z37: =Lasten!Z72 -> 0 | AA37: =Lasten!AB72 -> 0 | AB37: =Lasten!AB72 -> 0 | AC37: =Lasten!AD72 -> 0 | AD37: =Lasten!AD72 -> 0 | AE37: =Lasten!AF72 -> 0 | AF37: =Lasten!AF72 -> 0 | AG37: =Lasten!AH72 -> 0 | AH37: =Lasten!AH72 -> 0 | AI37: =Lasten!AJ72 -> 0
C38: =INDIRECT("'Programma''s'!L12") -> 0 | D38: =IF(LEN(INDIRECT("C38"))>1,"Zichtbaar","Onzichtbaar") -> Onzichtbaar | G38: =Lasten!J73 -> 0 | H38: =Lasten!J73 -> 0 | I38: =Lasten!L73 -> 0 | J38: =Lasten!L73 -> 0 | K38: =Lasten!L73 -> 0 | L38: =Lasten!L73 -> 0 | M38: =Lasten!N73 -> 0 | N38: =Lasten!N73 -> 0 | O38: =Lasten!P73 -> 0 | P38: =Lasten!P73 -> 0 | Q38: =Lasten!R73 -> 0 | R38: =Lasten!R73 -> 0 | S38: =Lasten!T73 -> 0 | T38: =Lasten!T73 -> 0 | U38: =Lasten!V73 -> 0 | V38: =Lasten!V73 -> 0 | W38: =Lasten!X73 -> 0 | X38: =Lasten!X73 -> 0 | Y38: =Lasten!Z73 -> 0 | Z38: =Lasten!Z73 -> 0 | AA38: =Lasten!AB73 -> 0 | AB38: =Lasten!AB73 -> 0 | AC38: =Lasten!AD73 -> 0 | AD38: =Lasten!AD73 -> 0 | AE38: =Lasten!AF73 -> 0 | AF38: =Lasten!AF73 -> 0 | AG38: =Lasten!AH73 -> 0 | AH38: =Lasten!AH73 -> 0 | AI38: =Lasten!AJ73 -> 0
C39: =INDIRECT("'Programma''s'!L13") -> 0 | D39: =IF(LEN(INDIRECT("C39"))>1,"Zichtbaar","Onzichtbaar") -> Onzichtbaar | G39: =Lasten!J74 -> 0 | H39: =Lasten!J74 -> 0 | I39: =Lasten!L74 -> 0 | J39: =Lasten!L74 -> 0 | K39: =Lasten!L74 -> 0 | L39: =Lasten!L74 -> 0 | M39: =Lasten!N74 -> 0 | N39: =Lasten!N74 -> 0 | O39: =Lasten!P74 -> 0 | P39: =Lasten!P74 -> 0 | Q39: =Lasten!R74 -> 0 | R39: =Lasten!R74 -> 0 | S39: =Lasten!T74 -> 0 | T39: =Lasten!T74 -> 0 | U39: =Lasten!V74 -> 0 | V39: =Lasten!V74 -> 0 | W39: =Lasten!X74 -> 0 | X39: =Lasten!X74 -> 0 | Y39: =Lasten!Z74 -> 0 | Z39: =Lasten!Z74 -> 0 | AA39: =Lasten!AB74 -> 0 | AB39: =Lasten!AB74 -> 0 | AC39: =Lasten!AD74 -> 0 | AD39: =Lasten!AD74 -> 0 | AE39: =Lasten!AF74 -> 0 | AF39: =Lasten!AF74 -> 0 | AG39: =Lasten!AH74 -> 0 | AH39: =Lasten!AH74 -> 0 | AI39: =Lasten!AJ74 -> 0
C40: =INDIRECT("'Programma''s'!L14") -> 0 | D40: =IF(LEN(INDIRECT("C40"))>1,"Zichtbaar","Onzichtbaar") -> Onzichtbaar | G40: =Lasten!J75 -> 0 | H40: =Lasten!J75 -> 0 | I40: =Lasten!L75 -> 0 | J40: =Lasten!L75 -> 0 | K40: =Lasten!L75 -> 0 | L40: =Lasten!L75 -> 0 | M40: =Lasten!N75 -> 0 | N40: =Lasten!N75 -> 0 | O40: =Lasten!P75 -> 0 | P40: =Lasten!P75 -> 0 | Q40: =Lasten!R75 -> 0 | R40: =Lasten!R75 -> 0 | S40: =Lasten!T75 -> 0 | T40: =Lasten!T75 -> 0 | U40: =Lasten!V75 -> 0 | V40: =Lasten!V75 -> 0 | W40: =Lasten!X75 -> 0 | X40: =Lasten!X75 -> 0 | Y40: =Lasten!Z75 -> 0 | Z40: =Lasten!Z75 -> 0 | AA40: =Lasten!AB75 -> 0 | AB40: =Lasten!AB75 -> 0 | AC40: =Lasten!AD75 -> 0 | AD40: =Lasten!AD75 -> 0 | AE40: =Lasten!AF75 -> 0 | AF40: =Lasten!AF75 -> 0 | AG40: =Lasten!AH75 -> 0 | AH40: =Lasten!AH75 -> 0 | AI40: =Lasten!AJ75 -> 0
C41: =INDIRECT("'Programma''s'!L15") -> 0 | D41: =IF(LEN(INDIRECT("C41"))>1,"Zichtbaar","Onzichtbaar") -> Onzichtbaar | G41: =Lasten!J76 -> 0 | H41: =Lasten!J76 -> 0 | I41: =Lasten!L76 -> 0 | J41: =Lasten!L76 -> 0 | K41: =Lasten!L76 -> 0 | L41: =Lasten!L76 -> 0 | M41: =Lasten!N76 -> 0 | N41: =Lasten!N76 -> 0 | O41: =Lasten!P76 -> 0 | P41: =Lasten!P76 -> 0 | Q41: =Lasten!R76 -> 0 | R41: =Lasten!R76 -> 0 | S41: =Lasten!T76 -> 0 | T41: =Lasten!T76 -> 0 | U41: =Lasten!V76 -> 0 | V41: =Lasten!V76 -> 0 | W41: =Lasten!X76 -> 0 | X41: =Lasten!X76 -> 0 | Y41: =Lasten!Z76 -> 0 | Z41: =Lasten!Z76 -> 0 | AA41: =Lasten!AB76 -> 0 | AB41: =Lasten!AB76 -> 0 | AC41: =Lasten!AD76 -> 0 | AD41: =Lasten!AD76 -> 0 | AE41: =Lasten!AF76 -> 0 | AF41: =Lasten!AF76 -> 0 | AG41: =Lasten!AH76 -> 0 | AH41: =Lasten!AH76 -> 0 | AI41: =Lasten!AJ76 -> 0
C42: =INDIRECT("'Programma''s'!L16") -> 0 | D42: =IF(LEN(INDIRECT("C42"))>1,"Zichtbaar","Onzichtbaar") -> Onzichtbaar | G42: =Lasten!J77 -> 0 | H42: =Lasten!J77 -> 0 | I42: =Lasten!L77 -> 0 | J42: =Lasten!L77 -> 0 | K42: =Lasten!L77 -> 0 | L42: =Lasten!L77 -> 0 | M42: =Lasten!N77 -> 0 | N42: =Lasten!N77 -> 0 | O42: =Lasten!P77 -> 0 | P42: =Lasten!P77 -> 0 | Q42: =Lasten!R77 -> 0 | R42: =Lasten!R77 -> 0 | S42: =Lasten!T77 -> 0 | T42: =Lasten!T77 -> 0 | U42: =Lasten!V77 -> 0 | V42: =Lasten!V77 -> 0 | W42: =Lasten!X77 -> 0 | X42: =Lasten!X77 -> 0 | Y42: =Lasten!Z77 -> 0 | Z42: =Lasten!Z77 -> 0 | AA42: =Lasten!AB77 -> 0 | AB42: =Lasten!AB77 -> 0 | AC42: =Lasten!AD77 -> 0 | AD42: =Lasten!AD77 -> 0 | AE42: =Lasten!AF77 -> 0 | AF42: =Lasten!AF77 -> 0 | AG42: =Lasten!AH77 -> 0 | AH42: =Lasten!AH77 -> 0 | AI42: =Lasten!AJ77 -> 0
C43: =INDIRECT("'Programma''s'!L17") -> 0 | D43: =IF(LEN(INDIRECT("C43"))>1,"Zichtbaar","Onzichtbaar") -> Onzichtbaar | G43: =Lasten!J78 -> 0 | H43: =Lasten!J78 -> 0 | I43: =Lasten!L78 -> 0 | J43: =Lasten!L78 -> 0 | K43: =Lasten!L78 -> 0 | L43: =Lasten!L78 -> 0 | M43: =Lasten!N78 -> 0 | N43: =Lasten!N78 -> 0 | O43: =Lasten!P78 -> 0 | P43: =Lasten!P78 -> 0 | Q43: =Lasten!R78 -> 0 | R43: =Lasten!R78 -> 0 | S43: =Lasten!T78 -> 0 | T43: =Lasten!T78 -> 0 | U43: =Lasten!V78 -> 0 | V43: =Lasten!V78 -> 0 | W43: =Lasten!X78 -> 0 | X43: =Lasten!X78 -> 0 | Y43: =Lasten!Z78 -> 0 | Z43: =Lasten!Z78 -> 0 | AA43: =Lasten!AB78 -> 0 | AB43: =Lasten!AB78 -> 0 | AC43: =Lasten!AD78 -> 0 | AD43: =Lasten!AD78 -> 0 | AE43: =Lasten!AF78 -> 0 | AF43: =Lasten!AF78 -> 0 | AG43: =Lasten!AH78 -> 0 | AH43: =Lasten!AH78 -> 0 | AI43: =Lasten!AJ78 -> 0
C44: =INDIRECT("'Programma''s'!L18") -> 0 | D44: =IF(LEN(INDIRECT("C44"))>1,"Zichtbaar","Onzichtbaar") -> Onzichtbaar | G44: =Lasten!J79 -> 0 | H44: =Lasten!J79 -> 0 | I44: =Lasten!L79 -> 0 | J44: =Lasten!L79 -> 0 | K44: =Lasten!L79 -> 0 | L44: =Lasten!L79 -> 0 | M44: =Lasten!N79 -> 0 | N44: =Lasten!N79 -> 0 | O44: =Lasten!P79 -> 0 | P44: =Lasten!P79 -> 0 | Q44: =Lasten!R79 -> 0 | R44: =Lasten!R79 -> 0 | S44: =Lasten!T79 -> 0 | T44: =Lasten!T79 -> 0 | U44: =Lasten!V79 -> 0 | V44: =Lasten!V79 -> 0 | W44: =Lasten!X79 -> 0 | X44: =Lasten!X79 -> 0 | Y44: =Lasten!Z79 -> 0 | Z44: =Lasten!Z79 -> 0 | AA44: =Lasten!AB79 -> 0 | AB44: =Lasten!AB79 -> 0 | AC44: =Lasten!AD79 -> 0 | AD44: =Lasten!AD79 -> 0 | AE44: =Lasten!AF79 -> 0 | AF44: =Lasten!AF79 -> 0 | AG44: =Lasten!AH79 -> 0 | AH44: =Lasten!AH79 -> 0 | AI44: =Lasten!AJ79 -> 0
C45: =INDIRECT("'Programma''s'!L19") -> 0 | D45: =IF(LEN(INDIRECT("C45"))>1,"Zichtbaar","Onzichtbaar") -> Onzichtbaar | G45: =Lasten!J80 -> 0 | H45: =Lasten!J80 -> 0 | I45: =Lasten!L80 -> 0 | J45: =Lasten!L80 -> 0 | K45: =Lasten!L80 -> 0 | L45: =Lasten!L80 -> 0 | M45: =Lasten!N80 -> 0 | N45: =Lasten!N80 -> 0 | O45: =Lasten!P80 -> 0 | P45: =Lasten!P80 -> 0 | Q45: =Lasten!R80 -> 0 | R45: =Lasten!R80 -> 0 | S45: =Lasten!T80 -> 0 | T45: =Lasten!T80 -> 0 | U45: =Lasten!V80 -> 0 | V45: =Lasten!V80 -> 0 | W45: =Lasten!X80 -> 0 | X45: =Lasten!X80 -> 0 | Y45: =Lasten!Z80 -> 0 | Z45: =Lasten!Z80 -> 0 | AA45: =Lasten!AB80 -> 0 | AB45: =Lasten!AB80 -> 0 | AC45: =Lasten!AD80 -> 0 | AD45: =Lasten!AD80 -> 0 | AE45: =Lasten!AF80 -> 0 | AF45: =Lasten!AF80 -> 0 | AG45: =Lasten!AH80 -> 0 | AH45: =Lasten!AH80 -> 0 | AI45: =Lasten!AJ80 -> 0
C46: =INDIRECT("'Programma''s'!L20") -> 0 | D46: =IF(LEN(INDIRECT("C46"))>1,"Zichtbaar","Onzichtbaar") -> Onzichtbaar | G46: =Lasten!J81 -> 0 | H46: =Lasten!J81 -> 0 | I46: =Lasten!L81 -> 0 | J46: =Lasten!L81 -> 0 | K46: =Lasten!L81 -> 0 | L46: =Lasten!L81 -> 0 | M46: =Lasten!N81 -> 0 | N46: =Lasten!N81 -> 0 | O46: =Lasten!P81 -> 0 | P46: =Lasten!P81 -> 0 | Q46: =Lasten!R81 -> 0 | R46: =Lasten!R81 -> 0 | S46: =Lasten!T81 -> 0 | T46: =Lasten!T81 -> 0 | U46: =Lasten!V81 -> 0 | V46: =Lasten!V81 -> 0 | W46: =Lasten!X81 -> 0 | X46: =Lasten!X81 -> 0 | Y46: =Lasten!Z81 -> 0 | Z46: =Lasten!Z81 -> 0 | AA46: =Lasten!AB81 -> 0 | AB46: =Lasten!AB81 -> 0 | AC46: =Lasten!AD81 -> 0 | AD46: =Lasten!AD81 -> 0 | AE46: =Lasten!AF81 -> 0 | AF46: =Lasten!AF81 -> 0 | AG46: =Lasten!AH81 -> 0 | AH46: =Lasten!AH81 -> 0 | AI46: =Lasten!AJ81 -> 0
C47: =INDIRECT("'Programma''s'!L21") -> 0 | D47: =IF(LEN(INDIRECT("C47"))>1,"Zichtbaar","Onzichtbaar") -> Onzichtbaar | G47: =Lasten!J82 -> 0 | H47: =Lasten!J82 -> 0 | I47: =Lasten!L82 -> 0 | J47: =Lasten!L82 -> 0 | K47: =Lasten!L82 -> 0 | L47: =Lasten!L82 -> 0 | M47: =Lasten!N82 -> 0 | N47: =Lasten!N82 -> 0 | O47: =Lasten!P82 -> 0 | P47: =Lasten!P82 -> 0 | Q47: =Lasten!R82 -> 0 | R47: =Lasten!R82 -> 0 | S47: =Lasten!T82 -> 0 | T47: =Lasten!T82 -> 0 | U47: =Lasten!V82 -> 0 | V47: =Lasten!V82 -> 0 | W47: =Lasten!X82 -> 0 | X47: =Lasten!X82 -> 0 | Y47: =Lasten!Z82 -> 0 | Z47: =Lasten!Z82 -> 0 | AA47: =Lasten!AB82 -> 0 | AB47: =Lasten!AB82 -> 0 | AC47: =Lasten!AD82 -> 0 | AD47: =Lasten!AD82 -> 0 | AE47: =Lasten!AF82 -> 0 | AF47: =Lasten!AF82 -> 0 | AG47: =Lasten!AH82 -> 0 | AH47: =Lasten!AH82 -> 0 | AI47: =Lasten!AJ82 -> 0
C48: =INDIRECT("'Programma''s'!L22") -> 0 | D48: =IF(LEN(INDIRECT("C48"))>1,"Zichtbaar","Onzichtbaar") -> Onzichtbaar | G48: =Lasten!J83 -> 0 | H48: =Lasten!J83 -> 0 | I48: =Lasten!L83 -> 0 | J48: =Lasten!L83 -> 0 | K48: =Lasten!L83 -> 0 | L48: =Lasten!L83 -> 0 | M48: =Lasten!N83 -> 0 | N48: =Lasten!N83 -> 0 | O48: =Lasten!P83 -> 0 | P48: =Lasten!P83 -> 0 | Q48: =Lasten!R83 -> 0 | R48: =Lasten!R83 -> 0 | S48: =Lasten!T83 -> 0 | T48: =Lasten!T83 -> 0 | U48: =Lasten!V83 -> 0 | V48: =Lasten!V83 -> 0 | W48: =Lasten!X83 -> 0 | X48: =Lasten!X83 -> 0 | Y48: =Lasten!Z83 -> 0 | Z48: =Lasten!Z83 -> 0 | AA48: =Lasten!AB83 -> 0 | AB48: =Lasten!AB83 -> 0 | AC48: =Lasten!AD83 -> 0 | AD48: =Lasten!AD83 -> 0 | AE48: =Lasten!AF83 -> 0 | AF48: =Lasten!AF83 -> 0 | AG48: =Lasten!AH83 -> 0 | AH48: =Lasten!AH83 -> 0 | AI48: =Lasten!AJ83 -> 0
C49: totaal programma's | G49: =SUM(G27:G48) -> 0 | H49: =SUM(H27:H48) -> 0 | I49: =SUM(I27:I48) -> 0 | J49: =SUM(J27:J48) -> 0 | K49: =SUM(K27:K48) -> 0 | L49: =SUM(L27:L48) -> 0 | M49: 0 | N49: =SUM(N27:N48) -> 0 | O49: =SUM(O27:O48) -> 0 | P49: =SUM(P27:P48) -> 0 | Q49: =SUM(Q27:Q48) -> 0 | R49: =SUM(R27:R48) -> 0 | S49: =SUM(S27:S48) -> 0 | T49: =SUM(T27:T48) -> 0 | U49: =SUM(U27:U48) -> 0 | V49: =SUM(V27:V48) -> 0 | W49: =SUM(W27:W48) -> 0 | X49: =SUM(X27:X48) -> 0 | Y49: =SUM(Y27:Y48) -> 0 | Z49: =SUM(Z27:Z48) -> 0 | AA49: =SUM(AA27:AA48) -> 0 | AB49: =SUM(AB27:AB48) -> 0 | AC49: =SUM(AC27:AC48) -> 0 | AD49: =SUM(AD27:AD48) -> 0 | AE49: =SUM(AE27:AE48) -> 0 | AF49: =SUM(AF27:AF48) -> 0 | AG49: =SUM(AG27:AG48) -> 0 | AH49: =SUM(AH27:AH48) -> 0
C51: Totale lasten | G51: =SUM(G20:G25)+G$49 -> 0 | H51: 14562776.81 | I51: =SUM(I20:I25)+I$49 -> 0 | J51: 15244033.62 | K51: =SUM(K20:K25)+K$49 -> 0 | L51: =SUM(L20:L25)+L$49 -> 15244033.62 | M51: 0 | N51: 9865593.489 | O51: =SUM(O20:O25)+O$49 -> 0 | P51: 0 | Q51: =SUM(Q20:Q25)+Q$49 -> 0 | R51: 0 | S51: =SUM(S20:S25)+S$49 -> 0 | T51: =SUM(T20:T25)+T$49 -> 0 | U51: =SUM(U20:U25)+U$49 -> 0 | V51: =SUM(V20:V25)+V$49 -> 0 | W51: =SUM(W20:W25)+W$49 -> 0 | X51: =SUM(X20:X25)+X$49 -> 0 | Y51: =SUM(Y20:Y25)+Y$49 -> 0 | Z51: =SUM(Z20:Z25)+Z$49 -> 0 | AA51: =SUM(AA20:AA25)+AA$49 -> 0 | AB51: 0 | AC51: =SUM(AC20:AC25)+AC$49 -> 0 | AD51: =SUM(AD20:AD25)+AD$49 -> 0 | AE51: =SUM(AE20:AE25)+AE$49 -> 0 | AF51: =SUM(AF20:AF25)+AF$49 -> 0 | AG51: =SUM(AG20:AG25)+AG$49 -> 0 | AH51: =SUM(AH20:AH25)+AH$49 -> 0
C53: Resultaat | H53: =H17-H51 -> 6686914.531 | J53: =J17-J51 -> 8127217.372 | L53: =L17-L51 -> 8127217.372 | N53: =N17-N51 -> 8430858.717 | P53: =P17-P51 -> 0 | R53: =R17-R51 -> 0 | T53: =T17-T51 -> 0 | V53: =V17-V51 -> 0 | X53: =X17-X51 -> 0 | Z53: =Z17-Z51 -> 0 | AB53: =AB17-AB51 -> 0 | AD53: =AD17-AD51 -> 0 | AF53: =AF17-AF51 -> 0 | AH53: =AH17-AH51 -> 0
C56: Afdracht lichte ondersteuning
C57: ='MJB kalenderjaar'!C58 -> de maximale afdracht lwoo en pro bedraagt (budget lichte ondersteuning): | H57: =SUM(H6:H9) -> 10740569.86 | J57: =SUM(J6:J9) -> 11076715.35 | L57: =SUM(L6:L9) -> 11076715.35 | N57: =SUM(N6:N9) -> 4694382.561 | P57: =SUM(P6:P9) -> 0 | R57: =SUM(R6:R9) -> 0 | T57: =SUM(T6:T9) -> 0 | V57: =SUM(V6:V9) -> 0 | X57: =SUM(X6:X9) -> 0 | Z57: =SUM(Z6:Z9) -> 0 | AB57: =SUM(AB6:AB9) -> 0 | AD57: =SUM(AD6:AD9) -> 0 | AF57: =SUM(AF6:AF9) -> 0 | AH57: =SUM(AH6:AH9) -> 0
C58: ='MJB kalenderjaar'!C59 -> de werkelijke afdracht (via DUO) is: | H58: =IFERROR((H20+H21)/H57,0) -> 0.8022560528 | J58: =IFERROR((J20+J21)/J57,0) -> 0.8000499307 | L58: =IFERROR((L20+L21)/L57,0) -> 0.8000499307 | N58: 0.8046772129 | P58: =IFERROR((P20+P21)/P57,0) -> 0 | R58: =IFERROR((R20+R21)/R57,0) -> 0 | T58: =IFERROR((T20+T21)/T57,0) -> 0 | V58: =IFERROR((V20+V21)/V57,0) -> 0 | X58: =IFERROR((X20+X21)/X57,0) -> 0 | Z58: =IFERROR((Z20+Z21)/Z57,0) -> 0 | AB58: =IFERROR((AB20+AB21)/AB57,0) -> 0 | AD58: =IFERROR((AD20+AD21)/AD57,0) -> 0 | AF58: =IFERROR((AF20+AF21)/AF57,0) -> 0 | AH58: =IFERROR((AH20+AH21)/AH57,0) -> 0
C59: ='MJB kalenderjaar'!C60 -> indien de baten lichte ondersteuning lager zijn dan de afdracht lwoo en pro wordt de lumpsum van de deelnemende scholen gekort: | H59: =IF(SUM(H6:H9)-H20-H21<0,H20+H21-SUM(H6:H9),0) -> 0 | J59: =IF(SUM(J6:J9)-J20-J21<0,J20+J21-SUM(J6:J9),0) -> 0 | L59: =IF(SUM(L6:L9)-L20-L21<0,L20+L21-SUM(L6:L9),0) -> 0 | N59: =IF(SUM(N6:N9)-N20-N21<0,N20+N21-SUM(N6:N9),0) -> 0 | P59: =IF(SUM(P6:P9)-P20-P21<0,P20+P21-SUM(P6:P9),0) -> 0 | R59: =IF(SUM(R6:R9)-R20-R21<0,R20+R21-SUM(R6:R9),0) -> 0 | T59: =IF(SUM(T6:T9)-T20-T21<0,T20+T21-SUM(T6:T9),0) -> 0 | V59: =IF(SUM(V6:V9)-V20-V21<0,V20+V21-SUM(V6:V9),0) -> 0 | X59: =IF(SUM(X6:X9)-X20-X21<0,X20+X21-SUM(X6:X9),0) -> 0 | Z59: =IF(SUM(Z6:Z9)-Z20-Z21<0,Z20+Z21-SUM(Z6:Z9),0) -> 0 | AB59: =IF(SUM(AB6:AB9)-AB20-AB21<0,AB20+AB21-SUM(AB6:AB9),0) -> 0 | AD59: =IF(SUM(AD6:AD9)-AD20-AD21<0,AD20+AD21-SUM(AD6:AD9),0) -> 0 | AF59: =IF(SUM(AF6:AF9)-AF20-AF21<0,AF20+AF21-SUM(AF6:AF9),0) -> 0 | AH59: =IF(SUM(AH6:AH9)-AH20-AH21<0,AH20+AH21-SUM(AH6:AH9),0) -> 0
C60: ='MJB kalenderjaar'!C61 -> per leerling (vo en vso): | H60: =IFERROR(H59/(LLaantal!Q11+LLaantal!Q21),0) -> 0 | J60: =IFERROR(J59/(LLaantal!S11+LLaantal!S21),0) -> 0 | L60: =IFERROR(L59/(LLaantal!S11+LLaantal!S21),0) -> 0 | N60: =IFERROR(N59/(LLaantal!U11+LLaantal!U21),0) -> 0 | P60: =IFERROR(P59/(LLaantal!W11+LLaantal!W21),0) -> 0 | R60: =IFERROR(R59/(LLaantal!Y11+LLaantal!Y21),0) -> 0 | T60: =IFERROR(T59/(LLaantal!AA11+LLaantal!AA21),0) -> 0 | V60: =IFERROR(V59/(LLaantal!AC11+LLaantal!AC21),0) -> 0 | X60: =IFERROR(X59/(LLaantal!AE11+LLaantal!AE21),0) -> 0 | Z60: =IFERROR(Z59/(LLaantal!AG11+LLaantal!AG21),0) -> 0 | AB60: =IFERROR(AB59/(LLaantal!AI11+LLaantal!AI21),0) -> 0 | AD60: =IFERROR(AD59/(LLaantal!AK11+LLaantal!AK21),0) -> 0 | AF60: =IFERROR(AF59/(LLaantal!AM11+LLaantal!AM21),0) -> 0 | AH60: =IFERROR(AH59/(LLaantal!AO11+LLaantal!AO21),0) -> 0
C62: Afdracht zware ondersteuning
C63: de maximale afdracht VSO bedraagt (budget zware ondersteuning inclusief verevening): | H63: =H10+H13 -> 10509121.48 | J63: =J10+J13 -> 12294535.64 | L63: =L10+L13 -> 12294535.64 | N63: =N10+N13 -> 13602069.65 | P63: =P10+P13 -> 0 | R63: =R10+R13 -> 0 | T63: =T10+T13 -> 0 | V63: =V10+V13 -> 0 | X63: =X10+X13 -> 0 | Z63: =Z10+Z13 -> 0 | AB63: =AB10+AB13 -> 0 | AD63: =AD10+AD13 -> 0 | AF63: =AF10+AF13 -> 0 | AH63: =AH10+AH13 -> 0
C64: ='MJB kalenderjaar'!C65 -> de werkelijke afdracht (via DUO en swv) is: | H64: =IFERROR((H23+H24)/H63,0) -> 0.5658027306 | J64: =IFERROR((J23+J24)/J63,0) -> 0.5191012054 | L64: =IFERROR((L23+L24)/L63,0) -> 0.5191012054 | N64: 0.4475885636 | P64: =IFERROR((P23+P24)/P63,0) -> 0 | R64: =IFERROR((R23+R24)/R63,0) -> 0 | T64: =IFERROR((T23+T24)/T63,0) -> 0 | V64: =IFERROR((V23+V24)/V63,0) -> 0 | X64: =IFERROR((X23+X24)/X63,0) -> 0 | Z64: =IFERROR((Z23+Z24)/Z63,0) -> 0 | AB64: =IFERROR((AB23+AB24)/AB63,0) -> 0 | AD64: =IFERROR((AD23+AD24)/AD63,0) -> 0 | AF64: =IFERROR((AF23+AF24)/AF63,0) -> 0 | AH64: =IFERROR((AH23+AH24)/AH63,0) -> 0
C65: ='MJB kalenderjaar'!C66 -> indien de baten zware ondersteuning lager zijn dan de afdracht vso wordt de lumpsum van de deelnemende scholen gekort: | H65: =IF((H63-H23)<0,(H23)-H63,0) -> 0 | J65: =IF((J63-J23)<0,(J23)-J63,0) -> 0 | L65: =IF((L63-L23)<0,(L23)-L63,0) -> 0 | N65: =IF((N63-N23)<0,(N23)-N63,0) -> 0 | P65: =IF((P63-P23)<0,(P23)-P63,0) -> 0 | R65: =IF((R63-R23)<0,(R23)-R63,0) -> 0 | T65: =IF((T63-T23)<0,(T23)-T63,0) -> 0 | V65: =IF((V63-V23)<0,(V23)-V63,0) -> 0 | X65: =IF((X63-X23)<0,(X23)-X63,0) -> 0 | Z65: =IF((Z63-Z23)<0,(Z23)-Z63,0) -> 0 | AB65: =IF((AB63-AB23)<0,(AB23)-AB63,0) -> 0 | AD65: =IF((AD63-AD23)<0,(AD23)-AD63,0) -> 0 | AF65: =IF((AF63-AF23)<0,(AF23)-AF63,0) -> 0 | AH65: =IF((AH63-AH23)<0,(AH23)-AH63,0) -> 0
C66: ='MJB kalenderjaar'!C67 -> per leerling (vo en vso): | H66: =IFERROR(H65/(LLaantal!Q11+LLaantal!Q21),0) -> 0 | J66: =IFERROR(J65/(LLaantal!S11+LLaantal!S21),0) -> 0 | L66: =IFERROR(L65/(LLaantal!S11+LLaantal!S21),0) -> 0 | N66: =IFERROR(N65/(LLaantal!U11+LLaantal!U21),0) -> 0 | P66: =IFERROR(P65/(LLaantal!W11+LLaantal!W21),0) -> 0 | R66: =IFERROR(R65/(LLaantal!Y11+LLaantal!Y21),0) -> 0 | T66: =IFERROR(T65/(LLaantal!AA11+LLaantal!AA21),0) -> 0 | V66: =IFERROR(V65/(LLaantal!AC11+LLaantal!AC21),0) -> 0 | X66: =IFERROR(X65/(LLaantal!AE11+LLaantal!AE21),0) -> 0 | Z66: =IFERROR(Z65/(LLaantal!AG11+LLaantal!AG21),0) -> 0 | AB66: =IFERROR(AB65/(LLaantal!AI11+LLaantal!AI21),0) -> 0 | AD66: =IFERROR(AD65/(LLaantal!AK11+LLaantal!AK21),0) -> 0 | AF66: =IFERROR(AF65/(LLaantal!AM11+LLaantal!AM21),0) -> 0 | AH66: =IFERROR(AH65/(LLaantal!AO11+LLaantal!AO21),0) -> 0

Sheet Uitputting onderst.plan
AT1: =INDEX(kalenderjaar,AU1) -> 2020 | AU1: 1 | AW1: =INDEX(kalenderjaar,AX1) -> 2028 | AX1: 9
A2: 0
C3: UITPUTTING BESCHIKBARE MIDDELEN ONDERSTEUNINGSPLAN KALENDERJAAR | F3: =IF(AND(F5>=$AT$1,F5<=$AW$1),"","x") -> x | G3: =F3 -> x | H3: =IF(AND(H5>=$AT$1,H5<=$AW$1),"","x") -> x | I3: =H3 -> x | J3: =IF(AND(J5>=$AT$1,J5<=$AW$1),"","x") ->  | K3: =J3 ->  | L3: =IF(AND(L5>=$AT$1,L5<=$AW$1),"","x") ->  | M3: =L3 ->  | N3: =IF(AND(N5>=$AT$1,N5<=$AW$1),"","x") ->  | O3: =N3 ->  | P3: =IF(AND(P5>=$AT$1,P5<=$AW$1),"","x") ->  | Q3: =P3 ->  | R3: =IF(AND(R5>=$AT$1,R5<=$AW$1),"","x") ->  | S3: =R3 ->  | T3: =IF(AND(T5>=$AT$1,T5<=$AW$1),"","x") ->  | U3: =T3 ->  | V3: =IF(AND(V5>=$AT$1,V5<=$AW$1),"","x") ->  | W3: =V3 ->  | X3: =IF(AND(X5>=$AT$1,X5<=$AW$1),"","x") ->  | Y3: =X3 ->  | Z3: =IF(AND(Z5>=$AT$1,Z5<=$AW$1),"","x") ->  | AA3: =Z3 ->  | AB3: =IF(AND(AB5>=$AT$1,AB5<=$AW$1),"","x") -> x | AC3: =AB3 -> x | AD3: =IF(AND(AD5>=$AT$1,AD5<=$AW$1),"","x") -> x | AE3: =AD3 -> x
C4: =Start!$A$33 -> Versie 8.0
F5: ='MJB kalenderjaar'!F5 -> 2018 | H5: ='MJB kalenderjaar'!H5 -> 2019 | J5: ='MJB kalenderjaar'!J5 -> 2020 | L5: ='MJB kalenderjaar'!N5 -> 2021 | N5: ='MJB kalenderjaar'!P5 -> 2022 | P5: ='MJB kalenderjaar'!R5 -> 2023 | R5: ='MJB kalenderjaar'!T5 -> 2024 | T5: ='MJB kalenderjaar'!V5 -> 2025 | V5: ='MJB kalenderjaar'!X5 -> 2026 | X5: ='MJB kalenderjaar'!Z5 -> 2027 | Z5: ='MJB kalenderjaar'!AB5 -> 2028 | AB5: ='MJB kalenderjaar'!AD5 -> 2029 | AD5: ='MJB kalenderjaar'!AF5 -> 2030
C6: baten (exclusief geoormerkte baten voor programma's) | F6: ='MJB kalenderjaar'!F17-'MJB kalenderjaar'!F15 -> 0 | H6: ='MJB kalenderjaar'!H17-'MJB kalenderjaar'!H15 -> 22062209.18 | J6: ='MJB kalenderjaar'!J17-'MJB kalenderjaar'!J15 -> 24285941.29 | L6: ='MJB kalenderjaar'!N17-'MJB kalenderjaar'!N15 -> 7776863.483 | N6: ='MJB kalenderjaar'!P17-'MJB kalenderjaar'!P15 -> 0 | P6: ='MJB kalenderjaar'!R17-'MJB kalenderjaar'!R15 -> 0 | R6: ='MJB kalenderjaar'!T17-'MJB kalenderjaar'!T15 -> 0 | T6: ='MJB kalenderjaar'!V17-'MJB kalenderjaar'!V15 -> 0 | V6: ='MJB kalenderjaar'!X17-'MJB kalenderjaar'!X15 -> 0 | X6: ='MJB kalenderjaar'!Z17-'MJB kalenderjaar'!Z15 -> 0 | Z6: ='MJB kalenderjaar'!AB17-'MJB kalenderjaar'!AB15 -> 0 | AB6: ='MJB kalenderjaar'!AD17-'MJB kalenderjaar'!AD15 -> 0 | AD6: ='MJB kalenderjaar'!AF17-'MJB kalenderjaar'!AF15 -> 0
C7: lasten | F7: =SUM('MJB kalenderjaar'!F20:F25) -> 0 | H7: =SUM('MJB kalenderjaar'!H20:H25) -> 14709539.87 | J7: =SUM('MJB kalenderjaar'!J20:J25) -> 15405334.54 | L7: =SUM('MJB kalenderjaar'!N20:N25) -> 3470223.348 | N7: =SUM('MJB kalenderjaar'!P20:P25) -> 0 | P7: =SUM('MJB kalenderjaar'!R20:R25) -> 0 | R7: =SUM('MJB kalenderjaar'!T20:T25) -> 0 | T7: =SUM('MJB kalenderjaar'!V20:V25) -> 0 | V7: =SUM('MJB kalenderjaar'!X20:X25) -> 0 | X7: =SUM('MJB kalenderjaar'!Z20:Z25) -> 0 | Z7: =SUM('MJB kalenderjaar'!AB20:AB25) -> 0 | AB7: =SUM('MJB kalenderjaar'!AD20:AD25) -> 0 | AD7: =SUM('MJB kalenderjaar'!AF20:AF25) -> 0
C9: Beschikbaar voor het ondersteuningsplan | F9: =F6-F7 -> 0 | H9: =H6-H7 -> 7352669.318 | J9: =J6-J7 -> 8880606.752 | L9: =L6-L7 -> 4306640.135 | N9: =N6-N7 -> 0 | P9: =P6-P7 -> 0 | R9: =R6-R7 -> 0 | T9: =T6-T7 -> 0 | V9: =V6-V7 -> 0 | X9: =X6-X7 -> 0 | Z9: =Z6-Z7 -> 0 | AB9: =AB6-AB7 -> 0 | AD9: =AD6-AD7 -> 0
C12: Benodigde bijdrage voor programma's in het ondersteuningsplan (na geoormerkte baten)
C13: ='MJB kalenderjaar'!C27 -> 0
C14: ='MJB kalenderjaar'!C29 -> 0 | D14: =IF(LEN(INDIRECT("C14"))> 1, "Zichtbaar", "Onzichtbaar") -> Onzichtbaar | E14: =INDIRECT("'Programma''s'!J3") -> 0 | F14: =IFERROR(INDIRECT("'" & $E14 & "'!" &verwijzing!J$56),0) -> 0 | G14: =IFERROR(F14/F$9,"") ->  | H14: =IFERROR(INDIRECT("'" & $E14 & "'!" &verwijzing!L$56),0) -> 0 | I14: =IFERROR(H14/H$9,"") -> 0 | J14: =IFERROR(INDIRECT("'" & $E14 & "'!" &verwijzing!N$56),0) -> 0 | K14: =IFERROR(J14/J$9,"") -> 0 | L14: =IFERROR(INDIRECT("'" & $E14 & "'!" &verwijzing!Q$56),0) -> 0 | M14: =IFERROR(L14/L$9,"") -> 0 | N14: =IFERROR(INDIRECT("'" & $E14 & "'!" &verwijzing!S$56),0) -> 0 | O14: =IFERROR(N14/N$9,"") ->  | P14: =IFERROR(INDIRECT("'" & $E14 & "'!" &verwijzing!U$56),0) -> 0 | Q14: =IFERROR(P14/P$9,"") ->  | R14: =IFERROR(INDIRECT("'" & $E14 & "'!" &verwijzing!W$56),0) -> 0 | S14: =IFERROR(R14/R$9,"") ->  | T14: =IFERROR(INDIRECT("'" & $E14 & "'!" &verwijzing!Y$56),0) -> 0 | U14: =IFERROR(T14/T$9,"") ->  | V14: =IFERROR(INDIRECT("'" & $E14 & "'!" &verwijzing!AA$56),0) -> 0 | W14: =IFERROR(V14/V$9,"") ->  | X14: =IFERROR(INDIRECT("'" & $E14 & "'!" &verwijzing!AC$56),0) -> 0 | Y14: =IFERROR(X14/X$9,"") ->  | Z14: =IFERROR(INDIRECT("'" & $E14 & "'!" &verwijzing!AE$56),0) -> 0 | AA14: =IFERROR(Z14/Z$9,"") ->  | AB14: =IFERROR(INDIRECT("'" & $E14 & "'!" &verwijzing!AG$56),0) -> 0 | AC14: =IFERROR(AB14/AB$9,"") ->  | AD14: =IFERROR(INDIRECT("'" & $E14 & "'!" &verwijzing!AI$56),0) -> 0 | AE14: =IFERROR(AD14/AD$9,"") -> 
C15: ='MJB kalenderjaar'!C30 -> 0 | D15: =IF(LEN(INDIRECT("C15"))> 1, "Zichtbaar", "Onzichtbaar") -> Onzichtbaar | E15: =INDIRECT("'Programma''s'!J4") -> 0 | F15: =IFERROR(INDIRECT("'" & $E15 & "'!" &verwijzing!J$56),0) -> 0 | G15: =IFERROR(F15/F$9,"") ->  | H15: =IFERROR(INDIRECT("'" & $E15 & "'!" &verwijzing!L$56),0) -> 0 | I15: 0 | J15: =IFERROR(INDIRECT("'" & $E15 & "'!" &verwijzing!N$56),0) -> 0 | K15: =IFERROR(J15/J$9,"") -> 0 | L15: =IFERROR(INDIRECT("'" & $E15 & "'!" &verwijzing!Q$56),0) -> 0 | M15: =IFERROR(L15/L$9,"") -> 0 | N15: =IFERROR(INDIRECT("'" & $E15 & "'!" &verwijzing!S$56),0) -> 0 | O15: =IFERROR(N15/N$9,"") ->  | P15: =IFERROR(INDIRECT("'" & $E15 & "'!" &verwijzing!U$56),0) -> 0 | Q15: =IFERROR(P15/P$9,"") ->  | R15: =IFERROR(INDIRECT("'" & $E15 & "'!" &verwijzing!W$56),0) -> 0 | S15: =IFERROR(R15/R$9,"") ->  | T15: =IFERROR(INDIRECT("'" & $E15 & "'!" &verwijzing!Y$56),0) -> 0 | U15: =IFERROR(T15/T$9,"") ->  | V15: =IFERROR(INDIRECT("'" & $E15 & "'!" &verwijzing!AA$56),0) -> 0 | W15: =IFERROR(V15/V$9,"") ->  | X15: =IFERROR(INDIRECT("'" & $E15 & "'!" &verwijzing!AC$56),0) -> 0 | Y15: =IFERROR(X15/X$9,"") ->  | Z15: =IFERROR(INDIRECT("'" & $E15 & "'!" &verwijzing!AE$56),0) -> 0 | AA15: =IFERROR(Z15/Z$9,"") ->  | AB15: =IFERROR(INDIRECT("'" & $E15 & "'!" &verwijzing!AG$56),0) -> 0 | AC15: =IFERROR(AB15/AB$9,"") ->  | AD15: =IFERROR(INDIRECT("'" & $E15 & "'!" &verwijzing!AI$56),0) -> 0 | AE15: =IFERROR(AD15/AD$9,"") -> 
C16: ='MJB kalenderjaar'!C31 -> 0 | D16: =IF(LEN(INDIRECT("C16"))> 1, "Zichtbaar", "Onzichtbaar") -> Onzichtbaar | E16: =INDIRECT("'Programma''s'!J5") -> 0 | F16: =IFERROR(INDIRECT("'" & $E16 & "'!" &verwijzing!J$56),0) -> 0 | H16: =IFERROR(INDIRECT("'" & $E16 & "'!" &verwijzing!L$56),0) -> 0 | I16: 0 | J16: =IFERROR(INDIRECT("'" & $E16 & "'!" &verwijzing!N$56),0) -> 0 | K16: 0 | L16: =IFERROR(INDIRECT("'" & $E16 & "'!" &verwijzing!Q$56),0) -> 0 | M16: 0 | N16: =IFERROR(INDIRECT("'" & $E16 & "'!" &verwijzing!S$56),0) -> 0 | P16: =IFERROR(INDIRECT("'" & $E16 & "'!" &verwijzing!U$56),0) -> 0 | R16: =IFERROR(INDIRECT("'" & $E16 & "'!" &verwijzing!W$56),0) -> 0 | T16: =IFERROR(INDIRECT("'" & $E16 & "'!" &verwijzing!Y$56),0) -> 0 | V16: =IFERROR(INDIRECT("'" & $E16 & "'!" &verwijzing!AA$56),0) -> 0 | X16: =IFERROR(INDIRECT("'" & $E16 & "'!" &verwijzing!AC$56),0) -> 0 | Z16: =IFERROR(INDIRECT("'" & $E16 & "'!" &verwijzing!AE$56),0) -> 0 | AB16: =IFERROR(INDIRECT("'" & $E16 & "'!" &verwijzing!AG$56),0) -> 0 | AD16: =IFERROR(INDIRECT("'" & $E16 & "'!" &verwijzing!AI$56),0) -> 0 | AE16: =IFERROR(AD16/AD$9,"") -> 
C17: ='MJB kalenderjaar'!C32 -> 0 | D17: =IF(LEN(INDIRECT("C17"))> 1, "Zichtbaar", "Onzichtbaar") -> Onzichtbaar | E17: =INDIRECT("'Programma''s'!J6") -> 0 | F17: =IFERROR(INDIRECT("'" & $E17 & "'!" &verwijzing!J$56),0) -> 0 | H17: =IFERROR(INDIRECT("'" & $E17 & "'!" &verwijzing!L$56),0) -> 0 | I17: 0 | J17: =IFERROR(INDIRECT("'" & $E17 & "'!" &verwijzing!N$56),0) -> 0 | K17: 0 | L17: =IFERROR(INDIRECT("'" & $E17 & "'!" &verwijzing!Q$56),0) -> 0 | M17: 0 | N17: =IFERROR(INDIRECT("'" & $E17 & "'!" &verwijzing!S$56),0) -> 0 | P17: =IFERROR(INDIRECT("'" & $E17 & "'!" &verwijzing!U$56),0) -> 0 | R17: =IFERROR(INDIRECT("'" & $E17 & "'!" &verwijzing!W$56),0) -> 0 | T17: =IFERROR(INDIRECT("'" & $E17 & "'!" &verwijzing!Y$56),0) -> 0 | V17: =IFERROR(INDIRECT("'" & $E17 & "'!" &verwijzing!AA$56),0) -> 0 | X17: =IFERROR(INDIRECT("'" & $E17 & "'!" &verwijzing!AC$56),0) -> 0 | Z17: =IFERROR(INDIRECT("'" & $E17 & "'!" &verwijzing!AE$56),0) -> 0 | AB17: =IFERROR(INDIRECT("'" & $E17 & "'!" &verwijzing!AG$56),0) -> 0 | AD17: =IFERROR(INDIRECT("'" & $E17 & "'!" &verwijzing!AI$56),0) -> 0 | AE17: =IFERROR(AD17/AD$9,"") -> 
C18: ='MJB kalenderjaar'!C33 -> 0 | D18: =IF(LEN(INDIRECT("C18"))> 1, "Zichtbaar", "Onzichtbaar") -> Onzichtbaar | E18: =INDIRECT("'Programma''s'!J7") -> 0 | F18: =IFERROR(INDIRECT("'" & $E18 & "'!" &verwijzing!J$56),0) -> 0 | H18: =IFERROR(INDIRECT("'" & $E18 & "'!" &verwijzing!L$56),0) -> 0 | I18: 0 | J18: =IFERROR(INDIRECT("'" & $E18 & "'!" &verwijzing!N$56),0) -> 0 | K18: 0 | L18: =IFERROR(INDIRECT("'" & $E18 & "'!" &verwijzing!Q$56),0) -> 0 | M18: 0 | N18: =IFERROR(INDIRECT("'" & $E18 & "'!" &verwijzing!S$56),0) -> 0 | P18: =IFERROR(INDIRECT("'" & $E18 & "'!" &verwijzing!U$56),0) -> 0 | R18: =IFERROR(INDIRECT("'" & $E18 & "'!" &verwijzing!W$56),0) -> 0 | T18: =IFERROR(INDIRECT("'" & $E18 & "'!" &verwijzing!Y$56),0) -> 0 | V18: =IFERROR(INDIRECT("'" & $E18 & "'!" &verwijzing!AA$56),0) -> 0 | X18: =IFERROR(INDIRECT("'" & $E18 & "'!" &verwijzing!AC$56),0) -> 0 | Z18: =IFERROR(INDIRECT("'" & $E18 & "'!" &verwijzing!AE$56),0) -> 0 | AB18: =IFERROR(INDIRECT("'" & $E18 & "'!" &verwijzing!AG$56),0) -> 0 | AD18: =IFERROR(INDIRECT("'" & $E18 & "'!" &verwijzing!AI$56),0) -> 0 | AE18: =IFERROR(AD18/AD$9,"") -> 
C19: ='MJB kalenderjaar'!C34 -> 0 | D19: =IF(LEN(INDIRECT("C19"))> 1, "Zichtbaar", "Onzichtbaar") -> Onzichtbaar | E19: =INDIRECT("'Programma''s'!J8") -> 0 | F19: =IFERROR(INDIRECT("'" & $E19 & "'!" &verwijzing!J$56),0) -> 0 | H19: =IFERROR(INDIRECT("'" & $E19 & "'!" &verwijzing!L$56),0) -> 0 | I19: 0 | J19: =IFERROR(INDIRECT("'" & $E19 & "'!" &verwijzing!N$56),0) -> 0 | K19: 0 | L19: =IFERROR(INDIRECT("'" & $E19 & "'!" &verwijzing!Q$56),0) -> 0 | M19: 0 | N19: =IFERROR(INDIRECT("'" & $E19 & "'!" &verwijzing!S$56),0) -> 0 | P19: =IFERROR(INDIRECT("'" & $E19 & "'!" &verwijzing!U$56),0) -> 0 | R19: =IFERROR(INDIRECT("'" & $E19 & "'!" &verwijzing!W$56),0) -> 0 | T19: =IFERROR(INDIRECT("'" & $E19 & "'!" &verwijzing!Y$56),0) -> 0 | V19: =IFERROR(INDIRECT("'" & $E19 & "'!" &verwijzing!AA$56),0) -> 0 | X19: =IFERROR(INDIRECT("'" & $E19 & "'!" &verwijzing!AC$56),0) -> 0 | Z19: =IFERROR(INDIRECT("'" & $E19 & "'!" &verwijzing!AE$56),0) -> 0 | AB19: =IFERROR(INDIRECT("'" & $E19 & "'!" &verwijzing!AG$56),0) -> 0 | AD19: =IFERROR(INDIRECT("'" & $E19 & "'!" &verwijzing!AI$56),0) -> 0 | AE19: =IFERROR(AD19/AD$9,"") -> 
C20: ='MJB kalenderjaar'!C35 -> 0 | D20: =IF(LEN(INDIRECT("C20"))> 1, "Zichtbaar", "Onzichtbaar") -> Onzichtbaar | E20: =INDIRECT("'Programma''s'!J9") -> 0 | F20: =IFERROR(INDIRECT("'" & $E20 & "'!" &verwijzing!J$56),0) -> 0 | H20: =IFERROR(INDIRECT("'" & $E20 & "'!" &verwijzing!L$56),0) -> 0 | I20: 0 | J20: =IFERROR(INDIRECT("'" & $E20 & "'!" &verwijzing!N$56),0) -> 0 | K20: 0 | L20: =IFERROR(INDIRECT("'" & $E20 & "'!" &verwijzing!Q$56),0) -> 0 | M20: 0 | N20: =IFERROR(INDIRECT("'" & $E20 & "'!" &verwijzing!S$56),0) -> 0 | P20: =IFERROR(INDIRECT("'" & $E20 & "'!" &verwijzing!U$56),0) -> 0 | R20: =IFERROR(INDIRECT("'" & $E20 & "'!" &verwijzing!W$56),0) -> 0 | T20: =IFERROR(INDIRECT("'" & $E20 & "'!" &verwijzing!Y$56),0) -> 0 | V20: =IFERROR(INDIRECT("'" & $E20 & "'!" &verwijzing!AA$56),0) -> 0 | X20: =IFERROR(INDIRECT("'" & $E20 & "'!" &verwijzing!AC$56),0) -> 0 | Z20: =IFERROR(INDIRECT("'" & $E20 & "'!" &verwijzing!AE$56),0) -> 0 | AB20: =IFERROR(INDIRECT("'" & $E20 & "'!" &verwijzing!AG$56),0) -> 0 | AD20: =IFERROR(INDIRECT("'" & $E20 & "'!" &verwijzing!AI$56),0) -> 0 | AE20: =IFERROR(AD20/AD$9,"") -> 
C21: ='MJB kalenderjaar'!C36 -> 0 | D21: =IF(LEN(INDIRECT("C21"))> 1, "Zichtbaar", "Onzichtbaar") -> Onzichtbaar | E21: =INDIRECT("'Programma''s'!J10") -> 0 | F21: =IFERROR(INDIRECT("'" & $E21 & "'!" &verwijzing!J$56),0) -> 0 | H21: =IFERROR(INDIRECT("'" & $E21 & "'!" &verwijzing!L$56),0) -> 0 | I21: 0 | J21: =IFERROR(INDIRECT("'" & $E21 & "'!" &verwijzing!N$56),0) -> 0 | K21: 0 | L21: =IFERROR(INDIRECT("'" & $E21 & "'!" &verwijzing!Q$56),0) -> 0 | M21: 0 | N21: =IFERROR(INDIRECT("'" & $E21 & "'!" &verwijzing!S$56),0) -> 0 | P21: =IFERROR(INDIRECT("'" & $E21 & "'!" &verwijzing!U$56),0) -> 0 | R21: =IFERROR(INDIRECT("'" & $E21 & "'!" &verwijzing!W$56),0) -> 0 | T21: =IFERROR(INDIRECT("'" & $E21 & "'!" &verwijzing!Y$56),0) -> 0 | V21: =IFERROR(INDIRECT("'" & $E21 & "'!" &verwijzing!AA$56),0) -> 0 | X21: =IFERROR(INDIRECT("'" & $E21 & "'!" &verwijzing!AC$56),0) -> 0 | Z21: =IFERROR(INDIRECT("'" & $E21 & "'!" &verwijzing!AE$56),0) -> 0 | AB21: =IFERROR(INDIRECT("'" & $E21 & "'!" &verwijzing!AG$56),0) -> 0 | AD21: =IFERROR(INDIRECT("'" & $E21 & "'!" &verwijzing!AI$56),0) -> 0 | AE21: =IFERROR(AD21/AD$9,"") -> 
C22: ='MJB kalenderjaar'!C37 -> 0 | D22: =IF(LEN(INDIRECT("C22"))> 1, "Zichtbaar", "Onzichtbaar") -> Onzichtbaar | E22: =INDIRECT("'Programma''s'!J11") -> 0 | F22: =IFERROR(INDIRECT("'" & $E22 & "'!" &verwijzing!J$56),0) -> 0 | H22: =IFERROR(INDIRECT("'" & $E22 & "'!" &verwijzing!L$56),0) -> 0 | I22: 0 | J22: =IFERROR(INDIRECT("'" & $E22 & "'!" &verwijzing!N$56),0) -> 0 | K22: 0 | L22: =IFERROR(INDIRECT("'" & $E22 & "'!" &verwijzing!Q$56),0) -> 0 | M22: 0 | N22: =IFERROR(INDIRECT("'" & $E22 & "'!" &verwijzing!S$56),0) -> 0 | P22: =IFERROR(INDIRECT("'" & $E22 & "'!" &verwijzing!U$56),0) -> 0 | R22: =IFERROR(INDIRECT("'" & $E22 & "'!" &verwijzing!W$56),0) -> 0 | T22: =IFERROR(INDIRECT("'" & $E22 & "'!" &verwijzing!Y$56),0) -> 0 | V22: =IFERROR(INDIRECT("'" & $E22 & "'!" &verwijzing!AA$56),0) -> 0 | X22: =IFERROR(INDIRECT("'" & $E22 & "'!" &verwijzing!AC$56),0) -> 0 | Z22: =IFERROR(INDIRECT("'" & $E22 & "'!" &verwijzing!AE$56),0) -> 0 | AB22: =IFERROR(INDIRECT("'" & $E22 & "'!" &verwijzing!AG$56),0) -> 0 | AD22: =IFERROR(INDIRECT("'" & $E22 & "'!" &verwijzing!AI$56),0) -> 0 | AE22: =IFERROR(AD22/AD$9,"") -> 
C23: ='MJB kalenderjaar'!C38 -> 0 | D23: =IF(LEN(INDIRECT("C23"))> 1, "Zichtbaar", "Onzichtbaar") -> Onzichtbaar | E23: =INDIRECT("'Programma''s'!J12") -> 0 | F23: =IFERROR(INDIRECT("'" & $E23 & "'!" &verwijzing!J$56),0) -> 0 | H23: =IFERROR(INDIRECT("'" & $E23 & "'!" &verwijzing!L$56),0) -> 0 | I23: 0 | J23: =IFERROR(INDIRECT("'" & $E23 & "'!" &verwijzing!N$56),0) -> 0 | K23: 0 | L23: =IFERROR(INDIRECT("'" & $E23 & "'!" &verwijzing!Q$56),0) -> 0 | M23: 0 | N23: =IFERROR(INDIRECT("'" & $E23 & "'!" &verwijzing!S$56),0) -> 0 | P23: =IFERROR(INDIRECT("'" & $E23 & "'!" &verwijzing!U$56),0) -> 0 | R23: =IFERROR(INDIRECT("'" & $E23 & "'!" &verwijzing!W$56),0) -> 0 | T23: =IFERROR(INDIRECT("'" & $E23 & "'!" &verwijzing!Y$56),0) -> 0 | V23: =IFERROR(INDIRECT("'" & $E23 & "'!" &verwijzing!AA$56),0) -> 0 | X23: =IFERROR(INDIRECT("'" & $E23 & "'!" &verwijzing!AC$56),0) -> 0 | Z23: =IFERROR(INDIRECT("'" & $E23 & "'!" &verwijzing!AE$56),0) -> 0 | AB23: =IFERROR(INDIRECT("'" & $E23 & "'!" &verwijzing!AG$56),0) -> 0 | AD23: =IFERROR(INDIRECT("'" & $E23 & "'!" &verwijzing!AI$56),0) -> 0 | AE23: =IFERROR(AD23/AD$9,"") -> 
C24: ='MJB kalenderjaar'!C39 -> 0 | D24: =IF(LEN(INDIRECT("C24"))> 1, "Zichtbaar", "Onzichtbaar") -> Onzichtbaar | E24: =INDIRECT("'Programma''s'!J13") -> 0 | F24: =IFERROR(INDIRECT("'" & $E24 & "'!" &verwijzing!J$56),0) -> 0 | H24: =IFERROR(INDIRECT("'" & $E24 & "'!" &verwijzing!L$56),0) -> 0 | I24: 0 | J24: =IFERROR(INDIRECT("'" & $E24 & "'!" &verwijzing!N$56),0) -> 0 | K24: 0 | L24: =IFERROR(INDIRECT("'" & $E24 & "'!" &verwijzing!Q$56),0) -> 0 | M24: 0 | N24: =IFERROR(INDIRECT("'" & $E24 & "'!" &verwijzing!S$56),0) -> 0 | P24: =IFERROR(INDIRECT("'" & $E24 & "'!" &verwijzing!U$56),0) -> 0 | R24: =IFERROR(INDIRECT("'" & $E24 & "'!" &verwijzing!W$56),0) -> 0 | T24: =IFERROR(INDIRECT("'" & $E24 & "'!" &verwijzing!Y$56),0) -> 0 | V24: =IFERROR(INDIRECT("'" & $E24 & "'!" &verwijzing!AA$56),0) -> 0 | X24: =IFERROR(INDIRECT("'" & $E24 & "'!" &verwijzing!AC$56),0) -> 0 | Z24: =IFERROR(INDIRECT("'" & $E24 & "'!" &verwijzing!AE$56),0) -> 0 | AB24: =IFERROR(INDIRECT("'" & $E24 & "'!" &verwijzing!AG$56),0) -> 0 | AD24: =IFERROR(INDIRECT("'" & $E24 & "'!" &verwijzing!AI$56),0) -> 0 | AE24: =IFERROR(AD24/AD$9,"") -> 
C25: ='MJB kalenderjaar'!C40 -> 0 | D25: =IF(LEN(INDIRECT("C25"))> 1, "Zichtbaar", "Onzichtbaar") -> Onzichtbaar | E25: =INDIRECT("'Programma''s'!J14") -> 0 | F25: =IFERROR(INDIRECT("'" & $E25 & "'!" &verwijzing!J$56),0) -> 0 | H25: =IFERROR(INDIRECT("'" & $E25 & "'!" &verwijzing!L$56),0) -> 0 | I25: 0 | J25: =IFERROR(INDIRECT("'" & $E25 & "'!" &verwijzing!N$56),0) -> 0 | K25: 0 | L25: =IFERROR(INDIRECT("'" & $E25 & "'!" &verwijzing!Q$56),0) -> 0 | M25: 0 | N25: =IFERROR(INDIRECT("'" & $E25 & "'!" &verwijzing!S$56),0) -> 0 | P25: =IFERROR(INDIRECT("'" & $E25 & "'!" &verwijzing!U$56),0) -> 0 | R25: =IFERROR(INDIRECT("'" & $E25 & "'!" &verwijzing!W$56),0) -> 0 | T25: =IFERROR(INDIRECT("'" & $E25 & "'!" &verwijzing!Y$56),0) -> 0 | V25: =IFERROR(INDIRECT("'" & $E25 & "'!" &verwijzing!AA$56),0) -> 0 | X25: =IFERROR(INDIRECT("'" & $E25 & "'!" &verwijzing!AC$56),0) -> 0 | Z25: =IFERROR(INDIRECT("'" & $E25 & "'!" &verwijzing!AE$56),0) -> 0 | AB25: =IFERROR(INDIRECT("'" & $E25 & "'!" &verwijzing!AG$56),0) -> 0 | AD25: =IFERROR(INDIRECT("'" & $E25 & "'!" &verwijzing!AI$56),0) -> 0 | AE25: =IFERROR(AD25/AD$9,"") -> 
C26: ='MJB kalenderjaar'!C41 -> 0 | D26: =IF(LEN(INDIRECT("C26"))> 1, "Zichtbaar", "Onzichtbaar") -> Onzichtbaar | E26: =INDIRECT("'Programma''s'!J15") -> 0 | F26: =IFERROR(INDIRECT("'" & $E26 & "'!" &verwijzing!J$56),0) -> 0 | H26: =IFERROR(INDIRECT("'" & $E26 & "'!" &verwijzing!L$56),0) -> 0 | I26: 0 | J26: =IFERROR(INDIRECT("'" & $E26 & "'!" &verwijzing!N$56),0) -> 0 | K26: 0 | L26: =IFERROR(INDIRECT("'" & $E26 & "'!" &verwijzing!Q$56),0) -> 0 | M26: 0 | N26: =IFERROR(INDIRECT("'" & $E26 & "'!" &verwijzing!S$56),0) -> 0 | P26: =IFERROR(INDIRECT("'" & $E26 & "'!" &verwijzing!U$56),0) -> 0 | R26: =IFERROR(INDIRECT("'" & $E26 & "'!" &verwijzing!W$56),0) -> 0 | T26: =IFERROR(INDIRECT("'" & $E26 & "'!" &verwijzing!Y$56),0) -> 0 | V26: =IFERROR(INDIRECT("'" & $E26 & "'!" &verwijzing!AA$56),0) -> 0 | X26: =IFERROR(INDIRECT("'" & $E26 & "'!" &verwijzing!AC$56),0) -> 0 | Z26: =IFERROR(INDIRECT("'" & $E26 & "'!" &verwijzing!AE$56),0) -> 0 | AB26: =IFERROR(INDIRECT("'" & $E26 & "'!" &verwijzing!AG$56),0) -> 0 | AD26: =IFERROR(INDIRECT("'" & $E26 & "'!" &verwijzing!AI$56),0) -> 0 | AE26: =IFERROR(AD26/AD$9,"") -> 
C27: ='MJB kalenderjaar'!C42 -> 0 | D27: =IF(LEN(INDIRECT("C27"))> 1, "Zichtbaar", "Onzichtbaar") -> Onzichtbaar | E27: =INDIRECT("'Programma''s'!J16") -> 0 | F27: =IFERROR(INDIRECT("'" & $E27 & "'!" &verwijzing!J$56),0) -> 0 | H27: =IFERROR(INDIRECT("'" & $E27 & "'!" &verwijzing!L$56),0) -> 0 | I27: 0 | J27: =IFERROR(INDIRECT("'" & $E27 & "'!" &verwijzing!N$56),0) -> 0 | K27: 0 | L27: =IFERROR(INDIRECT("'" & $E27 & "'!" &verwijzing!Q$56),0) -> 0 | M27: 0 | N27: =IFERROR(INDIRECT("'" & $E27 & "'!" &verwijzing!S$56),0) -> 0 | P27: =IFERROR(INDIRECT("'" & $E27 & "'!" &verwijzing!U$56),0) -> 0 | R27: =IFERROR(INDIRECT("'" & $E27 & "'!" &verwijzing!W$56),0) -> 0 | T27: =IFERROR(INDIRECT("'" & $E27 & "'!" &verwijzing!Y$56),0) -> 0 | V27: =IFERROR(INDIRECT("'" & $E27 & "'!" &verwijzing!AA$56),0) -> 0 | X27: =IFERROR(INDIRECT("'" & $E27 & "'!" &verwijzing!AC$56),0) -> 0 | Z27: =IFERROR(INDIRECT("'" & $E27 & "'!" &verwijzing!AE$56),0) -> 0 | AB27: =IFERROR(INDIRECT("'" & $E27 & "'!" &verwijzing!AG$56),0) -> 0 | AD27: =IFERROR(INDIRECT("'" & $E27 & "'!" &verwijzing!AI$56),0) -> 0 | AE27: =IFERROR(AD27/AD$9,"") -> 
C28: ='MJB kalenderjaar'!C43 -> 0 | D28: =IF(LEN(INDIRECT("C28"))> 1, "Zichtbaar", "Onzichtbaar") -> Onzichtbaar | E28: =INDIRECT("'Programma''s'!J17") -> 0 | F28: =IFERROR(INDIRECT("'" & $E28 & "'!" &verwijzing!J$56),0) -> 0 | H28: =IFERROR(INDIRECT("'" & $E28 & "'!" &verwijzing!L$56),0) -> 0 | I28: 0 | J28: =IFERROR(INDIRECT("'" & $E28 & "'!" &verwijzing!N$56),0) -> 0 | K28: 0 | L28: =IFERROR(INDIRECT("'" & $E28 & "'!" &verwijzing!Q$56),0) -> 0 | M28: 0 | N28: =IFERROR(INDIRECT("'" & $E28 & "'!" &verwijzing!S$56),0) -> 0 | P28: =IFERROR(INDIRECT("'" & $E28 & "'!" &verwijzing!U$56),0) -> 0 | R28: =IFERROR(INDIRECT("'" & $E28 & "'!" &verwijzing!W$56),0) -> 0 | T28: =IFERROR(INDIRECT("'" & $E28 & "'!" &verwijzing!Y$56),0) -> 0 | V28: =IFERROR(INDIRECT("'" & $E28 & "'!" &verwijzing!AA$56),0) -> 0 | X28: =IFERROR(INDIRECT("'" & $E28 & "'!" &verwijzing!AC$56),0) -> 0 | Z28: =IFERROR(INDIRECT("'" & $E28 & "'!" &verwijzing!AE$56),0) -> 0 | AB28: =IFERROR(INDIRECT("'" & $E28 & "'!" &verwijzing!AG$56),0) -> 0 | AD28: =IFERROR(INDIRECT("'" & $E28 & "'!" &verwijzing!AI$56),0) -> 0 | AE28: =IFERROR(AD28/AD$9,"") -> 
C29: ='MJB kalenderjaar'!C44 -> 0 | D29: =IF(LEN(INDIRECT("C29"))> 1, "Zichtbaar", "Onzichtbaar") -> Onzichtbaar | E29: =INDIRECT("'Programma''s'!J18") -> 0 | F29: =IFERROR(INDIRECT("'" & $E29 & "'!" &verwijzing!J$56),0) -> 0 | H29: =IFERROR(INDIRECT("'" & $E29 & "'!" &verwijzing!L$56),0) -> 0 | I29: 0 | J29: =IFERROR(INDIRECT("'" & $E29 & "'!" &verwijzing!N$56),0) -> 0 | K29: 0 | L29: =IFERROR(INDIRECT("'" & $E29 & "'!" &verwijzing!Q$56),0) -> 0 | M29: 0 | N29: =IFERROR(INDIRECT("'" & $E29 & "'!" &verwijzing!S$56),0) -> 0 | P29: =IFERROR(INDIRECT("'" & $E29 & "'!" &verwijzing!U$56),0) -> 0 | R29: =IFERROR(INDIRECT("'" & $E29 & "'!" &verwijzing!W$56),0) -> 0 | T29: =IFERROR(INDIRECT("'" & $E29 & "'!" &verwijzing!Y$56),0) -> 0 | V29: =IFERROR(INDIRECT("'" & $E29 & "'!" &verwijzing!AA$56),0) -> 0 | X29: =IFERROR(INDIRECT("'" & $E29 & "'!" &verwijzing!AC$56),0) -> 0 | Z29: =IFERROR(INDIRECT("'" & $E29 & "'!" &verwijzing!AE$56),0) -> 0 | AB29: =IFERROR(INDIRECT("'" & $E29 & "'!" &verwijzing!AG$56),0) -> 0 | AD29: =IFERROR(INDIRECT("'" & $E29 & "'!" &verwijzing!AI$56),0) -> 0 | AE29: =IFERROR(AD29/AD$9,"") -> 
C30: ='MJB kalenderjaar'!C45 -> 0 | D30: =IF(LEN(INDIRECT("C30"))> 1, "Zichtbaar", "Onzichtbaar") -> Onzichtbaar | E30: =INDIRECT("'Programma''s'!J19") -> 0 | F30: =IFERROR(INDIRECT("'" & $E30 & "'!" &verwijzing!J$56),0) -> 0 | H30: =IFERROR(INDIRECT("'" & $E30 & "'!" &verwijzing!L$56),0) -> 0 | I30: 0 | J30: =IFERROR(INDIRECT("'" & $E30 & "'!" &verwijzing!N$56),0) -> 0 | K30: 0 | L30: =IFERROR(INDIRECT("'" & $E30 & "'!" &verwijzing!Q$56),0) -> 0 | M30: 0 | N30: =IFERROR(INDIRECT("'" & $E30 & "'!" &verwijzing!S$56),0) -> 0 | P30: =IFERROR(INDIRECT("'" & $E30 & "'!" &verwijzing!U$56),0) -> 0 | R30: =IFERROR(INDIRECT("'" & $E30 & "'!" &verwijzing!W$56),0) -> 0 | T30: =IFERROR(INDIRECT("'" & $E30 & "'!" &verwijzing!Y$56),0) -> 0 | V30: =IFERROR(INDIRECT("'" & $E30 & "'!" &verwijzing!AA$56),0) -> 0 | X30: =IFERROR(INDIRECT("'" & $E30 & "'!" &verwijzing!AC$56),0) -> 0 | Z30: =IFERROR(INDIRECT("'" & $E30 & "'!" &verwijzing!AE$56),0) -> 0 | AB30: =IFERROR(INDIRECT("'" & $E30 & "'!" &verwijzing!AG$56),0) -> 0 | AD30: =IFERROR(INDIRECT("'" & $E30 & "'!" &verwijzing!AI$56),0) -> 0 | AE30: =IFERROR(AD30/AD$9,"") -> 
C31: ='MJB kalenderjaar'!C46 -> 0 | D31: =IF(LEN(INDIRECT("C31"))> 1, "Zichtbaar", "Onzichtbaar") -> Onzichtbaar | E31: =INDIRECT("'Programma''s'!J20") -> 0 | F31: =IFERROR(INDIRECT("'" & $E31 & "'!" &verwijzing!J$56),0) -> 0 | H31: =IFERROR(INDIRECT("'" & $E31 & "'!" &verwijzing!L$56),0) -> 0 | I31: 0 | J31: =IFERROR(INDIRECT("'" & $E31 & "'!" &verwijzing!N$56),0) -> 0 | K31: 0 | L31: =IFERROR(INDIRECT("'" & $E31 & "'!" &verwijzing!Q$56),0) -> 0 | M31: 0 | N31: =IFERROR(INDIRECT("'" & $E31 & "'!" &verwijzing!S$56),0) -> 0 | P31: =IFERROR(INDIRECT("'" & $E31 & "'!" &verwijzing!U$56),0) -> 0 | R31: =IFERROR(INDIRECT("'" & $E31 & "'!" &verwijzing!W$56),0) -> 0 | T31: =IFERROR(INDIRECT("'" & $E31 & "'!" &verwijzing!Y$56),0) -> 0 | V31: =IFERROR(INDIRECT("'" & $E31 & "'!" &verwijzing!AA$56),0) -> 0 | X31: =IFERROR(INDIRECT("'" & $E31 & "'!" &verwijzing!AC$56),0) -> 0 | Z31: =IFERROR(INDIRECT("'" & $E31 & "'!" &verwijzing!AE$56),0) -> 0 | AB31: =IFERROR(INDIRECT("'" & $E31 & "'!" &verwijzing!AG$56),0) -> 0 | AD31: =IFERROR(INDIRECT("'" & $E31 & "'!" &verwijzing!AI$56),0) -> 0 | AE31: =IFERROR(AD31/AD$9,"") -> 
C32: ='MJB kalenderjaar'!C47 -> 0 | D32: =IF(LEN(INDIRECT("C32"))> 1, "Zichtbaar", "Onzichtbaar") -> Onzichtbaar | E32: =INDIRECT("'Programma''s'!J21") -> 0 | F32: =IFERROR(INDIRECT("'" & $E32 & "'!" &verwijzing!J$56),0) -> 0 | H32: =IFERROR(INDIRECT("'" & $E32 & "'!" &verwijzing!L$56),0) -> 0 | I32: 0 | J32: =IFERROR(INDIRECT("'" & $E32 & "'!" &verwijzing!N$56),0) -> 0 | K32: 0 | L32: =IFERROR(INDIRECT("'" & $E32 & "'!" &verwijzing!Q$56),0) -> 0 | M32: 0 | N32: =IFERROR(INDIRECT("'" & $E32 & "'!" &verwijzing!S$56),0) -> 0 | P32: =IFERROR(INDIRECT("'" & $E32 & "'!" &verwijzing!U$56),0) -> 0 | R32: =IFERROR(INDIRECT("'" & $E32 & "'!" &verwijzing!W$56),0) -> 0 | T32: =IFERROR(INDIRECT("'" & $E32 & "'!" &verwijzing!Y$56),0) -> 0 | V32: =IFERROR(INDIRECT("'" & $E32 & "'!" &verwijzing!AA$56),0) -> 0 | X32: =IFERROR(INDIRECT("'" & $E32 & "'!" &verwijzing!AC$56),0) -> 0 | Z32: =IFERROR(INDIRECT("'" & $E32 & "'!" &verwijzing!AE$56),0) -> 0 | AB32: =IFERROR(INDIRECT("'" & $E32 & "'!" &verwijzing!AG$56),0) -> 0 | AD32: =IFERROR(INDIRECT("'" & $E32 & "'!" &verwijzing!AI$56),0) -> 0 | AE32: =IFERROR(AD32/AD$9,"") -> 
C33: ='MJB kalenderjaar'!C48 -> 0 | D33: =IF(LEN(INDIRECT("C33"))> 1, "Zichtbaar", "Onzichtbaar") -> Onzichtbaar | E33: =INDIRECT("'Programma''s'!J22") -> 0 | F33: =IFERROR(INDIRECT("'" & $E33 & "'!" &verwijzing!J$56),0) -> 0 | H33: =IFERROR(INDIRECT("'" & $E33 & "'!" &verwijzing!L$56),0) -> 0 | I33: 0 | J33: =IFERROR(INDIRECT("'" & $E33 & "'!" &verwijzing!N$56),0) -> 0 | K33: 0 | L33: =IFERROR(INDIRECT("'" & $E33 & "'!" &verwijzing!Q$56),0) -> 0 | M33: 0 | N33: =IFERROR(INDIRECT("'" & $E33 & "'!" &verwijzing!S$56),0) -> 0 | P33: =IFERROR(INDIRECT("'" & $E33 & "'!" &verwijzing!U$56),0) -> 0 | R33: =IFERROR(INDIRECT("'" & $E33 & "'!" &verwijzing!W$56),0) -> 0 | T33: =IFERROR(INDIRECT("'" & $E33 & "'!" &verwijzing!Y$56),0) -> 0 | V33: =IFERROR(INDIRECT("'" & $E33 & "'!" &verwijzing!AA$56),0) -> 0 | X33: =IFERROR(INDIRECT("'" & $E33 & "'!" &verwijzing!AC$56),0) -> 0 | Z33: =IFERROR(INDIRECT("'" & $E33 & "'!" &verwijzing!AE$56),0) -> 0 | AB33: =IFERROR(INDIRECT("'" & $E33 & "'!" &verwijzing!AG$56),0) -> 0 | AD33: =IFERROR(INDIRECT("'" & $E33 & "'!" &verwijzing!AI$56),0) -> 0 | AE33: =IFERROR(AD33/AD$9,"") -> 
C35: Totaal benodigd voor het ondersteuningsplan | F35: =SUM(F13:F33) -> 0 | H35: =SUM(H13:H33) -> 0 | J35: =SUM(J13:J33) -> 0 | L35: =SUM(L13:L33) -> 0 | N35: =SUM(N13:N33) -> 0 | P35: =SUM(P13:P33) -> 0 | R35: =SUM(R13:R33) -> 0 | T35: =SUM(T13:T33) -> 0 | V35: =SUM(V13:V33) -> 0 | X35: =SUM(X13:X33) -> 0 | Z35: =SUM(Z13:Z33) -> 0 | AB35: =SUM(AB13:AB33) -> 0 | AD35: =SUM(AD13:AD33) -> 0
C38: Benodigde middelen worden gedekt uit:
C39: geoormerkte baten programma's | F39: ='MJB kalenderjaar'!F15 -> 0 | H39: ='MJB kalenderjaar'!H15 -> 0 | J39: ='MJB kalenderjaar'!J15 -> 0 | L39: ='MJB kalenderjaar'!N15 -> 0 | N39: ='MJB kalenderjaar'!P15 -> 0 | P39: ='MJB kalenderjaar'!R15 -> 0 | R39: ='MJB kalenderjaar'!T15 -> 0 | T39: ='MJB kalenderjaar'!V15 -> 0 | V39: ='MJB kalenderjaar'!X15 -> 0 | X39: ='MJB kalenderjaar'!Z15 -> 0 | Z39: ='MJB kalenderjaar'!AB15 -> 0 | AB39: ='MJB kalenderjaar'!AD15 -> 0 | AD39: ='MJB kalenderjaar'!AF15 -> 0
C40: algemene middelen swv | F40: =F35-F39 -> 0 | H40: =H35-H39 -> 0 | J40: =J35-J39 -> 0 | L40: =L35-L39 -> 0 | N40: =N35-N39 -> 0 | P40: =P35-P39 -> 0 | R40: =R35-R39 -> 0 | T40: =T35-T39 -> 0 | V40: =V35-V39 -> 0 | X40: =X35-X39 -> 0 | Z40: =Z35-Z39 -> 0 | AB40: =AB35-AB39 -> 0 | AD40: =AD35-AD39 -> 0
C43: Resultaat | F43: =F9-F40 -> 0 | H43: =H9-H40 -> 7352669.318 | J43: =J9-J40 -> 8880606.752 | L43: =L9-L40 -> 4306640.135 | N43: =N9-N40 -> 0 | P43: =P9-P40 -> 0 | R43: =R9-R40 -> 0 | T43: =T9-T40 -> 0 | V43: =V9-V40 -> 0 | X43: =X9-X40 -> 0 | Z43: =Z9-Z40 -> 0 | AB43: =AB9-AB40 -> 0 | AD43: =AD9-AD40 -> 0

Sheet Baten
AU1: 1 | AV1: =INDEX(gekozenjaar,AU1) -> 2020 | AW1: =INDEX(gekozenjaar,AX1) -> 2030 | AX1: 11 | AZ1: 5
C3: BATEN | H3: =IF(Begrotingsmodel!$M$10="kalenderjaar","x",IF(AND(H5>=$AV$1,H5<=$AW$1),"","x")) -> x | I3: =IF(Begrotingsmodel!$M$10="schooljaar","x",IF(AND(I5>=$AV$1,I5<=$AW$1),"","x")) -> x | J3: =IF(Begrotingsmodel!$M$10="kalenderjaar","x",IF(AND(J5>=$AV$1,J5<=$AW$1),"","x")) -> x | K3: =IF(Begrotingsmodel!$M$10="schooljaar","x",IF(AND(K5>=$AV$1,K5<=$AW$1),"","x")) -> x | L3: =IF(Begrotingsmodel!$M$10="kalenderjaar","x",IF(AND(L5>=$AV$1,L5<=$AW$1),"","x")) -> x | M3: =IF(Begrotingsmodel!$M$10="schooljaar","x",IF(AND(M5>=$AV$1,M5<=$AW$1),"","x")) ->  | N3: =IF(Begrotingsmodel!$M$10="kalenderjaar","x",IF(AND(N5>=$AV$1,N5<=$AW$1),"","x")) -> x | O3: =IF(Begrotingsmodel!$M$10="schooljaar","x",IF(AND(O5>=$AV$1,O5<=$AW$1),"","x")) ->  | P3: =IF(Begrotingsmodel!$M$10="kalenderjaar","x",IF(AND(P5>=$AV$1,P5<=$AW$1),"","x")) -> x | Q3: =IF(Begrotingsmodel!$M$10="schooljaar","x",IF(AND(Q5>=$AV$1,Q5<=$AW$1),"","x")) ->  | R3: =IF(Begrotingsmodel!$M$10="kalenderjaar","x",IF(AND(R5>=$AV$1,R5<=$AW$1),"","x")) -> x | S3: =IF(Begrotingsmodel!$M$10="schooljaar","x",IF(AND(S5>=$AV$1,S5<=$AW$1),"","x")) ->  | T3: =IF(Begrotingsmodel!$M$10="kalenderjaar","x",IF(AND(T5>=$AV$1,T5<=$AW$1),"","x")) -> x | U3: =IF(Begrotingsmodel!$M$10="schooljaar","x",IF(AND(U5>=$AV$1,U5<=$AW$1),"","x")) ->  | V3: =IF(Begrotingsmodel!$M$10="kalenderjaar","x",IF(AND(V5>=$AV$1,V5<=$AW$1),"","x")) -> x | W3: =IF(Begrotingsmodel!$M$10="schooljaar","x",IF(AND(W5>=$AV$1,W5<=$AW$1),"","x")) ->  | X3: =IF(Begrotingsmodel!$M$10="kalenderjaar","x",IF(AND(X5>=$AV$1,X5<=$AW$1),"","x")) -> x | Y3: =IF(Begrotingsmodel!$M$10="schooljaar","x",IF(AND(Y5>=$AV$1,Y5<=$AW$1),"","x")) ->  | Z3: =IF(Begrotingsmodel!$M$10="kalenderjaar","x",IF(AND(Z5>=$AV$1,Z5<=$AW$1),"","x")) -> x | AA3: =IF(Begrotingsmodel!$M$10="schooljaar","x",IF(AND(AA5>=$AV$1,AA5<=$AW$1),"","x")) ->  | AB3: =IF(Begrotingsmodel!$M$10="kalenderjaar","x",IF(AND(AB5>=$AV$1,AB5<=$AW$1),"","x")) -> x | AC3: =IF(Begrotingsmodel!$M$10="schooljaar","x",IF(AND(AC5>=$AV$1,AC5<=$AW$1),"","x")) ->  | AD3: =IF(Begrotingsmodel!$M$10="kalenderjaar","x",IF(AND(AD5>=$AV$1,AD5<=$AW$1),"","x")) -> x | AE3: =IF(Begrotingsmodel!$M$10="schooljaar","x",IF(AND(AE5>=$AV$1,AE5<=$AW$1),"","x")) ->  | AF3: =IF(Begrotingsmodel!$M$10="kalenderjaar","x",IF(AND(AF5>=$AV$1,AF5<=$AW$1),"","x")) -> x | AG3: =IF(Begrotingsmodel!$M$10="schooljaar","x",IF(AND(AG5>=$AV$1,AG5<=$AW$1),"","x")) -> 
C4: =Start!$A$33 -> Versie 8.0 | G4: 0 | H4: 1 | I4: 1 | J4: 2 | K4: 2 | L4: 3 | M4: 3 | N4: 4 | O4: 4 | P4: 5 | Q4: 5 | R4: 6 | S4: 6 | T4: 7 | U4: 7 | V4: 8 | Z4: 6 | AA4: 6 | AB4: 7 | AC4: 7 | AD4: 8
G5: ='MJB kalenderjaar'!#REF! ->  | H5: ='MJB schooljaar'!F5 -> 2017/18 | I5: ='MJB kalenderjaar'!F5 -> 2018 | J5: ='MJB schooljaar'!H5 -> 2018/19 | K5: ='MJB kalenderjaar'!H5 -> 2019 | L5: ='MJB schooljaar'!J5 -> 2019/20 | M5: ='MJB kalenderjaar'!J5 -> 2020 | N5: ='MJB schooljaar'!N5 -> 2020/21 | O5: ='MJB kalenderjaar'!N5 -> 2021 | P5: ='MJB schooljaar'!P5 -> 2021/22 | Q5: ='MJB kalenderjaar'!P5 -> 2022 | R5: ='MJB schooljaar'!R5 -> 2022/23 | S5: ='MJB kalenderjaar'!R5 -> 2023 | T5: ='MJB schooljaar'!T5 -> 2023/24 | U5: ='MJB kalenderjaar'!T5 -> 2024 | V5: ='MJB schooljaar'!V5 -> 2024/25 | W5: ='MJB kalenderjaar'!V5 -> 2025 | X5: ='MJB schooljaar'!X5 -> 2025/26 | Y5: ='MJB kalenderjaar'!X5 -> 2026 | Z5: ='MJB schooljaar'!Z5 -> 2026/27 | AA5: ='MJB kalenderjaar'!Z5 -> 2027 | AB5: ='MJB schooljaar'!AB5 -> 2027/28 | AC5: ='MJB kalenderjaar'!AB5 -> 2028 | AD5: ='MJB schooljaar'!AD5 -> 2028/29 | AE5: ='MJB kalenderjaar'!AD5 -> 2029 | AF5: ='MJB schooljaar'!AF5 -> 2029/30 | AG5: ='MJB kalenderjaar'!AF5 -> 2030
C6: Budget lichte ondersteuning | G6: =SUM(G8+G14+G18) -> 10457663.9 | I6: =SUM(I8+I14+I18) -> 10641979.67 | J6: 10740569.86 | K6: 10810991.43 | L6: 11076715.35 | M6: 11266518.15 | N6: 4694382.561 | O6: 0 | P6: 0 | Q6: 0 | R6: 0 | S6: 0 | T6: 0 | U6: 0 | V6: 0 | W6: 0 | X6: 0 | Y6: 0 | Z6: =SUM(Z8+Z14+Z18) -> 0 | AA6: 0 | AB6: 0 | AC6: 0 | AD6: 0 | AE6: 0 | AF6: 0 | AG6: 0
C8: Normbudget lichte ondersteuning | G8: =G10*G11 -> 2064181.5 | H8: =(5/12*G8)+(7/12*I8) -> 2086550.292 | I8: =I10*I11 -> 2102528 | J8: =(5/12*I8)+(7/12*K8) -> 2118256.417 | K8: =K10*K11 -> 2129491 | L8: =(5/12*K8)+(7/12*M8) -> 2179148.723 | M8: =M10*M11 -> 2214618.525 | N8: =(5/12*M8)+(7/12*O8) -> 922757.7188 | O8: =O10*O11 -> 0 | P8: =(5/12*O8)+(7/12*Q8) -> 0 | Q8: =Q10*Q11 -> 0 | R8: =(5/12*Q8)+(7/12*S8) -> 0 | S8: =S10*S11 -> 0 | T8: =(5/12*S8)+(7/12*U8) -> 0 | U8: =U10*U11 -> 0 | V8: =(5/12*U8)+(7/12*W8) -> 0 | W8: =W10*W11 -> 0 | X8: =(5/12*W8)+(7/12*Y8) -> 0 | Y8: =Y10*Y11 -> 0 | Z8: =(5/12*Y8)+(7/12*AA8) -> 0 | AA8: =AA10*AA11 -> 0 | AB8: =(5/12*AA8)+(7/12*AC8) -> 0 | AC8: =AC10*AC11 -> 0 | AD8: =(5/12*AC8)+(7/12*AE8) -> 0 | AE8: =AE10*AE11 -> 0 | AF8: =(5/12*AE8)+(7/12*AG8) -> 0 | AG8: =AG10*AG11 -> 0
E10: aantal ll. | G10: =LLaantal!O11 -> 22195.5 | I10: =LLaantal!Q11 -> 22016 | K10: =LLaantal!S11 -> 21729.5 | M10: =LLaantal!U11 -> 21595.5 | O10: =LLaantal!W11 -> 0 | Q10: =LLaantal!Y11 -> 0 | S10: =LLaantal!AA11 -> 0 | U10: =LLaantal!AC11 -> 0 | W10: =LLaantal!AE11 -> 0 | Y10: =LLaantal!AG11 -> 0 | AA10: =LLaantal!AI11 -> 0 | AC10: =LLaantal!AK11 -> 0 | AE10: =LLaantal!AM11 -> 0 | AG10: =LLaantal!AO11 -> 0
E11: bedrag | G11: =Bekostigingsgegevens!K7 -> 93 | I11: =Bekostigingsgegevens!M7 -> 95.5 | K11: =Bekostigingsgegevens!O7 -> 98 | M11: =Bekostigingsgegevens!Q7 -> 102.55 | O11: =Bekostigingsgegevens!S7 -> 102.55 | Q11: =Bekostigingsgegevens!U7 -> 102.55 | S11: =Bekostigingsgegevens!W7 -> 102.55 | U11: =Bekostigingsgegevens!Y7 -> 102.55 | W11: =Bekostigingsgegevens!AA7 -> 102.55 | Y11: =Bekostigingsgegevens!AC7 -> 102.55 | AA11: =Bekostigingsgegevens!AE7 -> 0 | AC11: =Bekostigingsgegevens!AG7 -> 0 | AE11: =Bekostigingsgegevens!AI7 -> 0 | AG11: =Bekostigingsgegevens!AK7 -> 0
C14: lwoo | G14: =G15*G16 -> 6686851.297 | H14: =G14*5/12+I14*7/12 -> 6754686.901 | I14: =I15*I16 -> 6803140.905 | J14: =I14*5/12+K14*7/12 -> 6869154.549 | K14: =K15*K16 -> 6916307.152 | L14: =K14*5/12+M14*7/12 -> 7088441.012 | M14: =M15*M16 -> 7211393.77 | N14: =M14*5/12+O14*7/12 -> 3004747.404 | O14: =O15*O16 -> 0 | P14: =O14*5/12+Q14*7/12 -> 0 | Q14: =Q15*Q16 -> 0 | R14: =Q14*5/12+S14*7/12 -> 0 | S14: =S15*S16 -> 0 | T14: =S14*5/12+U14*7/12 -> 0 | U14: =U15*U16 -> 0 | V14: =U14*5/12+W14*7/12 -> 0 | W14: =W15*W16 -> 0 | X14: =W14*5/12+Y14*7/12 -> 0 | Y14: =Y15*Y16 -> 0 | Z14: =Y14*5/12+AA14*7/12 -> 0 | AA14: =AA15*AA16 -> 0 | AB14: =AA14*5/12+AC14*7/12 -> 0 | AC14: =AC15*AC16 -> 0 | AD14: =AC14*5/12+AE14*7/12 -> 0 | AE14: =AE15*AE16 -> 0 | AF14: =AE14*5/12+AG14*7/12 -> 0 | AG14: =AG15*AG16 -> 0
C15: =CONCATENATE("deelname % 1-10-2012 = ",TEXT(D15,"0,00%")) -> deelname % 1-10-2012 = 6,86% | D15: =LLaantal!G6/LLaantal!G11 -> 0.06858421936 | E15: aantal ll. LWOO (t-1) | G15: =G10*$D15 -> 1522.261041 | I15: =I10*$D15 -> 1509.950173 | K15: =K10*$D15 -> 1490.300795 | M15: =M10*$D15 -> 1481.110509 | O15: =O10*$D15 -> 0 | Q15: =Q10*$D15 -> 0 | S15: =S10*$D15 -> 0 | U15: =U10*$D15 -> 0 | W15: =W10*$D15 -> 0 | Y15: =Y10*$D15 -> 0 | AA15: =AA10*$D15 -> 0 | AC15: =AC10*$D15 -> 0 | AE15: =AE10*$D15 -> 0 | AG15: =AG10*$D15 -> 0
E16: bedrag | G16: =Bekostigingsgegevens!K12 -> 4392.71 | I16: =Bekostigingsgegevens!M12 -> 4505.54 | K16: =Bekostigingsgegevens!O12 -> 4640.88 | M16: =Bekostigingsgegevens!Q12 -> 4868.91 | O16: =Bekostigingsgegevens!S12 -> 4868.91 | Q16: =Bekostigingsgegevens!U12 -> 4868.91 | S16: =Bekostigingsgegevens!W12 -> 4868.91 | U16: =Bekostigingsgegevens!Y12 -> 4868.91 | W16: =Bekostigingsgegevens!AA12 -> 4868.91 | Y16: =Bekostigingsgegevens!AC12 -> 4868.91 | AA16: =Bekostigingsgegevens!AE12 -> 0 | AC16: =Bekostigingsgegevens!AG12 -> 0 | AE16: =Bekostigingsgegevens!AI12 -> 0 | AG16: =Bekostigingsgegevens!AK12 -> 0
C18: pro | G18: =G19*G20 -> 1706631.108 | H18: =G18*5/12+I18*7/12 -> 1723944.242 | I18: =I19*I20 -> 1736310.766 | J18: =I18*5/12+K18*7/12 -> 1753158.896 | K18: =K19*K20 -> 1765193.274 | L18: =K18*5/12+M18*7/12 -> 1809125.611 | M18: =M19*M20 -> 1840505.851 | N18: =M18*5/12+O18*7/12 -> 766877.438 | O18: =O19*O20 -> 0 | P18: =O18*5/12+Q18*7/12 -> 0 | Q18: =Q19*Q20 -> 0 | R18: =Q18*5/12+S18*7/12 -> 0 | S18: =S19*S20 -> 0 | T18: =S18*5/12+U18*7/12 -> 0 | U18: =U19*U20 -> 0 | V18: =U18*5/12+W18*7/12 -> 0 | W18: =W19*W20 -> 0 | X18: =W18*5/12+Y18*7/12 -> 0 | Y18: =Y19*Y20 -> 0 | Z18: =Y18*5/12+AA18*7/12 -> 0 | AA18: =AA19*AA20 -> 0 | AB18: =AA18*5/12+AC18*7/12 -> 0 | AC18: =AC19*AC20 -> 0 | AD18: =AC18*5/12+AE18*7/12 -> 0 | AE18: =AE19*AE20 -> 0 | AF18: =AE18*5/12+AG18*7/12 -> 0 | AG18: =AG19*AG20 -> 0
C19: =CONCATENATE("deelname % 1-10-2012 = ",TEXT(D19,"0,00%")) -> deelname % 1-10-2012 = 1,75% | D19: =LLaantal!G7/LLaantal!G11 -> 0.01750419698 | E19: aantal ll. PRO (t-1) | G19: =G10*$D19 -> 388.514404 | I19: =I10*$D19 -> 385.3724007 | K19: =K10*$D19 -> 380.3574482 | M19: =M10*$D19 -> 378.0118858 | O19: =O10*$D19 -> 0 | Q19: =Q10*$D19 -> 0 | S19: =S10*$D19 -> 0 | U19: =U10*$D19 -> 0 | W19: =W10*$D19 -> 0 | Y19: =Y10*$D19 -> 0 | AA19: =AA10*$D19 -> 0 | AC19: =AC10*$D19 -> 0 | AE19: =AE10*$D19 -> 0 | AG19: =AG10*$D19 -> 0
E20: bedrag | G20: =Bekostigingsgegevens!K11 -> 4392.71 | I20: =Bekostigingsgegevens!M11 -> 4505.54 | K20: =Bekostigingsgegevens!O11 -> 4640.88 | M20: =Bekostigingsgegevens!Q11 -> 4868.91 | O20: =Bekostigingsgegevens!S11 -> 4868.91 | Q20: =Bekostigingsgegevens!U11 -> 4868.91 | S20: =Bekostigingsgegevens!W11 -> 4868.91 | U20: =Bekostigingsgegevens!Y11 -> 4868.91 | W20: =Bekostigingsgegevens!AA11 -> 4868.91 | Y20: =Bekostigingsgegevens!AC11 -> 4868.91 | AA20: =Bekostigingsgegevens!AE11 -> 0 | AC20: =Bekostigingsgegevens!AG11 -> 0 | AE20: =Bekostigingsgegevens!AI11 -> 0 | AG20: =Bekostigingsgegevens!AK11 -> 0
C22: Budget zware ondersteuning | G22: =G23+G28 -> 5807526.56 | H22: =H23+H28 -> 13061091.67 | I22: 13268816.98 | J22: 13554198.81 | K22: 13674011.18 | L22: 13844648.99 | M22: 13902755.32 | N22: 13602069.65 | O22: 7776863.483 | P22: 0 | Q22: 0 | R22: 0 | S22: 0 | T22: 0 | U22: =U23+U28 -> 0 | V22: =V23+V28 -> 0 | W22: =W23+W28 -> 0 | X22: 0 | Y22: 0 | Z22: =Z23+Z28 -> 0 | AA22: 0 | AB22: 0 | AC22: =AC23+AC28 -> 0 | AD22: =AD23+AD28 -> 0 | AE22: =AE23+AE28 -> 0 | AF22: 0 | AG22: 0
C23: Normbudget zware ondersteuning personeel | G23: =(F23*(7/12))+(H23*(5/12)) -> 5176730.45 | H23: =H25*H26 -> 12424153.08 | I23: =(H23*(7/12))+(J23*(5/12)) -> 12627490.9 | J23: =J25*J26 -> 12912163.84 | K23: =(J23*(7/12))+(L23*(5/12)) -> 13031469.87 | L23: =L25*L26 -> 13198498.3 | M23: =(L23*(7/12))+(N23*(5/12)) -> 13254026.5 | N23: =N25*N26 -> 13331765.97 | O23: =(N23*(7/12))+(P23*(5/12)) -> 7776863.483 | P23: =P25*P26 -> 0 | Q23: =(P23*(7/12))+(R23*(5/12)) -> 0 | R23: =R25*R26 -> 0 | S23: =(R23*(7/12))+(T23*(5/12)) -> 0 | T23: =T25*T26 -> 0 | U23: =(T23*(7/12))+(V23*(5/12)) -> 0 | V23: =V25*V26 -> 0 | W23: =(V23*(7/12))+(X23*(5/12)) -> 0 | X23: =X25*X26 -> 0 | Y23: =(X23*(7/12))+(Z23*(5/12)) -> 0 | Z23: =Z25*Z26 -> 0 | AA23: =(Z23*(7/12))+(AB23*(5/12)) -> 0 | AB23: =AB25*AB26 -> 0 | AC23: =(AB23*(7/12))+(AD23*(5/12)) -> 0 | AD23: =AD25*AD26 -> 0 | AE23: =(AD23*(7/12))+(AF23*(5/12)) -> 0 | AF23: =AF25*AF26 -> 0 | AG23: =(AF23*(7/12))+(AH23*(5/12)) -> 0
E25: aantal lln. vo (t-1) | H25: =LLaantal!O11 -> 22195.5 | J25: =LLaantal!Q11 -> 22016 | L25: =LLaantal!S11 -> 21729.5 | N25: =LLaantal!U11 -> 21595.5 | P25: =LLaantal!W11 -> 0 | R25: =LLaantal!Y11 -> 0 | T25: =LLaantal!AA11 -> 0 | V25: =LLaantal!AC11 -> 0 | X25: =LLaantal!AE11 -> 0 | Z25: =LLaantal!AG11 -> 0 | AB25: =LLaantal!AI11 -> 0 | AD25: =LLaantal!AK11 -> 0 | AF25: =LLaantal!AM11 -> 0
E26: bedrag | H26: =Bekostigingsgegevens!L27 -> 559.76 | J26: =Bekostigingsgegevens!N27 -> 586.49 | L26: =Bekostigingsgegevens!P27 -> 607.4 | N26: =Bekostigingsgegevens!R27 -> 617.34 | P26: =Bekostigingsgegevens!T27 -> 617.34 | R26: =Bekostigingsgegevens!V27 -> 617.34 | T26: =Bekostigingsgegevens!X27 -> 617.34 | V26: =Bekostigingsgegevens!Z27 -> 617.34 | X26: =Bekostigingsgegevens!AB27 -> 617.34 | Z26: =Bekostigingsgegevens!AD27 -> 0 | AB26: =Bekostigingsgegevens!AF27 -> 0 | AD26: =Bekostigingsgegevens!AH27 -> 0 | AF26: =Bekostigingsgegevens!AJ27 -> 0
C28: Normbudget zware ondersteuning materieel | G28: =G30*G31 -> 630796.11 | H28: =(5/12*G28)+(7/12*I28) -> 636938.5925 | I28: =I30*I31 -> 641326.08 | J28: =(5/12*I28)+(7/12*K28) -> 642034.9671 | K28: =K30*K31 -> 642541.315 | L28: =(5/12*K28)+(7/12*M28) -> 646150.6929 | M28: =M30*M31 -> 648728.82 | N28: =(5/12*M28)+(7/12*O28) -> 270303.675 | O28: =O30*O31 -> 0 | P28: =(5/12*O28)+(7/12*Q28) -> 0 | Q28: =Q30*Q31 -> 0 | R28: =(5/12*Q28)+(7/12*S28) -> 0 | S28: =S30*S31 -> 0 | T28: =(5/12*S28)+(7/12*U28) -> 0 | U28: =U30*U31 -> 0 | V28: =(5/12*U28)+(7/12*W28) -> 0 | W28: =W30*W31 -> 0 | X28: =(5/12*W28)+(7/12*Y28) -> 0 | Y28: =Y30*Y31 -> 0 | Z28: =(5/12*Y28)+(7/12*AA28) -> 0 | AA28: =AA30*AA31 -> 0 | AB28: =(5/12*AA28)+(7/12*AC28) -> 0 | AC28: =AC30*AC31 -> 0 | AD28: =(5/12*AC28)+(7/12*AE28) -> 0 | AE28: =AE30*AE31 -> 0 | AF28: =(5/12*AE28)+(7/12*AG28) -> 0 | AG28: =AG30*AG31 -> 0
E30: aantal lln. vo (t-1) | G30: =LLaantal!O11 -> 22195.5 | I30: =LLaantal!Q11 -> 22016 | K30: =LLaantal!S11 -> 21729.5 | M30: =LLaantal!U11 -> 21595.5 | O30: =LLaantal!W11 -> 0 | Q30: =LLaantal!Y11 -> 0 | S30: =LLaantal!AA11 -> 0 | U30: =LLaantal!AC11 -> 0 | W30: =LLaantal!AE11 -> 0 | Y30: =LLaantal!AG11 -> 0 | AA30: =LLaantal!AI11 -> 0 | AC30: =LLaantal!AK11 -> 0 | AE30: =LLaantal!AM11 -> 0 | AG30: =LLaantal!AO11 -> 0
E31: bedrag | G31: =Bekostigingsgegevens!K28 -> 28.42 | I31: =Bekostigingsgegevens!M28 -> 29.13 | K31: =Bekostigingsgegevens!O28 -> 29.57 | M31: =Bekostigingsgegevens!Q28 -> 30.04 | O31: =Bekostigingsgegevens!S28 -> 30.04 | Q31: =Bekostigingsgegevens!U28 -> 30.04 | S31: =Bekostigingsgegevens!W28 -> 30.04 | U31: =Bekostigingsgegevens!Y28 -> 30.04 | W31: =Bekostigingsgegevens!AA28 -> 30.04 | Y31: =Bekostigingsgegevens!AC28 -> 30.04 | AA31: =Bekostigingsgegevens!AE28 -> 0 | AC31: =Bekostigingsgegevens!AG28 -> 0 | AE31: =Bekostigingsgegevens!AI28 -> 0 | AG31: =Bekostigingsgegevens!AK28 -> 0
C33: Verevening zware ondersteuning | G33: =(7/12*F34)+(5/12*H34)+G35 -> -1662459.018 | H33: =H34+(5/12*G35)+(7/12*I35) -> -3677753.346 | I33: =(7/12*H34)+(5/12*J34)+I35 -> -3425238.426 | J33: =J34+(5/12*I35)+(7/12*K35) -> -3045077.325 | K33: =(7/12*J34)+(5/12*L34)+K35 -> -2422793.421 | L33: =L34+(5/12*K35)+(7/12*M35) -> -1550113.35 | M33: =(7/12*L34)+(5/12*N34)+M35 -> -883332.1715
C34: Verevening zware ondersteuning personeel | G34: =(7/12*F34)+(5/12*H34) -> -1455237.85 | H34: =IF(Rekenblad!$D$35>0,-Rekenblad!F15*Bekostigingsgegevens!L29,-Rekenblad!F15*Bekostigingsgegevens!L31) -> -3492570.84 | I34: =(7/12*H34)+(5/12*J34) -> -3255797.821 | J34: =IF(Rekenblad!$D$35>0,-Rekenblad!G15*Bekostigingsgegevens!N29,-Rekenblad!G15*Bekostigingsgegevens!N31) -> -2924315.594 | K34: =(7/12*J34)+(5/12*L34) -> -2336802.314 | L34: =IF(Rekenblad!$D$35>0,-Rekenblad!H15*Bekostigingsgegevens!P29,-Rekenblad!H15*Bekostigingsgegevens!P31) -> -1514283.723 | M34: =(7/12*L34)+(5/12*N34) -> -883332.1715
C35: Verevening zware ondersteuning materieel | G35: =IF(Rekenblad!$D$13>0,-Rekenblad!E32*Bekostigingsgegevens!K30,-Rekenblad!E32*Bekostigingsgegevens!K32) -> -207221.1682 | H35: =(5/12*G35)+(7/12*I35) -> -185182.5062 | I35: =IF(Rekenblad!$D$13>0,-Rekenblad!F32*Bekostigingsgegevens!M30,-Rekenblad!F32*Bekostigingsgegevens!M32) -> -169440.6048 | J35: =(5/12*I35)+(7/12*K35) -> -120761.731 | K35: =IF(Rekenblad!$D$13>0,-Rekenblad!G32*Bekostigingsgegevens!O30,-Rekenblad!G32*Bekostigingsgegevens!O32) -> -85991.10694 | L35: =(5/12*K35)+(7/12*M35) -> -35829.62789 | M35: =IF(Rekenblad!$D$13>0,-Rekenblad!H32*Bekostigingsgegevens!Q30,-Rekenblad!H32*Bekostigingsgegevens!Q32) -> 0
C37: Overige overheidsbijdragen en subsidies of overig baten kalenderjaar | G37: =G5 ->  | H37: 2017/18 | I37: 2018 | J37: 2018/19 | K37: 2019 | L37: 2019/20 | M37: 2020 | N37: 2020/21 | O37: 2021 | P37: 2021/22 | Q37: 2022 | R37: 2022/23 | S37: 2023 | T37: 2023/24 | U37: 2024 | V37: 2024/25 | W37: 2025 | X37: 2025/26 | Y37: 2026 | Z37: =Z5 -> 2026/27 | AA37: 2027 | AB37: 2027/28 | AC37: 2028 | AD37: 2028/29 | AE37: 2029 | AF37: 2029/30 | AG37: 2030
C39: Overige overheidsbijdragen en subsidies, niet aan programma's toe te rekenen
G40: =IF(Begrotingsmodel!$G$10="kalenderjaar",,(F40*7/12)+(H40*5/12)) -> 0 | H40: =IF(Begrotingsmodel!$G$10="schooljaar",,(G40*5/12)+(I40*7/12)) -> 0 | I40: =IF(Begrotingsmodel!$G$10="kalenderjaar",,(H40*7/12)+(J40*5/12)) -> 0 | J40: =IF(Begrotingsmodel!$G$10="schooljaar",,(I40*5/12)+(K40*7/12)) -> 0 | K40: =IF(Begrotingsmodel!$G$10="kalenderjaar",,(J40*7/12)+(L40*5/12)) -> 0 | L40: =IF(Begrotingsmodel!$G$10="schooljaar",,(K40*5/12)+(M40*7/12)) -> 0 | M40: =IF(Begrotingsmodel!$G$10="kalenderjaar",,(L40*7/12)+(N40*5/12)) -> 0 | N40: =IF(Begrotingsmodel!$G$10="schooljaar",,(M40*5/12)+(O40*7/12)) -> 0 | O40: =IF(Begrotingsmodel!$G$10="kalenderjaar",,(N40*7/12)+(P40*5/12)) -> 0 | P40: =IF(Begrotingsmodel!$G$10="schooljaar",,(O40*5/12)+(Q40*7/12)) -> 0 | Q40: =IF(Begrotingsmodel!$G$10="kalenderjaar",,(P40*7/12)+(R40*5/12)) -> 0 | R40: =IF(Begrotingsmodel!$G$10="schooljaar",,(Q40*5/12)+(S40*7/12)) -> 0 | S40: =IF(Begrotingsmodel!$G$10="kalenderjaar",,(R40*7/12)+(T40*5/12)) -> 0 | T40: =IF(Begrotingsmodel!$G$10="schooljaar",,(S40*5/12)+(U40*7/12)) -> 0 | U40: =IF(Begrotingsmodel!$G$10="kalenderjaar",,(T40*7/12)+(V40*5/12)) -> 0 | V40: =IF(Begrotingsmodel!$G$10="schooljaar",,(U40*5/12)+(W40*7/12)) -> 0 | W40: =IF(Begrotingsmodel!$G$10="kalenderjaar",,(V40*7/12)+(X40*5/12)) -> 0 | X40: =IF(Begrotingsmodel!$G$10="schooljaar",,(W40*5/12)+(Y40*7/12)) -> 0 | Y40: =IF(Begrotingsmodel!$G$10="kalenderjaar",,(X40*7/12)+(Z40*5/12)) -> 0 | Z40: =IF(Begrotingsmodel!$G$10="schooljaar",,(Y40*5/12)+(AA40*7/12)) -> 0 | AA40: =IF(Begrotingsmodel!$G$10="kalenderjaar",,(Z40*7/12)+(AB40*5/12)) -> 0 | AB40: =IF(Begrotingsmodel!$G$10="schooljaar",,(AA40*5/12)+(AC40*7/12)) -> 0 | AC40: =IF(Begrotingsmodel!$G$10="kalenderjaar",,(AB40*7/12)+(AD40*5/12)) -> 0 | AD40: =IF(Begrotingsmodel!$G$10="schooljaar",,(AC40*5/12)+(AE40*7/12)) -> 0 | AE40: =IF(Begrotingsmodel!$G$10="kalenderjaar",,(AD40*7/12)+(AF40*5/12)) -> 0 | AF40: =IF(Begrotingsmodel!$G$10="schooljaar",,(AE40*5/12)+(AG40*7/12)) -> 0 | AG40: =IF(Begrotingsmodel!$G$10="kalenderjaar",,(AF40*7/12)+(AH40*5/12)) -> 0
G41: =IF(Begrotingsmodel!$G$10="kalenderjaar",,(F41*7/12)+(H41*5/12)) -> 0 | H41: =IF(Begrotingsmodel!$G$10="schooljaar",,(G41*5/12)+(I41*7/12)) -> 0 | I41: =IF(Begrotingsmodel!$G$10="kalenderjaar",,(H41*7/12)+(J41*5/12)) -> 0 | J41: =IF(Begrotingsmodel!$G$10="schooljaar",,(I41*5/12)+(K41*7/12)) -> 0 | K41: =IF(Begrotingsmodel!$G$10="kalenderjaar",,(J41*7/12)+(L41*5/12)) -> 0 | L41: =IF(Begrotingsmodel!$G$10="schooljaar",,(K41*5/12)+(M41*7/12)) -> 0 | M41: =IF(Begrotingsmodel!$G$10="kalenderjaar",,(L41*7/12)+(N41*5/12)) -> 0 | N41: =IF(Begrotingsmodel!$G$10="schooljaar",,(M41*5/12)+(O41*7/12)) -> 0 | O41: =IF(Begrotingsmodel!$G$10="kalenderjaar",,(N41*7/12)+(P41*5/12)) -> 0 | P41: =IF(Begrotingsmodel!$G$10="schooljaar",,(O41*5/12)+(Q41*7/12)) -> 0 | Q41: =IF(Begrotingsmodel!$G$10="kalenderjaar",,(P41*7/12)+(R41*5/12)) -> 0 | R41: =IF(Begrotingsmodel!$G$10="schooljaar",,(Q41*5/12)+(S41*7/12)) -> 0 | S41: =IF(Begrotingsmodel!$G$10="kalenderjaar",,(R41*7/12)+(T41*5/12)) -> 0 | T41: =IF(Begrotingsmodel!$G$10="schooljaar",,(S41*5/12)+(U41*7/12)) -> 0 | U41: =IF(Begrotingsmodel!$G$10="kalenderjaar",,(T41*7/12)+(V41*5/12)) -> 0 | V41: =IF(Begrotingsmodel!$G$10="schooljaar",,(U41*5/12)+(W41*7/12)) -> 0 | W41: =IF(Begrotingsmodel!$G$10="kalenderjaar",,(V41*7/12)+(X41*5/12)) -> 0 | X41: =IF(Begrotingsmodel!$G$10="schooljaar",,(W41*5/12)+(Y41*7/12)) -> 0 | Y41: =IF(Begrotingsmodel!$G$10="kalenderjaar",,(X41*7/12)+(Z41*5/12)) -> 0 | Z41: =IF(Begrotingsmodel!$G$10="schooljaar",,(Y41*5/12)+(AA41*7/12)) -> 0 | AA41: =IF(Begrotingsmodel!$G$10="kalenderjaar",,(Z41*7/12)+(AB41*5/12)) -> 0 | AB41: =IF(Begrotingsmodel!$G$10="schooljaar",,(AA41*5/12)+(AC41*7/12)) -> 0 | AC41: =IF(Begrotingsmodel!$G$10="kalenderjaar",,(AB41*7/12)+(AD41*5/12)) -> 0 | AD41: =IF(Begrotingsmodel!$G$10="schooljaar",,(AC41*5/12)+(AE41*7/12)) -> 0 | AE41: =IF(Begrotingsmodel!$G$10="kalenderjaar",,(AD41*7/12)+(AF41*5/12)) -> 0 | AF41: =IF(Begrotingsmodel!$G$10="schooljaar",,(AE41*5/12)+(AG41*7/12)) -> 0 | AG41: =IF(Begrotingsmodel!$G$10="kalenderjaar",,(AF41*7/12)+(AH41*5/12)) -> 0
G42: =IF(Begrotingsmodel!$G$10="kalenderjaar",,(F42*7/12)+(H42*5/12)) -> 0 | H42: =IF(Begrotingsmodel!$G$10="schooljaar",,(G42*5/12)+(I42*7/12)) -> 0 | I42: =IF(Begrotingsmodel!$G$10="kalenderjaar",,(H42*7/12)+(J42*5/12)) -> 0 | J42: =IF(Begrotingsmodel!$G$10="schooljaar",,(I42*5/12)+(K42*7/12)) -> 0 | K42: =IF(Begrotingsmodel!$G$10="kalenderjaar",,(J42*7/12)+(L42*5/12)) -> 0 | L42: =IF(Begrotingsmodel!$G$10="schooljaar",,(K42*5/12)+(M42*7/12)) -> 0 | M42: =IF(Begrotingsmodel!$G$10="kalenderjaar",,(L42*7/12)+(N42*5/12)) -> 0 | N42: =IF(Begrotingsmodel!$G$10="schooljaar",,(M42*5/12)+(O42*7/12)) -> 0 | O42: =IF(Begrotingsmodel!$G$10="kalenderjaar",,(N42*7/12)+(P42*5/12)) -> 0 | P42: =IF(Begrotingsmodel!$G$10="schooljaar",,(O42*5/12)+(Q42*7/12)) -> 0 | Q42: =IF(Begrotingsmodel!$G$10="kalenderjaar",,(P42*7/12)+(R42*5/12)) -> 0 | R42: =IF(Begrotingsmodel!$G$10="schooljaar",,(Q42*5/12)+(S42*7/12)) -> 0 | S42: =IF(Begrotingsmodel!$G$10="kalenderjaar",,(R42*7/12)+(T42*5/12)) -> 0 | T42: =IF(Begrotingsmodel!$G$10="schooljaar",,(S42*5/12)+(U42*7/12)) -> 0 | U42: =IF(Begrotingsmodel!$G$10="kalenderjaar",,(T42*7/12)+(V42*5/12)) -> 0 | V42: =IF(Begrotingsmodel!$G$10="schooljaar",,(U42*5/12)+(W42*7/12)) -> 0 | W42: =IF(Begrotingsmodel!$G$10="kalenderjaar",,(V42*7/12)+(X42*5/12)) -> 0 | X42: =IF(Begrotingsmodel!$G$10="schooljaar",,(W42*5/12)+(Y42*7/12)) -> 0 | Y42: =IF(Begrotingsmodel!$G$10="kalenderjaar",,(X42*7/12)+(Z42*5/12)) -> 0 | Z42: =IF(Begrotingsmodel!$G$10="schooljaar",,(Y42*5/12)+(AA42*7/12)) -> 0 | AA42: =IF(Begrotingsmodel!$G$10="kalenderjaar",,(Z42*7/12)+(AB42*5/12)) -> 0 | AB42: =IF(Begrotingsmodel!$G$10="schooljaar",,(AA42*5/12)+(AC42*7/12)) -> 0 | AC42: =IF(Begrotingsmodel!$G$10="kalenderjaar",,(AB42*7/12)+(AD42*5/12)) -> 0 | AD42: =IF(Begrotingsmodel!$G$10="schooljaar",,(AC42*5/12)+(AE42*7/12)) -> 0 | AE42: =IF(Begrotingsmodel!$G$10="kalenderjaar",,(AD42*7/12)+(AF42*5/12)) -> 0 | AF42: =IF(Begrotingsmodel!$G$10="schooljaar",,(AE42*5/12)+(AG42*7/12)) -> 0 | AG42: =IF(Begrotingsmodel!$G$10="kalenderjaar",,(AF42*7/12)+(AH42*5/12)) -> 0
C43: Totaal overige overheidsbijdragen en subsidies, niet aan programma's toe te rekenen | G43: =SUM(G40:G42) -> 0 | H43: =SUM(H40:H42) -> 0 | I43: 0 | J43: 0 | K43: 0 | L43: 0 | M43: 0 | N43: 0 | O43: 0 | P43: 0 | Q43: 0 | R43: 0 | S43: 0 | T43: 0 | U43: 0 | V43: 0 | W43: 0 | X43: 0 | Y43: 0 | Z43: =SUM(Z40:Z42) -> 0 | AA43: 0 | AB43: 0 | AC43: 0 | AD43: 0 | AE43: 0 | AF43: 0 | AG43: 0
C45: Overige baten, niet aan programma's toe te rekenen
G46: =IF(Begrotingsmodel!$G$10="kalenderjaar",,(F46*7/12)+(H46*5/12)) -> 0 | H46: =IF(Begrotingsmodel!$G$10="schooljaar",,(G46*5/12)+(I46*7/12)) -> 0 | I46: =IF(Begrotingsmodel!$G$10="kalenderjaar",,(H46*7/12)+(J46*5/12)) -> 0 | J46: =IF(Begrotingsmodel!$G$10="schooljaar",,(I46*5/12)+(K46*7/12)) -> 0 | K46: =IF(Begrotingsmodel!$G$10="kalenderjaar",,(J46*7/12)+(L46*5/12)) -> 0 | L46: =IF(Begrotingsmodel!$G$10="schooljaar",,(K46*5/12)+(M46*7/12)) -> 0 | M46: =IF(Begrotingsmodel!$G$10="kalenderjaar",,(L46*7/12)+(N46*5/12)) -> 0 | N46: =IF(Begrotingsmodel!$G$10="schooljaar",,(M46*5/12)+(O46*7/12)) -> 0 | O46: =IF(Begrotingsmodel!$G$10="kalenderjaar",,(N46*7/12)+(P46*5/12)) -> 0 | P46: =IF(Begrotingsmodel!$G$10="schooljaar",,(O46*5/12)+(Q46*7/12)) -> 0 | Q46: =IF(Begrotingsmodel!$G$10="kalenderjaar",,(P46*7/12)+(R46*5/12)) -> 0 | R46: =IF(Begrotingsmodel!$G$10="schooljaar",,(Q46*5/12)+(S46*7/12)) -> 0 | S46: =IF(Begrotingsmodel!$G$10="kalenderjaar",,(R46*7/12)+(T46*5/12)) -> 0 | T46: =IF(Begrotingsmodel!$G$10="schooljaar",,(S46*5/12)+(U46*7/12)) -> 0 | U46: =IF(Begrotingsmodel!$G$10="kalenderjaar",,(T46*7/12)+(V46*5/12)) -> 0 | V46: =IF(Begrotingsmodel!$G$10="schooljaar",,(U46*5/12)+(W46*7/12)) -> 0 | W46: =IF(Begrotingsmodel!$G$10="kalenderjaar",,(V46*7/12)+(X46*5/12)) -> 0 | X46: =IF(Begrotingsmodel!$G$10="schooljaar",,(W46*5/12)+(Y46*7/12)) -> 0 | Y46: =IF(Begrotingsmodel!$G$10="kalenderjaar",,(X46*7/12)+(Z46*5/12)) -> 0 | Z46: =IF(Begrotingsmodel!$G$10="schooljaar",,(Y46*5/12)+(AA46*7/12)) -> 0 | AA46: =IF(Begrotingsmodel!$G$10="kalenderjaar",,(Z46*7/12)+(AB46*5/12)) -> 0 | AB46: =IF(Begrotingsmodel!$G$10="schooljaar",,(AA46*5/12)+(AC46*7/12)) -> 0 | AC46: =IF(Begrotingsmodel!$G$10="kalenderjaar",,(AB46*7/12)+(AD46*5/12)) -> 0 | AD46: =IF(Begrotingsmodel!$G$10="schooljaar",,(AC46*5/12)+(AE46*7/12)) -> 0 | AE46: =IF(Begrotingsmodel!$G$10="kalenderjaar",,(AD46*7/12)+(AF46*5/12)) -> 0 | AF46: =IF(Begrotingsmodel!$G$10="schooljaar",,(AE46*5/12)+(AG46*7/12)) -> 0 | AG46: =IF(Begrotingsmodel!$G$10="kalenderjaar",,(AF46*7/12)+(AH46*5/12)) -> 0
G47: =IF(Begrotingsmodel!$G$10="kalenderjaar",,(F47*7/12)+(H47*5/12)) -> 0 | H47: =IF(Begrotingsmodel!$G$10="schooljaar",,(G47*5/12)+(I47*7/12)) -> 0 | I47: =IF(Begrotingsmodel!$G$10="kalenderjaar",,(H47*7/12)+(J47*5/12)) -> 0 | J47: =IF(Begrotingsmodel!$G$10="schooljaar",,(I47*5/12)+(K47*7/12)) -> 0 | K47: =IF(Begrotingsmodel!$G$10="kalenderjaar",,(J47*7/12)+(L47*5/12)) -> 0 | L47: =IF(Begrotingsmodel!$G$10="schooljaar",,(K47*5/12)+(M47*7/12)) -> 0 | M47: =IF(Begrotingsmodel!$G$10="kalenderjaar",,(L47*7/12)+(N47*5/12)) -> 0 | N47: =IF(Begrotingsmodel!$G$10="schooljaar",,(M47*5/12)+(O47*7/12)) -> 0 | O47: =IF(Begrotingsmodel!$G$10="kalenderjaar",,(N47*7/12)+(P47*5/12)) -> 0 | P47: =IF(Begrotingsmodel!$G$10="schooljaar",,(O47*5/12)+(Q47*7/12)) -> 0 | Q47: =IF(Begrotingsmodel!$G$10="kalenderjaar",,(P47*7/12)+(R47*5/12)) -> 0 | R47: =IF(Begrotingsmodel!$G$10="schooljaar",,(Q47*5/12)+(S47*7/12)) -> 0 | S47: =IF(Begrotingsmodel!$G$10="kalenderjaar",,(R47*7/12)+(T47*5/12)) -> 0 | T47: =IF(Begrotingsmodel!$G$10="schooljaar",,(S47*5/12)+(U47*7/12)) -> 0 | U47: =IF(Begrotingsmodel!$G$10="kalenderjaar",,(T47*7/12)+(V47*5/12)) -> 0 | V47: =IF(Begrotingsmodel!$G$10="schooljaar",,(U47*5/12)+(W47*7/12)) -> 0 | W47: =IF(Begrotingsmodel!$G$10="kalenderjaar",,(V47*7/12)+(X47*5/12)) -> 0 | X47: =IF(Begrotingsmodel!$G$10="schooljaar",,(W47*5/12)+(Y47*7/12)) -> 0 | Y47: =IF(Begrotingsmodel!$G$10="kalenderjaar",,(X47*7/12)+(Z47*5/12)) -> 0 | Z47: =IF(Begrotingsmodel!$G$10="schooljaar",,(Y47*5/12)+(AA47*7/12)) -> 0 | AA47: =IF(Begrotingsmodel!$G$10="kalenderjaar",,(Z47*7/12)+(AB47*5/12)) -> 0 | AB47: =IF(Begrotingsmodel!$G$10="schooljaar",,(AA47*5/12)+(AC47*7/12)) -> 0 | AC47: =IF(Begrotingsmodel!$G$10="kalenderjaar",,(AB47*7/12)+(AD47*5/12)) -> 0 | AD47: =IF(Begrotingsmodel!$G$10="schooljaar",,(AC47*5/12)+(AE47*7/12)) -> 0 | AE47: =IF(Begrotingsmodel!$G$10="kalenderjaar",,(AD47*7/12)+(AF47*5/12)) -> 0 | AF47: =IF(Begrotingsmodel!$G$10="schooljaar",,(AE47*5/12)+(AG47*7/12)) -> 0 | AG47: =IF(Begrotingsmodel!$G$10="kalenderjaar",,(AF47*7/12)+(AH47*5/12)) -> 0
G48: =IF(Begrotingsmodel!$G$10="kalenderjaar",,(F48*7/12)+(H48*5/12)) -> 0 | H48: =IF(Begrotingsmodel!$G$10="schooljaar",,(G48*5/12)+(I48*7/12)) -> 0 | I48: =IF(Begrotingsmodel!$G$10="kalenderjaar",,(H48*7/12)+(J48*5/12)) -> 0 | J48: =IF(Begrotingsmodel!$G$10="schooljaar",,(I48*5/12)+(K48*7/12)) -> 0 | K48: =IF(Begrotingsmodel!$G$10="kalenderjaar",,(J48*7/12)+(L48*5/12)) -> 0 | L48: =IF(Begrotingsmodel!$G$10="schooljaar",,(K48*5/12)+(M48*7/12)) -> 0 | M48: =IF(Begrotingsmodel!$G$10="kalenderjaar",,(L48*7/12)+(N48*5/12)) -> 0 | N48: =IF(Begrotingsmodel!$G$10="schooljaar",,(M48*5/12)+(O48*7/12)) -> 0 | O48: =IF(Begrotingsmodel!$G$10="kalenderjaar",,(N48*7/12)+(P48*5/12)) -> 0 | P48: =IF(Begrotingsmodel!$G$10="schooljaar",,(O48*5/12)+(Q48*7/12)) -> 0 | Q48: =IF(Begrotingsmodel!$G$10="kalenderjaar",,(P48*7/12)+(R48*5/12)) -> 0 | R48: =IF(Begrotingsmodel!$G$10="schooljaar",,(Q48*5/12)+(S48*7/12)) -> 0 | S48: =IF(Begrotingsmodel!$G$10="kalenderjaar",,(R48*7/12)+(T48*5/12)) -> 0 | T48: =IF(Begrotingsmodel!$G$10="schooljaar",,(S48*5/12)+(U48*7/12)) -> 0 | U48: =IF(Begrotingsmodel!$G$10="kalenderjaar",,(T48*7/12)+(V48*5/12)) -> 0 | V48: =IF(Begrotingsmodel!$G$10="schooljaar",,(U48*5/12)+(W48*7/12)) -> 0 | W48: =IF(Begrotingsmodel!$G$10="kalenderjaar",,(V48*7/12)+(X48*5/12)) -> 0 | X48: =IF(Begrotingsmodel!$G$10="schooljaar",,(W48*5/12)+(Y48*7/12)) -> 0 | Y48: =IF(Begrotingsmodel!$G$10="kalenderjaar",,(X48*7/12)+(Z48*5/12)) -> 0 | Z48: =IF(Begrotingsmodel!$G$10="schooljaar",,(Y48*5/12)+(AA48*7/12)) -> 0 | AA48: =IF(Begrotingsmodel!$G$10="kalenderjaar",,(Z48*7/12)+(AB48*5/12)) -> 0 | AB48: =IF(Begrotingsmodel!$G$10="schooljaar",,(AA48*5/12)+(AC48*7/12)) -> 0 | AC48: =IF(Begrotingsmodel!$G$10="kalenderjaar",,(AB48*7/12)+(AD48*5/12)) -> 0 | AD48: =IF(Begrotingsmodel!$G$10="schooljaar",,(AC48*5/12)+(AE48*7/12)) -> 0 | AE48: =IF(Begrotingsmodel!$G$10="kalenderjaar",,(AD48*7/12)+(AF48*5/12)) -> 0 | AF48: =IF(Begrotingsmodel!$G$10="schooljaar",,(AE48*5/12)+(AG48*7/12)) -> 0 | AG48: =IF(Begrotingsmodel!$G$10="kalenderjaar",,(AF48*7/12)+(AH48*5/12)) -> 0
C49: Totaal overige baten, niet aan programma's toe te rekenen | G49: =SUM(G46:G48) -> 0 | H49: =SUM(H46:H48) -> 0 | I49: 0 | J49: 0 | K49: 0 | L49: 0 | M49: 0 | N49: 0 | O49: 0 | P49: 0 | Q49: 0 | R49: 0 | S49: 0 | T49: 0 | U49: 0 | V49: 0 | W49: 0 | X49: 0 | Y49: 0 | Z49: =SUM(Z46:Z48) -> 0 | AA49: 0 | AB49: 0 | AC49: 0 | AD49: 0 | AE49: 0 | AF49: 0 | AG49: 0
C51: Totaal overige overheidsbijdragen en subsidies of overige baten, niet aan programma's toe te rekenen | G51: =G43+G49 -> 0 | H51: 0 | I51: 0 | J51: 0 | K51: 0 | L51: 0 | M51: 0 | N51: 0 | O51: 0 | P51: 0 | Q51: 0 | R51: 0 | S51: 0 | T51: 0 | U51: 0 | V51: 0 | W51: 0 | X51: 0 | Y51: 0 | Z51: =Z43+Z49 -> 0 | AA51: 0 | AB51: 0 | AC51: 0 | AD51: 0 | AE51: 0 | AF51: 0 | AG51: 0
C53: Geoormerkte baten programma's - Overige overheidsbijdragen en subsidies | G53: =SUM(voorprog:naprog!H68) -> 0 | H53: =SUM(voorprog:naprog!I68) -> 0 | I53: =SUM(voorprog:naprog!J68) -> 0 | J53: =SUM(voorprog:naprog!K68) -> 0 | K53: =SUM(voorprog:naprog!L68) -> 0 | L53: =SUM(voorprog:naprog!M68) -> 0 | M53: =SUM(voorprog:naprog!N68) -> 0 | N53: =SUM(voorprog:naprog!P68) -> 0 | O53: =SUM(voorprog:naprog!Q68) -> 0 | P53: =SUM(voorprog:naprog!R68) -> 0 | Q53: =SUM(voorprog:naprog!S68) -> 0 | R53: =SUM(voorprog:naprog!T68) -> 0 | S53: =SUM(voorprog:naprog!U68) -> 0 | T53: =SUM(voorprog:naprog!V68) -> 0 | U53: =SUM(voorprog:naprog!W68) -> 0 | V53: =SUM(voorprog:naprog!X68) -> 0 | W53: =SUM(voorprog:naprog!Y68) -> 0 | X53: =SUM(voorprog:naprog!Z68) -> 0 | Y53: =SUM(voorprog:naprog!AA68) -> 0 | Z53: =SUM(voorprog:naprog!AB68) -> 0 | AA53: =SUM(voorprog:naprog!AC68) -> 0 | AB53: =SUM(voorprog:naprog!AD68) -> 0 | AC53: =SUM(voorprog:naprog!AE68) -> 0 | AD53: =SUM(voorprog:naprog!AF68) -> 0 | AE53: =SUM(voorprog:naprog!AG68) -> 0 | AF53: =SUM(voorprog:naprog!AH68) -> 0 | AG53: =SUM(voorprog:naprog!AI68) -> 0
C54: Geoormerkte baten programma's - Overige baten | G54: =SUM(voorprog:naprog!H88) -> 0 | H54: =SUM(voorprog:naprog!I88) -> 0 | I54: =SUM(voorprog:naprog!J88) -> 0 | J54: =SUM(voorprog:naprog!K88) -> 0 | K54: =SUM(voorprog:naprog!L88) -> 0 | L54: =SUM(voorprog:naprog!M88) -> 0 | M54: =SUM(voorprog:naprog!N88) -> 0 | N54: =SUM(voorprog:naprog!P88) -> 0 | O54: =SUM(voorprog:naprog!Q88) -> 0 | P54: =SUM(voorprog:naprog!R88) -> 0 | Q54: =SUM(voorprog:naprog!S88) -> 0 | R54: =SUM(voorprog:naprog!T88) -> 0 | S54: =SUM(voorprog:naprog!U88) -> 0 | T54: =SUM(voorprog:naprog!V88) -> 0 | U54: =SUM(voorprog:naprog!W88) -> 0 | V54: =SUM(voorprog:naprog!X88) -> 0 | W54: =SUM(voorprog:naprog!Y88) -> 0 | X54: =SUM(voorprog:naprog!Z88) -> 0 | Y54: =SUM(voorprog:naprog!AA88) -> 0 | Z54: =SUM(voorprog:naprog!AB88) -> 0 | AA54: =SUM(voorprog:naprog!AC88) -> 0 | AB54: =SUM(voorprog:naprog!AD88) -> 0 | AC54: =SUM(voorprog:naprog!AE88) -> 0 | AD54: =SUM(voorprog:naprog!AF88) -> 0 | AE54: =SUM(voorprog:naprog!AG88) -> 0 | AF54: =SUM(voorprog:naprog!AH88) -> 0 | AG54: =SUM(voorprog:naprog!AI88) -> 0
C57: Totale baten | G57: =G6+G22+G51+G53+G54+G33 -> 14602731.45 | H57: =H6+H22+H51+H53+H54+H33 -> 9383338.326 | I57: 20485558.22 | J57: 21249691.34 | K57: 22062209.18 | L57: 23371250.99 | M57: 24285941.29 | N57: 18296452.21 | O57: 7776863.483 | P57: 0 | Q57: 0 | R57: 0 | S57: 0 | T57: 0 | U57: 0 | V57: 0 | W57: 0 | X57: 0 | Y57: 0 | Z57: 0 | AA57: 0 | AB57: 0 | AC57: 0 | AD57: 0 | AE57: 0 | AF57: 0 | AG57: 0
C61: Overige overheidsbijdragen en - subsidies | G61: =IF($D40=Variabelen!$F$2,G40,0) -> 0 | H61: =IF($D40=Variabelen!$F$2,H40,0) -> 0 | I61: =IF($D40=Variabelen!$F$2,I40,0) -> 0 | J61: =IF($D40=Variabelen!$F$2,J40,0) -> 0 | K61: =IF($D40=Variabelen!$F$2,K40,0) -> 0 | L61: =IF($D40=Variabelen!$F$2,L40,0) -> 0 | M61: =IF($D40=Variabelen!$F$2,M40,0) -> 0 | N61: =IF($D40=Variabelen!$F$2,N40,0) -> 0 | O61: =IF($D40=Variabelen!$F$2,O40,0) -> 0 | P61: =IF($D40=Variabelen!$F$2,P40,0) -> 0 | Q61: =IF($D40=Variabelen!$F$2,Q40,0) -> 0 | R61: =IF($D40=Variabelen!$F$2,R40,0) -> 0 | S61: =IF($D40=Variabelen!$F$2,S40,0) -> 0 | T61: =IF($D40=Variabelen!$F$2,T40,0) -> 0 | U61: =IF($D40=Variabelen!$F$2,U40,0) -> 0 | V61: =IF($D40=Variabelen!$F$2,V40,0) -> 0 | W61: =IF($D40=Variabelen!$F$2,W40,0) -> 0 | X61: =IF($D40=Variabelen!$F$2,X40,0) -> 0 | Y61: =IF($D40=Variabelen!$F$2,Y40,0) -> 0 | Z61: =IF($D40=Variabelen!$F$2,Z40,0) -> 0 | AA61: =IF($D40=Variabelen!$F$2,AA40,0) -> 0 | AB61: =IF($D40=Variabelen!$F$2,AB40,0) -> 0 | AC61: =IF($D40=Variabelen!$F$2,AC40,0) -> 0 | AD61: =IF($D40=Variabelen!$F$2,AD40,0) -> 0 | AE61: =IF($D40=Variabelen!$F$2,AE40,0) -> 0 | AF61: =IF($D40=Variabelen!$F$2,AF40,0) -> 0 | AG61: =IF($D40=Variabelen!$F$2,AG40,0) -> 0
G62: =IF($D47=Variabelen!$F$2,G47,0) -> 0 | H62: =IF($D47=Variabelen!$F$2,H47,0) -> 0 | I62: =IF($D47=Variabelen!$F$2,I47,0) -> 0 | J62: =IF($D47=Variabelen!$F$2,J47,0) -> 0 | K62: =IF($D47=Variabelen!$F$2,K47,0) -> 0 | L62: =IF($D47=Variabelen!$F$2,L47,0) -> 0 | M62: =IF($D47=Variabelen!$F$2,M47,0) -> 0 | N62: =IF($D47=Variabelen!$F$2,N47,0) -> 0 | O62: =IF($D47=Variabelen!$F$2,O47,0) -> 0 | P62: =IF($D47=Variabelen!$F$2,P47,0) -> 0 | Q62: =IF($D47=Variabelen!$F$2,Q47,0) -> 0 | R62: =IF($D47=Variabelen!$F$2,R47,0) -> 0 | S62: =IF($D47=Variabelen!$F$2,S47,0) -> 0 | T62: =IF($D47=Variabelen!$F$2,T47,0) -> 0 | U62: =IF($D47=Variabelen!$F$2,U47,0) -> 0 | V62: =IF($D47=Variabelen!$F$2,V47,0) -> 0 | W62: =IF($D47=Variabelen!$F$2,W47,0) -> 0 | X62: =IF($D47=Variabelen!$F$2,X47,0) -> 0 | Y62: =IF($D47=Variabelen!$F$2,Y47,0) -> 0 | Z62: =IF($D47=Variabelen!$F$2,Z47,0) -> 0 | AA62: =IF($D47=Variabelen!$F$2,AA47,0) -> 0 | AB62: =IF($D47=Variabelen!$F$2,AB47,0) -> 0 | AC62: =IF($D47=Variabelen!$F$2,AC47,0) -> 0 | AD62: =IF($D47=Variabelen!$F$2,AD47,0) -> 0 | AE62: =IF($D47=Variabelen!$F$2,AE47,0) -> 0 | AF62: =IF($D47=Variabelen!$F$2,AF47,0) -> 0 | AG62: =IF($D47=Variabelen!$F$2,AG47,0) -> 0
G63: =IF($D49=Variabelen!$F$2,G49,0) -> 0 | H63: =IF($D49=Variabelen!$F$2,H49,0) -> 0 | I63: =IF($D49=Variabelen!$F$2,I49,0) -> 0 | J63: =IF($D49=Variabelen!$F$2,J49,0) -> 0 | K63: =IF($D49=Variabelen!$F$2,K49,0) -> 0 | L63: =IF($D49=Variabelen!$F$2,L49,0) -> 0 | M63: =IF($D49=Variabelen!$F$2,M49,0) -> 0 | N63: =IF($D49=Variabelen!$F$2,N49,0) -> 0 | O63: =IF($D49=Variabelen!$F$2,O49,0) -> 0 | P63: =IF($D49=Variabelen!$F$2,P49,0) -> 0 | Q63: =IF($D49=Variabelen!$F$2,Q49,0) -> 0 | R63: =IF($D49=Variabelen!$F$2,R49,0) -> 0 | S63: =IF($D49=Variabelen!$F$2,S49,0) -> 0 | T63: =IF($D49=Variabelen!$F$2,T49,0) -> 0 | U63: =IF($D49=Variabelen!$F$2,U49,0) -> 0 | V63: =IF($D49=Variabelen!$F$2,V49,0) -> 0 | W63: =IF($D49=Variabelen!$F$2,W49,0) -> 0 | X63: =IF($D49=Variabelen!$F$2,X49,0) -> 0 | Y63: =IF($D49=Variabelen!$F$2,Y49,0) -> 0 | Z63: =IF($D49=Variabelen!$F$2,Z49,0) -> 0 | AA63: =IF($D49=Variabelen!$F$2,AA49,0) -> 0 | AB63: =IF($D49=Variabelen!$F$2,AB49,0) -> 0 | AC63: =IF($D49=Variabelen!$F$2,AC49,0) -> 0 | AD63: =IF($D49=Variabelen!$F$2,AD49,0) -> 0 | AE63: =IF($D49=Variabelen!$F$2,AE49,0) -> 0 | AF63: =IF($D49=Variabelen!$F$2,AF49,0) -> 0 | AG63: =IF($D49=Variabelen!$F$2,AG49,0) -> 0
G64: =IF($D50=Variabelen!$F$2,G50,0) -> 0 | H64: =IF($D50=Variabelen!$F$2,H50,0) -> 0 | I64: =IF($D50=Variabelen!$F$2,I50,0) -> 0 | J64: =IF($D50=Variabelen!$F$2,J50,0) -> 0 | K64: =IF($D50=Variabelen!$F$2,K50,0) -> 0 | L64: =IF($D50=Variabelen!$F$2,L50,0) -> 0 | M64: =IF($D50=Variabelen!$F$2,M50,0) -> 0 | N64: =IF($D50=Variabelen!$F$2,N50,0) -> 0 | O64: =IF($D50=Variabelen!$F$2,O50,0) -> 0 | P64: =IF($D50=Variabelen!$F$2,P50,0) -> 0 | Q64: =IF($D50=Variabelen!$F$2,Q50,0) -> 0 | R64: =IF($D50=Variabelen!$F$2,R50,0) -> 0 | S64: =IF($D50=Variabelen!$F$2,S50,0) -> 0 | T64: =IF($D50=Variabelen!$F$2,T50,0) -> 0 | U64: =IF($D50=Variabelen!$F$2,U50,0) -> 0 | V64: =IF($D50=Variabelen!$F$2,V50,0) -> 0 | W64: =IF($D50=Variabelen!$F$2,W50,0) -> 0 | X64: =IF($D50=Variabelen!$F$2,X50,0) -> 0 | Y64: =IF($D50=Variabelen!$F$2,Y50,0) -> 0 | Z64: =IF($D50=Variabelen!$F$2,Z50,0) -> 0 | AA64: =IF($D50=Variabelen!$F$2,AA50,0) -> 0 | AB64: =IF($D50=Variabelen!$F$2,AB50,0) -> 0 | AC64: =IF($D50=Variabelen!$F$2,AC50,0) -> 0 | AD64: =IF($D50=Variabelen!$F$2,AD50,0) -> 0 | AE64: =IF($D50=Variabelen!$F$2,AE50,0) -> 0 | AF64: =IF($D50=Variabelen!$F$2,AF50,0) -> 0 | AG64: =IF($D50=Variabelen!$F$2,AG50,0) -> 0
G65: =SUM(G61:G64) -> 0 | H65: =SUM(H61:H64) -> 0 | I65: 0 | J65: 0 | K65: 0 | L65: 0 | M65: 0 | N65: 0 | O65: 0 | P65: 0 | Q65: 0 | R65: 0 | S65: 0 | T65: 0 | U65: 0 | V65: 0 | W65: 0 | X65: 0 | Y65: 0 | Z65: 0 | AA65: 0 | AB65: 0 | AC65: 0 | AD65: 0 | AE65: 0 | AF65: 0 | AG65: 0
C67: Overige baten | G67: =IF($D40=Variabelen!$F$3,G40,0) -> 0 | H67: =IF($D40=Variabelen!$F$3,H40,0) -> 0 | I67: =IF($D40=Variabelen!$F$3,I40,0) -> 0 | J67: =IF($D40=Variabelen!$F$3,J40,0) -> 0 | K67: =IF($D40=Variabelen!$F$3,K40,0) -> 0 | L67: =IF($D40=Variabelen!$F$3,L40,0) -> 0 | M67: =IF($D40=Variabelen!$F$3,M40,0) -> 0 | N67: =IF($D40=Variabelen!$F$3,N40,0) -> 0 | O67: =IF($D40=Variabelen!$F$3,O40,0) -> 0 | P67: =IF($D40=Variabelen!$F$3,P40,0) -> 0 | Q67: =IF($D40=Variabelen!$F$3,Q40,0) -> 0 | R67: =IF($D40=Variabelen!$F$3,R40,0) -> 0 | S67: =IF($D40=Variabelen!$F$3,S40,0) -> 0 | T67: =IF($D40=Variabelen!$F$3,T40,0) -> 0 | U67: =IF($D40=Variabelen!$F$3,U40,0) -> 0 | V67: =IF($D40=Variabelen!$F$3,V40,0) -> 0 | W67: =IF($D40=Variabelen!$F$3,W40,0) -> 0 | X67: =IF($D40=Variabelen!$F$3,X40,0) -> 0 | Y67: =IF($D40=Variabelen!$F$3,Y40,0) -> 0 | Z67: =IF($D40=Variabelen!$F$3,Z40,0) -> 0 | AA67: =IF($D40=Variabelen!$F$3,AA40,0) -> 0 | AB67: =IF($D40=Variabelen!$F$3,AB40,0) -> 0 | AC67: =IF($D40=Variabelen!$F$3,AC40,0) -> 0 | AD67: =IF($D40=Variabelen!$F$3,AD40,0) -> 0 | AE67: =IF($D40=Variabelen!$F$3,AE40,0) -> 0 | AF67: =IF($D40=Variabelen!$F$3,AF40,0) -> 0 | AG67: =IF($D40=Variabelen!$F$3,AG40,0) -> 0
G68: =IF($D47=Variabelen!$F$3,G47,0) -> 0 | H68: =IF($D47=Variabelen!$F$3,H47,0) -> 0 | I68: =IF($D47=Variabelen!$F$3,I47,0) -> 0 | J68: =IF($D47=Variabelen!$F$3,J47,0) -> 0 | K68: =IF($D47=Variabelen!$F$3,K47,0) -> 0 | L68: =IF($D47=Variabelen!$F$3,L47,0) -> 0 | M68: =IF($D47=Variabelen!$F$3,M47,0) -> 0 | N68: =IF($D47=Variabelen!$F$3,N47,0) -> 0 | O68: =IF($D47=Variabelen!$F$3,O47,0) -> 0 | P68: =IF($D47=Variabelen!$F$3,P47,0) -> 0 | Q68: =IF($D47=Variabelen!$F$3,Q47,0) -> 0 | R68: =IF($D47=Variabelen!$F$3,R47,0) -> 0 | S68: =IF($D47=Variabelen!$F$3,S47,0) -> 0 | T68: =IF($D47=Variabelen!$F$3,T47,0) -> 0 | U68: =IF($D47=Variabelen!$F$3,U47,0) -> 0 | V68: =IF($D47=Variabelen!$F$3,V47,0) -> 0 | W68: =IF($D47=Variabelen!$F$3,W47,0) -> 0 | X68: =IF($D47=Variabelen!$F$3,X47,0) -> 0 | Y68: =IF($D47=Variabelen!$F$3,Y47,0) -> 0 | Z68: =IF($D47=Variabelen!$F$3,Z47,0) -> 0 | AA68: =IF($D47=Variabelen!$F$3,AA47,0) -> 0 | AB68: =IF($D47=Variabelen!$F$3,AB47,0) -> 0 | AC68: =IF($D47=Variabelen!$F$3,AC47,0) -> 0 | AD68: =IF($D47=Variabelen!$F$3,AD47,0) -> 0 | AE68: =IF($D47=Variabelen!$F$3,AE47,0) -> 0 | AF68: =IF($D47=Variabelen!$F$3,AF47,0) -> 0 | AG68: =IF($D47=Variabelen!$F$3,AG47,0) -> 0
G69: =IF($D49=Variabelen!$F$3,G49,0) -> 0 | H69: =IF($D49=Variabelen!$F$3,H49,0) -> 0 | I69: =IF($D49=Variabelen!$F$3,I49,0) -> 0 | J69: =IF($D49=Variabelen!$F$3,J49,0) -> 0 | K69: =IF($D49=Variabelen!$F$3,K49,0) -> 0 | L69: =IF($D49=Variabelen!$F$3,L49,0) -> 0 | M69: =IF($D49=Variabelen!$F$3,M49,0) -> 0 | N69: =IF($D49=Variabelen!$F$3,N49,0) -> 0 | O69: =IF($D49=Variabelen!$F$3,O49,0) -> 0 | P69: =IF($D49=Variabelen!$F$3,P49,0) -> 0 | Q69: =IF($D49=Variabelen!$F$3,Q49,0) -> 0 | R69: =IF($D49=Variabelen!$F$3,R49,0) -> 0 | S69: =IF($D49=Variabelen!$F$3,S49,0) -> 0 | T69: =IF($D49=Variabelen!$F$3,T49,0) -> 0 | U69: =IF($D49=Variabelen!$F$3,U49,0) -> 0 | V69: =IF($D49=Variabelen!$F$3,V49,0) -> 0 | W69: =IF($D49=Variabelen!$F$3,W49,0) -> 0 | X69: =IF($D49=Variabelen!$F$3,X49,0) -> 0 | Y69: =IF($D49=Variabelen!$F$3,Y49,0) -> 0 | Z69: =IF($D49=Variabelen!$F$3,Z49,0) -> 0 | AA69: =IF($D49=Variabelen!$F$3,AA49,0) -> 0 | AB69: =IF($D49=Variabelen!$F$3,AB49,0) -> 0 | AC69: =IF($D49=Variabelen!$F$3,AC49,0) -> 0 | AD69: =IF($D49=Variabelen!$F$3,AD49,0) -> 0 | AE69: =IF($D49=Variabelen!$F$3,AE49,0) -> 0 | AF69: =IF($D49=Variabelen!$F$3,AF49,0) -> 0 | AG69: =IF($D49=Variabelen!$F$3,AG49,0) -> 0
G70: =IF($D50=Variabelen!$F$3,G50,0) -> 0 | H70: =IF($D50=Variabelen!$F$3,H50,0) -> 0 | I70: =IF($D50=Variabelen!$F$3,I50,0) -> 0 | J70: =IF($D50=Variabelen!$F$3,J50,0) -> 0 | K70: =IF($D50=Variabelen!$F$3,K50,0) -> 0 | L70: =IF($D50=Variabelen!$F$3,L50,0) -> 0 | M70: =IF($D50=Variabelen!$F$3,M50,0) -> 0 | N70: =IF($D50=Variabelen!$F$3,N50,0) -> 0 | O70: =IF($D50=Variabelen!$F$3,O50,0) -> 0 | P70: =IF($D50=Variabelen!$F$3,P50,0) -> 0 | Q70: =IF($D50=Variabelen!$F$3,Q50,0) -> 0 | R70: =IF($D50=Variabelen!$F$3,R50,0) -> 0 | S70: =IF($D50=Variabelen!$F$3,S50,0) -> 0 | T70: =IF($D50=Variabelen!$F$3,T50,0) -> 0 | U70: =IF($D50=Variabelen!$F$3,U50,0) -> 0 | V70: =IF($D50=Variabelen!$F$3,V50,0) -> 0 | W70: =IF($D50=Variabelen!$F$3,W50,0) -> 0 | X70: =IF($D50=Variabelen!$F$3,X50,0) -> 0 | Y70: =IF($D50=Variabelen!$F$3,Y50,0) -> 0 | Z70: =IF($D50=Variabelen!$F$3,Z50,0) -> 0 | AA70: =IF($D50=Variabelen!$F$3,AA50,0) -> 0 | AB70: =IF($D50=Variabelen!$F$3,AB50,0) -> 0 | AC70: =IF($D50=Variabelen!$F$3,AC50,0) -> 0 | AD70: =IF($D50=Variabelen!$F$3,AD50,0) -> 0 | AE70: =IF($D50=Variabelen!$F$3,AE50,0) -> 0 | AF70: =IF($D50=Variabelen!$F$3,AF50,0) -> 0 | AG70: =IF($D50=Variabelen!$F$3,AG50,0) -> 0
G71: =SUM(G67:G70) -> 0 | H71: =SUM(H67:H70) -> 0 | I71: 0 | J71: 0 | K71: 0 | L71: 0 | M71: 0 | N71: 0 | O71: 0 | P71: 0 | Q71: 0 | R71: 0 | S71: 0 | T71: 0 | U71: 0 | V71: 0 | W71: 0 | X71: 0 | Y71: 0 | Z71: 0 | AA71: 0 | AB71: 0 | AC71: 0 | AD71: 0 | AE71: 0 | AF71: 0 | AG71: 0

Sheet Lasten
AU1: 1 | AV1: =INDEX(gekozenjaar,AU1) -> 2020 | AW1: =INDEX(gekozenjaar,AX1) -> 2030 | AX1: 11
A2: 0
C3: LASTEN | G3: =IF(Begrotingsmodel!$M$10="schooljaar","x",IF(AND(G5>=$AV$1,G5<=$AW$1),"","x")) ->  | H3: =IF(Begrotingsmodel!$M$10="schooljaar","x",IF(AND(H5>=$AV$1,H5<=$AW$1),"","x")) -> x | I3: =IF(Begrotingsmodel!$M$10="schooljaar","x",IF(AND(I5>=$AV$1,I5<=$AW$1),"","x")) -> x | J3: =IF(Begrotingsmodel!$M$10="schooljaar","x",IF(AND(J5>=$AV$1,J5<=$AW$1),"","x")) -> x | K3: =IF(Begrotingsmodel!$M$10="schooljaar","x",IF(AND(K5>=$AV$1,K5<=$AW$1),"","x")) -> x | L3: =IF(Begrotingsmodel!$M$10="schooljaar","x",IF(AND(L5>=$AV$1,L5<=$AW$1),"","x")) -> x | M3: =IF(Begrotingsmodel!$M$10="schooljaar","x",IF(AND(M5>=$AV$1,M5<=$AW$1),"","x")) ->  | N3: =IF(Begrotingsmodel!$M$10="schooljaar","x",IF(AND(N5>=$AV$1,N5<=$AW$1),"","x")) -> x | O3: =IF(Begrotingsmodel!$M$10="schooljaar","x",IF(AND(O5>=$AV$1,O5<=$AW$1),"","x")) ->  | P3: =IF(Begrotingsmodel!$M$10="schooljaar","x",IF(AND(P5>=$AV$1,P5<=$AW$1),"","x")) -> x | Q3: =IF(Begrotingsmodel!$M$10="schooljaar","x",IF(AND(Q5>=$AV$1,Q5<=$AW$1),"","x")) ->  | R3: =IF(Begrotingsmodel!$M$10="schooljaar","x",IF(AND(R5>=$AV$1,R5<=$AW$1),"","x")) -> x | S3: =IF(Begrotingsmodel!$M$10="schooljaar","x",IF(AND(S5>=$AV$1,S5<=$AW$1),"","x")) ->  | T3: =IF(Begrotingsmodel!$M$10="schooljaar","x",IF(AND(T5>=$AV$1,T5<=$AW$1),"","x")) -> x | U3: =IF(Begrotingsmodel!$M$10="schooljaar","x",IF(AND(U5>=$AV$1,U5<=$AW$1),"","x")) ->  | V3: =IF(Begrotingsmodel!$M$10="schooljaar","x",IF(AND(V5>=$AV$1,V5<=$AW$1),"","x")) -> x | W3: =IF(Begrotingsmodel!$M$10="schooljaar","x",IF(AND(W5>=$AV$1,W5<=$AW$1),"","x")) ->  | X3: =IF(Begrotingsmodel!$M$10="schooljaar","x",IF(AND(X5>=$AV$1,X5<=$AW$1),"","x")) -> x | Y3: =IF(Begrotingsmodel!$M$10="schooljaar","x",IF(AND(Y5>=$AV$1,Y5<=$AW$1),"","x")) ->  | Z3: =IF(Begrotingsmodel!$M$10="schooljaar","x",IF(AND(Z5>=$AV$1,Z5<=$AW$1),"","x")) -> x | AA3: =IF(Begrotingsmodel!$M$10="schooljaar","x",IF(AND(AA5>=$AV$1,AA5<=$AW$1),"","x")) ->  | AB3: =IF(Begrotingsmodel!$M$10="schooljaar","x",IF(AND(AB5>=$AV$1,AB5<=$AW$1),"","x")) -> x | AC3: =IF(Begrotingsmodel!$M$10="schooljaar","x",IF(AND(AC5>=$AV$1,AC5<=$AW$1),"","x")) ->  | AD3: =IF(Begrotingsmodel!$M$10="schooljaar","x",IF(AND(AD5>=$AV$1,AD5<=$AW$1),"","x")) -> x | AE3: =IF(Begrotingsmodel!$M$10="schooljaar","x",IF(AND(AE5>=$AV$1,AE5<=$AW$1),"","x")) ->  | AF3: =IF(Begrotingsmodel!$M$10="schooljaar","x",IF(AND(AF5>=$AV$1,AF5<=$AW$1),"","x")) -> x | AG3: =IF(Begrotingsmodel!$M$10="schooljaar","x",IF(AND(AG5>=$AV$1,AG5<=$AW$1),"","x")) -> 
C4: =Start!$A$33 -> Versie 8.0 | G4: 0 | H4: 1 | I4: 1 | J4: 2 | K4: 2 | L4: 3 | M4: 3 | N4: 4 | O4: 4 | P4: 5 | Q4: 5 | R4: 6 | S4: 6 | T4: 7 | U4: 7 | V4: 8 | Z4: 6 | AA4: 6 | AB4: 7 | AC4: 7 | AD4: 8
C5: Afdrachten | G5: ='MJB kalenderjaar'!#REF! ->  | H5: ='MJB schooljaar'!F5 -> 2017/18 | I5: ='MJB kalenderjaar'!F5 -> 2018 | J5: ='MJB schooljaar'!H5 -> 2018/19 | K5: ='MJB kalenderjaar'!H5 -> 2019 | L5: ='MJB schooljaar'!J5 -> 2019/20 | M5: ='MJB kalenderjaar'!J5 -> 2020 | N5: ='MJB schooljaar'!N5 -> 2020/21 | O5: ='MJB kalenderjaar'!N5 -> 2021 | P5: ='MJB schooljaar'!P5 -> 2021/22 | Q5: ='MJB kalenderjaar'!P5 -> 2022 | R5: ='MJB schooljaar'!R5 -> 2022/23 | S5: ='MJB kalenderjaar'!R5 -> 2023 | T5: ='MJB schooljaar'!T5 -> 2023/24 | U5: ='MJB kalenderjaar'!T5 -> 2024 | V5: ='MJB schooljaar'!V5 -> 2024/25 | W5: ='MJB kalenderjaar'!V5 -> 2025 | X5: ='MJB schooljaar'!X5 -> 2025/26 | Y5: ='MJB kalenderjaar'!X5 -> 2026 | Z5: ='MJB schooljaar'!Z5 -> 2026/27 | AA5: ='MJB kalenderjaar'!Z5 -> 2027 | AB5: ='MJB schooljaar'!AB5 -> 2027/28 | AC5: ='MJB kalenderjaar'!AB5 -> 2028 | AD5: ='MJB schooljaar'!AD5 -> 2028/29 | AE5: ='MJB kalenderjaar'!AD5 -> 2029 | AF5: ='MJB schooljaar'!AF5 -> 2029/30 | AG5: ='MJB kalenderjaar'!AF5 -> 2030
C6: Afdracht ondersteuningsbekostiging (pers+mat) vso door DUO | G6: =G7+G13 -> 2424515.991 | H6: 5416338.904 | I6: 5639116.087 | J6: 5946089.631 | K6: 6133193.627 | L6: 6382108.272 | M6: 6339424.118 | N6: 6088130.814 | O6: 3470223.348 | P6: 0 | Q6: 0 | R6: 0 | S6: =S7+S13 -> 0 | T6: =T7+T13 -> 0 | U6: =U7+U13 -> 0 | V6: =V7+V13 -> 0 | W6: =W7+W13 -> 0 | X6: 0 | Y6: 0 | Z6: =Z7+Z13 -> 0 | AA6: =AA7+AA13 -> 0 | AB6: =AB7+AB13 -> 0 | AC6: =AC7+AC13 -> 0 | AD6: =AD7+AD13 -> 0 | AE6: =AE7+AE13 -> 0 | AF6: 0 | AG6: 0
C7: Afdracht ondersteuningsbekostiging (pers) vso door DUO | G7: =(7/12*F7)+(5/12*H7) -> 2126563.621 | H7: =SUM(H9:H11) -> 5103752.69 | I7: =(7/12*H7)+(5/12*J7) -> 5316077.127 | J7: 5613331.34 | K7: =(7/12*J7)+(5/12*L7) -> 5793492.957 | L7: 6045719.22 | M7: =(7/12*L7)+(5/12*N7) -> 6005400.508 | N7: 5948954.31 | O7: =(7/12*N7)+(5/12*P7) -> 3470223.348 | P7: 0 | Q7: =(7/12*P7)+(5/12*R7) -> 0 | R7: 0 | S7: =(7/12*R7)+(5/12*T7) -> 0 | T7: =SUM(T9:T11) -> 0 | U7: =(7/12*T7)+(5/12*V7) -> 0 | V7: =SUM(V9:V11) -> 0 | W7: =(7/12*V7)+(5/12*X7) -> 0 | X7: =SUM(X9:X11) -> 0 | Y7: =(7/12*X7)+(5/12*Z7) -> 0 | Z7: =SUM(Z9:Z11) -> 0 | AA7: =(7/12*Z7)+(5/12*AB7) -> 0 | AB7: =SUM(AB9:AB11) -> 0 | AC7: =(7/12*AB7)+(5/12*AD7) -> 0 | AD7: =SUM(AD9:AD11) -> 0 | AE7: =(7/12*AD7)+(5/12*AF7) -> 0 | AF7: =SUM(AF9:AF11) -> 0 | AG7: =(7/12*AF7)+(5/12*AH7) -> 0
E9: categorie 1 (laag) | G9: =((7/12)*F9)+((5/12)*H9) -> 1374507.792 | H9: =LLaantal!O18*Bekostigingsgegevens!L35 -> 3298818.7 | I9: =((7/12)*H9)+((5/12)*J9) -> 3452517.833 | J9: =LLaantal!Q18*Bekostigingsgegevens!N35 -> 3667696.62 | K9: =((7/12)*J9)+((5/12)*L9) -> 3726449.995 | L9: =LLaantal!S18*Bekostigingsgegevens!P35 -> 3808704.72 | M9: =((7/12)*L9)+((5/12)*N9) -> 3780633.003 | N9: =LLaantal!U18*Bekostigingsgegevens!R35 -> 3741332.6 | O9: =((7/12)*N9)+((5/12)*P9) -> 2182444.017 | P9: =LLaantal!W18*Bekostigingsgegevens!T35 -> 0 | Q9: =((7/12)*P9)+((5/12)*R9) -> 0 | R9: =LLaantal!Y18*Bekostigingsgegevens!V35 -> 0 | S9: =((7/12)*R9)+((5/12)*T9) -> 0 | T9: =LLaantal!AA18*Bekostigingsgegevens!X35 -> 0 | U9: =((7/12)*T9)+((5/12)*V9) -> 0 | V9: =LLaantal!AC18*Bekostigingsgegevens!Z35 -> 0 | W9: =((7/12)*V9)+((5/12)*X9) -> 0 | X9: =LLaantal!AE18*Bekostigingsgegevens!AB35 -> 0 | Y9: =((7/12)*X9)+((5/12)*Z9) -> 0 | Z9: =LLaantal!AG18*Bekostigingsgegevens!AD35 -> 0 | AA9: =((7/12)*Z9)+((5/12)*AB9) -> 0 | AB9: =LLaantal!AI18*Bekostigingsgegevens!AF35 -> 0 | AC9: =((7/12)*AB9)+((5/12)*AD9) -> 0 | AD9: =LLaantal!AK18*Bekostigingsgegevens!AH35 -> 0 | AE9: =((7/12)*AD9)+((5/12)*AF9) -> 0 | AF9: =LLaantal!AM18*Bekostigingsgegevens!AJ35 -> 0 | AG9: =((7/12)*AF9)+((5/12)*AH9) -> 0
E10: categorie 2 (midden) | G10: =((7/12)*F10)+((5/12)*H10) -> 43382.05 | H10: =LLaantal!O19*Bekostigingsgegevens!L37 -> 104116.92 | I10: =((7/12)*H10)+((5/12)*J10) -> 98319.76583 | J10: =LLaantal!Q19*Bekostigingsgegevens!N37 -> 90203.75 | K10: =((7/12)*J10)+((5/12)*L10) -> 107101.9542 | L10: =LLaantal!S19*Bekostigingsgegevens!P37 -> 130759.44 | M10: =((7/12)*L10)+((5/12)*N10) -> 123741.09 | N10: =LLaantal!U19*Bekostigingsgegevens!R37 -> 113915.4 | O10: =((7/12)*N10)+((5/12)*P10) -> 66450.65 | P10: =LLaantal!W19*Bekostigingsgegevens!T37 -> 0 | Q10: =((7/12)*P10)+((5/12)*R10) -> 0 | R10: =LLaantal!Y19*Bekostigingsgegevens!V37 -> 0 | S10: =((7/12)*R10)+((5/12)*T10) -> 0 | T10: =LLaantal!AA19*Bekostigingsgegevens!X37 -> 0 | U10: =((7/12)*T10)+((5/12)*V10) -> 0 | V10: =LLaantal!AC19*Bekostigingsgegevens!Z37 -> 0 | W10: =((7/12)*V10)+((5/12)*X10) -> 0 | X10: =LLaantal!AE19*Bekostigingsgegevens!AB37 -> 0 | Y10: =((7/12)*X10)+((5/12)*Z10) -> 0 | Z10: =LLaantal!AG19*Bekostigingsgegevens!AD37 -> 0 | AA10: =((7/12)*Z10)+((5/12)*AB10) -> 0 | AB10: =LLaantal!AI19*Bekostigingsgegevens!AF37 -> 0 | AC10: =((7/12)*AB10)+((5/12)*AD10) -> 0 | AD10: =LLaantal!AK19*Bekostigingsgegevens!AH37 -> 0 | AE10: =((7/12)*AD10)+((5/12)*AF10) -> 0 | AF10: =LLaantal!AM19*Bekostigingsgegevens!AJ37 -> 0 | AG10: 0
E11: categorie 3 (hoog) | G11: =((7/12)*F11)+((5/12)*H11) -> 708673.7792 | H11: =LLaantal!O20*Bekostigingsgegevens!L39 -> 1700817.07 | I11: 1765239.528 | J11: =LLaantal!Q20*Bekostigingsgegevens!N39 -> 1855430.97 | K11: 1959941.008 | L11: =LLaantal!S20*Bekostigingsgegevens!P39 -> 2106255.06 | M11: 2101026.414 | N11: =LLaantal!U20*Bekostigingsgegevens!R39 -> 2093706.31 | O11: 1221328.681 | P11: =LLaantal!W20*Bekostigingsgegevens!T39 -> 0 | Q11: 0 | R11: =LLaantal!Y20*Bekostigingsgegevens!V39 -> 0 | S11: 0 | T11: =LLaantal!AA20*Bekostigingsgegevens!X39 -> 0 | U11: 0 | V11: =LLaantal!AC20*Bekostigingsgegevens!Z39 -> 0 | W11: 0 | X11: =LLaantal!AE20*Bekostigingsgegevens!AB39 -> 0 | Y11: 0 | Z11: =LLaantal!AG20*Bekostigingsgegevens!AD39 -> 0 | AA11: 0 | AB11: =LLaantal!AI20*Bekostigingsgegevens!AF39 -> 0 | AC11: 0 | AD11: =LLaantal!AK20*Bekostigingsgegevens!AH39 -> 0 | AE11: 0 | AF11: =LLaantal!AM20*Bekostigingsgegevens!AJ39 -> 0 | AG11: 0
C13: Afdracht ondersteuningsbekostiging (mat) vso door DUO | G13: =SUM(G15:G17) -> 297952.37 | H13: =(5/12*G13)+(7/12*I13) -> 312586.2142 | I13: =SUM(I15:I17) -> 323038.96 | J13: =(5/12*I13)+(7/12*K13) -> 332758.2908 | K13: =SUM(K15:K17) -> 339700.67 | L13: =(5/12*K13)+(7/12*M13) -> 336389.0517 | M13: =SUM(M15:M17) -> 334023.61 | N13: =(5/12*M13)+(7/12*O13) -> 139176.5042 | O13: =SUM(O15:O17) -> 0 | P13: =(5/12*O13)+(7/12*Q13) -> 0 | Q13: =SUM(Q15:Q17) -> 0 | R13: =(5/12*Q13)+(7/12*S13) -> 0 | S13: =SUM(S15:S17) -> 0 | T13: =(5/12*S13)+(7/12*U13) -> 0 | U13: =SUM(U15:U17) -> 0 | V13: =(5/12*U13)+(7/12*W13) -> 0 | W13: =SUM(W15:W17) -> 0 | X13: =(5/12*W13)+(7/12*Y13) -> 0 | Y13: =SUM(Y15:Y17) -> 0 | Z13: =(5/12*Y13)+(7/12*AA13) -> 0 | AA13: =SUM(AA15:AA17) -> 0 | AB13: =(5/12*AA13)+(7/12*AC13) -> 0 | AC13: =SUM(AC15:AC17) -> 0 | AD13: =(5/12*AC13)+(7/12*AE13) -> 0 | AE13: =SUM(AE15:AE17) -> 0 | AF13: =(5/12*AE13)+(7/12*AG13) -> 0 | AG13: =SUM(AG15:AG17) -> 0
E15: categorie 1 (laag) | G15: =LLaantal!O18*Bekostigingsgegevens!K36 -> 204916.15 | H15: =(5/12)*G15+(7/12)*I15 -> 216143.9867 | I15: =LLaantal!Q18*Bekostigingsgegevens!M36 -> 224163.87 | J15: =(5/12)*I15+(7/12)*K15 -> 226497.3608 | K15: =LLaantal!S18*Bekostigingsgegevens!O36 -> 228164.14 | L15: =(5/12)*K15+(7/12)*M15 -> 225761.53 | M15: =LLaantal!U18*Bekostigingsgegevens!Q36 -> 224045.38 | N15: =(5/12)*M15+(7/12)*O15 -> 93352.24167 | O15: =LLaantal!W18*Bekostigingsgegevens!S36 -> 0 | P15: =(5/12)*O15+(7/12)*Q15 -> 0 | Q15: =LLaantal!Y18*Bekostigingsgegevens!U36 -> 0 | R15: =(5/12)*Q15+(7/12)*S15 -> 0 | S15: =LLaantal!AA18*Bekostigingsgegevens!W36 -> 0 | T15: =(5/12)*S15+(7/12)*U15 -> 0 | U15: =LLaantal!AC18*Bekostigingsgegevens!Y36 -> 0 | V15: =(5/12)*U15+(7/12)*W15 -> 0 | W15: =LLaantal!AE18*Bekostigingsgegevens!AA36 -> 0 | X15: =(5/12)*W15+(7/12)*Y15 -> 0 | Y15: =LLaantal!AG18*Bekostigingsgegevens!AC36 -> 0 | Z15: =(5/12)*Y15+(7/12)*AA15 -> 0 | AA15: =LLaantal!AI18*Bekostigingsgegevens!AE36 -> 0 | AB15: =(5/12)*AA15+(7/12)*AC15 -> 0 | AC15: =LLaantal!AK18*Bekostigingsgegevens!AG36 -> 0 | AD15: =(5/12)*AC15+(7/12)*AE15 -> 0 | AE15: =LLaantal!AM18*Bekostigingsgegevens!AI36 -> 0 | AF15: =(5/12)*AE15+(7/12)*AG15 -> 0 | AG15: =LLaantal!AO18*Bekostigingsgegevens!AK36 -> 0
E16: categorie 2 (midden) | G16: =LLaantal!O19*Bekostigingsgegevens!K38 -> 5717.52 | H16: =(5/12)*G16+(7/12)*I16 -> 5230.95 | I16: =LLaantal!Q19*Bekostigingsgegevens!M38 -> 4883.4 | J16: =(5/12)*I16+(7/12)*K16 -> 6082.680833 | K16: =LLaantal!S19*Bekostigingsgegevens!O38 -> 6939.31 | L16: =(5/12)*K16+(7/12)*M16 -> 6416.544167 | M16: =LLaantal!U19*Bekostigingsgegevens!Q38 -> 6043.14 | N16: =(5/12)*M16+(7/12)*O16 -> 2517.975 | O16: =LLaantal!W19*Bekostigingsgegevens!S38 -> 0 | P16: =(5/12)*O16+(7/12)*Q16 -> 0 | Q16: =LLaantal!Y19*Bekostigingsgegevens!U38 -> 0 | R16: =(5/12)*Q16+(7/12)*S16 -> 0 | S16: =LLaantal!AA19*Bekostigingsgegevens!W38 -> 0 | T16: =(5/12)*S16+(7/12)*U16 -> 0 | U16: =LLaantal!AC19*Bekostigingsgegevens!Y38 -> 0 | V16: =(5/12)*U16+(7/12)*W16 -> 0 | W16: =LLaantal!AE19*Bekostigingsgegevens!AA38 -> 0 | X16: =(5/12)*W16+(7/12)*Y16 -> 0 | Y16: =LLaantal!AG19*Bekostigingsgegevens!AC38 -> 0 | Z16: =(5/12)*Y16+(7/12)*AA16 -> 0 | AA16: =LLaantal!AI19*Bekostigingsgegevens!AE38 -> 0 | AB16: =(5/12)*AA16+(7/12)*AC16 -> 0 | AC16: =LLaantal!AK19*Bekostigingsgegevens!AG38 -> 0 | AD16: =(5/12)*AC16+(7/12)*AE16 -> 0 | AE16: =LLaantal!AM19*Bekostigingsgegevens!AI38 -> 0 | AF16: =(5/12)*AE16+(7/12)*AG16 -> 0 | AG16: =LLaantal!AO19*Bekostigingsgegevens!AK38 -> 0
E17: categorie 3 (hoog) | G17: =LLaantal!O20*Bekostigingsgegevens!K40 -> 87318.7 | H17: 91211.2775 | I17: =LLaantal!Q20*Bekostigingsgegevens!M40 -> 93991.69 | J17: 100178.2492 | K17: =LLaantal!S20*Bekostigingsgegevens!O40 -> 104597.22 | L17: 104210.9775 | M17: =LLaantal!U20*Bekostigingsgegevens!Q40 -> 103935.09 | N17: 43306.2875 | O17: =LLaantal!W20*Bekostigingsgegevens!S40 -> 0 | P17: 0 | Q17: =LLaantal!Y20*Bekostigingsgegevens!U40 -> 0 | R17: 0 | S17: =LLaantal!AA20*Bekostigingsgegevens!W40 -> 0 | T17: 0 | U17: =LLaantal!AC20*Bekostigingsgegevens!Y40 -> 0 | V17: 0 | W17: =LLaantal!AE20*Bekostigingsgegevens!AA40 -> 0 | X17: 0 | Y17: =LLaantal!AG20*Bekostigingsgegevens!AC40 -> 0 | Z17: 0 | AA17: =LLaantal!AI20*Bekostigingsgegevens!AE40 -> 0 | AB17: 0 | AC17: =LLaantal!AK20*Bekostigingsgegevens!AG40 -> 0 | AD17: 0 | AE17: =LLaantal!AM20*Bekostigingsgegevens!AI40 -> 0 | AF17: 0 | AG17: =LLaantal!AO20*Bekostigingsgegevens!AK40 -> 0
C20: Afdracht ondersteuningsbekostiging (pers+mat) vso door swv ivm groei | G20: =G21+G27 -> 0 | H20: =H21+H27 -> 0 | I20: 0 | J20: 0 | K20: 0 | L20: 0 | M20: 0 | N20: 0 | O20: 0 | P20: 0 | Q20: 0 | R20: =R21+R27 -> 0 | S20: =S21+S27 -> 0 | T20: =T21+T27 -> 0 | U20: =U21+U27 -> 0 | V20: =V21+V27 -> 0 | W20: =W21+W27 -> 0 | X20: 0 | Y20: 0 | Z20: =Z21+Z27 -> 0 | AA20: =AA21+AA27 -> 0 | AB20: =AB21+AB27 -> 0 | AC20: =AC21+AC27 -> 0 | AD20: =AD21+AD27 -> 0 | AE20: =AE21+AE27 -> 0 | AF20: 0 | AG20: 0
C21: Groei: afdracht ondersteuningsbekostiging (pers) vso door swv | G21: =(7/12*F21)+(5/12*H21) -> 0 | H21: =SUM(H23:H25) -> 0 | I21: =(7/12*H21)+(5/12*J21) -> 0 | J21: 0 | K21: =(7/12*J21)+(5/12*L21) -> 0 | L21: 0 | M21: =(7/12*L21)+(5/12*N21) -> 0 | N21: 0 | O21: =(7/12*N21)+(5/12*P21) -> 0 | P21: 0 | Q21: =(7/12*P21)+(5/12*R21) -> 0 | R21: 0 | S21: =(7/12*R21)+(5/12*T21) -> 0 | T21: =SUM(T23:T25) -> 0 | U21: =(7/12*T21)+(5/12*V21) -> 0 | V21: =SUM(V23:V25) -> 0 | W21: =(7/12*V21)+(5/12*X21) -> 0 | X21: =SUM(X23:X25) -> 0 | Y21: =(7/12*X21)+(5/12*Z21) -> 0 | Z21: =SUM(Z23:Z25) -> 0 | AA21: =(7/12*Z21)+(5/12*AB21) -> 0 | AB21: =SUM(AB23:AB25) -> 0 | AC21: =(7/12*AB21)+(5/12*AD21) -> 0 | AD21: =SUM(AD23:AD25) -> 0 | AE21: =(7/12*AD21)+(5/12*AF21) -> 0 | AF21: =SUM(AF23:AF25) -> 0 | AG21: =(7/12*AF21)+(5/12*AH21) -> 0
E23: categorie 1 (laag) | G23: =(7/12*F23)+(5/12*H23) -> 0 | H23: =LLaantal!O25*Bekostigingsgegevens!L35 -> 0 | I23: =(7/12*H23)+(5/12*J23) -> 0 | J23: =LLaantal!Q25*Bekostigingsgegevens!N35 -> 0 | K23: =(7/12*J23)+(5/12*L23) -> 0 | L23: =LLaantal!S25*Bekostigingsgegevens!P35 -> 0 | M23: =(7/12*L23)+(5/12*N23) -> 0 | N23: =LLaantal!U25*Bekostigingsgegevens!R35 -> 0 | O23: =(7/12*N23)+(5/12*P23) -> 0 | P23: =LLaantal!W25*Bekostigingsgegevens!T35 -> 0 | Q23: =(7/12*P23)+(5/12*R23) -> 0 | R23: =LLaantal!Y25*Bekostigingsgegevens!V35 -> 0 | S23: =(7/12*R23)+(5/12*T23) -> 0 | T23: =LLaantal!AA25*Bekostigingsgegevens!X35 -> 0 | U23: =(7/12*T23)+(5/12*V23) -> 0 | V23: =LLaantal!AC25*Bekostigingsgegevens!Z35 -> 0 | W23: =(7/12*V23)+(5/12*X23) -> 0 | X23: =LLaantal!AE25*Bekostigingsgegevens!AB35 -> 0 | Y23: =(7/12*X23)+(5/12*Z23) -> 0 | Z23: =LLaantal!AG25*Bekostigingsgegevens!AD35 -> 0 | AA23: =(7/12*Z23)+(5/12*AB23) -> 0 | AB23: =LLaantal!AI25*Bekostigingsgegevens!AF35 -> 0 | AC23: =(7/12*AB23)+(5/12*AD23) -> 0 | AD23: =LLaantal!AK25*Bekostigingsgegevens!AH35 -> 0 | AE23: =(7/12*AD23)+(5/12*AF23) -> 0 | AF23: =LLaantal!AM25*Bekostigingsgegevens!AJ35 -> 0 | AG23: =(7/12*AF23)+(5/12*AH23) -> 0
E24: categorie 2 (midden) | G24: =(7/12*F24)+(5/12*H24) -> 0 | H24: =LLaantal!O26*Bekostigingsgegevens!L37 -> 0 | I24: =(7/12*H24)+(5/12*J24) -> 0 | J24: =LLaantal!Q26*Bekostigingsgegevens!N37 -> 0 | K24: =(7/12*J24)+(5/12*L24) -> 0 | L24: =LLaantal!S26*Bekostigingsgegevens!P37 -> 0 | M24: =(7/12*L24)+(5/12*N24) -> 0 | N24: =LLaantal!U26*Bekostigingsgegevens!R37 -> 0 | O24: =(7/12*N24)+(5/12*P24) -> 0 | P24: =LLaantal!W26*Bekostigingsgegevens!T37 -> 0 | Q24: =(7/12*P24)+(5/12*R24) -> 0 | R24: =LLaantal!Y26*Bekostigingsgegevens!V37 -> 0 | S24: =(7/12*R24)+(5/12*T24) -> 0 | T24: =LLaantal!AA26*Bekostigingsgegevens!X37 -> 0 | U24: =(7/12*T24)+(5/12*V24) -> 0 | V24: =LLaantal!AC26*Bekostigingsgegevens!Z37 -> 0 | W24: =(7/12*V24)+(5/12*X24) -> 0 | X24: =LLaantal!AE26*Bekostigingsgegevens!AB37 -> 0 | Y24: =(7/12*X24)+(5/12*Z24) -> 0 | Z24: =LLaantal!AG26*Bekostigingsgegevens!AD37 -> 0 | AA24: =(7/12*Z24)+(5/12*AB24) -> 0 | AB24: =LLaantal!AI26*Bekostigingsgegevens!AF37 -> 0 | AC24: =(7/12*AB24)+(5/12*AD24) -> 0 | AD24: =LLaantal!AK26*Bekostigingsgegevens!AH37 -> 0 | AE24: =(7/12*AD24)+(5/12*AF24) -> 0 | AF24: =LLaantal!AM26*Bekostigingsgegevens!AJ37 -> 0 | AG24: =(7/12*AF24)+(5/12*AH24) -> 0
E25: categorie 3 (hoog) | G25: =(7/12*F25)+(5/12*H25) -> 0 | H25: =LLaantal!O27*Bekostigingsgegevens!L39 -> 0 | I25: =(7/12*H25)+(5/12*J25) -> 0 | J25: =LLaantal!Q27*Bekostigingsgegevens!N39 -> 0 | K25: =(7/12*J25)+(5/12*L25) -> 0 | L25: =LLaantal!S27*Bekostigingsgegevens!P39 -> 0 | M25: =(7/12*L25)+(5/12*N25) -> 0 | N25: =LLaantal!U27*Bekostigingsgegevens!R39 -> 0 | O25: =(7/12*N25)+(5/12*P25) -> 0 | P25: =LLaantal!W27*Bekostigingsgegevens!T39 -> 0 | Q25: =(7/12*P25)+(5/12*R25) -> 0 | R25: =LLaantal!Y27*Bekostigingsgegevens!V39 -> 0 | S25: =(7/12*R25)+(5/12*T25) -> 0 | T25: =LLaantal!AA27*Bekostigingsgegevens!X39 -> 0 | U25: =(7/12*T25)+(5/12*V25) -> 0 | V25: =LLaantal!AC27*Bekostigingsgegevens!Z39 -> 0 | W25: =(7/12*V25)+(5/12*X25) -> 0 | X25: =LLaantal!AE27*Bekostigingsgegevens!AB39 -> 0 | Y25: =(7/12*X25)+(5/12*Z25) -> 0 | Z25: =LLaantal!AG27*Bekostigingsgegevens!AD39 -> 0 | AA25: =(7/12*Z25)+(5/12*AB25) -> 0 | AB25: =LLaantal!AI27*Bekostigingsgegevens!AF39 -> 0 | AC25: =(7/12*AB25)+(5/12*AD25) -> 0 | AD25: =LLaantal!AK27*Bekostigingsgegevens!AH39 -> 0 | AE25: =(7/12*AD25)+(5/12*AF25) -> 0 | AF25: =LLaantal!AM27*Bekostigingsgegevens!AJ39 -> 0 | AG25: =(7/12*AF25)+(5/12*AH25) -> 0
C27: Groei: afdracht ondersteuningsbekostiging (mat) vso door swv* | G27: =SUM(G29:G31) -> 0 | H27: =(5/12*G27)+(7/12*I27) -> 0 | I27: =SUM(I29:I31) -> 0 | J27: =(5/12*I27)+(7/12*K27) -> 0 | K27: 0 | L27: =(5/12*K27)+(7/12*M27) -> 0 | M27: 0 | N27: =(5/12*M27)+(7/12*O27) -> 0 | O27: 0 | P27: =(5/12*O27)+(7/12*Q27) -> 0 | Q27: 0 | R27: =(5/12*Q27)+(7/12*S27) -> 0 | S27: 0 | T27: =(5/12*S27)+(7/12*U27) -> 0 | U27: =SUM(U29:U31) -> 0 | V27: =(5/12*U27)+(7/12*W27) -> 0 | W27: =SUM(W29:W31) -> 0 | X27: =(5/12*W27)+(7/12*Y27) -> 0 | Y27: =SUM(Y29:Y31) -> 0 | Z27: =(5/12*Y27)+(7/12*AA27) -> 0 | AA27: =SUM(AA29:AA31) -> 0 | AB27: =(5/12*AA27)+(7/12*AC27) -> 0 | AC27: =SUM(AC29:AC31) -> 0 | AD27: =(5/12*AC27)+(7/12*AE27) -> 0 | AE27: =SUM(AE29:AE31) -> 0 | AF27: =(5/12*AE27)+(7/12*AG27) -> 0 | AG27: =SUM(AG29:AG31) -> 0
E29: categorie 1 (laag) | G29: =LLaantal!O25*Bekostigingsgegevens!K36 -> 0 | H29: =(5/12*G29)+(7/12*I29) -> 0 | I29: =LLaantal!Q25*Bekostigingsgegevens!M36 -> 0 | J29: =(5/12*I29)+(7/12*K29) -> 0 | K29: =LLaantal!S25*Bekostigingsgegevens!O36 -> 0 | L29: =(5/12*K29)+(7/12*M29) -> 0 | M29: =LLaantal!U25*Bekostigingsgegevens!Q36 -> 0 | N29: =(5/12*M29)+(7/12*O29) -> 0 | O29: =LLaantal!W25*Bekostigingsgegevens!S36 -> 0 | P29: =(5/12*O29)+(7/12*Q29) -> 0 | Q29: =LLaantal!Y25*Bekostigingsgegevens!U36 -> 0 | R29: =(5/12*Q29)+(7/12*S29) -> 0 | S29: =LLaantal!AA25*Bekostigingsgegevens!W36 -> 0 | T29: =(5/12*S29)+(7/12*U29) -> 0 | U29: =LLaantal!AC25*Bekostigingsgegevens!Y36 -> 0 | V29: =(5/12*U29)+(7/12*W29) -> 0 | W29: =LLaantal!AE25*Bekostigingsgegevens!AA36 -> 0 | X29: =(5/12*W29)+(7/12*Y29) -> 0 | Y29: =LLaantal!AG25*Bekostigingsgegevens!AC36 -> 0 | Z29: =(5/12*Y29)+(7/12*AA29) -> 0 | AA29: =LLaantal!AI25*Bekostigingsgegevens!AE36 -> 0 | AB29: =(5/12*AA29)+(7/12*AC29) -> 0 | AC29: =LLaantal!AK25*Bekostigingsgegevens!AG36 -> 0 | AD29: =(5/12*AC29)+(7/12*AE29) -> 0 | AE29: =LLaantal!AM25*Bekostigingsgegevens!AI36 -> 0 | AF29: =(5/12*AE29)+(7/12*AG29) -> 0 | AG29: =LLaantal!AO25*Bekostigingsgegevens!AK36 -> 0
E30: categorie 2 (midden) | G30: =LLaantal!O26*Bekostigingsgegevens!K38 -> 0 | H30: =(5/12*G30)+(7/12*I30) -> 0 | I30: =LLaantal!Q26*Bekostigingsgegevens!M38 -> 0 | J30: =(5/12*I30)+(7/12*K30) -> 0 | K30: =LLaantal!S26*Bekostigingsgegevens!O38 -> 0 | L30: =(5/12*K30)+(7/12*M30) -> 0 | M30: =LLaantal!U26*Bekostigingsgegevens!Q38 -> 0 | N30: =(5/12*M30)+(7/12*O30) -> 0 | O30: =LLaantal!W26*Bekostigingsgegevens!S38 -> 0 | P30: =(5/12*O30)+(7/12*Q30) -> 0 | Q30: =LLaantal!Y26*Bekostigingsgegevens!U38 -> 0 | R30: =(5/12*Q30)+(7/12*S30) -> 0 | S30: =LLaantal!AA26*Bekostigingsgegevens!W38 -> 0 | T30: =(5/12*S30)+(7/12*U30) -> 0 | U30: =LLaantal!AC26*Bekostigingsgegevens!Y38 -> 0 | V30: =(5/12*U30)+(7/12*W30) -> 0 | W30: =LLaantal!AE26*Bekostigingsgegevens!AA38 -> 0 | X30: =(5/12*W30)+(7/12*Y30) -> 0 | Y30: =LLaantal!AG26*Bekostigingsgegevens!AC38 -> 0 | Z30: =(5/12*Y30)+(7/12*AA30) -> 0 | AA30: =LLaantal!AI26*Bekostigingsgegevens!AE38 -> 0 | AB30: =(5/12*AA30)+(7/12*AC30) -> 0 | AC30: =LLaantal!AK26*Bekostigingsgegevens!AG38 -> 0 | AD30: =(5/12*AC30)+(7/12*AE30) -> 0 | AE30: =LLaantal!AM26*Bekostigingsgegevens!AI38 -> 0 | AF30: =(5/12*AE30)+(7/12*AG30) -> 0 | AG30: =LLaantal!AO26*Bekostigingsgegevens!AK38 -> 0
E31: categorie 3 (hoog) | G31: =LLaantal!O27*Bekostigingsgegevens!K40 -> 0 | H31: =(5/12*G31)+(7/12*I31) -> 0 | I31: =LLaantal!Q27*Bekostigingsgegevens!M40 -> 0 | J31: =(5/12*I31)+(7/12*K31) -> 0 | K31: =LLaantal!S27*Bekostigingsgegevens!O40 -> 0 | L31: =(5/12*K31)+(7/12*M31) -> 0 | M31: =LLaantal!U27*Bekostigingsgegevens!Q40 -> 0 | N31: =(5/12*M31)+(7/12*O31) -> 0 | O31: =LLaantal!W27*Bekostigingsgegevens!S40 -> 0 | P31: =(5/12*O31)+(7/12*Q31) -> 0 | Q31: =LLaantal!Y27*Bekostigingsgegevens!U40 -> 0 | R31: =(5/12*Q31)+(7/12*S31) -> 0 | S31: =LLaantal!AA27*Bekostigingsgegevens!W40 -> 0 | T31: =(5/12*S31)+(7/12*U31) -> 0 | U31: =LLaantal!AC27*Bekostigingsgegevens!Y40 -> 0 | V31: =(5/12*U31)+(7/12*W31) -> 0 | W31: =LLaantal!AE27*Bekostigingsgegevens!AA40 -> 0 | X31: =(5/12*W31)+(7/12*Y31) -> 0 | Y31: =LLaantal!AG27*Bekostigingsgegevens!AC40 -> 0 | Z31: =(5/12*Y31)+(7/12*AA31) -> 0 | AA31: =LLaantal!AI27*Bekostigingsgegevens!AE40 -> 0 | AB31: =(5/12*AA31)+(7/12*AC31) -> 0 | AC31: =LLaantal!AK27*Bekostigingsgegevens!AG40 -> 0 | AD31: =(5/12*AC31)+(7/12*AE31) -> 0 | AE31: =LLaantal!AM27*Bekostigingsgegevens!AI40 -> 0 | AF31: =(5/12*AE31)+(7/12*AG31) -> 0 | AG31: =LLaantal!AO27*Bekostigingsgegevens!AK40 -> 0
C34: Afdracht ondersteuningsbekostiging lwoo | G34: =G35+G47 -> 6804307.79 | H34: 6672346.479 | I34: 6578088.4 | J34: 6593187.307 | K34: 6603972.24 | L34: 6750653.18 | M34: 6855425.28 | N34: 2856427.2 | O34: 0 | P34: 0 | Q34: =Q35+Q47 -> 0 | R34: 0 | S34: =S35+S47 -> 0 | T34: =T35+T47 -> 0 | U34: =U35+U47 -> 0 | V34: =V35+V47 -> 0 | W34: =W35+W47 -> 0 | X34: 0 | Y34: 0 | Z34: =Z35+Z47 -> 0 | AA34: =AA35+AA47 -> 0 | AB34: =AB35+AB47 -> 0 | AC34: =AC35+AC47 -> 0 | AD34: =AD35+AD47 -> 0 | AE34: =AE35+AE47 -> 0 | AF34: 0 | AG34: 0
C35: Afdracht ondersteuningsbekostiging lwoo | G35: =SUM(G37) -> 6804307.79 | H35: =(5/12*G35)+(7/12*I35) -> 6672346.479 | I35: =SUM(I37) -> 6578088.4 | J35: =(5/12*I35)+(7/12*K35) -> 6593187.307 | K35: =SUM(K37) -> 6603972.24 | L35: =(5/12*K35)+(7/12*M35) -> 6750653.18 | M35: =SUM(M37) -> 6855425.28 | N35: =(5/12*M35)+(7/12*O35) -> 2856427.2 | O35: =SUM(O37) -> 0 | P35: =(5/12*O35)+(7/12*Q35) -> 0 | Q35: =SUM(Q37) -> 0 | R35: =(5/12*Q35)+(7/12*S35) -> 0 | S35: =SUM(S37) -> 0 | T35: =(5/12*S35)+(7/12*U35) -> 0 | U35: =SUM(U37) -> 0 | V35: =(5/12*U35)+(7/12*W35) -> 0 | W35: =SUM(W37) -> 0 | X35: =(5/12*W35)+(7/12*Y35) -> 0 | Y35: =SUM(Y37) -> 0 | Z35: =(5/12*Y35)+(7/12*AA35) -> 0 | AA35: =SUM(AA37) -> 0 | AB35: =(5/12*AA35)+(7/12*AC35) -> 0 | AC35: =SUM(AC37) -> 0 | AD35: =(5/12*AC35)+(7/12*AE35) -> 0 | AE35: =SUM(AE37) -> 0 | AF35: =(5/12*AE35)+(7/12*AG35) -> 0 | AG35: =SUM(AG37) -> 0
G37: =LLaantal!O6*Bekostigingsgegevens!K11 -> 6804307.79 | H37: =LLaantal!O46*Bekostigingsgegevens!L63 -> 0 | I37: =LLaantal!Q6*Bekostigingsgegevens!M11 -> 6578088.4 | J37: =LLaantal!Q46*Bekostigingsgegevens!N63 -> 0 | K37: =LLaantal!S6*Bekostigingsgegevens!O11 -> 6603972.24 | L37: =LLaantal!S46*Bekostigingsgegevens!P63 -> 0 | M37: =LLaantal!U6*Bekostigingsgegevens!Q11 -> 6855425.28 | N37: =LLaantal!U46*Bekostigingsgegevens!R63 -> 0 | O37: =LLaantal!W6*Bekostigingsgegevens!S11 -> 0 | P37: =LLaantal!W46*Bekostigingsgegevens!T63 -> 0 | Q37: =LLaantal!Y6*Bekostigingsgegevens!U11 -> 0 | R37: =LLaantal!Y46*Bekostigingsgegevens!V63 -> 0 | S37: =LLaantal!AA6*Bekostigingsgegevens!W11 -> 0 | T37: =LLaantal!AA46*Bekostigingsgegevens!X63 -> 0 | U37: =LLaantal!AC6*Bekostigingsgegevens!Y11 -> 0 | V37: =LLaantal!AC46*Bekostigingsgegevens!Z63 -> 0 | W37: =LLaantal!AE6*Bekostigingsgegevens!AA11 -> 0 | X37: =LLaantal!AE46*Bekostigingsgegevens!AB63 -> 0 | Y37: =LLaantal!AG6*Bekostigingsgegevens!AC11 -> 0 | Z37: =LLaantal!AG46*Bekostigingsgegevens!AD63 -> 0 | AA37: =LLaantal!AI6*Bekostigingsgegevens!AE11 -> 0 | AB37: =LLaantal!AI46*Bekostigingsgegevens!AF63 -> 0 | AC37: =LLaantal!AK6*Bekostigingsgegevens!AG11 -> 0 | AD37: =LLaantal!AK46*Bekostigingsgegevens!AH63 -> 0 | AE37: =LLaantal!AM6*Bekostigingsgegevens!AI11 -> 0 | AF37: =LLaantal!AM46*Bekostigingsgegevens!AJ63 -> 0 | AG37: =LLaantal!AO6*Bekostigingsgegevens!AK11 -> 0
C39: Afdracht ondersteuningsbekostiging pro | G39: =G40+G52 -> 2073359.12 | H39: 2086027.358 | I39: 2095076.1 | J39: 2023499.875 | K39: 1972374 | L39: 2111272.165 | M39: 2210485.14 | N39: 921035.475 | O39: 0 | P39: 0 | Q39: 0 | R39: 0 | S39: =S40+S52 -> 0 | T39: =T40+T52 -> 0 | U39: =U40+U52 -> 0 | V39: =V40+V52 -> 0 | W39: =W40+W52 -> 0 | X39: 0 | Y39: 0 | Z39: =Z40+Z52 -> 0 | AA39: =AA40+AA52 -> 0 | AB39: =AB40+AB52 -> 0 | AC39: =AC40+AC52 -> 0 | AD39: =AD40+AD52 -> 0 | AE39: =AE40+AE52 -> 0 | AF39: 0 | AG39: 0
C40: Afdracht ondersteuningsbekostiging pro | G40: =SUM(G42) -> 2073359.12 | H40: =(5/12*G40)+(7/12*I40) -> 2086027.358 | I40: =SUM(I42) -> 2095076.1 | J40: =(5/12*I40)+(7/12*K40) -> 2023499.875 | K40: =SUM(K42) -> 1972374 | L40: =(5/12*K40)+(7/12*M40) -> 2111272.165 | M40: =SUM(M42) -> 2210485.14 | N40: =(5/12*M40)+(7/12*O40) -> 921035.475 | O40: =SUM(O42) -> 0 | P40: =(5/12*O40)+(7/12*Q40) -> 0 | Q40: =SUM(Q42) -> 0 | R40: =(5/12*Q40)+(7/12*S40) -> 0 | S40: =SUM(S42) -> 0 | T40: =(5/12*S40)+(7/12*U40) -> 0 | U40: =SUM(U42) -> 0 | V40: =(5/12*U40)+(7/12*W40) -> 0 | W40: =SUM(W42) -> 0 | X40: =(5/12*W40)+(7/12*Y40) -> 0 | Y40: =SUM(Y42) -> 0 | Z40: =(5/12*Y40)+(7/12*AA40) -> 0 | AA40: =SUM(AA42) -> 0 | AB40: =(5/12*AA40)+(7/12*AC40) -> 0 | AC40: =SUM(AC42) -> 0 | AD40: =(5/12*AC40)+(7/12*AE40) -> 0 | AE40: =SUM(AE42) -> 0 | AF40: =(5/12*AE40)+(7/12*AG40) -> 0 | AG40: =SUM(AG42) -> 0
G42: =LLaantal!O7*Bekostigingsgegevens!K12 -> 2073359.12 | H42: =LLaantal!O51*Bekostigingsgegevens!L68 -> 0 | I42: =LLaantal!Q7*Bekostigingsgegevens!M12 -> 2095076.1 | J42: =LLaantal!Q51*Bekostigingsgegevens!N68 -> 0 | K42: =LLaantal!S7*Bekostigingsgegevens!O12 -> 1972374 | L42: =LLaantal!S51*Bekostigingsgegevens!P68 -> 0 | M42: =LLaantal!U7*Bekostigingsgegevens!Q12 -> 2210485.14 | N42: =LLaantal!U51*Bekostigingsgegevens!R68 -> 0 | O42: =LLaantal!W7*Bekostigingsgegevens!S12 -> 0 | P42: =LLaantal!W51*Bekostigingsgegevens!T68 -> 0 | Q42: =LLaantal!Y7*Bekostigingsgegevens!U12 -> 0 | R42: =LLaantal!Y51*Bekostigingsgegevens!V68 -> 0 | S42: =LLaantal!AA7*Bekostigingsgegevens!W12 -> 0 | T42: =LLaantal!AA51*Bekostigingsgegevens!X68 -> 0 | U42: =LLaantal!AC7*Bekostigingsgegevens!Y12 -> 0 | V42: =LLaantal!AC51*Bekostigingsgegevens!Z68 -> 0 | W42: =LLaantal!AE7*Bekostigingsgegevens!AA12 -> 0 | X42: =LLaantal!AE51*Bekostigingsgegevens!AB68 -> 0 | Y42: =LLaantal!AG7*Bekostigingsgegevens!AC12 -> 0 | Z42: =LLaantal!AG51*Bekostigingsgegevens!AD68 -> 0 | AA42: =LLaantal!AI7*Bekostigingsgegevens!AE12 -> 0 | AB42: =LLaantal!AI51*Bekostigingsgegevens!AF68 -> 0 | AC42: =LLaantal!AK7*Bekostigingsgegevens!AG12 -> 0 | AD42: =LLaantal!AK51*Bekostigingsgegevens!AH68 -> 0 | AE42: =LLaantal!AM7*Bekostigingsgegevens!AI12 -> 0 | AF42: =LLaantal!AM51*Bekostigingsgegevens!AJ68 -> 0 | AG42: =LLaantal!AO7*Bekostigingsgegevens!AK12 -> 0
C44: Totaal afdracht ondersteuningsbekostiging | E44: (+/+) | G44: =SUM(G6+G20+G34+G39) -> 11302182.9 | H44: =SUM(H6+H20+H34+H39) -> 14174712.74 | I44: 14312280.59 | J44: 14562776.81 | K44: 14709539.87 | L44: 15244033.62 | M44: 15405334.54 | N44: 9865593.489 | O44: 3470223.348 | P44: 0 | Q44: 0 | R44: 0 | S44: 0 | T44: 0 | U44: 0 | V44: 0 | W44: 0 | X44: 0 | Y44: 0 | Z44: =SUM(Z6+Z20+Z34+Z39) -> 0 | AA44: 0 | AB44: 0 | AC44: 0 | AD44: 0 | AE44: 0 | AF44: 0 | AG44: 0
C48: Afdracht basisbekostiging vso door swv ivm groei | G48: =G49+G53 -> 0 | H48: 0 | I48: 0 | J48: 0 | K48: 0 | L48: 0 | M48: 0 | N48: 0 | O48: 0 | P48: 0 | Q48: 0 | R48: 0 | S48: =S49+S53 -> 0 | T48: 0 | U48: =U49+U53 -> 0 | V48: =V49+V53 -> 0 | W48: =W49+W53 -> 0 | X48: 0 | Y48: 0 | Z48: 0 | AA48: =AA49+AA53 -> 0 | AB48: =AB49+AB53 -> 0 | AC48: =AC49+AC53 -> 0 | AD48: =AD49+AD53 -> 0 | AE48: =AE49+AE53 -> 0 | AF48: 0 | AG48: 0
C49: Groei: afdracht basisbekostiging (pers) vso door swv* | G49: =7/12*F49+5/12*H49 -> 0 | H49: =H51 -> 0 | I49: =7/12*H49+5/12*J49 -> 0 | J49: 0 | K49: =7/12*J49+5/12*L49 -> 0 | L49: 0 | M49: =7/12*L49+5/12*N49 -> 0 | N49: 0 | O49: =7/12*N49+5/12*P49 -> 0 | P49: 0 | Q49: =7/12*P49+5/12*R49 -> 0 | R49: 0 | S49: =7/12*R49+5/12*T49 -> 0 | T49: =T51 -> 0 | U49: =7/12*T49+5/12*V49 -> 0 | V49: =V51 -> 0 | W49: =7/12*V49+5/12*X49 -> 0 | X49: =X51 -> 0 | Y49: =7/12*X49+5/12*Z49 -> 0 | Z49: =Z51 -> 0 | AA49: =7/12*Z49+5/12*AB49 -> 0 | AB49: =AB51 -> 0 | AC49: =7/12*AB49+5/12*AD49 -> 0 | AD49: =AD51 -> 0 | AE49: =7/12*AD49+5/12*AF49 -> 0 | AF49: =AF51 -> 0 | AG49: =7/12*AF49+5/12*AH49 -> 0
C51: =C49 -> Groei: afdracht basisbekostiging (pers) vso door swv* | H51: =LLaantal!O28*(Bekostigingsgegevens!L43+Bekostigingsgegevens!L44) -> 0 | J51: =LLaantal!Q28*(Bekostigingsgegevens!N43+Bekostigingsgegevens!N44) -> 0 | L51: =LLaantal!S28*(Bekostigingsgegevens!P43+Bekostigingsgegevens!P44) -> 0 | N51: =LLaantal!U28*(Bekostigingsgegevens!R43+Bekostigingsgegevens!R44) -> 0 | P51: =LLaantal!W28*(Bekostigingsgegevens!T43+Bekostigingsgegevens!T44) -> 0 | R51: =LLaantal!Y28*(Bekostigingsgegevens!V43+Bekostigingsgegevens!V44) -> 0 | T51: =LLaantal!AA28*(Bekostigingsgegevens!X43+Bekostigingsgegevens!X44) -> 0 | V51: =LLaantal!AC28*(Bekostigingsgegevens!Z43+Bekostigingsgegevens!Z44) -> 0 | X51: =LLaantal!AE28*(Bekostigingsgegevens!AB43+Bekostigingsgegevens!AB44) -> 0 | Z51: =LLaantal!AG28*(Bekostigingsgegevens!AD43+Bekostigingsgegevens!AD44) -> 0 | AB51: =LLaantal!AI28*(Bekostigingsgegevens!AF43+Bekostigingsgegevens!AF44) -> 0 | AD51: =LLaantal!AK28*(Bekostigingsgegevens!AH43+Bekostigingsgegevens!AH44) -> 0 | AF51: =LLaantal!AM28*(Bekostigingsgegevens!AJ43+Bekostigingsgegevens!AJ44) -> 0
C53: Groei: afdracht basisbekostiging (mat) vso door swv* | G53: =G55 -> 0 | H53: =5/12*G53+7/12*I53 -> 0 | I53: =I55 -> 0 | J53: =5/12*I53+7/12*K53 -> 0 | K53: =K55 -> 0 | L53: =5/12*K53+7/12*M53 -> 0 | M53: =M55 -> 0 | N53: =5/12*M53+7/12*O53 -> 0 | O53: =O55 -> 0 | P53: =5/12*O53+7/12*Q53 -> 0 | Q53: =Q55 -> 0 | R53: =5/12*Q53+7/12*S53 -> 0 | S53: =S55 -> 0 | T53: =5/12*S53+7/12*U53 -> 0 | U53: =U55 -> 0 | V53: =5/12*U53+7/12*W53 -> 0 | W53: =W55 -> 0 | X53: =5/12*W53+7/12*Y53 -> 0 | Y53: =Y55 -> 0 | Z53: =5/12*Y53+7/12*AA53 -> 0 | AA53: =AA55 -> 0 | AB53: =5/12*AA53+7/12*AC53 -> 0 | AC53: =AC55 -> 0 | AD53: =5/12*AC53+7/12*AE53 -> 0 | AE53: =AE55 -> 0 | AF53: =5/12*AE53+7/12*AG53 -> 0 | AG53: =AG55 -> 0
C55: =C53 -> Groei: afdracht basisbekostiging (mat) vso door swv* | G55: =LLaantal!O28*Bekostigingsgegevens!K45 -> 0 | I55: =LLaantal!Q28*Bekostigingsgegevens!M45 -> 0 | K55: =LLaantal!S28*Bekostigingsgegevens!O45 -> 0 | M55: =LLaantal!U28*Bekostigingsgegevens!Q45 -> 0 | O55: =LLaantal!W28*Bekostigingsgegevens!S45 -> 0 | Q55: =LLaantal!Y28*Bekostigingsgegevens!U45 -> 0 | S55: =LLaantal!AA28*Bekostigingsgegevens!W45 -> 0 | U55: =LLaantal!AC28*Bekostigingsgegevens!Y45 -> 0 | W55: =LLaantal!AE28*Bekostigingsgegevens!AA45 -> 0 | Y55: =LLaantal!AG28*Bekostigingsgegevens!AC45 -> 0 | AA55: =LLaantal!AI28*Bekostigingsgegevens!AE45 -> 0 | AC55: =LLaantal!AK28*Bekostigingsgegevens!AG45 -> 0 | AE55: =LLaantal!AM28*Bekostigingsgegevens!AI45 -> 0 | AG55: =LLaantal!AO28*Bekostigingsgegevens!AK45 -> 0
C59: Totaal afdrachten | E59: (+/+) | G59: =G44+G48 -> 11302182.9 | H59: 14174712.74 | I59: 14312280.59 | J59: 14562776.81 | K59: 14709539.87 | L59: 15244033.62 | M59: 15405334.54 | N59: 9865593.489 | O59: 3470223.348 | P59: 0 | Q59: 0 | R59: 0 | S59: 0 | T59: 0 | U59: 0 | V59: 0 | W59: 0 | X59: 0 | Y59: 0 | Z59: =Z44+Z48 -> 0 | AA59: 0 | AB59: 0 | AC59: 0 | AD59: 0 | AE59: 0 | AF59: 0 | AG59: 0
C62: Lasten uitvoering ondersteuningsplan
C63: Programma's:
C64: =INDIRECT("'Programma''s'!L3") -> 0 | D64: =IF(LEN(INDIRECT("C65"))>1,"Zichtbaar", "Onzichtbaar") -> Onzichtbaar | E64: =INDIRECT("'Programma''s'!J3") -> 0 | G64: =IFERROR(INDIRECT("'" & $E64 & "'!" &verwijzing!H$56),0) -> 0 | H64: =IFERROR(INDIRECT("'" & $E64 & "'!" &verwijzing!I$56),0) -> 0 | I64: =IFERROR(INDIRECT("'" & $E64 & "'!" &verwijzing!J$56),0) -> 0 | J64: =IFERROR(INDIRECT("'" & $E64 & "'!" &verwijzing!K$56),0) -> 0 | K64: =IFERROR(INDIRECT("'" & $E64 & "'!" &verwijzing!L$56),0) -> 0 | L64: =IFERROR(INDIRECT("'" & $E64 & "'!" &verwijzing!M$56),0) -> 0 | M64: =IFERROR(INDIRECT("'" & $E64 & "'!" & verwijzing!N$56),0) -> 0 | N64: =IFERROR(INDIRECT("'" & $E64 & "'!" & verwijzing!P$56),0) -> 0 | O64: =IFERROR(INDIRECT("'" & $E64 & "'!" & verwijzing!Q$56),0) -> 0 | P64: =IFERROR(INDIRECT("'" & $E64 & "'!" & verwijzing!R$56),0) -> 0 | Q64: =IFERROR(INDIRECT("'" & $E64 & "'!" & verwijzing!S$56),0) -> 0 | R64: =IFERROR(INDIRECT("'" & $E64 & "'!" & verwijzing!T$56),0) -> 0 | S64: =IFERROR(INDIRECT("'" & $E64 & "'!" & verwijzing!U$56),0) -> 0 | T64: =IFERROR(INDIRECT("'" & $E64 & "'!" & verwijzing!V$56),0) -> 0 | U64: =IFERROR(INDIRECT("'" & $E64 & "'!" & verwijzing!W$56),0) -> 0 | V64: =IFERROR(INDIRECT("'" & $E64 & "'!" & verwijzing!X$56),0) -> 0 | W64: =IFERROR(INDIRECT("'" & $E64 & "'!" & verwijzing!Y$56),0) -> 0 | X64: =IFERROR(INDIRECT("'" & $E64 & "'!" & verwijzing!Z$56),0) -> 0 | Y64: =IFERROR(INDIRECT("'" & $E64 & "'!" & verwijzing!AA$56),0) -> 0 | Z64: =IFERROR(INDIRECT("'" & $E64 & "'!" & verwijzing!AB$56),0) -> 0 | AA64: =IFERROR(INDIRECT("'" & $E64 & "'!" & verwijzing!AC$56),0) -> 0 | AB64: =IFERROR(INDIRECT("'" & $E64 & "'!" & verwijzing!AD$56),0) -> 0 | AC64: =IFERROR(INDIRECT("'" & $E64 & "'!" & verwijzing!AE$56),0) -> 0 | AD64: =IFERROR(INDIRECT("'" & $E64 & "'!" & verwijzing!AF$56),0) -> 0 | AE64: =IFERROR(INDIRECT("'" & $E64 & "'!" & verwijzing!AG$56),0) -> 0 | AF64: =IFERROR(INDIRECT("'" & $E64 & "'!" & verwijzing!AH$56),0) -> 0 | AG64: =IFERROR(INDIRECT("'" & $E64 & "'!" & verwijzing!AI$56),0) -> 0
C65: =INDIRECT("'Programma''s'!L4") -> 0 | D65: =IF(LEN(INDIRECT("C66"))>1,"Zichtbaar", "Onzichtbaar") -> Onzichtbaar | E65: =INDIRECT("'Programma''s'!J4") -> 0 | G65: =IFERROR(INDIRECT("'" & $E65 & "'!" &verwijzing!H$56),0) -> 0 | H65: =IFERROR(INDIRECT("'" & $E65 & "'!" &verwijzing!I$56),0) -> 0 | I65: =IFERROR(INDIRECT("'" & $E65 & "'!" &verwijzing!J$56),0) -> 0 | J65: =IFERROR(INDIRECT("'" & $E65 & "'!" &verwijzing!K$56),0) -> 0 | K65: =IFERROR(INDIRECT("'" & $E65 & "'!" &verwijzing!L$56),0) -> 0 | L65: =IFERROR(INDIRECT("'" & $E65 & "'!" &verwijzing!M$56),0) -> 0 | M65: =IFERROR(INDIRECT("'" & $E65 & "'!" & verwijzing!N$56),0) -> 0 | N65: =IFERROR(INDIRECT("'" & $E65 & "'!" & verwijzing!P$56),0) -> 0 | O65: =IFERROR(INDIRECT("'" & $E65 & "'!" & verwijzing!Q$56),0) -> 0 | P65: =IFERROR(INDIRECT("'" & $E65 & "'!" & verwijzing!R$56),0) -> 0 | Q65: =IFERROR(INDIRECT("'" & $E65 & "'!" & verwijzing!S$56),0) -> 0 | R65: =IFERROR(INDIRECT("'" & $E65 & "'!" & verwijzing!T$56),0) -> 0 | S65: =IFERROR(INDIRECT("'" & $E65 & "'!" & verwijzing!U$56),0) -> 0 | T65: =IFERROR(INDIRECT("'" & $E65 & "'!" & verwijzing!V$56),0) -> 0 | U65: =IFERROR(INDIRECT("'" & $E65 & "'!" & verwijzing!W$56),0) -> 0 | V65: =IFERROR(INDIRECT("'" & $E65 & "'!" & verwijzing!X$56),0) -> 0 | W65: =IFERROR(INDIRECT("'" & $E65 & "'!" & verwijzing!Y$56),0) -> 0 | X65: =IFERROR(INDIRECT("'" & $E65 & "'!" & verwijzing!Z$56),0) -> 0 | Y65: =IFERROR(INDIRECT("'" & $E65 & "'!" & verwijzing!AA$56),0) -> 0 | Z65: =IFERROR(INDIRECT("'" & $E65 & "'!" & verwijzing!AB$56),0) -> 0 | AA65: =IFERROR(INDIRECT("'" & $E65 & "'!" & verwijzing!AC$56),0) -> 0 | AB65: =IFERROR(INDIRECT("'" & $E65 & "'!" & verwijzing!AD$56),0) -> 0 | AC65: =IFERROR(INDIRECT("'" & $E65 & "'!" & verwijzing!AE$56),0) -> 0 | AD65: =IFERROR(INDIRECT("'" & $E65 & "'!" & verwijzing!AF$56),0) -> 0 | AE65: =IFERROR(INDIRECT("'" & $E65 & "'!" & verwijzing!AG$56),0) -> 0 | AF65: =IFERROR(INDIRECT("'" & $E65 & "'!" & verwijzing!AH$56),0) -> 0 | AG65: =IFERROR(INDIRECT("'" & $E65 & "'!" & verwijzing!AI$56),0) -> 0
C66: =INDIRECT("'Programma''s'!L5") -> 0 | D66: =IF(LEN(INDIRECT("C67"))>1,"Zichtbaar", "Onzichtbaar") -> Onzichtbaar | E66: =INDIRECT("'Programma''s'!J5") -> 0 | G66: =IFERROR(INDIRECT("'" & $E66 & "'!" &verwijzing!H$56),0) -> 0 | H66: =IFERROR(INDIRECT("'" & $E66 & "'!" &verwijzing!I$56),0) -> 0 | I66: =IFERROR(INDIRECT("'" & $E66 & "'!" &verwijzing!J$56),0) -> 0 | J66: =IFERROR(INDIRECT("'" & $E66 & "'!" &verwijzing!K$56),0) -> 0 | K66: =IFERROR(INDIRECT("'" & $E66 & "'!" &verwijzing!L$56),0) -> 0 | L66: =IFERROR(INDIRECT("'" & $E66 & "'!" &verwijzing!M$56),0) -> 0 | M66: =IFERROR(INDIRECT("'" & $E66 & "'!" & verwijzing!N$56),0) -> 0 | N66: =IFERROR(INDIRECT("'" & $E66 & "'!" & verwijzing!P$56),0) -> 0 | O66: =IFERROR(INDIRECT("'" & $E66 & "'!" & verwijzing!Q$56),0) -> 0 | P66: =IFERROR(INDIRECT("'" & $E66 & "'!" & verwijzing!R$56),0) -> 0 | Q66: =IFERROR(INDIRECT("'" & $E66 & "'!" & verwijzing!S$56),0) -> 0 | R66: =IFERROR(INDIRECT("'" & $E66 & "'!" & verwijzing!T$56),0) -> 0 | S66: =IFERROR(INDIRECT("'" & $E66 & "'!" & verwijzing!U$56),0) -> 0 | T66: =IFERROR(INDIRECT("'" & $E66 & "'!" & verwijzing!V$56),0) -> 0 | U66: =IFERROR(INDIRECT("'" & $E66 & "'!" & verwijzing!W$56),0) -> 0 | V66: =IFERROR(INDIRECT("'" & $E66 & "'!" & verwijzing!X$56),0) -> 0 | W66: =IFERROR(INDIRECT("'" & $E66 & "'!" & verwijzing!Y$56),0) -> 0 | X66: =IFERROR(INDIRECT("'" & $E66 & "'!" & verwijzing!Z$56),0) -> 0 | Y66: =IFERROR(INDIRECT("'" & $E66 & "'!" & verwijzing!AA$56),0) -> 0 | Z66: =IFERROR(INDIRECT("'" & $E66 & "'!" & verwijzing!AB$56),0) -> 0 | AA66: =IFERROR(INDIRECT("'" & $E66 & "'!" & verwijzing!AC$56),0) -> 0 | AB66: =IFERROR(INDIRECT("'" & $E66 & "'!" & verwijzing!AD$56),0) -> 0 | AC66: =IFERROR(INDIRECT("'" & $E66 & "'!" & verwijzing!AE$56),0) -> 0 | AD66: =IFERROR(INDIRECT("'" & $E66 & "'!" & verwijzing!AF$56),0) -> 0 | AE66: =IFERROR(INDIRECT("'" & $E66 & "'!" & verwijzing!AG$56),0) -> 0 | AF66: =IFERROR(INDIRECT("'" & $E66 & "'!" & verwijzing!AH$56),0) -> 0 | AG66: =IFERROR(INDIRECT("'" & $E66 & "'!" & verwijzing!AI$56),0) -> 0
C67: =INDIRECT("'Programma''s'!L6") -> 0 | D67: =IF(LEN(INDIRECT("C68"))>1,"Zichtbaar", "Onzichtbaar") -> Onzichtbaar | E67: =INDIRECT("'Programma''s'!J6") -> 0 | G67: =IFERROR(INDIRECT("'" & $E67 & "'!" &verwijzing!H$56),0) -> 0 | H67: =IFERROR(INDIRECT("'" & $E67 & "'!" &verwijzing!I$56),0) -> 0 | I67: =IFERROR(INDIRECT("'" & $E67 & "'!" &verwijzing!J$56),0) -> 0 | J67: =IFERROR(INDIRECT("'" & $E67 & "'!" &verwijzing!K$56),0) -> 0 | K67: =IFERROR(INDIRECT("'" & $E67 & "'!" &verwijzing!L$56),0) -> 0 | L67: =IFERROR(INDIRECT("'" & $E67 & "'!" &verwijzing!M$56),0) -> 0 | M67: =IFERROR(INDIRECT("'" & $E67 & "'!" & verwijzing!N$56),0) -> 0 | N67: =IFERROR(INDIRECT("'" & $E67 & "'!" & verwijzing!P$56),0) -> 0 | O67: =IFERROR(INDIRECT("'" & $E67 & "'!" & verwijzing!Q$56),0) -> 0 | P67: =IFERROR(INDIRECT("'" & $E67 & "'!" & verwijzing!R$56),0) -> 0 | Q67: =IFERROR(INDIRECT("'" & $E67 & "'!" & verwijzing!S$56),0) -> 0 | R67: =IFERROR(INDIRECT("'" & $E67 & "'!" & verwijzing!T$56),0) -> 0 | S67: =IFERROR(INDIRECT("'" & $E67 & "'!" & verwijzing!U$56),0) -> 0 | T67: =IFERROR(INDIRECT("'" & $E67 & "'!" & verwijzing!V$56),0) -> 0 | U67: =IFERROR(INDIRECT("'" & $E67 & "'!" & verwijzing!W$56),0) -> 0 | V67: =IFERROR(INDIRECT("'" & $E67 & "'!" & verwijzing!X$56),0) -> 0 | W67: =IFERROR(INDIRECT("'" & $E67 & "'!" & verwijzing!Y$56),0) -> 0 | X67: =IFERROR(INDIRECT("'" & $E67 & "'!" & verwijzing!Z$56),0) -> 0 | Y67: =IFERROR(INDIRECT("'" & $E67 & "'!" & verwijzing!AA$56),0) -> 0 | Z67: =IFERROR(INDIRECT("'" & $E67 & "'!" & verwijzing!AB$56),0) -> 0 | AA67: =IFERROR(INDIRECT("'" & $E67 & "'!" & verwijzing!AC$56),0) -> 0 | AB67: =IFERROR(INDIRECT("'" & $E67 & "'!" & verwijzing!AD$56),0) -> 0 | AC67: =IFERROR(INDIRECT("'" & $E67 & "'!" & verwijzing!AE$56),0) -> 0 | AD67: =IFERROR(INDIRECT("'" & $E67 & "'!" & verwijzing!AF$56),0) -> 0 | AE67: =IFERROR(INDIRECT("'" & $E67 & "'!" & verwijzing!AG$56),0) -> 0 | AF67: =IFERROR(INDIRECT("'" & $E67 & "'!" & verwijzing!AH$56),0) -> 0 | AG67: =IFERROR(INDIRECT("'" & $E67 & "'!" & verwijzing!AI$56),0) -> 0
C68: =INDIRECT("'Programma''s'!L7") -> 0 | D68: =IF(LEN(INDIRECT("C69"))>1,"Zichtbaar", "Onzichtbaar") -> Onzichtbaar | E68: =INDIRECT("'Programma''s'!J7") -> 0 | G68: =IFERROR(INDIRECT("'" & $E68 & "'!" &verwijzing!H$56),0) -> 0 | H68: =IFERROR(INDIRECT("'" & $E68 & "'!" &verwijzing!I$56),0) -> 0 | I68: =IFERROR(INDIRECT("'" & $E68 & "'!" &verwijzing!J$56),0) -> 0 | J68: =IFERROR(INDIRECT("'" & $E68 & "'!" &verwijzing!K$56),0) -> 0 | K68: =IFERROR(INDIRECT("'" & $E68 & "'!" &verwijzing!L$56),0) -> 0 | L68: =IFERROR(INDIRECT("'" & $E68 & "'!" &verwijzing!M$56),0) -> 0 | M68: =IFERROR(INDIRECT("'" & $E68 & "'!" & verwijzing!N$56),0) -> 0 | N68: =IFERROR(INDIRECT("'" & $E68 & "'!" & verwijzing!P$56),0) -> 0 | O68: =IFERROR(INDIRECT("'" & $E68 & "'!" & verwijzing!Q$56),0) -> 0 | P68: =IFERROR(INDIRECT("'" & $E68 & "'!" & verwijzing!R$56),0) -> 0 | Q68: =IFERROR(INDIRECT("'" & $E68 & "'!" & verwijzing!S$56),0) -> 0 | R68: =IFERROR(INDIRECT("'" & $E68 & "'!" & verwijzing!T$56),0) -> 0 | S68: =IFERROR(INDIRECT("'" & $E68 & "'!" & verwijzing!U$56),0) -> 0 | T68: =IFERROR(INDIRECT("'" & $E68 & "'!" & verwijzing!V$56),0) -> 0 | U68: =IFERROR(INDIRECT("'" & $E68 & "'!" & verwijzing!W$56),0) -> 0 | V68: =IFERROR(INDIRECT("'" & $E68 & "'!" & verwijzing!X$56),0) -> 0 | W68: =IFERROR(INDIRECT("'" & $E68 & "'!" & verwijzing!Y$56),0) -> 0 | X68: =IFERROR(INDIRECT("'" & $E68 & "'!" & verwijzing!Z$56),0) -> 0 | Y68: =IFERROR(INDIRECT("'" & $E68 & "'!" & verwijzing!AA$56),0) -> 0 | Z68: =IFERROR(INDIRECT("'" & $E68 & "'!" & verwijzing!AB$56),0) -> 0 | AA68: =IFERROR(INDIRECT("'" & $E68 & "'!" & verwijzing!AC$56),0) -> 0 | AB68: =IFERROR(INDIRECT("'" & $E68 & "'!" & verwijzing!AD$56),0) -> 0 | AC68: =IFERROR(INDIRECT("'" & $E68 & "'!" & verwijzing!AE$56),0) -> 0 | AD68: =IFERROR(INDIRECT("'" & $E68 & "'!" & verwijzing!AF$56),0) -> 0 | AE68: =IFERROR(INDIRECT("'" & $E68 & "'!" & verwijzing!AG$56),0) -> 0 | AF68: =IFERROR(INDIRECT("'" & $E68 & "'!" & verwijzing!AH$56),0) -> 0 | AG68: =IFERROR(INDIRECT("'" & $E68 & "'!" & verwijzing!AI$56),0) -> 0
C69: =INDIRECT("'Programma''s'!L8") -> 0 | D69: =IF(LEN(INDIRECT("C70"))>1,"Zichtbaar", "Onzichtbaar") -> Onzichtbaar | E69: =INDIRECT("'Programma''s'!J8") -> 0 | G69: =IFERROR(INDIRECT("'" & $E69 & "'!" &verwijzing!H$56),0) -> 0 | H69: =IFERROR(INDIRECT("'" & $E69 & "'!" &verwijzing!I$56),0) -> 0 | I69: =IFERROR(INDIRECT("'" & $E69 & "'!" &verwijzing!J$56),0) -> 0 | J69: =IFERROR(INDIRECT("'" & $E69 & "'!" &verwijzing!K$56),0) -> 0 | K69: =IFERROR(INDIRECT("'" & $E69 & "'!" &verwijzing!L$56),0) -> 0 | L69: =IFERROR(INDIRECT("'" & $E69 & "'!" &verwijzing!M$56),0) -> 0 | M69: =IFERROR(INDIRECT("'" & $E69 & "'!" & verwijzing!N$56),0) -> 0 | N69: =IFERROR(INDIRECT("'" & $E69 & "'!" & verwijzing!P$56),0) -> 0 | O69: =IFERROR(INDIRECT("'" & $E69 & "'!" & verwijzing!Q$56),0) -> 0 | P69: =IFERROR(INDIRECT("'" & $E69 & "'!" & verwijzing!R$56),0) -> 0 | Q69: =IFERROR(INDIRECT("'" & $E69 & "'!" & verwijzing!S$56),0) -> 0 | R69: =IFERROR(INDIRECT("'" & $E69 & "'!" & verwijzing!T$56),0) -> 0 | S69: =IFERROR(INDIRECT("'" & $E69 & "'!" & verwijzing!U$56),0) -> 0 | T69: =IFERROR(INDIRECT("'" & $E69 & "'!" & verwijzing!V$56),0) -> 0 | U69: =IFERROR(INDIRECT("'" & $E69 & "'!" & verwijzing!W$56),0) -> 0 | V69: =IFERROR(INDIRECT("'" & $E69 & "'!" & verwijzing!X$56),0) -> 0 | W69: =IFERROR(INDIRECT("'" & $E69 & "'!" & verwijzing!Y$56),0) -> 0 | X69: =IFERROR(INDIRECT("'" & $E69 & "'!" & verwijzing!Z$56),0) -> 0 | Y69: =IFERROR(INDIRECT("'" & $E69 & "'!" & verwijzing!AA$56),0) -> 0 | Z69: =IFERROR(INDIRECT("'" & $E69 & "'!" & verwijzing!AB$56),0) -> 0 | AA69: =IFERROR(INDIRECT("'" & $E69 & "'!" & verwijzing!AC$56),0) -> 0 | AB69: =IFERROR(INDIRECT("'" & $E69 & "'!" & verwijzing!AD$56),0) -> 0 | AC69: =IFERROR(INDIRECT("'" & $E69 & "'!" & verwijzing!AE$56),0) -> 0 | AD69: =IFERROR(INDIRECT("'" & $E69 & "'!" & verwijzing!AF$56),0) -> 0 | AE69: =IFERROR(INDIRECT("'" & $E69 & "'!" & verwijzing!AG$56),0) -> 0 | AF69: =IFERROR(INDIRECT("'" & $E69 & "'!" & verwijzing!AH$56),0) -> 0 | AG69: =IFERROR(INDIRECT("'" & $E69 & "'!" & verwijzing!AI$56),0) -> 0
C70: =INDIRECT("'Programma''s'!L9") -> 0 | D70: =IF(LEN(INDIRECT("C71"))>1,"Zichtbaar", "Onzichtbaar") -> Onzichtbaar | E70: =INDIRECT("'Programma''s'!J9") -> 0 | G70: =IFERROR(INDIRECT("'" & $E70 & "'!" &verwijzing!H$56),0) -> 0 | H70: =IFERROR(INDIRECT("'" & $E70 & "'!" &verwijzing!I$56),0) -> 0 | I70: =IFERROR(INDIRECT("'" & $E70 & "'!" &verwijzing!J$56),0) -> 0 | J70: =IFERROR(INDIRECT("'" & $E70 & "'!" &verwijzing!K$56),0) -> 0 | K70: =IFERROR(INDIRECT("'" & $E70 & "'!" &verwijzing!L$56),0) -> 0 | L70: =IFERROR(INDIRECT("'" & $E70 & "'!" &verwijzing!M$56),0) -> 0 | M70: =IFERROR(INDIRECT("'" & $E70 & "'!" & verwijzing!N$56),0) -> 0 | N70: =IFERROR(INDIRECT("'" & $E70 & "'!" & verwijzing!P$56),0) -> 0 | O70: =IFERROR(INDIRECT("'" & $E70 & "'!" & verwijzing!Q$56),0) -> 0 | P70: =IFERROR(INDIRECT("'" & $E70 & "'!" & verwijzing!R$56),0) -> 0 | Q70: =IFERROR(INDIRECT("'" & $E70 & "'!" & verwijzing!S$56),0) -> 0 | R70: =IFERROR(INDIRECT("'" & $E70 & "'!" & verwijzing!T$56),0) -> 0 | S70: =IFERROR(INDIRECT("'" & $E70 & "'!" & verwijzing!U$56),0) -> 0 | T70: =IFERROR(INDIRECT("'" & $E70 & "'!" & verwijzing!V$56),0) -> 0 | U70: =IFERROR(INDIRECT("'" & $E70 & "'!" & verwijzing!W$56),0) -> 0 | V70: =IFERROR(INDIRECT("'" & $E70 & "'!" & verwijzing!X$56),0) -> 0 | W70: =IFERROR(INDIRECT("'" & $E70 & "'!" & verwijzing!Y$56),0) -> 0 | X70: =IFERROR(INDIRECT("'" & $E70 & "'!" & verwijzing!Z$56),0) -> 0 | Y70: =IFERROR(INDIRECT("'" & $E70 & "'!" & verwijzing!AA$56),0) -> 0 | Z70: =IFERROR(INDIRECT("'" & $E70 & "'!" & verwijzing!AB$56),0) -> 0 | AA70: =IFERROR(INDIRECT("'" & $E70 & "'!" & verwijzing!AC$56),0) -> 0 | AB70: =IFERROR(INDIRECT("'" & $E70 & "'!" & verwijzing!AD$56),0) -> 0 | AC70: =IFERROR(INDIRECT("'" & $E70 & "'!" & verwijzing!AE$56),0) -> 0 | AD70: =IFERROR(INDIRECT("'" & $E70 & "'!" & verwijzing!AF$56),0) -> 0 | AE70: =IFERROR(INDIRECT("'" & $E70 & "'!" & verwijzing!AG$56),0) -> 0 | AF70: =IFERROR(INDIRECT("'" & $E70 & "'!" & verwijzing!AH$56),0) -> 0 | AG70: =IFERROR(INDIRECT("'" & $E70 & "'!" & verwijzing!AI$56),0) -> 0
C71: =INDIRECT("'Programma''s'!L10") -> 0 | D71: =IF(LEN(INDIRECT("C72"))>1,"Zichtbaar", "Onzichtbaar") -> Onzichtbaar | E71: =INDIRECT("'Programma''s'!J10") -> 0 | G71: =IFERROR(INDIRECT("'" & $E71 & "'!" &verwijzing!H$56),0) -> 0 | H71: =IFERROR(INDIRECT("'" & $E71 & "'!" &verwijzing!I$56),0) -> 0 | I71: =IFERROR(INDIRECT("'" & $E71 & "'!" &verwijzing!J$56),0) -> 0 | J71: =IFERROR(INDIRECT("'" & $E71 & "'!" &verwijzing!K$56),0) -> 0 | K71: =IFERROR(INDIRECT("'" & $E71 & "'!" &verwijzing!L$56),0) -> 0 | L71: =IFERROR(INDIRECT("'" & $E71 & "'!" &verwijzing!M$56),0) -> 0 | M71: =IFERROR(INDIRECT("'" & $E71 & "'!" & verwijzing!N$56),0) -> 0 | N71: =IFERROR(INDIRECT("'" & $E71 & "'!" & verwijzing!P$56),0) -> 0 | O71: =IFERROR(INDIRECT("'" & $E71 & "'!" & verwijzing!Q$56),0) -> 0 | P71: =IFERROR(INDIRECT("'" & $E71 & "'!" & verwijzing!R$56),0) -> 0 | Q71: =IFERROR(INDIRECT("'" & $E71 & "'!" & verwijzing!S$56),0) -> 0 | R71: =IFERROR(INDIRECT("'" & $E71 & "'!" & verwijzing!T$56),0) -> 0 | S71: =IFERROR(INDIRECT("'" & $E71 & "'!" & verwijzing!U$56),0) -> 0 | T71: =IFERROR(INDIRECT("'" & $E71 & "'!" & verwijzing!V$56),0) -> 0 | U71: =IFERROR(INDIRECT("'" & $E71 & "'!" & verwijzing!W$56),0) -> 0 | V71: =IFERROR(INDIRECT("'" & $E71 & "'!" & verwijzing!X$56),0) -> 0 | W71: =IFERROR(INDIRECT("'" & $E71 & "'!" & verwijzing!Y$56),0) -> 0 | X71: =IFERROR(INDIRECT("'" & $E71 & "'!" & verwijzing!Z$56),0) -> 0 | Y71: =IFERROR(INDIRECT("'" & $E71 & "'!" & verwijzing!AA$56),0) -> 0 | Z71: =IFERROR(INDIRECT("'" & $E71 & "'!" & verwijzing!AB$56),0) -> 0 | AA71: =IFERROR(INDIRECT("'" & $E71 & "'!" & verwijzing!AC$56),0) -> 0 | AB71: =IFERROR(INDIRECT("'" & $E71 & "'!" & verwijzing!AD$56),0) -> 0 | AC71: =IFERROR(INDIRECT("'" & $E71 & "'!" & verwijzing!AE$56),0) -> 0 | AD71: =IFERROR(INDIRECT("'" & $E71 & "'!" & verwijzing!AF$56),0) -> 0 | AE71: =IFERROR(INDIRECT("'" & $E71 & "'!" & verwijzing!AG$56),0) -> 0 | AF71: =IFERROR(INDIRECT("'" & $E71 & "'!" & verwijzing!AH$56),0) -> 0 | AG71: =IFERROR(INDIRECT("'" & $E71 & "'!" & verwijzing!AI$56),0) -> 0
C72: =INDIRECT("'Programma''s'!L11") -> 0 | D72: =IF(LEN(INDIRECT("C73"))>1,"Zichtbaar", "Onzichtbaar") -> Onzichtbaar | E72: =INDIRECT("'Programma''s'!J11") -> 0 | G72: =IFERROR(INDIRECT("'" & $E72 & "'!" &verwijzing!H$56),0) -> 0 | H72: =IFERROR(INDIRECT("'" & $E72 & "'!" &verwijzing!I$56),0) -> 0 | I72: =IFERROR(INDIRECT("'" & $E72 & "'!" &verwijzing!J$56),0) -> 0 | J72: =IFERROR(INDIRECT("'" & $E72 & "'!" &verwijzing!K$56),0) -> 0 | K72: =IFERROR(INDIRECT("'" & $E72 & "'!" &verwijzing!L$56),0) -> 0 | L72: =IFERROR(INDIRECT("'" & $E72 & "'!" &verwijzing!M$56),0) -> 0 | M72: =IFERROR(INDIRECT("'" & $E72 & "'!" & verwijzing!N$56),0) -> 0 | N72: =IFERROR(INDIRECT("'" & $E72 & "'!" & verwijzing!P$56),0) -> 0 | O72: =IFERROR(INDIRECT("'" & $E72 & "'!" & verwijzing!Q$56),0) -> 0 | P72: =IFERROR(INDIRECT("'" & $E72 & "'!" & verwijzing!R$56),0) -> 0 | Q72: =IFERROR(INDIRECT("'" & $E72 & "'!" & verwijzing!S$56),0) -> 0 | R72: =IFERROR(INDIRECT("'" & $E72 & "'!" & verwijzing!T$56),0) -> 0 | S72: =IFERROR(INDIRECT("'" & $E72 & "'!" & verwijzing!U$56),0) -> 0 | T72: =IFERROR(INDIRECT("'" & $E72 & "'!" & verwijzing!V$56),0) -> 0 | U72: =IFERROR(INDIRECT("'" & $E72 & "'!" & verwijzing!W$56),0) -> 0 | V72: =IFERROR(INDIRECT("'" & $E72 & "'!" & verwijzing!X$56),0) -> 0 | W72: =IFERROR(INDIRECT("'" & $E72 & "'!" & verwijzing!Y$56),0) -> 0 | X72: =IFERROR(INDIRECT("'" & $E72 & "'!" & verwijzing!Z$56),0) -> 0 | Y72: =IFERROR(INDIRECT("'" & $E72 & "'!" & verwijzing!AA$56),0) -> 0 | Z72: =IFERROR(INDIRECT("'" & $E72 & "'!" & verwijzing!AB$56),0) -> 0 | AA72: =IFERROR(INDIRECT("'" & $E72 & "'!" & verwijzing!AC$56),0) -> 0 | AB72: =IFERROR(INDIRECT("'" & $E72 & "'!" & verwijzing!AD$56),0) -> 0 | AC72: =IFERROR(INDIRECT("'" & $E72 & "'!" & verwijzing!AE$56),0) -> 0 | AD72: =IFERROR(INDIRECT("'" & $E72 & "'!" & verwijzing!AF$56),0) -> 0 | AE72: =IFERROR(INDIRECT("'" & $E72 & "'!" & verwijzing!AG$56),0) -> 0 | AF72: =IFERROR(INDIRECT("'" & $E72 & "'!" & verwijzing!AH$56),0) -> 0 | AG72: =IFERROR(INDIRECT("'" & $E72 & "'!" & verwijzing!AI$56),0) -> 0
C73: =INDIRECT("'Programma''s'!L12") -> 0 | D73: =IF(LEN(INDIRECT("C74"))>1,"Zichtbaar", "Onzichtbaar") -> Onzichtbaar | E73: =INDIRECT("'Programma''s'!J12") -> 0 | G73: =IFERROR(INDIRECT("'" & $E73 & "'!" &verwijzing!H$56),0) -> 0 | H73: =IFERROR(INDIRECT("'" & $E73 & "'!" &verwijzing!I$56),0) -> 0 | I73: =IFERROR(INDIRECT("'" & $E73 & "'!" &verwijzing!J$56),0) -> 0 | J73: =IFERROR(INDIRECT("'" & $E73 & "'!" &verwijzing!K$56),0) -> 0 | K73: =IFERROR(INDIRECT("'" & $E73 & "'!" &verwijzing!L$56),0) -> 0 | L73: =IFERROR(INDIRECT("'" & $E73 & "'!" &verwijzing!M$56),0) -> 0 | M73: =IFERROR(INDIRECT("'" & $E73 & "'!" & verwijzing!N$56),0) -> 0 | N73: =IFERROR(INDIRECT("'" & $E73 & "'!" & verwijzing!P$56),0) -> 0 | O73: =IFERROR(INDIRECT("'" & $E73 & "'!" & verwijzing!Q$56),0) -> 0 | P73: =IFERROR(INDIRECT("'" & $E73 & "'!" & verwijzing!R$56),0) -> 0 | Q73: =IFERROR(INDIRECT("'" & $E73 & "'!" & verwijzing!S$56),0) -> 0 | R73: =IFERROR(INDIRECT("'" & $E73 & "'!" & verwijzing!T$56),0) -> 0 | S73: =IFERROR(INDIRECT("'" & $E73 & "'!" & verwijzing!U$56),0) -> 0 | T73: =IFERROR(INDIRECT("'" & $E73 & "'!" & verwijzing!V$56),0) -> 0 | U73: =IFERROR(INDIRECT("'" & $E73 & "'!" & verwijzing!W$56),0) -> 0 | V73: =IFERROR(INDIRECT("'" & $E73 & "'!" & verwijzing!X$56),0) -> 0 | W73: =IFERROR(INDIRECT("'" & $E73 & "'!" & verwijzing!Y$56),0) -> 0 | X73: =IFERROR(INDIRECT("'" & $E73 & "'!" & verwijzing!Z$56),0) -> 0 | Y73: =IFERROR(INDIRECT("'" & $E73 & "'!" & verwijzing!AA$56),0) -> 0 | Z73: =IFERROR(INDIRECT("'" & $E73 & "'!" & verwijzing!AB$56),0) -> 0 | AA73: =IFERROR(INDIRECT("'" & $E73 & "'!" & verwijzing!AC$56),0) -> 0 | AB73: =IFERROR(INDIRECT("'" & $E73 & "'!" & verwijzing!AD$56),0) -> 0 | AC73: =IFERROR(INDIRECT("'" & $E73 & "'!" & verwijzing!AE$56),0) -> 0 | AD73: =IFERROR(INDIRECT("'" & $E73 & "'!" & verwijzing!AF$56),0) -> 0 | AE73: =IFERROR(INDIRECT("'" & $E73 & "'!" & verwijzing!AG$56),0) -> 0 | AF73: =IFERROR(INDIRECT("'" & $E73 & "'!" & verwijzing!AH$56),0) -> 0 | AG73: =IFERROR(INDIRECT("'" & $E73 & "'!" & verwijzing!AI$56),0) -> 0
C74: =INDIRECT("'Programma''s'!L13") -> 0 | D74: =IF(LEN(INDIRECT("C75"))>1,"Zichtbaar", "Onzichtbaar") -> Onzichtbaar | E74: =INDIRECT("'Programma''s'!J13") -> 0 | G74: =IFERROR(INDIRECT("'" & $E74 & "'!" &verwijzing!H$56),0) -> 0 | H74: =IFERROR(INDIRECT("'" & $E74 & "'!" &verwijzing!I$56),0) -> 0 | I74: =IFERROR(INDIRECT("'" & $E74 & "'!" &verwijzing!J$56),0) -> 0 | J74: =IFERROR(INDIRECT("'" & $E74 & "'!" &verwijzing!K$56),0) -> 0 | K74: =IFERROR(INDIRECT("'" & $E74 & "'!" &verwijzing!L$56),0) -> 0 | L74: =IFERROR(INDIRECT("'" & $E74 & "'!" &verwijzing!M$56),0) -> 0 | M74: =IFERROR(INDIRECT("'" & $E74 & "'!" & verwijzing!N$56),0) -> 0 | N74: =IFERROR(INDIRECT("'" & $E74 & "'!" & verwijzing!P$56),0) -> 0 | O74: =IFERROR(INDIRECT("'" & $E74 & "'!" & verwijzing!Q$56),0) -> 0 | P74: =IFERROR(INDIRECT("'" & $E74 & "'!" & verwijzing!R$56),0) -> 0 | Q74: =IFERROR(INDIRECT("'" & $E74 & "'!" & verwijzing!S$56),0) -> 0 | R74: =IFERROR(INDIRECT("'" & $E74 & "'!" & verwijzing!T$56),0) -> 0 | S74: =IFERROR(INDIRECT("'" & $E74 & "'!" & verwijzing!U$56),0) -> 0 | T74: =IFERROR(INDIRECT("'" & $E74 & "'!" & verwijzing!V$56),0) -> 0 | U74: =IFERROR(INDIRECT("'" & $E74 & "'!" & verwijzing!W$56),0) -> 0 | V74: =IFERROR(INDIRECT("'" & $E74 & "'!" & verwijzing!X$56),0) -> 0 | W74: =IFERROR(INDIRECT("'" & $E74 & "'!" & verwijzing!Y$56),0) -> 0 | X74: =IFERROR(INDIRECT("'" & $E74 & "'!" & verwijzing!Z$56),0) -> 0 | Y74: =IFERROR(INDIRECT("'" & $E74 & "'!" & verwijzing!AA$56),0) -> 0 | Z74: =IFERROR(INDIRECT("'" & $E74 & "'!" & verwijzing!AB$56),0) -> 0 | AA74: =IFERROR(INDIRECT("'" & $E74 & "'!" & verwijzing!AC$56),0) -> 0 | AB74: =IFERROR(INDIRECT("'" & $E74 & "'!" & verwijzing!AD$56),0) -> 0 | AC74: =IFERROR(INDIRECT("'" & $E74 & "'!" & verwijzing!AE$56),0) -> 0 | AD74: =IFERROR(INDIRECT("'" & $E74 & "'!" & verwijzing!AF$56),0) -> 0 | AE74: =IFERROR(INDIRECT("'" & $E74 & "'!" & verwijzing!AG$56),0) -> 0 | AF74: =IFERROR(INDIRECT("'" & $E74 & "'!" & verwijzing!AH$56),0) -> 0 | AG74: =IFERROR(INDIRECT("'" & $E74 & "'!" & verwijzing!AI$56),0) -> 0
C75: =INDIRECT("'Programma''s'!L14") -> 0 | D75: =IF(LEN(INDIRECT("C76"))>1,"Zichtbaar", "Onzichtbaar") -> Onzichtbaar | E75: =INDIRECT("'Programma''s'!J14") -> 0 | G75: =IFERROR(INDIRECT("'" & $E75 & "'!" &verwijzing!H$56),0) -> 0 | H75: =IFERROR(INDIRECT("'" & $E75 & "'!" &verwijzing!I$56),0) -> 0 | I75: =IFERROR(INDIRECT("'" & $E75 & "'!" &verwijzing!J$56),0) -> 0 | J75: =IFERROR(INDIRECT("'" & $E75 & "'!" &verwijzing!K$56),0) -> 0 | K75: =IFERROR(INDIRECT("'" & $E75 & "'!" &verwijzing!L$56),0) -> 0 | L75: =IFERROR(INDIRECT("'" & $E75 & "'!" &verwijzing!M$56),0) -> 0 | M75: =IFERROR(INDIRECT("'" & $E75 & "'!" & verwijzing!N$56),0) -> 0 | N75: =IFERROR(INDIRECT("'" & $E75 & "'!" & verwijzing!P$56),0) -> 0 | O75: =IFERROR(INDIRECT("'" & $E75 & "'!" & verwijzing!Q$56),0) -> 0 | P75: =IFERROR(INDIRECT("'" & $E75 & "'!" & verwijzing!R$56),0) -> 0 | Q75: =IFERROR(INDIRECT("'" & $E75 & "'!" & verwijzing!S$56),0) -> 0 | R75: =IFERROR(INDIRECT("'" & $E75 & "'!" & verwijzing!T$56),0) -> 0 | S75: =IFERROR(INDIRECT("'" & $E75 & "'!" & verwijzing!U$56),0) -> 0 | T75: =IFERROR(INDIRECT("'" & $E75 & "'!" & verwijzing!V$56),0) -> 0 | U75: =IFERROR(INDIRECT("'" & $E75 & "'!" & verwijzing!W$56),0) -> 0 | V75: =IFERROR(INDIRECT("'" & $E75 & "'!" & verwijzing!X$56),0) -> 0 | W75: =IFERROR(INDIRECT("'" & $E75 & "'!" & verwijzing!Y$56),0) -> 0 | X75: =IFERROR(INDIRECT("'" & $E75 & "'!" & verwijzing!Z$56),0) -> 0 | Y75: =IFERROR(INDIRECT("'" & $E75 & "'!" & verwijzing!AA$56),0) -> 0 | Z75: =IFERROR(INDIRECT("'" & $E75 & "'!" & verwijzing!AB$56),0) -> 0 | AA75: =IFERROR(INDIRECT("'" & $E75 & "'!" & verwijzing!AC$56),0) -> 0 | AB75: =IFERROR(INDIRECT("'" & $E75 & "'!" & verwijzing!AD$56),0) -> 0 | AC75: =IFERROR(INDIRECT("'" & $E75 & "'!" & verwijzing!AE$56),0) -> 0 | AD75: =IFERROR(INDIRECT("'" & $E75 & "'!" & verwijzing!AF$56),0) -> 0 | AE75: =IFERROR(INDIRECT("'" & $E75 & "'!" & verwijzing!AG$56),0) -> 0 | AF75: =IFERROR(INDIRECT("'" & $E75 & "'!" & verwijzing!AH$56),0) -> 0 | AG75: =IFERROR(INDIRECT("'" & $E75 & "'!" & verwijzing!AI$56),0) -> 0
C76: =INDIRECT("'Programma''s'!L15") -> 0 | D76: =IF(LEN(INDIRECT("C77"))>1,"Zichtbaar", "Onzichtbaar") -> Onzichtbaar | E76: =INDIRECT("'Programma''s'!J15") -> 0 | G76: =IFERROR(INDIRECT("'" & $E76 & "'!" &verwijzing!H$56),0) -> 0 | H76: =IFERROR(INDIRECT("'" & $E76 & "'!" &verwijzing!I$56),0) -> 0 | I76: =IFERROR(INDIRECT("'" & $E76 & "'!" &verwijzing!J$56),0) -> 0 | J76: =IFERROR(INDIRECT("'" & $E76 & "'!" &verwijzing!K$56),0) -> 0 | K76: =IFERROR(INDIRECT("'" & $E76 & "'!" &verwijzing!L$56),0) -> 0 | L76: =IFERROR(INDIRECT("'" & $E76 & "'!" &verwijzing!M$56),0) -> 0 | M76: =IFERROR(INDIRECT("'" & $E76 & "'!" & verwijzing!N$56),0) -> 0 | N76: =IFERROR(INDIRECT("'" & $E76 & "'!" & verwijzing!P$56),0) -> 0 | O76: =IFERROR(INDIRECT("'" & $E76 & "'!" & verwijzing!Q$56),0) -> 0 | P76: =IFERROR(INDIRECT("'" & $E76 & "'!" & verwijzing!R$56),0) -> 0 | Q76: =IFERROR(INDIRECT("'" & $E76 & "'!" & verwijzing!S$56),0) -> 0 | R76: =IFERROR(INDIRECT("'" & $E76 & "'!" & verwijzing!T$56),0) -> 0 | S76: =IFERROR(INDIRECT("'" & $E76 & "'!" & verwijzing!U$56),0) -> 0 | T76: =IFERROR(INDIRECT("'" & $E76 & "'!" & verwijzing!V$56),0) -> 0 | U76: =IFERROR(INDIRECT("'" & $E76 & "'!" & verwijzing!W$56),0) -> 0 | V76: =IFERROR(INDIRECT("'" & $E76 & "'!" & verwijzing!X$56),0) -> 0 | W76: =IFERROR(INDIRECT("'" & $E76 & "'!" & verwijzing!Y$56),0) -> 0 | X76: =IFERROR(INDIRECT("'" & $E76 & "'!" & verwijzing!Z$56),0) -> 0 | Y76: =IFERROR(INDIRECT("'" & $E76 & "'!" & verwijzing!AA$56),0) -> 0 | Z76: =IFERROR(INDIRECT("'" & $E76 & "'!" & verwijzing!AB$56),0) -> 0 | AA76: =IFERROR(INDIRECT("'" & $E76 & "'!" & verwijzing!AC$56),0) -> 0 | AB76: =IFERROR(INDIRECT("'" & $E76 & "'!" & verwijzing!AD$56),0) -> 0 | AC76: =IFERROR(INDIRECT("'" & $E76 & "'!" & verwijzing!AE$56),0) -> 0 | AD76: =IFERROR(INDIRECT("'" & $E76 & "'!" & verwijzing!AF$56),0) -> 0 | AE76: =IFERROR(INDIRECT("'" & $E76 & "'!" & verwijzing!AG$56),0) -> 0 | AF76: =IFERROR(INDIRECT("'" & $E76 & "'!" & verwijzing!AH$56),0) -> 0 | AG76: =IFERROR(INDIRECT("'" & $E76 & "'!" & verwijzing!AI$56),0) -> 0
C77: =INDIRECT("'Programma''s'!L16") -> 0 | D77: =IF(LEN(INDIRECT("C78"))>1,"Zichtbaar", "Onzichtbaar") -> Onzichtbaar | E77: =INDIRECT("'Programma''s'!J16") -> 0 | G77: =IFERROR(INDIRECT("'" & $E77 & "'!" &verwijzing!H$56),0) -> 0 | H77: =IFERROR(INDIRECT("'" & $E77 & "'!" &verwijzing!I$56),0) -> 0 | I77: =IFERROR(INDIRECT("'" & $E77 & "'!" &verwijzing!J$56),0) -> 0 | J77: =IFERROR(INDIRECT("'" & $E77 & "'!" &verwijzing!K$56),0) -> 0 | K77: =IFERROR(INDIRECT("'" & $E77 & "'!" &verwijzing!L$56),0) -> 0 | L77: =IFERROR(INDIRECT("'" & $E77 & "'!" &verwijzing!M$56),0) -> 0 | M77: =IFERROR(INDIRECT("'" & $E77 & "'!" & verwijzing!N$56),0) -> 0 | N77: =IFERROR(INDIRECT("'" & $E77 & "'!" & verwijzing!P$56),0) -> 0 | O77: =IFERROR(INDIRECT("'" & $E77 & "'!" & verwijzing!Q$56),0) -> 0 | P77: =IFERROR(INDIRECT("'" & $E77 & "'!" & verwijzing!R$56),0) -> 0 | Q77: =IFERROR(INDIRECT("'" & $E77 & "'!" & verwijzing!S$56),0) -> 0 | R77: =IFERROR(INDIRECT("'" & $E77 & "'!" & verwijzing!T$56),0) -> 0 | S77: =IFERROR(INDIRECT("'" & $E77 & "'!" & verwijzing!U$56),0) -> 0 | T77: =IFERROR(INDIRECT("'" & $E77 & "'!" & verwijzing!V$56),0) -> 0 | U77: =IFERROR(INDIRECT("'" & $E77 & "'!" & verwijzing!W$56),0) -> 0 | V77: =IFERROR(INDIRECT("'" & $E77 & "'!" & verwijzing!X$56),0) -> 0 | W77: =IFERROR(INDIRECT("'" & $E77 & "'!" & verwijzing!Y$56),0) -> 0 | X77: =IFERROR(INDIRECT("'" & $E77 & "'!" & verwijzing!Z$56),0) -> 0 | Y77: =IFERROR(INDIRECT("'" & $E77 & "'!" & verwijzing!AA$56),0) -> 0 | Z77: =IFERROR(INDIRECT("'" & $E77 & "'!" & verwijzing!AB$56),0) -> 0 | AA77: =IFERROR(INDIRECT("'" & $E77 & "'!" & verwijzing!AC$56),0) -> 0 | AB77: =IFERROR(INDIRECT("'" & $E77 & "'!" & verwijzing!AD$56),0) -> 0 | AC77: =IFERROR(INDIRECT("'" & $E77 & "'!" & verwijzing!AE$56),0) -> 0 | AD77: =IFERROR(INDIRECT("'" & $E77 & "'!" & verwijzing!AF$56),0) -> 0 | AE77: =IFERROR(INDIRECT("'" & $E77 & "'!" & verwijzing!AG$56),0) -> 0 | AF77: =IFERROR(INDIRECT("'" & $E77 & "'!" & verwijzing!AH$56),0) -> 0 | AG77: =IFERROR(INDIRECT("'" & $E77 & "'!" & verwijzing!AI$56),0) -> 0
C78: =INDIRECT("'Programma''s'!L17") -> 0 | D78: =IF(LEN(INDIRECT("C79"))>1,"Zichtbaar", "Onzichtbaar") -> Onzichtbaar | E78: =INDIRECT("'Programma''s'!J17") -> 0 | G78: =IFERROR(INDIRECT("'" & $E78 & "'!" &verwijzing!H$56),0) -> 0 | H78: =IFERROR(INDIRECT("'" & $E78 & "'!" &verwijzing!I$56),0) -> 0 | I78: =IFERROR(INDIRECT("'" & $E78 & "'!" &verwijzing!J$56),0) -> 0 | J78: =IFERROR(INDIRECT("'" & $E78 & "'!" &verwijzing!K$56),0) -> 0 | K78: =IFERROR(INDIRECT("'" & $E78 & "'!" &verwijzing!L$56),0) -> 0 | L78: =IFERROR(INDIRECT("'" & $E78 & "'!" &verwijzing!M$56),0) -> 0 | M78: =IFERROR(INDIRECT("'" & $E78 & "'!" & verwijzing!N$56),0) -> 0 | N78: =IFERROR(INDIRECT("'" & $E78 & "'!" & verwijzing!P$56),0) -> 0 | O78: =IFERROR(INDIRECT("'" & $E78 & "'!" & verwijzing!Q$56),0) -> 0 | P78: =IFERROR(INDIRECT("'" & $E78 & "'!" & verwijzing!R$56),0) -> 0 | Q78: =IFERROR(INDIRECT("'" & $E78 & "'!" & verwijzing!S$56),0) -> 0 | R78: =IFERROR(INDIRECT("'" & $E78 & "'!" & verwijzing!T$56),0) -> 0 | S78: =IFERROR(INDIRECT("'" & $E78 & "'!" & verwijzing!U$56),0) -> 0 | T78: =IFERROR(INDIRECT("'" & $E78 & "'!" & verwijzing!V$56),0) -> 0 | U78: =IFERROR(INDIRECT("'" & $E78 & "'!" & verwijzing!W$56),0) -> 0 | V78: =IFERROR(INDIRECT("'" & $E78 & "'!" & verwijzing!X$56),0) -> 0 | W78: =IFERROR(INDIRECT("'" & $E78 & "'!" & verwijzing!Y$56),0) -> 0 | X78: =IFERROR(INDIRECT("'" & $E78 & "'!" & verwijzing!Z$56),0) -> 0 | Y78: =IFERROR(INDIRECT("'" & $E78 & "'!" & verwijzing!AA$56),0) -> 0 | Z78: =IFERROR(INDIRECT("'" & $E78 & "'!" & verwijzing!AB$56),0) -> 0 | AA78: =IFERROR(INDIRECT("'" & $E78 & "'!" & verwijzing!AC$56),0) -> 0 | AB78: =IFERROR(INDIRECT("'" & $E78 & "'!" & verwijzing!AD$56),0) -> 0 | AC78: =IFERROR(INDIRECT("'" & $E78 & "'!" & verwijzing!AE$56),0) -> 0 | AD78: =IFERROR(INDIRECT("'" & $E78 & "'!" & verwijzing!AF$56),0) -> 0 | AE78: =IFERROR(INDIRECT("'" & $E78 & "'!" & verwijzing!AG$56),0) -> 0 | AF78: =IFERROR(INDIRECT("'" & $E78 & "'!" & verwijzing!AH$56),0) -> 0 | AG78: =IFERROR(INDIRECT("'" & $E78 & "'!" & verwijzing!AI$56),0) -> 0
C79: =INDIRECT("'Programma''s'!L18") -> 0 | D79: =IF(LEN(INDIRECT("C80"))>1,"Zichtbaar", "Onzichtbaar") -> Onzichtbaar | E79: =INDIRECT("'Programma''s'!J18") -> 0 | G79: =IFERROR(INDIRECT("'" & $E79 & "'!" &verwijzing!H$56),0) -> 0 | H79: =IFERROR(INDIRECT("'" & $E79 & "'!" &verwijzing!I$56),0) -> 0 | I79: =IFERROR(INDIRECT("'" & $E79 & "'!" &verwijzing!J$56),0) -> 0 | J79: =IFERROR(INDIRECT("'" & $E79 & "'!" &verwijzing!K$56),0) -> 0 | K79: =IFERROR(INDIRECT("'" & $E79 & "'!" &verwijzing!L$56),0) -> 0 | L79: =IFERROR(INDIRECT("'" & $E79 & "'!" &verwijzing!M$56),0) -> 0 | M79: =IFERROR(INDIRECT("'" & $E79 & "'!" & verwijzing!N$56),0) -> 0 | N79: =IFERROR(INDIRECT("'" & $E79 & "'!" & verwijzing!P$56),0) -> 0 | O79: =IFERROR(INDIRECT("'" & $E79 & "'!" & verwijzing!Q$56),0) -> 0 | P79: =IFERROR(INDIRECT("'" & $E79 & "'!" & verwijzing!R$56),0) -> 0 | Q79: =IFERROR(INDIRECT("'" & $E79 & "'!" & verwijzing!S$56),0) -> 0 | R79: =IFERROR(INDIRECT("'" & $E79 & "'!" & verwijzing!T$56),0) -> 0 | S79: =IFERROR(INDIRECT("'" & $E79 & "'!" & verwijzing!U$56),0) -> 0 | T79: =IFERROR(INDIRECT("'" & $E79 & "'!" & verwijzing!V$56),0) -> 0 | U79: =IFERROR(INDIRECT("'" & $E79 & "'!" & verwijzing!W$56),0) -> 0 | V79: =IFERROR(INDIRECT("'" & $E79 & "'!" & verwijzing!X$56),0) -> 0 | W79: =IFERROR(INDIRECT("'" & $E79 & "'!" & verwijzing!Y$56),0) -> 0 | X79: =IFERROR(INDIRECT("'" & $E79 & "'!" & verwijzing!Z$56),0) -> 0 | Y79: =IFERROR(INDIRECT("'" & $E79 & "'!" & verwijzing!AA$56),0) -> 0 | Z79: =IFERROR(INDIRECT("'" & $E79 & "'!" & verwijzing!AB$56),0) -> 0 | AA79: =IFERROR(INDIRECT("'" & $E79 & "'!" & verwijzing!AC$56),0) -> 0 | AB79: =IFERROR(INDIRECT("'" & $E79 & "'!" & verwijzing!AD$56),0) -> 0 | AC79: =IFERROR(INDIRECT("'" & $E79 & "'!" & verwijzing!AE$56),0) -> 0 | AD79: =IFERROR(INDIRECT("'" & $E79 & "'!" & verwijzing!AF$56),0) -> 0 | AE79: =IFERROR(INDIRECT("'" & $E79 & "'!" & verwijzing!AG$56),0) -> 0 | AF79: =IFERROR(INDIRECT("'" & $E79 & "'!" & verwijzing!AH$56),0) -> 0 | AG79: =IFERROR(INDIRECT("'" & $E79 & "'!" & verwijzing!AI$56),0) -> 0
C80: =INDIRECT("'Programma''s'!L19") -> 0 | D80: =IF(LEN(INDIRECT("C81"))>1,"Zichtbaar", "Onzichtbaar") -> Onzichtbaar | E80: =INDIRECT("'Programma''s'!J19") -> 0 | G80: =IFERROR(INDIRECT("'" & $E80 & "'!" &verwijzing!H$56),0) -> 0 | H80: =IFERROR(INDIRECT("'" & $E80 & "'!" &verwijzing!I$56),0) -> 0 | I80: =IFERROR(INDIRECT("'" & $E80 & "'!" &verwijzing!J$56),0) -> 0 | J80: =IFERROR(INDIRECT("'" & $E80 & "'!" &verwijzing!K$56),0) -> 0 | K80: =IFERROR(INDIRECT("'" & $E80 & "'!" &verwijzing!L$56),0) -> 0 | L80: =IFERROR(INDIRECT("'" & $E80 & "'!" &verwijzing!M$56),0) -> 0 | M80: =IFERROR(INDIRECT("'" & $E80 & "'!" & verwijzing!N$56),0) -> 0 | N80: =IFERROR(INDIRECT("'" & $E80 & "'!" & verwijzing!P$56),0) -> 0 | O80: =IFERROR(INDIRECT("'" & $E80 & "'!" & verwijzing!Q$56),0) -> 0 | P80: =IFERROR(INDIRECT("'" & $E80 & "'!" & verwijzing!R$56),0) -> 0 | Q80: =IFERROR(INDIRECT("'" & $E80 & "'!" & verwijzing!S$56),0) -> 0 | R80: =IFERROR(INDIRECT("'" & $E80 & "'!" & verwijzing!T$56),0) -> 0 | S80: =IFERROR(INDIRECT("'" & $E80 & "'!" & verwijzing!U$56),0) -> 0 | T80: =IFERROR(INDIRECT("'" & $E80 & "'!" & verwijzing!V$56),0) -> 0 | U80: =IFERROR(INDIRECT("'" & $E80 & "'!" & verwijzing!W$56),0) -> 0 | V80: =IFERROR(INDIRECT("'" & $E80 & "'!" & verwijzing!X$56),0) -> 0 | W80: =IFERROR(INDIRECT("'" & $E80 & "'!" & verwijzing!Y$56),0) -> 0 | X80: =IFERROR(INDIRECT("'" & $E80 & "'!" & verwijzing!Z$56),0) -> 0 | Y80: =IFERROR(INDIRECT("'" & $E80 & "'!" & verwijzing!AA$56),0) -> 0 | Z80: =IFERROR(INDIRECT("'" & $E80 & "'!" & verwijzing!AB$56),0) -> 0 | AA80: =IFERROR(INDIRECT("'" & $E80 & "'!" & verwijzing!AC$56),0) -> 0 | AB80: =IFERROR(INDIRECT("'" & $E80 & "'!" & verwijzing!AD$56),0) -> 0 | AC80: =IFERROR(INDIRECT("'" & $E80 & "'!" & verwijzing!AE$56),0) -> 0 | AD80: =IFERROR(INDIRECT("'" & $E80 & "'!" & verwijzing!AF$56),0) -> 0 | AE80: =IFERROR(INDIRECT("'" & $E80 & "'!" & verwijzing!AG$56),0) -> 0 | AF80: =IFERROR(INDIRECT("'" & $E80 & "'!" & verwijzing!AH$56),0) -> 0 | AG80: =IFERROR(INDIRECT("'" & $E80 & "'!" & verwijzing!AI$56),0) -> 0
C81: =INDIRECT("'Programma''s'!L20") -> 0 | D81: =IF(LEN(INDIRECT("C82"))>1,"Zichtbaar", "Onzichtbaar") -> Onzichtbaar | E81: =INDIRECT("'Programma''s'!J20") -> 0 | G81: =IFERROR(INDIRECT("'" & $E81 & "'!" &verwijzing!H$56),0) -> 0 | H81: =IFERROR(INDIRECT("'" & $E81 & "'!" &verwijzing!I$56),0) -> 0 | I81: =IFERROR(INDIRECT("'" & $E81 & "'!" &verwijzing!J$56),0) -> 0 | J81: =IFERROR(INDIRECT("'" & $E81 & "'!" &verwijzing!K$56),0) -> 0 | K81: =IFERROR(INDIRECT("'" & $E81 & "'!" &verwijzing!L$56),0) -> 0 | L81: =IFERROR(INDIRECT("'" & $E81 & "'!" &verwijzing!M$56),0) -> 0 | M81: =IFERROR(INDIRECT("'" & $E81 & "'!" & verwijzing!N$56),0) -> 0 | N81: =IFERROR(INDIRECT("'" & $E81 & "'!" & verwijzing!P$56),0) -> 0 | O81: =IFERROR(INDIRECT("'" & $E81 & "'!" & verwijzing!Q$56),0) -> 0 | P81: =IFERROR(INDIRECT("'" & $E81 & "'!" & verwijzing!R$56),0) -> 0 | Q81: =IFERROR(INDIRECT("'" & $E81 & "'!" & verwijzing!S$56),0) -> 0 | R81: =IFERROR(INDIRECT("'" & $E81 & "'!" & verwijzing!T$56),0) -> 0 | S81: =IFERROR(INDIRECT("'" & $E81 & "'!" & verwijzing!U$56),0) -> 0 | T81: =IFERROR(INDIRECT("'" & $E81 & "'!" & verwijzing!V$56),0) -> 0 | U81: =IFERROR(INDIRECT("'" & $E81 & "'!" & verwijzing!W$56),0) -> 0 | V81: =IFERROR(INDIRECT("'" & $E81 & "'!" & verwijzing!X$56),0) -> 0 | W81: =IFERROR(INDIRECT("'" & $E81 & "'!" & verwijzing!Y$56),0) -> 0 | X81: =IFERROR(INDIRECT("'" & $E81 & "'!" & verwijzing!Z$56),0) -> 0 | Y81: =IFERROR(INDIRECT("'" & $E81 & "'!" & verwijzing!AA$56),0) -> 0 | Z81: =IFERROR(INDIRECT("'" & $E81 & "'!" & verwijzing!AB$56),0) -> 0 | AA81: =IFERROR(INDIRECT("'" & $E81 & "'!" & verwijzing!AC$56),0) -> 0 | AB81: =IFERROR(INDIRECT("'" & $E81 & "'!" & verwijzing!AD$56),0) -> 0 | AC81: =IFERROR(INDIRECT("'" & $E81 & "'!" & verwijzing!AE$56),0) -> 0 | AD81: =IFERROR(INDIRECT("'" & $E81 & "'!" & verwijzing!AF$56),0) -> 0 | AE81: =IFERROR(INDIRECT("'" & $E81 & "'!" & verwijzing!AG$56),0) -> 0 | AF81: =IFERROR(INDIRECT("'" & $E81 & "'!" & verwijzing!AH$56),0) -> 0 | AG81: =IFERROR(INDIRECT("'" & $E81 & "'!" & verwijzing!AI$56),0) -> 0
C82: =INDIRECT("'Programma''s'!L21") -> 0 | D82: =IF(LEN(INDIRECT("C83"))>1,"Zichtbaar", "Onzichtbaar") -> Onzichtbaar | E82: =INDIRECT("'Programma''s'!J21") -> 0 | G82: =IFERROR(INDIRECT("'" & $E82 & "'!" &verwijzing!H$56),0) -> 0 | H82: =IFERROR(INDIRECT("'" & $E82 & "'!" &verwijzing!I$56),0) -> 0 | I82: =IFERROR(INDIRECT("'" & $E82 & "'!" &verwijzing!J$56),0) -> 0 | J82: =IFERROR(INDIRECT("'" & $E82 & "'!" &verwijzing!K$56),0) -> 0 | K82: =IFERROR(INDIRECT("'" & $E82 & "'!" &verwijzing!L$56),0) -> 0 | L82: =IFERROR(INDIRECT("'" & $E82 & "'!" &verwijzing!M$56),0) -> 0 | M82: =IFERROR(INDIRECT("'" & $E82 & "'!" & verwijzing!N$56),0) -> 0 | N82: =IFERROR(INDIRECT("'" & $E82 & "'!" & verwijzing!P$56),0) -> 0 | O82: =IFERROR(INDIRECT("'" & $E82 & "'!" & verwijzing!Q$56),0) -> 0 | P82: =IFERROR(INDIRECT("'" & $E82 & "'!" & verwijzing!R$56),0) -> 0 | Q82: =IFERROR(INDIRECT("'" & $E82 & "'!" & verwijzing!S$56),0) -> 0 | R82: =IFERROR(INDIRECT("'" & $E82 & "'!" & verwijzing!T$56),0) -> 0 | S82: =IFERROR(INDIRECT("'" & $E82 & "'!" & verwijzing!U$56),0) -> 0 | T82: =IFERROR(INDIRECT("'" & $E82 & "'!" & verwijzing!V$56),0) -> 0 | U82: =IFERROR(INDIRECT("'" & $E82 & "'!" & verwijzing!W$56),0) -> 0 | V82: =IFERROR(INDIRECT("'" & $E82 & "'!" & verwijzing!X$56),0) -> 0 | W82: =IFERROR(INDIRECT("'" & $E82 & "'!" & verwijzing!Y$56),0) -> 0 | X82: =IFERROR(INDIRECT("'" & $E82 & "'!" & verwijzing!Z$56),0) -> 0 | Y82: =IFERROR(INDIRECT("'" & $E82 & "'!" & verwijzing!AA$56),0) -> 0 | Z82: =IFERROR(INDIRECT("'" & $E82 & "'!" & verwijzing!AB$56),0) -> 0 | AA82: =IFERROR(INDIRECT("'" & $E82 & "'!" & verwijzing!AC$56),0) -> 0 | AB82: =IFERROR(INDIRECT("'" & $E82 & "'!" & verwijzing!AD$56),0) -> 0 | AC82: =IFERROR(INDIRECT("'" & $E82 & "'!" & verwijzing!AE$56),0) -> 0 | AD82: =IFERROR(INDIRECT("'" & $E82 & "'!" & verwijzing!AF$56),0) -> 0 | AE82: =IFERROR(INDIRECT("'" & $E82 & "'!" & verwijzing!AG$56),0) -> 0 | AF82: =IFERROR(INDIRECT("'" & $E82 & "'!" & verwijzing!AH$56),0) -> 0 | AG82: =IFERROR(INDIRECT("'" & $E82 & "'!" & verwijzing!AI$56),0) -> 0
C83: =INDIRECT("'Programma''s'!L22") -> 0 | D83: =IF(LEN(INDIRECT("C84"))>1,"Zichtbaar", "Onzichtbaar") -> Onzichtbaar | E83: =INDIRECT("'Programma''s'!J22") -> 0 | G83: =IFERROR(INDIRECT("'" & $E83 & "'!" &verwijzing!H$56),0) -> 0 | H83: =IFERROR(INDIRECT("'" & $E83 & "'!" &verwijzing!I$56),0) -> 0 | I83: =IFERROR(INDIRECT("'" & $E83 & "'!" &verwijzing!J$56),0) -> 0 | J83: =IFERROR(INDIRECT("'" & $E83 & "'!" &verwijzing!K$56),0) -> 0 | K83: =IFERROR(INDIRECT("'" & $E83 & "'!" &verwijzing!L$56),0) -> 0 | L83: =IFERROR(INDIRECT("'" & $E83 & "'!" &verwijzing!M$56),0) -> 0 | M83: =IFERROR(INDIRECT("'" & $E83 & "'!" & verwijzing!N$56),0) -> 0 | N83: =IFERROR(INDIRECT("'" & $E83 & "'!" & verwijzing!P$56),0) -> 0 | O83: =IFERROR(INDIRECT("'" & $E83 & "'!" & verwijzing!Q$56),0) -> 0 | P83: =IFERROR(INDIRECT("'" & $E83 & "'!" & verwijzing!R$56),0) -> 0 | Q83: =IFERROR(INDIRECT("'" & $E83 & "'!" & verwijzing!S$56),0) -> 0 | R83: =IFERROR(INDIRECT("'" & $E83 & "'!" & verwijzing!T$56),0) -> 0 | S83: =IFERROR(INDIRECT("'" & $E83 & "'!" & verwijzing!U$56),0) -> 0 | T83: =IFERROR(INDIRECT("'" & $E83 & "'!" & verwijzing!V$56),0) -> 0 | U83: =IFERROR(INDIRECT("'" & $E83 & "'!" & verwijzing!W$56),0) -> 0 | V83: =IFERROR(INDIRECT("'" & $E83 & "'!" & verwijzing!X$56),0) -> 0 | W83: =IFERROR(INDIRECT("'" & $E83 & "'!" & verwijzing!Y$56),0) -> 0 | X83: =IFERROR(INDIRECT("'" & $E83 & "'!" & verwijzing!Z$56),0) -> 0 | Y83: =IFERROR(INDIRECT("'" & $E83 & "'!" & verwijzing!AA$56),0) -> 0 | Z83: =IFERROR(INDIRECT("'" & $E83 & "'!" & verwijzing!AB$56),0) -> 0 | AA83: =IFERROR(INDIRECT("'" & $E83 & "'!" & verwijzing!AC$56),0) -> 0 | AB83: =IFERROR(INDIRECT("'" & $E83 & "'!" & verwijzing!AD$56),0) -> 0 | AC83: =IFERROR(INDIRECT("'" & $E83 & "'!" & verwijzing!AE$56),0) -> 0 | AD83: =IFERROR(INDIRECT("'" & $E83 & "'!" & verwijzing!AF$56),0) -> 0 | AE83: =IFERROR(INDIRECT("'" & $E83 & "'!" & verwijzing!AG$56),0) -> 0 | AF83: =IFERROR(INDIRECT("'" & $E83 & "'!" & verwijzing!AH$56),0) -> 0 | AG83: =IFERROR(INDIRECT("'" & $E83 & "'!" & verwijzing!AI$56),0) -> 0
C85: Totaal programma's | G85: =SUM(G64:G83) -> 0 | H85: =SUM(H64:H83) -> 0 | I85: 0 | J85: 0 | K85: 0 | L85: 0 | M85: 0 | N85: 0 | O85: 0 | P85: 0 | Q85: 0 | R85: 0 | S85: 0 | T85: =SUM(T64:T83) -> 0 | U85: =SUM(U64:U83) -> 0 | V85: =SUM(V64:V83) -> 0 | W85: =SUM(W64:W83) -> 0 | X85: 0 | Y85: 0 | Z85: =SUM(Z64:Z83) -> 0 | AA85: 0 | AB85: =SUM(AB64:AB83) -> 0 | AC85: =SUM(AC64:AC83) -> 0 | AD85: =SUM(AD64:AD83) -> 0 | AE85: =SUM(AE64:AE83) -> 0 | AF85: 0 | AG85: 0
C87: Totale lasten | G87: =G59+G85 -> 11302182.9 | H87: 14174712.74 | I87: 14312280.59 | J87: 14562776.81 | K87: 14709539.87 | L87: 15244033.62 | M87: 15405334.54 | N87: 9865593.489 | O87: 3470223.348 | P87: 0 | Q87: 0 | R87: 0 | S87: 0 | T87: 0 | U87: 0 | V87: 0 | W87: 0 | X87: 0 | Y87: 0 | Z87: =Z59+Z85 -> 0 | AA87: 0 | AB87: 0 | AC87: 0 | AD87: 0 | AE87: 0 | AF87: 0 | AG87: 0

Sheet Lasten onderst.plan RJO
AT1: =INDEX(gekozenjaar,AU1) -> 2020 | AU1: 1 | AW1: =INDEX(gekozenjaar,AX1) -> 2030 | AX1: 11
A2: 0 | B2: =Start!$A$33 -> Versie 8.0
B3: VERZAMELSTAAT LASTEN UITVOERING ONDERSTEUNINGSPLAN VOLGENS RJO | F3: =IF(Begrotingsmodel!$G$10="kalenderjaar","x",IF(AND(F5>=$AT$1,F5<=$AW$1),"","x")) -> x | G3: =IF(Begrotingsmodel!$G$10="kalenderjaar","x",IF(AND(G5>=$AT$1,G5<=$AW$1),"","x")) -> x | H3: =IF(Begrotingsmodel!$G$10="kalenderjaar","x",IF(AND(H5>=$AT$1,H5<=$AW$1),"","x")) -> x | I3: =IF(Begrotingsmodel!$G$10="schooljaar","x",IF(AND(I5>=$AT$1,I5<=$AW$1),"","x")) -> x | J3: =IF(Begrotingsmodel!$G$10="kalenderjaar","x",IF(AND(J5>=$AT$1,J5<=$AW$1),"","x")) -> x | K3: =IF(Begrotingsmodel!$G$10="schooljaar","x",IF(AND(K5>=$AT$1,K5<=$AW$1),"","x")) ->  | L3: =IF(Begrotingsmodel!$G$10="kalenderjaar","x",IF(AND(L5>=$AT$1,L5<=$AW$1),"","x")) -> x | M3: =IF(Begrotingsmodel!$G$10="schooljaar","x",IF(AND(M5>=$AT$1,M5<=$AW$1),"","x")) ->  | N3: =IF(Begrotingsmodel!$G$10="kalenderjaar","x",IF(AND(N5>=$AT$1,N5<=$AW$1),"","x")) -> x | O3: =IF(Begrotingsmodel!$G$10="schooljaar","x",IF(AND(O5>=$AT$1,O5<=$AW$1),"","x")) ->  | P3: =IF(Begrotingsmodel!$G$10="kalenderjaar","x",IF(AND(P5>=$AT$1,P5<=$AW$1),"","x")) -> x | Q3: =IF(Begrotingsmodel!$G$10="schooljaar","x",IF(AND(Q5>=$AT$1,Q5<=$AW$1),"","x")) ->  | R3: =IF(Begrotingsmodel!$G$10="kalenderjaar","x",IF(AND(R5>=$AT$1,R5<=$AW$1),"","x")) -> x | S3: =IF(Begrotingsmodel!$G$10="schooljaar","x",IF(AND(S5>=$AT$1,S5<=$AW$1),"","x")) ->  | T3: =IF(Begrotingsmodel!$G$10="kalenderjaar","x",IF(AND(T5>=$AT$1,T5<=$AW$1),"","x")) -> x | U3: =IF(Begrotingsmodel!$G$10="schooljaar","x",IF(AND(U5>=$AT$1,U5<=$AW$1),"","x")) ->  | V3: =IF(Begrotingsmodel!$G$10="kalenderjaar","x",IF(AND(V5>=$AT$1,V5<=$AW$1),"","x")) -> x | W3: =IF(Begrotingsmodel!$G$10="schooljaar","x",IF(AND(W5>=$AT$1,W5<=$AW$1),"","x")) ->  | X3: =IF(Begrotingsmodel!$G$10="kalenderjaar","x",IF(AND(X5>=$AT$1,X5<=$AW$1),"","x")) -> x | Y3: =IF(Begrotingsmodel!$G$10="schooljaar","x",IF(AND(Y5>=$AT$1,Y5<=$AW$1),"","x")) ->  | Z3: =IF(Begrotingsmodel!$G$10="kalenderjaar","x",IF(AND(Z5>=$AT$1,Z5<=$AW$1),"","x")) -> x | AA3: =IF(Begrotingsmodel!$G$10="schooljaar","x",IF(AND(AA5>=$AT$1,AA5<=$AW$1),"","x")) ->  | AB3: =IF(Begrotingsmodel!$G$10="kalenderjaar","x",IF(AND(AB5>=$AT$1,AB5<=$AW$1),"","x")) -> x | AC3: =IF(Begrotingsmodel!$G$10="schooljaar","x",IF(AND(AC5>=$AT$1,AC5<=$AW$1),"","x")) ->  | AD3: =IF(Begrotingsmodel!$G$10="kalenderjaar","x",IF(AND(AD5>=$AT$1,AD5<=$AW$1),"","x")) -> x | AE3: =IF(Begrotingsmodel!$G$10="schooljaar","x",IF(AND(AE5>=$AT$1,AE5<=$AW$1),"","x")) -> 
F4: 1 | G4: 1 | H4: 2 | I4: 2 | J4: 3 | K4: 3 | L4: 4 | M4: 4 | N4: 5 | O4: 5 | P4: 6 | Q4: 6 | R4: 7
C5: Bijdrage aan scholen | F5: ='MJB schooljaar'!F19 -> 2017/18 | G5: ='MJB kalenderjaar'!F5 -> 2018 | H5: ='MJB schooljaar'!H19 -> 2018/19 | I5: ='MJB kalenderjaar'!H5 -> 2019 | J5: ='MJB schooljaar'!J19 -> 2019/20 | K5: ='MJB kalenderjaar'!J5 -> 2020 | L5: ='MJB schooljaar'!N19 -> 2020/21 | M5: ='MJB kalenderjaar'!N5 -> 2021 | N5: ='MJB schooljaar'!P19 -> 2021/22 | O5: ='MJB kalenderjaar'!P5 -> 2022 | P5: ='MJB schooljaar'!R19 -> 2022/23 | Q5: ='MJB kalenderjaar'!R5 -> 2023 | R5: ='MJB schooljaar'!T19 -> 2023/24 | S5: ='MJB kalenderjaar'!T5 -> 2024 | T5: ='MJB schooljaar'!V19 -> 2024/25 | U5: ='MJB kalenderjaar'!V5 -> 2025 | V5: ='MJB schooljaar'!X19 -> 2025/26 | W5: ='MJB kalenderjaar'!X5 -> 2026 | X5: ='MJB schooljaar'!Z19 -> 2026/27 | Y5: ='MJB kalenderjaar'!Z5 -> 2027 | Z5: ='MJB schooljaar'!AB19 -> 2027/28 | AA5: ='MJB kalenderjaar'!AB5 -> 2028 | AB5: ='MJB schooljaar'!AD19 -> 2028/29 | AC5: ='MJB kalenderjaar'!AD5 -> 2029 | AD5: ='MJB schooljaar'!AF19 -> 2029/30 | AE5: ='MJB kalenderjaar'!AF5 -> 2030
C6: =INDIRECT("'Programma''s'!L3") -> 0 | D6: =IF(LEN(C6)>1,"zichtbaar","onzichtbaar") -> onzichtbaar | E6: =INDIRECT("'Programma''s'!J3") -> 0 | F6: =IFERROR(INDIRECT("'" & $E6 & "'!" &verwijzing!I$14),0) -> 0 | G6: =IFERROR(INDIRECT("'" & $E6 & "'!" &verwijzing!J$14),0) -> 0 | H6: =IFERROR(INDIRECT("'" & $E6 & "'!" &verwijzing!K$14),0) -> 0 | I6: =IFERROR(INDIRECT("'" & $E6 & "'!" &verwijzing!L$14),0) -> 0 | J6: =IFERROR(INDIRECT("'" & $E6 & "'!" &verwijzing!M$14),0) -> 0 | K6: =IFERROR(INDIRECT("'" & $E6 & "'!" &verwijzing!N$14),0) -> 0 | L6: =IFERROR(INDIRECT("'" & $E6 & "'!" &verwijzing!P$14),0) -> 0 | M6: =IFERROR(INDIRECT("'" & $E6 & "'!" &verwijzing!Q$14),0) -> 0 | N6: =IFERROR(INDIRECT("'" & $E6 & "'!" &verwijzing!R$14),0) -> 0 | O6: =IFERROR(INDIRECT("'" & $E6 & "'!" &verwijzing!S$14),0) -> 0 | P6: =IFERROR(INDIRECT("'" & $E6 & "'!" &verwijzing!T$14),0) -> 0 | Q6: =IFERROR(INDIRECT("'" & $E6 & "'!" &verwijzing!U$14),0) -> 0 | R6: =IFERROR(INDIRECT("'" & $E6 & "'!" &verwijzing!V$14),0) -> 0 | S6: =IFERROR(INDIRECT("'" & $E6 & "'!" &verwijzing!W$14),0) -> 0 | T6: =IFERROR(INDIRECT("'" & $E6 & "'!" &verwijzing!X$14),0) -> 0 | U6: =IFERROR(INDIRECT("'" & $E6 & "'!" &verwijzing!Y$14),0) -> 0 | V6: =IFERROR(INDIRECT("'" & $E6 & "'!" &verwijzing!Z$14),0) -> 0 | W6: =IFERROR(INDIRECT("'" & $E6 & "'!" &verwijzing!AA$14),0) -> 0 | X6: =IFERROR(INDIRECT("'" & $E6 & "'!" &verwijzing!AB$14),0) -> 0 | Y6: =IFERROR(INDIRECT("'" & $E6 & "'!" &verwijzing!AC$14),0) -> 0 | Z6: =IFERROR(INDIRECT("'" & $E6 & "'!" &verwijzing!AD$14),0) -> 0 | AA6: =IFERROR(INDIRECT("'" & $E6 & "'!" &verwijzing!AE$14),0) -> 0 | AB6: =IFERROR(INDIRECT("'" & $E6 & "'!" &verwijzing!AF$14),0) -> 0 | AC6: =IFERROR(INDIRECT("'" & $E6 & "'!" &verwijzing!AG$14),0) -> 0 | AD6: =IFERROR(INDIRECT("'" & $E6 & "'!" &verwijzing!AH$14),0) -> 0 | AE6: =IFERROR(INDIRECT("'" & $E6 & "'!" &verwijzing!AI$14),0) -> 0
C7: =INDIRECT("'Programma''s'!L4") -> 0 | D7: =IF(LEN(C7)>1,"zichtbaar","onzichtbaar") -> onzichtbaar | E7: =INDIRECT("'Programma''s'!J4") -> 0 | F7: =IFERROR(INDIRECT("'" & $E7 & "'!" &verwijzing!I$14),0) -> 0 | G7: =IFERROR(INDIRECT("'" & $E7 & "'!" &verwijzing!J$14),0) -> 0 | H7: =IFERROR(INDIRECT("'" & $E7 & "'!" &verwijzing!K$14),0) -> 0 | I7: =IFERROR(INDIRECT("'" & $E7 & "'!" &verwijzing!L$14),0) -> 0 | J7: =IFERROR(INDIRECT("'" & $E7 & "'!" &verwijzing!M$14),0) -> 0 | K7: =IFERROR(INDIRECT("'" & $E7 & "'!" &verwijzing!N$14),0) -> 0 | L7: =IFERROR(INDIRECT("'" & $E7 & "'!" &verwijzing!P$14),0) -> 0 | M7: =IFERROR(INDIRECT("'" & $E7 & "'!" &verwijzing!Q$14),0) -> 0 | N7: =IFERROR(INDIRECT("'" & $E7 & "'!" &verwijzing!R$14),0) -> 0 | O7: =IFERROR(INDIRECT("'" & $E7 & "'!" &verwijzing!S$14),0) -> 0 | P7: =IFERROR(INDIRECT("'" & $E7 & "'!" &verwijzing!T$14),0) -> 0 | Q7: =IFERROR(INDIRECT("'" & $E7 & "'!" &verwijzing!U$14),0) -> 0 | R7: =IFERROR(INDIRECT("'" & $E7 & "'!" &verwijzing!V$14),0) -> 0 | S7: =IFERROR(INDIRECT("'" & $E7 & "'!" &verwijzing!W$14),0) -> 0 | T7: =IFERROR(INDIRECT("'" & $E7 & "'!" &verwijzing!X$14),0) -> 0 | U7: =IFERROR(INDIRECT("'" & $E7 & "'!" &verwijzing!Y$14),0) -> 0 | V7: =IFERROR(INDIRECT("'" & $E7 & "'!" &verwijzing!Z$14),0) -> 0 | W7: =IFERROR(INDIRECT("'" & $E7 & "'!" &verwijzing!AA$14),0) -> 0 | X7: =IFERROR(INDIRECT("'" & $E7 & "'!" &verwijzing!AB$14),0) -> 0 | Y7: =IFERROR(INDIRECT("'" & $E7 & "'!" &verwijzing!AC$14),0) -> 0 | Z7: =IFERROR(INDIRECT("'" & $E7 & "'!" &verwijzing!AD$14),0) -> 0 | AA7: =IFERROR(INDIRECT("'" & $E7 & "'!" &verwijzing!AE$14),0) -> 0 | AB7: =IFERROR(INDIRECT("'" & $E7 & "'!" &verwijzing!AF$14),0) -> 0 | AC7: =IFERROR(INDIRECT("'" & $E7 & "'!" &verwijzing!AG$14),0) -> 0 | AD7: =IFERROR(INDIRECT("'" & $E7 & "'!" &verwijzing!AH$14),0) -> 0 | AE7: =IFERROR(INDIRECT("'" & $E7 & "'!" &verwijzing!AI$14),0) -> 0
C8: =INDIRECT("'Programma''s'!L5") -> 0 | D8: onzichtbaar | E8: =INDIRECT("'Programma''s'!J5") -> 0 | F8: =IFERROR(INDIRECT("'" & $E8 & "'!" &verwijzing!I$14),0) -> 0 | G8: =IFERROR(INDIRECT("'" & $E8 & "'!" &verwijzing!J$14),0) -> 0 | H8: =IFERROR(INDIRECT("'" & $E8 & "'!" &verwijzing!K$14),0) -> 0 | I8: =IFERROR(INDIRECT("'" & $E8 & "'!" &verwijzing!L$14),0) -> 0 | J8: =IFERROR(INDIRECT("'" & $E8 & "'!" &verwijzing!M$14),0) -> 0 | K8: =IFERROR(INDIRECT("'" & $E8 & "'!" &verwijzing!N$14),0) -> 0 | L8: =IFERROR(INDIRECT("'" & $E8 & "'!" &verwijzing!P$14),0) -> 0 | M8: =IFERROR(INDIRECT("'" & $E8 & "'!" &verwijzing!Q$14),0) -> 0 | N8: =IFERROR(INDIRECT("'" & $E8 & "'!" &verwijzing!R$14),0) -> 0 | O8: =IFERROR(INDIRECT("'" & $E8 & "'!" &verwijzing!S$14),0) -> 0 | P8: =IFERROR(INDIRECT("'" & $E8 & "'!" &verwijzing!T$14),0) -> 0 | Q8: =IFERROR(INDIRECT("'" & $E8 & "'!" &verwijzing!U$14),0) -> 0 | R8: =IFERROR(INDIRECT("'" & $E8 & "'!" &verwijzing!V$14),0) -> 0 | S8: =IFERROR(INDIRECT("'" & $E8 & "'!" &verwijzing!W$14),0) -> 0 | T8: =IFERROR(INDIRECT("'" & $E8 & "'!" &verwijzing!X$14),0) -> 0 | U8: =IFERROR(INDIRECT("'" & $E8 & "'!" &verwijzing!Y$14),0) -> 0 | V8: =IFERROR(INDIRECT("'" & $E8 & "'!" &verwijzing!Z$14),0) -> 0 | W8: =IFERROR(INDIRECT("'" & $E8 & "'!" &verwijzing!AA$14),0) -> 0 | X8: =IFERROR(INDIRECT("'" & $E8 & "'!" &verwijzing!AB$14),0) -> 0 | Y8: =IFERROR(INDIRECT("'" & $E8 & "'!" &verwijzing!AC$14),0) -> 0 | Z8: =IFERROR(INDIRECT("'" & $E8 & "'!" &verwijzing!AD$14),0) -> 0 | AA8: =IFERROR(INDIRECT("'" & $E8 & "'!" &verwijzing!AE$14),0) -> 0 | AB8: =IFERROR(INDIRECT("'" & $E8 & "'!" &verwijzing!AF$14),0) -> 0 | AC8: =IFERROR(INDIRECT("'" & $E8 & "'!" &verwijzing!AG$14),0) -> 0 | AD8: =IFERROR(INDIRECT("'" & $E8 & "'!" &verwijzing!AH$14),0) -> 0 | AE8: =IFERROR(INDIRECT("'" & $E8 & "'!" &verwijzing!AI$14),0) -> 0
C9: =INDIRECT("'Programma''s'!L6") -> 0 | D9: onzichtbaar | E9: =INDIRECT("'Programma''s'!J6") -> 0 | F9: =IFERROR(INDIRECT("'" & $E9 & "'!" &verwijzing!I$14),0) -> 0 | G9: =IFERROR(INDIRECT("'" & $E9 & "'!" &verwijzing!J$14),0) -> 0 | H9: =IFERROR(INDIRECT("'" & $E9 & "'!" &verwijzing!K$14),0) -> 0 | I9: =IFERROR(INDIRECT("'" & $E9 & "'!" &verwijzing!L$14),0) -> 0 | J9: =IFERROR(INDIRECT("'" & $E9 & "'!" &verwijzing!M$14),0) -> 0 | K9: =IFERROR(INDIRECT("'" & $E9 & "'!" &verwijzing!N$14),0) -> 0 | L9: =IFERROR(INDIRECT("'" & $E9 & "'!" &verwijzing!P$14),0) -> 0 | M9: =IFERROR(INDIRECT("'" & $E9 & "'!" &verwijzing!Q$14),0) -> 0 | N9: =IFERROR(INDIRECT("'" & $E9 & "'!" &verwijzing!R$14),0) -> 0 | O9: =IFERROR(INDIRECT("'" & $E9 & "'!" &verwijzing!S$14),0) -> 0 | P9: =IFERROR(INDIRECT("'" & $E9 & "'!" &verwijzing!T$14),0) -> 0 | Q9: =IFERROR(INDIRECT("'" & $E9 & "'!" &verwijzing!U$14),0) -> 0 | R9: =IFERROR(INDIRECT("'" & $E9 & "'!" &verwijzing!V$14),0) -> 0 | S9: =IFERROR(INDIRECT("'" & $E9 & "'!" &verwijzing!W$14),0) -> 0 | T9: =IFERROR(INDIRECT("'" & $E9 & "'!" &verwijzing!X$14),0) -> 0 | U9: =IFERROR(INDIRECT("'" & $E9 & "'!" &verwijzing!Y$14),0) -> 0 | V9: =IFERROR(INDIRECT("'" & $E9 & "'!" &verwijzing!Z$14),0) -> 0 | W9: =IFERROR(INDIRECT("'" & $E9 & "'!" &verwijzing!AA$14),0) -> 0 | X9: =IFERROR(INDIRECT("'" & $E9 & "'!" &verwijzing!AB$14),0) -> 0 | Y9: =IFERROR(INDIRECT("'" & $E9 & "'!" &verwijzing!AC$14),0) -> 0 | Z9: =IFERROR(INDIRECT("'" & $E9 & "'!" &verwijzing!AD$14),0) -> 0 | AA9: =IFERROR(INDIRECT("'" & $E9 & "'!" &verwijzing!AE$14),0) -> 0 | AB9: =IFERROR(INDIRECT("'" & $E9 & "'!" &verwijzing!AF$14),0) -> 0 | AC9: =IFERROR(INDIRECT("'" & $E9 & "'!" &verwijzing!AG$14),0) -> 0 | AD9: =IFERROR(INDIRECT("'" & $E9 & "'!" &verwijzing!AH$14),0) -> 0 | AE9: =IFERROR(INDIRECT("'" & $E9 & "'!" &verwijzing!AI$14),0) -> 0
C10: =INDIRECT("'Programma''s'!L7") -> 0 | D10: onzichtbaar | E10: =INDIRECT("'Programma''s'!J7") -> 0 | F10: =IFERROR(INDIRECT("'" & $E10 & "'!" &verwijzing!I$14),0) -> 0 | G10: =IFERROR(INDIRECT("'" & $E10 & "'!" &verwijzing!J$14),0) -> 0 | H10: =IFERROR(INDIRECT("'" & $E10 & "'!" &verwijzing!K$14),0) -> 0 | I10: =IFERROR(INDIRECT("'" & $E10 & "'!" &verwijzing!L$14),0) -> 0 | J10: =IFERROR(INDIRECT("'" & $E10 & "'!" &verwijzing!M$14),0) -> 0 | K10: =IFERROR(INDIRECT("'" & $E10 & "'!" &verwijzing!N$14),0) -> 0 | L10: =IFERROR(INDIRECT("'" & $E10 & "'!" &verwijzing!P$14),0) -> 0 | M10: =IFERROR(INDIRECT("'" & $E10 & "'!" &verwijzing!Q$14),0) -> 0 | N10: =IFERROR(INDIRECT("'" & $E10 & "'!" &verwijzing!R$14),0) -> 0 | O10: =IFERROR(INDIRECT("'" & $E10 & "'!" &verwijzing!S$14),0) -> 0 | P10: =IFERROR(INDIRECT("'" & $E10 & "'!" &verwijzing!T$14),0) -> 0 | Q10: =IFERROR(INDIRECT("'" & $E10 & "'!" &verwijzing!U$14),0) -> 0 | R10: =IFERROR(INDIRECT("'" & $E10 & "'!" &verwijzing!V$14),0) -> 0 | S10: =IFERROR(INDIRECT("'" & $E10 & "'!" &verwijzing!W$14),0) -> 0 | T10: =IFERROR(INDIRECT("'" & $E10 & "'!" &verwijzing!X$14),0) -> 0 | U10: =IFERROR(INDIRECT("'" & $E10 & "'!" &verwijzing!Y$14),0) -> 0 | V10: =IFERROR(INDIRECT("'" & $E10 & "'!" &verwijzing!Z$14),0) -> 0 | W10: =IFERROR(INDIRECT("'" & $E10 & "'!" &verwijzing!AA$14),0) -> 0 | X10: =IFERROR(INDIRECT("'" & $E10 & "'!" &verwijzing!AB$14),0) -> 0 | Y10: =IFERROR(INDIRECT("'" & $E10 & "'!" &verwijzing!AC$14),0) -> 0 | Z10: =IFERROR(INDIRECT("'" & $E10 & "'!" &verwijzing!AD$14),0) -> 0 | AA10: =IFERROR(INDIRECT("'" & $E10 & "'!" &verwijzing!AE$14),0) -> 0 | AB10: =IFERROR(INDIRECT("'" & $E10 & "'!" &verwijzing!AF$14),0) -> 0 | AC10: =IFERROR(INDIRECT("'" & $E10 & "'!" &verwijzing!AG$14),0) -> 0 | AD10: =IFERROR(INDIRECT("'" & $E10 & "'!" &verwijzing!AH$14),0) -> 0 | AE10: =IFERROR(INDIRECT("'" & $E10 & "'!" &verwijzing!AI$14),0) -> 0
C11: =INDIRECT("'Programma''s'!L8") -> 0 | D11: onzichtbaar | E11: =INDIRECT("'Programma''s'!J8") -> 0 | F11: =IFERROR(INDIRECT("'" & $E11 & "'!" &verwijzing!I$14),0) -> 0 | G11: =IFERROR(INDIRECT("'" & $E11 & "'!" &verwijzing!J$14),0) -> 0 | H11: =IFERROR(INDIRECT("'" & $E11 & "'!" &verwijzing!K$14),0) -> 0 | I11: =IFERROR(INDIRECT("'" & $E11 & "'!" &verwijzing!L$14),0) -> 0 | J11: =IFERROR(INDIRECT("'" & $E11 & "'!" &verwijzing!M$14),0) -> 0 | K11: =IFERROR(INDIRECT("'" & $E11 & "'!" &verwijzing!N$14),0) -> 0 | L11: =IFERROR(INDIRECT("'" & $E11 & "'!" &verwijzing!P$14),0) -> 0 | M11: =IFERROR(INDIRECT("'" & $E11 & "'!" &verwijzing!Q$14),0) -> 0 | N11: =IFERROR(INDIRECT("'" & $E11 & "'!" &verwijzing!R$14),0) -> 0 | O11: =IFERROR(INDIRECT("'" & $E11 & "'!" &verwijzing!S$14),0) -> 0 | P11: =IFERROR(INDIRECT("'" & $E11 & "'!" &verwijzing!T$14),0) -> 0 | Q11: =IFERROR(INDIRECT("'" & $E11 & "'!" &verwijzing!U$14),0) -> 0 | R11: =IFERROR(INDIRECT("'" & $E11 & "'!" &verwijzing!V$14),0) -> 0 | S11: =IFERROR(INDIRECT("'" & $E11 & "'!" &verwijzing!W$14),0) -> 0 | T11: =IFERROR(INDIRECT("'" & $E11 & "'!" &verwijzing!X$14),0) -> 0 | U11: =IFERROR(INDIRECT("'" & $E11 & "'!" &verwijzing!Y$14),0) -> 0 | V11: =IFERROR(INDIRECT("'" & $E11 & "'!" &verwijzing!Z$14),0) -> 0 | W11: =IFERROR(INDIRECT("'" & $E11 & "'!" &verwijzing!AA$14),0) -> 0 | X11: =IFERROR(INDIRECT("'" & $E11 & "'!" &verwijzing!AB$14),0) -> 0 | Y11: =IFERROR(INDIRECT("'" & $E11 & "'!" &verwijzing!AC$14),0) -> 0 | Z11: =IFERROR(INDIRECT("'" & $E11 & "'!" &verwijzing!AD$14),0) -> 0 | AA11: =IFERROR(INDIRECT("'" & $E11 & "'!" &verwijzing!AE$14),0) -> 0 | AB11: =IFERROR(INDIRECT("'" & $E11 & "'!" &verwijzing!AF$14),0) -> 0 | AC11: =IFERROR(INDIRECT("'" & $E11 & "'!" &verwijzing!AG$14),0) -> 0 | AD11: =IFERROR(INDIRECT("'" & $E11 & "'!" &verwijzing!AH$14),0) -> 0 | AE11: =IFERROR(INDIRECT("'" & $E11 & "'!" &verwijzing!AI$14),0) -> 0
C12: =INDIRECT("'Programma''s'!L9") -> 0 | D12: onzichtbaar | E12: =INDIRECT("'Programma''s'!J9") -> 0 | F12: =IFERROR(INDIRECT("'" & $E12 & "'!" &verwijzing!I$14),0) -> 0 | G12: =IFERROR(INDIRECT("'" & $E12 & "'!" &verwijzing!J$14),0) -> 0 | H12: =IFERROR(INDIRECT("'" & $E12 & "'!" &verwijzing!K$14),0) -> 0 | I12: =IFERROR(INDIRECT("'" & $E12 & "'!" &verwijzing!L$14),0) -> 0 | J12: =IFERROR(INDIRECT("'" & $E12 & "'!" &verwijzing!M$14),0) -> 0 | K12: =IFERROR(INDIRECT("'" & $E12 & "'!" &verwijzing!N$14),0) -> 0 | L12: =IFERROR(INDIRECT("'" & $E12 & "'!" &verwijzing!P$14),0) -> 0 | M12: =IFERROR(INDIRECT("'" & $E12 & "'!" &verwijzing!Q$14),0) -> 0 | N12: =IFERROR(INDIRECT("'" & $E12 & "'!" &verwijzing!R$14),0) -> 0 | O12: =IFERROR(INDIRECT("'" & $E12 & "'!" &verwijzing!S$14),0) -> 0 | P12: =IFERROR(INDIRECT("'" & $E12 & "'!" &verwijzing!T$14),0) -> 0 | Q12: =IFERROR(INDIRECT("'" & $E12 & "'!" &verwijzing!U$14),0) -> 0 | R12: =IFERROR(INDIRECT("'" & $E12 & "'!" &verwijzing!V$14),0) -> 0 | S12: =IFERROR(INDIRECT("'" & $E12 & "'!" &verwijzing!W$14),0) -> 0 | T12: =IFERROR(INDIRECT("'" & $E12 & "'!" &verwijzing!X$14),0) -> 0 | U12: =IFERROR(INDIRECT("'" & $E12 & "'!" &verwijzing!Y$14),0) -> 0 | V12: =IFERROR(INDIRECT("'" & $E12 & "'!" &verwijzing!Z$14),0) -> 0 | W12: =IFERROR(INDIRECT("'" & $E12 & "'!" &verwijzing!AA$14),0) -> 0 | X12: =IFERROR(INDIRECT("'" & $E12 & "'!" &verwijzing!AB$14),0) -> 0 | Y12: =IFERROR(INDIRECT("'" & $E12 & "'!" &verwijzing!AC$14),0) -> 0 | Z12: =IFERROR(INDIRECT("'" & $E12 & "'!" &verwijzing!AD$14),0) -> 0 | AA12: =IFERROR(INDIRECT("'" & $E12 & "'!" &verwijzing!AE$14),0) -> 0 | AB12: =IFERROR(INDIRECT("'" & $E12 & "'!" &verwijzing!AF$14),0) -> 0 | AC12: =IFERROR(INDIRECT("'" & $E12 & "'!" &verwijzing!AG$14),0) -> 0 | AD12: =IFERROR(INDIRECT("'" & $E12 & "'!" &verwijzing!AH$14),0) -> 0 | AE12: =IFERROR(INDIRECT("'" & $E12 & "'!" &verwijzing!AI$14),0) -> 0
C13: =INDIRECT("'Programma''s'!L10") -> 0 | D13: onzichtbaar | E13: =INDIRECT("'Programma''s'!J10") -> 0 | F13: =IFERROR(INDIRECT("'" & $E13 & "'!" &verwijzing!I$14),0) -> 0 | G13: =IFERROR(INDIRECT("'" & $E13 & "'!" &verwijzing!J$14),0) -> 0 | H13: =IFERROR(INDIRECT("'" & $E13 & "'!" &verwijzing!K$14),0) -> 0 | I13: =IFERROR(INDIRECT("'" & $E13 & "'!" &verwijzing!L$14),0) -> 0 | J13: =IFERROR(INDIRECT("'" & $E13 & "'!" &verwijzing!M$14),0) -> 0 | K13: =IFERROR(INDIRECT("'" & $E13 & "'!" &verwijzing!N$14),0) -> 0 | L13: =IFERROR(INDIRECT("'" & $E13 & "'!" &verwijzing!P$14),0) -> 0 | M13: =IFERROR(INDIRECT("'" & $E13 & "'!" &verwijzing!Q$14),0) -> 0 | N13: =IFERROR(INDIRECT("'" & $E13 & "'!" &verwijzing!R$14),0) -> 0 | O13: =IFERROR(INDIRECT("'" & $E13 & "'!" &verwijzing!S$14),0) -> 0 | P13: =IFERROR(INDIRECT("'" & $E13 & "'!" &verwijzing!T$14),0) -> 0 | Q13: =IFERROR(INDIRECT("'" & $E13 & "'!" &verwijzing!U$14),0) -> 0 | R13: =IFERROR(INDIRECT("'" & $E13 & "'!" &verwijzing!V$14),0) -> 0 | S13: =IFERROR(INDIRECT("'" & $E13 & "'!" &verwijzing!W$14),0) -> 0 | T13: =IFERROR(INDIRECT("'" & $E13 & "'!" &verwijzing!X$14),0) -> 0 | U13: =IFERROR(INDIRECT("'" & $E13 & "'!" &verwijzing!Y$14),0) -> 0 | V13: =IFERROR(INDIRECT("'" & $E13 & "'!" &verwijzing!Z$14),0) -> 0 | W13: =IFERROR(INDIRECT("'" & $E13 & "'!" &verwijzing!AA$14),0) -> 0 | X13: =IFERROR(INDIRECT("'" & $E13 & "'!" &verwijzing!AB$14),0) -> 0 | Y13: =IFERROR(INDIRECT("'" & $E13 & "'!" &verwijzing!AC$14),0) -> 0 | Z13: =IFERROR(INDIRECT("'" & $E13 & "'!" &verwijzing!AD$14),0) -> 0 | AA13: =IFERROR(INDIRECT("'" & $E13 & "'!" &verwijzing!AE$14),0) -> 0 | AB13: =IFERROR(INDIRECT("'" & $E13 & "'!" &verwijzing!AF$14),0) -> 0 | AC13: =IFERROR(INDIRECT("'" & $E13 & "'!" &verwijzing!AG$14),0) -> 0 | AD13: =IFERROR(INDIRECT("'" & $E13 & "'!" &verwijzing!AH$14),0) -> 0 | AE13: =IFERROR(INDIRECT("'" & $E13 & "'!" &verwijzing!AI$14),0) -> 0
C14: =INDIRECT("'Programma''s'!L11") -> 0 | D14: onzichtbaar | E14: =INDIRECT("'Programma''s'!J11") -> 0 | F14: =IFERROR(INDIRECT("'" & $E14 & "'!" &verwijzing!I$14),0) -> 0 | G14: =IFERROR(INDIRECT("'" & $E14 & "'!" &verwijzing!J$14),0) -> 0 | H14: =IFERROR(INDIRECT("'" & $E14 & "'!" &verwijzing!K$14),0) -> 0 | I14: =IFERROR(INDIRECT("'" & $E14 & "'!" &verwijzing!L$14),0) -> 0 | J14: =IFERROR(INDIRECT("'" & $E14 & "'!" &verwijzing!M$14),0) -> 0 | K14: =IFERROR(INDIRECT("'" & $E14 & "'!" &verwijzing!N$14),0) -> 0 | L14: =IFERROR(INDIRECT("'" & $E14 & "'!" &verwijzing!P$14),0) -> 0 | M14: =IFERROR(INDIRECT("'" & $E14 & "'!" &verwijzing!Q$14),0) -> 0 | N14: =IFERROR(INDIRECT("'" & $E14 & "'!" &verwijzing!R$14),0) -> 0 | O14: =IFERROR(INDIRECT("'" & $E14 & "'!" &verwijzing!S$14),0) -> 0 | P14: =IFERROR(INDIRECT("'" & $E14 & "'!" &verwijzing!T$14),0) -> 0 | Q14: =IFERROR(INDIRECT("'" & $E14 & "'!" &verwijzing!U$14),0) -> 0 | R14: =IFERROR(INDIRECT("'" & $E14 & "'!" &verwijzing!V$14),0) -> 0 | S14: =IFERROR(INDIRECT("'" & $E14 & "'!" &verwijzing!W$14),0) -> 0 | T14: =IFERROR(INDIRECT("'" & $E14 & "'!" &verwijzing!X$14),0) -> 0 | U14: =IFERROR(INDIRECT("'" & $E14 & "'!" &verwijzing!Y$14),0) -> 0 | V14: =IFERROR(INDIRECT("'" & $E14 & "'!" &verwijzing!Z$14),0) -> 0 | W14: =IFERROR(INDIRECT("'" & $E14 & "'!" &verwijzing!AA$14),0) -> 0 | X14: =IFERROR(INDIRECT("'" & $E14 & "'!" &verwijzing!AB$14),0) -> 0 | Y14: =IFERROR(INDIRECT("'" & $E14 & "'!" &verwijzing!AC$14),0) -> 0 | Z14: =IFERROR(INDIRECT("'" & $E14 & "'!" &verwijzing!AD$14),0) -> 0 | AA14: =IFERROR(INDIRECT("'" & $E14 & "'!" &verwijzing!AE$14),0) -> 0 | AB14: =IFERROR(INDIRECT("'" & $E14 & "'!" &verwijzing!AF$14),0) -> 0 | AC14: =IFERROR(INDIRECT("'" & $E14 & "'!" &verwijzing!AG$14),0) -> 0 | AD14: =IFERROR(INDIRECT("'" & $E14 & "'!" &verwijzing!AH$14),0) -> 0 | AE14: =IFERROR(INDIRECT("'" & $E14 & "'!" &verwijzing!AI$14),0) -> 0
C15: =INDIRECT("'Programma''s'!L12") -> 0 | D15: onzichtbaar | E15: =INDIRECT("'Programma''s'!J12") -> 0 | F15: =IFERROR(INDIRECT("'" & $E15 & "'!" &verwijzing!I$14),0) -> 0 | G15: =IFERROR(INDIRECT("'" & $E15 & "'!" &verwijzing!J$14),0) -> 0 | H15: =IFERROR(INDIRECT("'" & $E15 & "'!" &verwijzing!K$14),0) -> 0 | I15: =IFERROR(INDIRECT("'" & $E15 & "'!" &verwijzing!L$14),0) -> 0 | J15: =IFERROR(INDIRECT("'" & $E15 & "'!" &verwijzing!M$14),0) -> 0 | K15: =IFERROR(INDIRECT("'" & $E15 & "'!" &verwijzing!N$14),0) -> 0 | L15: =IFERROR(INDIRECT("'" & $E15 & "'!" &verwijzing!P$14),0) -> 0 | M15: =IFERROR(INDIRECT("'" & $E15 & "'!" &verwijzing!Q$14),0) -> 0 | N15: =IFERROR(INDIRECT("'" & $E15 & "'!" &verwijzing!R$14),0) -> 0 | O15: =IFERROR(INDIRECT("'" & $E15 & "'!" &verwijzing!S$14),0) -> 0 | P15: =IFERROR(INDIRECT("'" & $E15 & "'!" &verwijzing!T$14),0) -> 0 | Q15: =IFERROR(INDIRECT("'" & $E15 & "'!" &verwijzing!U$14),0) -> 0 | R15: =IFERROR(INDIRECT("'" & $E15 & "'!" &verwijzing!V$14),0) -> 0 | S15: =IFERROR(INDIRECT("'" & $E15 & "'!" &verwijzing!W$14),0) -> 0 | T15: =IFERROR(INDIRECT("'" & $E15 & "'!" &verwijzing!X$14),0) -> 0 | U15: =IFERROR(INDIRECT("'" & $E15 & "'!" &verwijzing!Y$14),0) -> 0 | V15: =IFERROR(INDIRECT("'" & $E15 & "'!" &verwijzing!Z$14),0) -> 0 | W15: =IFERROR(INDIRECT("'" & $E15 & "'!" &verwijzing!AA$14),0) -> 0 | X15: =IFERROR(INDIRECT("'" & $E15 & "'!" &verwijzing!AB$14),0) -> 0 | Y15: =IFERROR(INDIRECT("'" & $E15 & "'!" &verwijzing!AC$14),0) -> 0 | Z15: =IFERROR(INDIRECT("'" & $E15 & "'!" &verwijzing!AD$14),0) -> 0 | AA15: =IFERROR(INDIRECT("'" & $E15 & "'!" &verwijzing!AE$14),0) -> 0 | AB15: =IFERROR(INDIRECT("'" & $E15 & "'!" &verwijzing!AF$14),0) -> 0 | AC15: =IFERROR(INDIRECT("'" & $E15 & "'!" &verwijzing!AG$14),0) -> 0 | AD15: =IFERROR(INDIRECT("'" & $E15 & "'!" &verwijzing!AH$14),0) -> 0 | AE15: =IFERROR(INDIRECT("'" & $E15 & "'!" &verwijzing!AI$14),0) -> 0
C16: =INDIRECT("'Programma''s'!L13") -> 0 | D16: onzichtbaar | E16: =INDIRECT("'Programma''s'!J13") -> 0 | F16: =IFERROR(INDIRECT("'" & $E16 & "'!" &verwijzing!I$14),0) -> 0 | G16: =IFERROR(INDIRECT("'" & $E16 & "'!" &verwijzing!J$14),0) -> 0 | H16: =IFERROR(INDIRECT("'" & $E16 & "'!" &verwijzing!K$14),0) -> 0 | I16: =IFERROR(INDIRECT("'" & $E16 & "'!" &verwijzing!L$14),0) -> 0 | J16: =IFERROR(INDIRECT("'" & $E16 & "'!" &verwijzing!M$14),0) -> 0 | K16: =IFERROR(INDIRECT("'" & $E16 & "'!" &verwijzing!N$14),0) -> 0 | L16: =IFERROR(INDIRECT("'" & $E16 & "'!" &verwijzing!P$14),0) -> 0 | M16: =IFERROR(INDIRECT("'" & $E16 & "'!" &verwijzing!Q$14),0) -> 0 | N16: =IFERROR(INDIRECT("'" & $E16 & "'!" &verwijzing!R$14),0) -> 0 | O16: =IFERROR(INDIRECT("'" & $E16 & "'!" &verwijzing!S$14),0) -> 0 | P16: =IFERROR(INDIRECT("'" & $E16 & "'!" &verwijzing!T$14),0) -> 0 | Q16: =IFERROR(INDIRECT("'" & $E16 & "'!" &verwijzing!U$14),0) -> 0 | R16: =IFERROR(INDIRECT("'" & $E16 & "'!" &verwijzing!V$14),0) -> 0 | S16: =IFERROR(INDIRECT("'" & $E16 & "'!" &verwijzing!W$14),0) -> 0 | T16: =IFERROR(INDIRECT("'" & $E16 & "'!" &verwijzing!X$14),0) -> 0 | U16: =IFERROR(INDIRECT("'" & $E16 & "'!" &verwijzing!Y$14),0) -> 0 | V16: =IFERROR(INDIRECT("'" & $E16 & "'!" &verwijzing!Z$14),0) -> 0 | W16: =IFERROR(INDIRECT("'" & $E16 & "'!" &verwijzing!AA$14),0) -> 0 | X16: =IFERROR(INDIRECT("'" & $E16 & "'!" &verwijzing!AB$14),0) -> 0 | Y16: =IFERROR(INDIRECT("'" & $E16 & "'!" &verwijzing!AC$14),0) -> 0 | Z16: =IFERROR(INDIRECT("'" & $E16 & "'!" &verwijzing!AD$14),0) -> 0 | AA16: =IFERROR(INDIRECT("'" & $E16 & "'!" &verwijzing!AE$14),0) -> 0 | AB16: =IFERROR(INDIRECT("'" & $E16 & "'!" &verwijzing!AF$14),0) -> 0 | AC16: =IFERROR(INDIRECT("'" & $E16 & "'!" &verwijzing!AG$14),0) -> 0 | AD16: =IFERROR(INDIRECT("'" & $E16 & "'!" &verwijzing!AH$14),0) -> 0 | AE16: =IFERROR(INDIRECT("'" & $E16 & "'!" &verwijzing!AI$14),0) -> 0
C17: =INDIRECT("'Programma''s'!L14") -> 0 | D17: onzichtbaar | E17: =INDIRECT("'Programma''s'!J14") -> 0 | F17: =IFERROR(INDIRECT("'" & $E17 & "'!" &verwijzing!I$14),0) -> 0 | G17: =IFERROR(INDIRECT("'" & $E17 & "'!" &verwijzing!J$14),0) -> 0 | H17: =IFERROR(INDIRECT("'" & $E17 & "'!" &verwijzing!K$14),0) -> 0 | I17: =IFERROR(INDIRECT("'" & $E17 & "'!" &verwijzing!L$14),0) -> 0 | J17: =IFERROR(INDIRECT("'" & $E17 & "'!" &verwijzing!M$14),0) -> 0 | K17: =IFERROR(INDIRECT("'" & $E17 & "'!" &verwijzing!N$14),0) -> 0 | L17: =IFERROR(INDIRECT("'" & $E17 & "'!" &verwijzing!P$14),0) -> 0 | M17: =IFERROR(INDIRECT("'" & $E17 & "'!" &verwijzing!Q$14),0) -> 0 | N17: =IFERROR(INDIRECT("'" & $E17 & "'!" &verwijzing!R$14),0) -> 0 | O17: =IFERROR(INDIRECT("'" & $E17 & "'!" &verwijzing!S$14),0) -> 0 | P17: =IFERROR(INDIRECT("'" & $E17 & "'!" &verwijzing!T$14),0) -> 0 | Q17: =IFERROR(INDIRECT("'" & $E17 & "'!" &verwijzing!U$14),0) -> 0 | R17: =IFERROR(INDIRECT("'" & $E17 & "'!" &verwijzing!V$14),0) -> 0 | S17: =IFERROR(INDIRECT("'" & $E17 & "'!" &verwijzing!W$14),0) -> 0 | T17: =IFERROR(INDIRECT("'" & $E17 & "'!" &verwijzing!X$14),0) -> 0 | U17: =IFERROR(INDIRECT("'" & $E17 & "'!" &verwijzing!Y$14),0) -> 0 | V17: =IFERROR(INDIRECT("'" & $E17 & "'!" &verwijzing!Z$14),0) -> 0 | W17: =IFERROR(INDIRECT("'" & $E17 & "'!" &verwijzing!AA$14),0) -> 0 | X17: =IFERROR(INDIRECT("'" & $E17 & "'!" &verwijzing!AB$14),0) -> 0 | Y17: =IFERROR(INDIRECT("'" & $E17 & "'!" &verwijzing!AC$14),0) -> 0 | Z17: =IFERROR(INDIRECT("'" & $E17 & "'!" &verwijzing!AD$14),0) -> 0 | AA17: =IFERROR(INDIRECT("'" & $E17 & "'!" &verwijzing!AE$14),0) -> 0 | AB17: =IFERROR(INDIRECT("'" & $E17 & "'!" &verwijzing!AF$14),0) -> 0 | AC17: =IFERROR(INDIRECT("'" & $E17 & "'!" &verwijzing!AG$14),0) -> 0 | AD17: =IFERROR(INDIRECT("'" & $E17 & "'!" &verwijzing!AH$14),0) -> 0 | AE17: =IFERROR(INDIRECT("'" & $E17 & "'!" &verwijzing!AI$14),0) -> 0
C18: =INDIRECT("'Programma''s'!L15") -> 0 | D18: onzichtbaar | E18: =INDIRECT("'Programma''s'!J15") -> 0 | F18: =IFERROR(INDIRECT("'" & $E18 & "'!" &verwijzing!I$14),0) -> 0 | G18: =IFERROR(INDIRECT("'" & $E18 & "'!" &verwijzing!J$14),0) -> 0 | H18: =IFERROR(INDIRECT("'" & $E18 & "'!" &verwijzing!K$14),0) -> 0 | I18: =IFERROR(INDIRECT("'" & $E18 & "'!" &verwijzing!L$14),0) -> 0 | J18: =IFERROR(INDIRECT("'" & $E18 & "'!" &verwijzing!M$14),0) -> 0 | K18: =IFERROR(INDIRECT("'" & $E18 & "'!" &verwijzing!N$14),0) -> 0 | L18: =IFERROR(INDIRECT("'" & $E18 & "'!" &verwijzing!P$14),0) -> 0 | M18: =IFERROR(INDIRECT("'" & $E18 & "'!" &verwijzing!Q$14),0) -> 0 | N18: =IFERROR(INDIRECT("'" & $E18 & "'!" &verwijzing!R$14),0) -> 0 | O18: =IFERROR(INDIRECT("'" & $E18 & "'!" &verwijzing!S$14),0) -> 0 | P18: =IFERROR(INDIRECT("'" & $E18 & "'!" &verwijzing!T$14),0) -> 0 | Q18: =IFERROR(INDIRECT("'" & $E18 & "'!" &verwijzing!U$14),0) -> 0 | R18: =IFERROR(INDIRECT("'" & $E18 & "'!" &verwijzing!V$14),0) -> 0 | S18: =IFERROR(INDIRECT("'" & $E18 & "'!" &verwijzing!W$14),0) -> 0 | T18: =IFERROR(INDIRECT("'" & $E18 & "'!" &verwijzing!X$14),0) -> 0 | U18: =IFERROR(INDIRECT("'" & $E18 & "'!" &verwijzing!Y$14),0) -> 0 | V18: =IFERROR(INDIRECT("'" & $E18 & "'!" &verwijzing!Z$14),0) -> 0 | W18: =IFERROR(INDIRECT("'" & $E18 & "'!" &verwijzing!AA$14),0) -> 0 | X18: =IFERROR(INDIRECT("'" & $E18 & "'!" &verwijzing!AB$14),0) -> 0 | Y18: =IFERROR(INDIRECT("'" & $E18 & "'!" &verwijzing!AC$14),0) -> 0 | Z18: =IFERROR(INDIRECT("'" & $E18 & "'!" &verwijzing!AD$14),0) -> 0 | AA18: =IFERROR(INDIRECT("'" & $E18 & "'!" &verwijzing!AE$14),0) -> 0 | AB18: =IFERROR(INDIRECT("'" & $E18 & "'!" &verwijzing!AF$14),0) -> 0 | AC18: =IFERROR(INDIRECT("'" & $E18 & "'!" &verwijzing!AG$14),0) -> 0 | AD18: =IFERROR(INDIRECT("'" & $E18 & "'!" &verwijzing!AH$14),0) -> 0 | AE18: =IFERROR(INDIRECT("'" & $E18 & "'!" &verwijzing!AI$14),0) -> 0
C19: =INDIRECT("'Programma''s'!L16") -> 0 | D19: onzichtbaar | E19: =INDIRECT("'Programma''s'!J16") -> 0 | F19: =IFERROR(INDIRECT("'" & $E19 & "'!" &verwijzing!I$14),0) -> 0 | G19: =IFERROR(INDIRECT("'" & $E19 & "'!" &verwijzing!J$14),0) -> 0 | H19: =IFERROR(INDIRECT("'" & $E19 & "'!" &verwijzing!K$14),0) -> 0 | I19: =IFERROR(INDIRECT("'" & $E19 & "'!" &verwijzing!L$14),0) -> 0 | J19: =IFERROR(INDIRECT("'" & $E19 & "'!" &verwijzing!M$14),0) -> 0 | K19: =IFERROR(INDIRECT("'" & $E19 & "'!" &verwijzing!N$14),0) -> 0 | L19: =IFERROR(INDIRECT("'" & $E19 & "'!" &verwijzing!P$14),0) -> 0 | M19: =IFERROR(INDIRECT("'" & $E19 & "'!" &verwijzing!Q$14),0) -> 0 | N19: =IFERROR(INDIRECT("'" & $E19 & "'!" &verwijzing!R$14),0) -> 0 | O19: =IFERROR(INDIRECT("'" & $E19 & "'!" &verwijzing!S$14),0) -> 0 | P19: =IFERROR(INDIRECT("'" & $E19 & "'!" &verwijzing!T$14),0) -> 0 | Q19: =IFERROR(INDIRECT("'" & $E19 & "'!" &verwijzing!U$14),0) -> 0 | R19: =IFERROR(INDIRECT("'" & $E19 & "'!" &verwijzing!V$14),0) -> 0 | S19: =IFERROR(INDIRECT("'" & $E19 & "'!" &verwijzing!W$14),0) -> 0 | T19: =IFERROR(INDIRECT("'" & $E19 & "'!" &verwijzing!X$14),0) -> 0 | U19: =IFERROR(INDIRECT("'" & $E19 & "'!" &verwijzing!Y$14),0) -> 0 | V19: =IFERROR(INDIRECT("'" & $E19 & "'!" &verwijzing!Z$14),0) -> 0 | W19: =IFERROR(INDIRECT("'" & $E19 & "'!" &verwijzing!AA$14),0) -> 0 | X19: =IFERROR(INDIRECT("'" & $E19 & "'!" &verwijzing!AB$14),0) -> 0 | Y19: =IFERROR(INDIRECT("'" & $E19 & "'!" &verwijzing!AC$14),0) -> 0 | Z19: =IFERROR(INDIRECT("'" & $E19 & "'!" &verwijzing!AD$14),0) -> 0 | AA19: =IFERROR(INDIRECT("'" & $E19 & "'!" &verwijzing!AE$14),0) -> 0 | AB19: =IFERROR(INDIRECT("'" & $E19 & "'!" &verwijzing!AF$14),0) -> 0 | AC19: =IFERROR(INDIRECT("'" & $E19 & "'!" &verwijzing!AG$14),0) -> 0 | AD19: =IFERROR(INDIRECT("'" & $E19 & "'!" &verwijzing!AH$14),0) -> 0 | AE19: =IFERROR(INDIRECT("'" & $E19 & "'!" &verwijzing!AI$14),0) -> 0
C20: =INDIRECT("'Programma''s'!L17") -> 0 | D20: onzichtbaar | E20: =INDIRECT("'Programma''s'!J17") -> 0 | F20: =IFERROR(INDIRECT("'" & $E20 & "'!" &verwijzing!I$14),0) -> 0 | G20: =IFERROR(INDIRECT("'" & $E20 & "'!" &verwijzing!J$14),0) -> 0 | H20: =IFERROR(INDIRECT("'" & $E20 & "'!" &verwijzing!K$14),0) -> 0 | I20: =IFERROR(INDIRECT("'" & $E20 & "'!" &verwijzing!L$14),0) -> 0 | J20: =IFERROR(INDIRECT("'" & $E20 & "'!" &verwijzing!M$14),0) -> 0 | K20: =IFERROR(INDIRECT("'" & $E20 & "'!" &verwijzing!N$14),0) -> 0 | L20: =IFERROR(INDIRECT("'" & $E20 & "'!" &verwijzing!P$14),0) -> 0 | M20: =IFERROR(INDIRECT("'" & $E20 & "'!" &verwijzing!Q$14),0) -> 0 | N20: =IFERROR(INDIRECT("'" & $E20 & "'!" &verwijzing!R$14),0) -> 0 | O20: =IFERROR(INDIRECT("'" & $E20 & "'!" &verwijzing!S$14),0) -> 0 | P20: =IFERROR(INDIRECT("'" & $E20 & "'!" &verwijzing!T$14),0) -> 0 | Q20: =IFERROR(INDIRECT("'" & $E20 & "'!" &verwijzing!U$14),0) -> 0 | R20: =IFERROR(INDIRECT("'" & $E20 & "'!" &verwijzing!V$14),0) -> 0 | S20: =IFERROR(INDIRECT("'" & $E20 & "'!" &verwijzing!W$14),0) -> 0 | T20: =IFERROR(INDIRECT("'" & $E20 & "'!" &verwijzing!X$14),0) -> 0 | U20: =IFERROR(INDIRECT("'" & $E20 & "'!" &verwijzing!Y$14),0) -> 0 | V20: =IFERROR(INDIRECT("'" & $E20 & "'!" &verwijzing!Z$14),0) -> 0 | W20: =IFERROR(INDIRECT("'" & $E20 & "'!" &verwijzing!AA$14),0) -> 0 | X20: =IFERROR(INDIRECT("'" & $E20 & "'!" &verwijzing!AB$14),0) -> 0 | Y20: =IFERROR(INDIRECT("'" & $E20 & "'!" &verwijzing!AC$14),0) -> 0 | Z20: =IFERROR(INDIRECT("'" & $E20 & "'!" &verwijzing!AD$14),0) -> 0 | AA20: =IFERROR(INDIRECT("'" & $E20 & "'!" &verwijzing!AE$14),0) -> 0 | AB20: =IFERROR(INDIRECT("'" & $E20 & "'!" &verwijzing!AF$14),0) -> 0 | AC20: =IFERROR(INDIRECT("'" & $E20 & "'!" &verwijzing!AG$14),0) -> 0 | AD20: =IFERROR(INDIRECT("'" & $E20 & "'!" &verwijzing!AH$14),0) -> 0 | AE20: =IFERROR(INDIRECT("'" & $E20 & "'!" &verwijzing!AI$14),0) -> 0
C21: =INDIRECT("'Programma''s'!L18") -> 0 | D21: onzichtbaar | E21: =INDIRECT("'Programma''s'!J18") -> 0 | F21: =IFERROR(INDIRECT("'" & $E21 & "'!" &verwijzing!I$14),0) -> 0 | G21: =IFERROR(INDIRECT("'" & $E21 & "'!" &verwijzing!J$14),0) -> 0 | H21: =IFERROR(INDIRECT("'" & $E21 & "'!" &verwijzing!K$14),0) -> 0 | I21: =IFERROR(INDIRECT("'" & $E21 & "'!" &verwijzing!L$14),0) -> 0 | J21: =IFERROR(INDIRECT("'" & $E21 & "'!" &verwijzing!M$14),0) -> 0 | K21: =IFERROR(INDIRECT("'" & $E21 & "'!" &verwijzing!N$14),0) -> 0 | L21: =IFERROR(INDIRECT("'" & $E21 & "'!" &verwijzing!P$14),0) -> 0 | M21: =IFERROR(INDIRECT("'" & $E21 & "'!" &verwijzing!Q$14),0) -> 0 | N21: =IFERROR(INDIRECT("'" & $E21 & "'!" &verwijzing!R$14),0) -> 0 | O21: =IFERROR(INDIRECT("'" & $E21 & "'!" &verwijzing!S$14),0) -> 0 | P21: =IFERROR(INDIRECT("'" & $E21 & "'!" &verwijzing!T$14),0) -> 0 | Q21: =IFERROR(INDIRECT("'" & $E21 & "'!" &verwijzing!U$14),0) -> 0 | R21: =IFERROR(INDIRECT("'" & $E21 & "'!" &verwijzing!V$14),0) -> 0 | S21: =IFERROR(INDIRECT("'" & $E21 & "'!" &verwijzing!W$14),0) -> 0 | T21: =IFERROR(INDIRECT("'" & $E21 & "'!" &verwijzing!X$14),0) -> 0 | U21: =IFERROR(INDIRECT("'" & $E21 & "'!" &verwijzing!Y$14),0) -> 0 | V21: =IFERROR(INDIRECT("'" & $E21 & "'!" &verwijzing!Z$14),0) -> 0 | W21: =IFERROR(INDIRECT("'" & $E21 & "'!" &verwijzing!AA$14),0) -> 0 | X21: =IFERROR(INDIRECT("'" & $E21 & "'!" &verwijzing!AB$14),0) -> 0 | Y21: =IFERROR(INDIRECT("'" & $E21 & "'!" &verwijzing!AC$14),0) -> 0 | Z21: =IFERROR(INDIRECT("'" & $E21 & "'!" &verwijzing!AD$14),0) -> 0 | AA21: =IFERROR(INDIRECT("'" & $E21 & "'!" &verwijzing!AE$14),0) -> 0 | AB21: =IFERROR(INDIRECT("'" & $E21 & "'!" &verwijzing!AF$14),0) -> 0 | AC21: =IFERROR(INDIRECT("'" & $E21 & "'!" &verwijzing!AG$14),0) -> 0 | AD21: =IFERROR(INDIRECT("'" & $E21 & "'!" &verwijzing!AH$14),0) -> 0 | AE21: =IFERROR(INDIRECT("'" & $E21 & "'!" &verwijzing!AI$14),0) -> 0
C22: =INDIRECT("'Programma''s'!L19") -> 0 | D22: onzichtbaar | E22: =INDIRECT("'Programma''s'!J19") -> 0 | F22: =IFERROR(INDIRECT("'" & $E22 & "'!" &verwijzing!I$14),0) -> 0 | G22: =IFERROR(INDIRECT("'" & $E22 & "'!" &verwijzing!J$14),0) -> 0 | H22: =IFERROR(INDIRECT("'" & $E22 & "'!" &verwijzing!K$14),0) -> 0 | I22: =IFERROR(INDIRECT("'" & $E22 & "'!" &verwijzing!L$14),0) -> 0 | J22: =IFERROR(INDIRECT("'" & $E22 & "'!" &verwijzing!M$14),0) -> 0 | K22: =IFERROR(INDIRECT("'" & $E22 & "'!" &verwijzing!N$14),0) -> 0 | L22: =IFERROR(INDIRECT("'" & $E22 & "'!" &verwijzing!P$14),0) -> 0 | M22: =IFERROR(INDIRECT("'" & $E22 & "'!" &verwijzing!Q$14),0) -> 0 | N22: =IFERROR(INDIRECT("'" & $E22 & "'!" &verwijzing!R$14),0) -> 0 | O22: =IFERROR(INDIRECT("'" & $E22 & "'!" &verwijzing!S$14),0) -> 0 | P22: =IFERROR(INDIRECT("'" & $E22 & "'!" &verwijzing!T$14),0) -> 0 | Q22: =IFERROR(INDIRECT("'" & $E22 & "'!" &verwijzing!U$14),0) -> 0 | R22: =IFERROR(INDIRECT("'" & $E22 & "'!" &verwijzing!V$14),0) -> 0 | S22: =IFERROR(INDIRECT("'" & $E22 & "'!" &verwijzing!W$14),0) -> 0 | T22: =IFERROR(INDIRECT("'" & $E22 & "'!" &verwijzing!X$14),0) -> 0 | U22: =IFERROR(INDIRECT("'" & $E22 & "'!" &verwijzing!Y$14),0) -> 0 | V22: =IFERROR(INDIRECT("'" & $E22 & "'!" &verwijzing!Z$14),0) -> 0 | W22: =IFERROR(INDIRECT("'" & $E22 & "'!" &verwijzing!AA$14),0) -> 0 | X22: =IFERROR(INDIRECT("'" & $E22 & "'!" &verwijzing!AB$14),0) -> 0 | Y22: =IFERROR(INDIRECT("'" & $E22 & "'!" &verwijzing!AC$14),0) -> 0 | Z22: =IFERROR(INDIRECT("'" & $E22 & "'!" &verwijzing!AD$14),0) -> 0 | AA22: =IFERROR(INDIRECT("'" & $E22 & "'!" &verwijzing!AE$14),0) -> 0 | AB22: =IFERROR(INDIRECT("'" & $E22 & "'!" &verwijzing!AF$14),0) -> 0 | AC22: =IFERROR(INDIRECT("'" & $E22 & "'!" &verwijzing!AG$14),0) -> 0 | AD22: =IFERROR(INDIRECT("'" & $E22 & "'!" &verwijzing!AH$14),0) -> 0 | AE22: =IFERROR(INDIRECT("'" & $E22 & "'!" &verwijzing!AI$14),0) -> 0
C23: =INDIRECT("'Programma''s'!L20") -> 0 | D23: onzichtbaar | E23: =INDIRECT("'Programma''s'!J20") -> 0 | F23: =IFERROR(INDIRECT("'" & $E23 & "'!" &verwijzing!I$14),0) -> 0 | G23: =IFERROR(INDIRECT("'" & $E23 & "'!" &verwijzing!J$14),0) -> 0 | H23: =IFERROR(INDIRECT("'" & $E23 & "'!" &verwijzing!K$14),0) -> 0 | I23: =IFERROR(INDIRECT("'" & $E23 & "'!" &verwijzing!L$14),0) -> 0 | J23: =IFERROR(INDIRECT("'" & $E23 & "'!" &verwijzing!M$14),0) -> 0 | K23: =IFERROR(INDIRECT("'" & $E23 & "'!" &verwijzing!N$14),0) -> 0 | L23: =IFERROR(INDIRECT("'" & $E23 & "'!" &verwijzing!P$14),0) -> 0 | M23: =IFERROR(INDIRECT("'" & $E23 & "'!" &verwijzing!Q$14),0) -> 0 | N23: =IFERROR(INDIRECT("'" & $E23 & "'!" &verwijzing!R$14),0) -> 0 | O23: =IFERROR(INDIRECT("'" & $E23 & "'!" &verwijzing!S$14),0) -> 0 | P23: =IFERROR(INDIRECT("'" & $E23 & "'!" &verwijzing!T$14),0) -> 0 | Q23: =IFERROR(INDIRECT("'" & $E23 & "'!" &verwijzing!U$14),0) -> 0 | R23: =IFERROR(INDIRECT("'" & $E23 & "'!" &verwijzing!V$14),0) -> 0 | S23: =IFERROR(INDIRECT("'" & $E23 & "'!" &verwijzing!W$14),0) -> 0 | T23: =IFERROR(INDIRECT("'" & $E23 & "'!" &verwijzing!X$14),0) -> 0 | U23: =IFERROR(INDIRECT("'" & $E23 & "'!" &verwijzing!Y$14),0) -> 0 | V23: =IFERROR(INDIRECT("'" & $E23 & "'!" &verwijzing!Z$14),0) -> 0 | W23: =IFERROR(INDIRECT("'" & $E23 & "'!" &verwijzing!AA$14),0) -> 0 | X23: =IFERROR(INDIRECT("'" & $E23 & "'!" &verwijzing!AB$14),0) -> 0 | Y23: =IFERROR(INDIRECT("'" & $E23 & "'!" &verwijzing!AC$14),0) -> 0 | Z23: =IFERROR(INDIRECT("'" & $E23 & "'!" &verwijzing!AD$14),0) -> 0 | AA23: =IFERROR(INDIRECT("'" & $E23 & "'!" &verwijzing!AE$14),0) -> 0 | AB23: =IFERROR(INDIRECT("'" & $E23 & "'!" &verwijzing!AF$14),0) -> 0 | AC23: =IFERROR(INDIRECT("'" & $E23 & "'!" &verwijzing!AG$14),0) -> 0 | AD23: =IFERROR(INDIRECT("'" & $E23 & "'!" &verwijzing!AH$14),0) -> 0 | AE23: =IFERROR(INDIRECT("'" & $E23 & "'!" &verwijzing!AI$14),0) -> 0
C24: =INDIRECT("'Programma''s'!L21") -> 0 | D24: onzichtbaar | E24: =INDIRECT("'Programma''s'!J21") -> 0 | F24: =IFERROR(INDIRECT("'" & $E24 & "'!" &verwijzing!I$14),0) -> 0 | G24: =IFERROR(INDIRECT("'" & $E24 & "'!" &verwijzing!J$14),0) -> 0 | H24: =IFERROR(INDIRECT("'" & $E24 & "'!" &verwijzing!K$14),0) -> 0 | I24: =IFERROR(INDIRECT("'" & $E24 & "'!" &verwijzing!L$14),0) -> 0 | J24: =IFERROR(INDIRECT("'" & $E24 & "'!" &verwijzing!M$14),0) -> 0 | K24: =IFERROR(INDIRECT("'" & $E24 & "'!" &verwijzing!N$14),0) -> 0 | L24: =IFERROR(INDIRECT("'" & $E24 & "'!" &verwijzing!P$14),0) -> 0 | M24: =IFERROR(INDIRECT("'" & $E24 & "'!" &verwijzing!Q$14),0) -> 0 | N24: =IFERROR(INDIRECT("'" & $E24 & "'!" &verwijzing!R$14),0) -> 0 | O24: =IFERROR(INDIRECT("'" & $E24 & "'!" &verwijzing!S$14),0) -> 0 | P24: =IFERROR(INDIRECT("'" & $E24 & "'!" &verwijzing!T$14),0) -> 0 | Q24: =IFERROR(INDIRECT("'" & $E24 & "'!" &verwijzing!U$14),0) -> 0 | R24: =IFERROR(INDIRECT("'" & $E24 & "'!" &verwijzing!V$14),0) -> 0 | S24: =IFERROR(INDIRECT("'" & $E24 & "'!" &verwijzing!W$14),0) -> 0 | T24: =IFERROR(INDIRECT("'" & $E24 & "'!" &verwijzing!X$14),0) -> 0 | U24: =IFERROR(INDIRECT("'" & $E24 & "'!" &verwijzing!Y$14),0) -> 0 | V24: =IFERROR(INDIRECT("'" & $E24 & "'!" &verwijzing!Z$14),0) -> 0 | W24: =IFERROR(INDIRECT("'" & $E24 & "'!" &verwijzing!AA$14),0) -> 0 | X24: =IFERROR(INDIRECT("'" & $E24 & "'!" &verwijzing!AB$14),0) -> 0 | Y24: =IFERROR(INDIRECT("'" & $E24 & "'!" &verwijzing!AC$14),0) -> 0 | Z24: =IFERROR(INDIRECT("'" & $E24 & "'!" &verwijzing!AD$14),0) -> 0 | AA24: =IFERROR(INDIRECT("'" & $E24 & "'!" &verwijzing!AE$14),0) -> 0 | AB24: =IFERROR(INDIRECT("'" & $E24 & "'!" &verwijzing!AF$14),0) -> 0 | AC24: =IFERROR(INDIRECT("'" & $E24 & "'!" &verwijzing!AG$14),0) -> 0 | AD24: =IFERROR(INDIRECT("'" & $E24 & "'!" &verwijzing!AH$14),0) -> 0 | AE24: =IFERROR(INDIRECT("'" & $E24 & "'!" &verwijzing!AI$14),0) -> 0
C25: =INDIRECT("'Programma''s'!L22") -> 0 | D25: onzichtbaar | E25: =INDIRECT("'Programma''s'!J22") -> 0 | F25: =IFERROR(INDIRECT("'" & $E25 & "'!" &verwijzing!I$14),0) -> 0 | G25: =IFERROR(INDIRECT("'" & $E25 & "'!" &verwijzing!J$14),0) -> 0 | H25: =IFERROR(INDIRECT("'" & $E25 & "'!" &verwijzing!K$14),0) -> 0 | I25: =IFERROR(INDIRECT("'" & $E25 & "'!" &verwijzing!L$14),0) -> 0 | J25: =IFERROR(INDIRECT("'" & $E25 & "'!" &verwijzing!M$14),0) -> 0 | K25: =IFERROR(INDIRECT("'" & $E25 & "'!" &verwijzing!N$14),0) -> 0 | L25: =IFERROR(INDIRECT("'" & $E25 & "'!" &verwijzing!P$14),0) -> 0 | M25: =IFERROR(INDIRECT("'" & $E25 & "'!" &verwijzing!Q$14),0) -> 0 | N25: =IFERROR(INDIRECT("'" & $E25 & "'!" &verwijzing!R$14),0) -> 0 | O25: =IFERROR(INDIRECT("'" & $E25 & "'!" &verwijzing!S$14),0) -> 0 | P25: =IFERROR(INDIRECT("'" & $E25 & "'!" &verwijzing!T$14),0) -> 0 | Q25: =IFERROR(INDIRECT("'" & $E25 & "'!" &verwijzing!U$14),0) -> 0 | R25: =IFERROR(INDIRECT("'" & $E25 & "'!" &verwijzing!V$14),0) -> 0 | S25: =IFERROR(INDIRECT("'" & $E25 & "'!" &verwijzing!W$14),0) -> 0 | T25: =IFERROR(INDIRECT("'" & $E25 & "'!" &verwijzing!X$14),0) -> 0 | U25: =IFERROR(INDIRECT("'" & $E25 & "'!" &verwijzing!Y$14),0) -> 0 | V25: =IFERROR(INDIRECT("'" & $E25 & "'!" &verwijzing!Z$14),0) -> 0 | W25: =IFERROR(INDIRECT("'" & $E25 & "'!" &verwijzing!AA$14),0) -> 0 | X25: =IFERROR(INDIRECT("'" & $E25 & "'!" &verwijzing!AB$14),0) -> 0 | Y25: =IFERROR(INDIRECT("'" & $E25 & "'!" &verwijzing!AC$14),0) -> 0 | Z25: =IFERROR(INDIRECT("'" & $E25 & "'!" &verwijzing!AD$14),0) -> 0 | AA25: =IFERROR(INDIRECT("'" & $E25 & "'!" &verwijzing!AE$14),0) -> 0 | AB25: =IFERROR(INDIRECT("'" & $E25 & "'!" &verwijzing!AF$14),0) -> 0 | AC25: =IFERROR(INDIRECT("'" & $E25 & "'!" &verwijzing!AG$14),0) -> 0 | AD25: =IFERROR(INDIRECT("'" & $E25 & "'!" &verwijzing!AH$14),0) -> 0 | AE25: =IFERROR(INDIRECT("'" & $E25 & "'!" &verwijzing!AI$14),0) -> 0
C27: Totaal bijdragen aan scholen | F27: =SUM(F6:F25) -> 0 | G27: 0 | H27: 0 | I27: 0 | J27: 0 | K27: 0 | L27: 0 | M27: 0 | N27: 0 | O27: 0 | P27: 0 | Q27: 0 | R27: =SUM(R6:R25) -> 0 | S27: =SUM(S6:S25) -> 0 | T27: 0 | U27: 0 | V27: 0 | W27: 0 | X27: 0 | Y27: 0 | Z27: 0 | AA27: 0 | AB27: 0 | AC27: 0 | AD27: 0 | AE27: 0
C29: Personele lasten | F29: =F5 -> 2017/18 | G29: 2018 | H29: 2018/19 | I29: 2019 | J29: 2019/20 | K29: 2020 | L29: 2020/21 | M29: 2021 | N29: 2021/22 | O29: 2022 | P29: 2022/23 | Q29: 2023 | R29: =R5 -> 2023/24 | S29: =S5 -> 2024 | T29: 2024/25 | U29: 2025 | V29: 2025/26 | W29: 2026 | X29: 2026/27 | Y29: 2027 | Z29: 2027/28 | AA29: 2028 | AB29: 2028/29 | AC29: 2029 | AD29: 2029/30 | AE29: 2030
C31: =INDIRECT("'Programma''s'!L3") -> 0 | D31: =IF(LEN(C31)>1,"zichtbaar","onzichtbaar") -> onzichtbaar | E31: =INDIRECT("'Programma''s'!J3") -> 0 | F31: =IFERROR(INDIRECT("'" & $E31 & "'!" &verwijzing!I$24),0) -> 0 | G31: =IFERROR(INDIRECT("'" & $E31 & "'!" &verwijzing!J$24),0) -> 0 | H31: =IFERROR(INDIRECT("'" & $E31 & "'!" &verwijzing!K$24),0) -> 0 | I31: =IFERROR(INDIRECT("'" & $E31 & "'!" &verwijzing!L$24),0) -> 0 | J31: =IFERROR(INDIRECT("'" & $E31 & "'!" &verwijzing!M$24),0) -> 0 | K31: =IFERROR(INDIRECT("'" & $E31 & "'!" &verwijzing!N$24),0) -> 0 | L31: =IFERROR(INDIRECT("'" & $E31 & "'!" &verwijzing!P$24),0) -> 0 | M31: =IFERROR(INDIRECT("'" & $E31 & "'!" &verwijzing!Q$24),0) -> 0 | N31: =IFERROR(INDIRECT("'" & $E31 & "'!" &verwijzing!R$24),0) -> 0 | O31: =IFERROR(INDIRECT("'" & $E31 & "'!" &verwijzing!S$24),0) -> 0 | P31: =IFERROR(INDIRECT("'" & $E31 & "'!" &verwijzing!T$24),0) -> 0 | Q31: =IFERROR(INDIRECT("'" & $E31 & "'!" &verwijzing!U$24),0) -> 0 | R31: =IFERROR(INDIRECT("'" & $E31 & "'!" &verwijzing!V$24),0) -> 0 | S31: =IFERROR(INDIRECT("'" & $E31 & "'!" &verwijzing!W$24),0) -> 0 | T31: =IFERROR(INDIRECT("'" & $E31 & "'!" &verwijzing!X$24),0) -> 0 | U31: =IFERROR(INDIRECT("'" & $E31 & "'!" &verwijzing!Y$24),0) -> 0 | V31: =IFERROR(INDIRECT("'" & $E31 & "'!" &verwijzing!Z$24),0) -> 0 | W31: =IFERROR(INDIRECT("'" & $E31 & "'!" &verwijzing!AA$24),0) -> 0 | X31: =IFERROR(INDIRECT("'" & $E31 & "'!" &verwijzing!AB$24),0) -> 0 | Y31: =IFERROR(INDIRECT("'" & $E31 & "'!" &verwijzing!AC$24),0) -> 0 | Z31: =IFERROR(INDIRECT("'" & $E31 & "'!" &verwijzing!AD$24),0) -> 0 | AA31: =IFERROR(INDIRECT("'" & $E31 & "'!" &verwijzing!AE$24),0) -> 0 | AB31: =IFERROR(INDIRECT("'" & $E31 & "'!" &verwijzing!AF$24),0) -> 0 | AC31: =IFERROR(INDIRECT("'" & $E31 & "'!" &verwijzing!AG$24),0) -> 0 | AD31: =IFERROR(INDIRECT("'" & $E31 & "'!" &verwijzing!AH$24),0) -> 0 | AE31: =IFERROR(INDIRECT("'" & $E31 & "'!" &verwijzing!AI$24),0) -> 0
C32: =INDIRECT("'Programma''s'!L4") -> 0 | D32: =IF(LEN(C32)>1,"zichtbaar","onzichtbaar") -> onzichtbaar | E32: =INDIRECT("'Programma''s'!J4") -> 0 | F32: =IFERROR(INDIRECT("'" & $E32 & "'!" &verwijzing!I$24),0) -> 0 | G32: =IFERROR(INDIRECT("'" & $E32 & "'!" &verwijzing!J$24),0) -> 0 | H32: =IFERROR(INDIRECT("'" & $E32 & "'!" &verwijzing!K$24),0) -> 0 | I32: =IFERROR(INDIRECT("'" & $E32 & "'!" &verwijzing!L$24),0) -> 0 | J32: =IFERROR(INDIRECT("'" & $E32 & "'!" &verwijzing!M$24),0) -> 0 | K32: =IFERROR(INDIRECT("'" & $E32 & "'!" &verwijzing!N$24),0) -> 0 | L32: =IFERROR(INDIRECT("'" & $E32 & "'!" &verwijzing!P$24),0) -> 0 | M32: =IFERROR(INDIRECT("'" & $E32 & "'!" &verwijzing!Q$24),0) -> 0 | N32: =IFERROR(INDIRECT("'" & $E32 & "'!" &verwijzing!R$24),0) -> 0 | O32: =IFERROR(INDIRECT("'" & $E32 & "'!" &verwijzing!S$24),0) -> 0 | P32: =IFERROR(INDIRECT("'" & $E32 & "'!" &verwijzing!T$24),0) -> 0 | Q32: =IFERROR(INDIRECT("'" & $E32 & "'!" &verwijzing!U$24),0) -> 0 | R32: =IFERROR(INDIRECT("'" & $E32 & "'!" &verwijzing!V$24),0) -> 0 | S32: =IFERROR(INDIRECT("'" & $E32 & "'!" &verwijzing!W$24),0) -> 0 | T32: =IFERROR(INDIRECT("'" & $E32 & "'!" &verwijzing!X$24),0) -> 0 | U32: =IFERROR(INDIRECT("'" & $E32 & "'!" &verwijzing!Y$24),0) -> 0 | V32: =IFERROR(INDIRECT("'" & $E32 & "'!" &verwijzing!Z$24),0) -> 0 | W32: =IFERROR(INDIRECT("'" & $E32 & "'!" &verwijzing!AA$24),0) -> 0 | X32: =IFERROR(INDIRECT("'" & $E32 & "'!" &verwijzing!AB$24),0) -> 0 | Y32: =IFERROR(INDIRECT("'" & $E32 & "'!" &verwijzing!AC$24),0) -> 0 | Z32: =IFERROR(INDIRECT("'" & $E32 & "'!" &verwijzing!AD$24),0) -> 0 | AA32: =IFERROR(INDIRECT("'" & $E32 & "'!" &verwijzing!AE$24),0) -> 0 | AB32: =IFERROR(INDIRECT("'" & $E32 & "'!" &verwijzing!AF$24),0) -> 0 | AC32: =IFERROR(INDIRECT("'" & $E32 & "'!" &verwijzing!AG$24),0) -> 0 | AD32: =IFERROR(INDIRECT("'" & $E32 & "'!" &verwijzing!AH$24),0) -> 0 | AE32: =IFERROR(INDIRECT("'" & $E32 & "'!" &verwijzing!AI$24),0) -> 0
C33: =INDIRECT("'Programma''s'!L5") -> 0 | D33: onzichtbaar | E33: =INDIRECT("'Programma''s'!J5") -> 0 | F33: =IFERROR(INDIRECT("'" & $E33 & "'!" &verwijzing!I$24),0) -> 0 | G33: =IFERROR(INDIRECT("'" & $E33 & "'!" &verwijzing!J$24),0) -> 0 | H33: =IFERROR(INDIRECT("'" & $E33 & "'!" &verwijzing!K$24),0) -> 0 | I33: =IFERROR(INDIRECT("'" & $E33 & "'!" &verwijzing!L$24),0) -> 0 | J33: =IFERROR(INDIRECT("'" & $E33 & "'!" &verwijzing!M$24),0) -> 0 | K33: =IFERROR(INDIRECT("'" & $E33 & "'!" &verwijzing!N$24),0) -> 0 | L33: =IFERROR(INDIRECT("'" & $E33 & "'!" &verwijzing!P$24),0) -> 0 | M33: =IFERROR(INDIRECT("'" & $E33 & "'!" &verwijzing!Q$24),0) -> 0 | N33: =IFERROR(INDIRECT("'" & $E33 & "'!" &verwijzing!R$24),0) -> 0 | O33: =IFERROR(INDIRECT("'" & $E33 & "'!" &verwijzing!S$24),0) -> 0 | P33: =IFERROR(INDIRECT("'" & $E33 & "'!" &verwijzing!T$24),0) -> 0 | Q33: =IFERROR(INDIRECT("'" & $E33 & "'!" &verwijzing!U$24),0) -> 0 | R33: =IFERROR(INDIRECT("'" & $E33 & "'!" &verwijzing!V$24),0) -> 0 | S33: =IFERROR(INDIRECT("'" & $E33 & "'!" &verwijzing!W$24),0) -> 0 | T33: =IFERROR(INDIRECT("'" & $E33 & "'!" &verwijzing!X$24),0) -> 0 | U33: =IFERROR(INDIRECT("'" & $E33 & "'!" &verwijzing!Y$24),0) -> 0 | V33: =IFERROR(INDIRECT("'" & $E33 & "'!" &verwijzing!Z$24),0) -> 0 | W33: =IFERROR(INDIRECT("'" & $E33 & "'!" &verwijzing!AA$24),0) -> 0 | X33: =IFERROR(INDIRECT("'" & $E33 & "'!" &verwijzing!AB$24),0) -> 0 | Y33: =IFERROR(INDIRECT("'" & $E33 & "'!" &verwijzing!AC$24),0) -> 0 | Z33: =IFERROR(INDIRECT("'" & $E33 & "'!" &verwijzing!AD$24),0) -> 0 | AA33: =IFERROR(INDIRECT("'" & $E33 & "'!" &verwijzing!AE$24),0) -> 0 | AB33: =IFERROR(INDIRECT("'" & $E33 & "'!" &verwijzing!AF$24),0) -> 0 | AC33: =IFERROR(INDIRECT("'" & $E33 & "'!" &verwijzing!AG$24),0) -> 0 | AD33: =IFERROR(INDIRECT("'" & $E33 & "'!" &verwijzing!AH$24),0) -> 0 | AE33: =IFERROR(INDIRECT("'" & $E33 & "'!" &verwijzing!AI$24),0) -> 0
C34: =INDIRECT("'Programma''s'!L6") -> 0 | D34: onzichtbaar | E34: =INDIRECT("'Programma''s'!J6") -> 0 | F34: =IFERROR(INDIRECT("'" & $E34 & "'!" &verwijzing!I$24),0) -> 0 | G34: =IFERROR(INDIRECT("'" & $E34 & "'!" &verwijzing!J$24),0) -> 0 | H34: =IFERROR(INDIRECT("'" & $E34 & "'!" &verwijzing!K$24),0) -> 0 | I34: =IFERROR(INDIRECT("'" & $E34 & "'!" &verwijzing!L$24),0) -> 0 | J34: =IFERROR(INDIRECT("'" & $E34 & "'!" &verwijzing!M$24),0) -> 0 | K34: =IFERROR(INDIRECT("'" & $E34 & "'!" &verwijzing!N$24),0) -> 0 | L34: =IFERROR(INDIRECT("'" & $E34 & "'!" &verwijzing!P$24),0) -> 0 | M34: =IFERROR(INDIRECT("'" & $E34 & "'!" &verwijzing!Q$24),0) -> 0 | N34: =IFERROR(INDIRECT("'" & $E34 & "'!" &verwijzing!R$24),0) -> 0 | O34: =IFERROR(INDIRECT("'" & $E34 & "'!" &verwijzing!S$24),0) -> 0 | P34: =IFERROR(INDIRECT("'" & $E34 & "'!" &verwijzing!T$24),0) -> 0 | Q34: =IFERROR(INDIRECT("'" & $E34 & "'!" &verwijzing!U$24),0) -> 0 | R34: =IFERROR(INDIRECT("'" & $E34 & "'!" &verwijzing!V$24),0) -> 0 | S34: =IFERROR(INDIRECT("'" & $E34 & "'!" &verwijzing!W$24),0) -> 0 | T34: =IFERROR(INDIRECT("'" & $E34 & "'!" &verwijzing!X$24),0) -> 0 | U34: =IFERROR(INDIRECT("'" & $E34 & "'!" &verwijzing!Y$24),0) -> 0 | V34: =IFERROR(INDIRECT("'" & $E34 & "'!" &verwijzing!Z$24),0) -> 0 | W34: =IFERROR(INDIRECT("'" & $E34 & "'!" &verwijzing!AA$24),0) -> 0 | X34: =IFERROR(INDIRECT("'" & $E34 & "'!" &verwijzing!AB$24),0) -> 0 | Y34: =IFERROR(INDIRECT("'" & $E34 & "'!" &verwijzing!AC$24),0) -> 0 | Z34: =IFERROR(INDIRECT("'" & $E34 & "'!" &verwijzing!AD$24),0) -> 0 | AA34: =IFERROR(INDIRECT("'" & $E34 & "'!" &verwijzing!AE$24),0) -> 0 | AB34: =IFERROR(INDIRECT("'" & $E34 & "'!" &verwijzing!AF$24),0) -> 0 | AC34: =IFERROR(INDIRECT("'" & $E34 & "'!" &verwijzing!AG$24),0) -> 0 | AD34: =IFERROR(INDIRECT("'" & $E34 & "'!" &verwijzing!AH$24),0) -> 0 | AE34: =IFERROR(INDIRECT("'" & $E34 & "'!" &verwijzing!AI$24),0) -> 0
C35: =INDIRECT("'Programma''s'!L7") -> 0 | D35: onzichtbaar | E35: =INDIRECT("'Programma''s'!J7") -> 0 | F35: =IFERROR(INDIRECT("'" & $E35 & "'!" &verwijzing!I$24),0) -> 0 | G35: =IFERROR(INDIRECT("'" & $E35 & "'!" &verwijzing!J$24),0) -> 0 | H35: =IFERROR(INDIRECT("'" & $E35 & "'!" &verwijzing!K$24),0) -> 0 | I35: =IFERROR(INDIRECT("'" & $E35 & "'!" &verwijzing!L$24),0) -> 0 | J35: =IFERROR(INDIRECT("'" & $E35 & "'!" &verwijzing!M$24),0) -> 0 | K35: =IFERROR(INDIRECT("'" & $E35 & "'!" &verwijzing!N$24),0) -> 0 | L35: =IFERROR(INDIRECT("'" & $E35 & "'!" &verwijzing!P$24),0) -> 0 | M35: =IFERROR(INDIRECT("'" & $E35 & "'!" &verwijzing!Q$24),0) -> 0 | N35: =IFERROR(INDIRECT("'" & $E35 & "'!" &verwijzing!R$24),0) -> 0 | O35: =IFERROR(INDIRECT("'" & $E35 & "'!" &verwijzing!S$24),0) -> 0 | P35: =IFERROR(INDIRECT("'" & $E35 & "'!" &verwijzing!T$24),0) -> 0 | Q35: =IFERROR(INDIRECT("'" & $E35 & "'!" &verwijzing!U$24),0) -> 0 | R35: =IFERROR(INDIRECT("'" & $E35 & "'!" &verwijzing!V$24),0) -> 0 | S35: =IFERROR(INDIRECT("'" & $E35 & "'!" &verwijzing!W$24),0) -> 0 | T35: =IFERROR(INDIRECT("'" & $E35 & "'!" &verwijzing!X$24),0) -> 0 | U35: =IFERROR(INDIRECT("'" & $E35 & "'!" &verwijzing!Y$24),0) -> 0 | V35: =IFERROR(INDIRECT("'" & $E35 & "'!" &verwijzing!Z$24),0) -> 0 | W35: =IFERROR(INDIRECT("'" & $E35 & "'!" &verwijzing!AA$24),0) -> 0 | X35: =IFERROR(INDIRECT("'" & $E35 & "'!" &verwijzing!AB$24),0) -> 0 | Y35: =IFERROR(INDIRECT("'" & $E35 & "'!" &verwijzing!AC$24),0) -> 0 | Z35: =IFERROR(INDIRECT("'" & $E35 & "'!" &verwijzing!AD$24),0) -> 0 | AA35: =IFERROR(INDIRECT("'" & $E35 & "'!" &verwijzing!AE$24),0) -> 0 | AB35: =IFERROR(INDIRECT("'" & $E35 & "'!" &verwijzing!AF$24),0) -> 0 | AC35: =IFERROR(INDIRECT("'" & $E35 & "'!" &verwijzing!AG$24),0) -> 0 | AD35: =IFERROR(INDIRECT("'" & $E35 & "'!" &verwijzing!AH$24),0) -> 0 | AE35: =IFERROR(INDIRECT("'" & $E35 & "'!" &verwijzing!AI$24),0) -> 0
C36: =INDIRECT("'Programma''s'!L8") -> 0 | D36: onzichtbaar | E36: =INDIRECT("'Programma''s'!J8") -> 0 | F36: =IFERROR(INDIRECT("'" & $E36 & "'!" &verwijzing!I$24),0) -> 0 | G36: =IFERROR(INDIRECT("'" & $E36 & "'!" &verwijzing!J$24),0) -> 0 | H36: =IFERROR(INDIRECT("'" & $E36 & "'!" &verwijzing!K$24),0) -> 0 | I36: =IFERROR(INDIRECT("'" & $E36 & "'!" &verwijzing!L$24),0) -> 0 | J36: =IFERROR(INDIRECT("'" & $E36 & "'!" &verwijzing!M$24),0) -> 0 | K36: =IFERROR(INDIRECT("'" & $E36 & "'!" &verwijzing!N$24),0) -> 0 | L36: =IFERROR(INDIRECT("'" & $E36 & "'!" &verwijzing!P$24),0) -> 0 | M36: =IFERROR(INDIRECT("'" & $E36 & "'!" &verwijzing!Q$24),0) -> 0 | N36: =IFERROR(INDIRECT("'" & $E36 & "'!" &verwijzing!R$24),0) -> 0 | O36: =IFERROR(INDIRECT("'" & $E36 & "'!" &verwijzing!S$24),0) -> 0 | P36: =IFERROR(INDIRECT("'" & $E36 & "'!" &verwijzing!T$24),0) -> 0 | Q36: =IFERROR(INDIRECT("'" & $E36 & "'!" &verwijzing!U$24),0) -> 0 | R36: =IFERROR(INDIRECT("'" & $E36 & "'!" &verwijzing!V$24),0) -> 0 | S36: =IFERROR(INDIRECT("'" & $E36 & "'!" &verwijzing!W$24),0) -> 0 | T36: =IFERROR(INDIRECT("'" & $E36 & "'!" &verwijzing!X$24),0) -> 0 | U36: =IFERROR(INDIRECT("'" & $E36 & "'!" &verwijzing!Y$24),0) -> 0 | V36: =IFERROR(INDIRECT("'" & $E36 & "'!" &verwijzing!Z$24),0) -> 0 | W36: =IFERROR(INDIRECT("'" & $E36 & "'!" &verwijzing!AA$24),0) -> 0 | X36: =IFERROR(INDIRECT("'" & $E36 & "'!" &verwijzing!AB$24),0) -> 0 | Y36: =IFERROR(INDIRECT("'" & $E36 & "'!" &verwijzing!AC$24),0) -> 0 | Z36: =IFERROR(INDIRECT("'" & $E36 & "'!" &verwijzing!AD$24),0) -> 0 | AA36: =IFERROR(INDIRECT("'" & $E36 & "'!" &verwijzing!AE$24),0) -> 0 | AB36: =IFERROR(INDIRECT("'" & $E36 & "'!" &verwijzing!AF$24),0) -> 0 | AC36: =IFERROR(INDIRECT("'" & $E36 & "'!" &verwijzing!AG$24),0) -> 0 | AD36: =IFERROR(INDIRECT("'" & $E36 & "'!" &verwijzing!AH$24),0) -> 0 | AE36: =IFERROR(INDIRECT("'" & $E36 & "'!" &verwijzing!AI$24),0) -> 0
C37: =INDIRECT("'Programma''s'!L9") -> 0 | D37: onzichtbaar | E37: =INDIRECT("'Programma''s'!J9") -> 0 | F37: =IFERROR(INDIRECT("'" & $E37 & "'!" &verwijzing!I$24),0) -> 0 | G37: =IFERROR(INDIRECT("'" & $E37 & "'!" &verwijzing!J$24),0) -> 0 | H37: =IFERROR(INDIRECT("'" & $E37 & "'!" &verwijzing!K$24),0) -> 0 | I37: =IFERROR(INDIRECT("'" & $E37 & "'!" &verwijzing!L$24),0) -> 0 | J37: =IFERROR(INDIRECT("'" & $E37 & "'!" &verwijzing!M$24),0) -> 0 | K37: =IFERROR(INDIRECT("'" & $E37 & "'!" &verwijzing!N$24),0) -> 0 | L37: =IFERROR(INDIRECT("'" & $E37 & "'!" &verwijzing!P$24),0) -> 0 | M37: =IFERROR(INDIRECT("'" & $E37 & "'!" &verwijzing!Q$24),0) -> 0 | N37: =IFERROR(INDIRECT("'" & $E37 & "'!" &verwijzing!R$24),0) -> 0 | O37: =IFERROR(INDIRECT("'" & $E37 & "'!" &verwijzing!S$24),0) -> 0 | P37: =IFERROR(INDIRECT("'" & $E37 & "'!" &verwijzing!T$24),0) -> 0 | Q37: =IFERROR(INDIRECT("'" & $E37 & "'!" &verwijzing!U$24),0) -> 0 | R37: =IFERROR(INDIRECT("'" & $E37 & "'!" &verwijzing!V$24),0) -> 0 | S37: =IFERROR(INDIRECT("'" & $E37 & "'!" &verwijzing!W$24),0) -> 0 | T37: =IFERROR(INDIRECT("'" & $E37 & "'!" &verwijzing!X$24),0) -> 0 | U37: =IFERROR(INDIRECT("'" & $E37 & "'!" &verwijzing!Y$24),0) -> 0 | V37: =IFERROR(INDIRECT("'" & $E37 & "'!" &verwijzing!Z$24),0) -> 0 | W37: =IFERROR(INDIRECT("'" & $E37 & "'!" &verwijzing!AA$24),0) -> 0 | X37: =IFERROR(INDIRECT("'" & $E37 & "'!" &verwijzing!AB$24),0) -> 0 | Y37: =IFERROR(INDIRECT("'" & $E37 & "'!" &verwijzing!AC$24),0) -> 0 | Z37: =IFERROR(INDIRECT("'" & $E37 & "'!" &verwijzing!AD$24),0) -> 0 | AA37: =IFERROR(INDIRECT("'" & $E37 & "'!" &verwijzing!AE$24),0) -> 0 | AB37: =IFERROR(INDIRECT("'" & $E37 & "'!" &verwijzing!AF$24),0) -> 0 | AC37: =IFERROR(INDIRECT("'" & $E37 & "'!" &verwijzing!AG$24),0) -> 0 | AD37: =IFERROR(INDIRECT("'" & $E37 & "'!" &verwijzing!AH$24),0) -> 0 | AE37: =IFERROR(INDIRECT("'" & $E37 & "'!" &verwijzing!AI$24),0) -> 0
C38: =INDIRECT("'Programma''s'!L10") -> 0 | D38: onzichtbaar | E38: =INDIRECT("'Programma''s'!J10") -> 0 | F38: =IFERROR(INDIRECT("'" & $E38 & "'!" &verwijzing!I$24),0) -> 0 | G38: =IFERROR(INDIRECT("'" & $E38 & "'!" &verwijzing!J$24),0) -> 0 | H38: =IFERROR(INDIRECT("'" & $E38 & "'!" &verwijzing!K$24),0) -> 0 | I38: =IFERROR(INDIRECT("'" & $E38 & "'!" &verwijzing!L$24),0) -> 0 | J38: =IFERROR(INDIRECT("'" & $E38 & "'!" &verwijzing!M$24),0) -> 0 | K38: =IFERROR(INDIRECT("'" & $E38 & "'!" &verwijzing!N$24),0) -> 0 | L38: =IFERROR(INDIRECT("'" & $E38 & "'!" &verwijzing!P$24),0) -> 0 | M38: =IFERROR(INDIRECT("'" & $E38 & "'!" &verwijzing!Q$24),0) -> 0 | N38: =IFERROR(INDIRECT("'" & $E38 & "'!" &verwijzing!R$24),0) -> 0 | O38: =IFERROR(INDIRECT("'" & $E38 & "'!" &verwijzing!S$24),0) -> 0 | P38: =IFERROR(INDIRECT("'" & $E38 & "'!" &verwijzing!T$24),0) -> 0 | Q38: =IFERROR(INDIRECT("'" & $E38 & "'!" &verwijzing!U$24),0) -> 0 | R38: =IFERROR(INDIRECT("'" & $E38 & "'!" &verwijzing!V$24),0) -> 0 | S38: =IFERROR(INDIRECT("'" & $E38 & "'!" &verwijzing!W$24),0) -> 0 | T38: =IFERROR(INDIRECT("'" & $E38 & "'!" &verwijzing!X$24),0) -> 0 | U38: =IFERROR(INDIRECT("'" & $E38 & "'!" &verwijzing!Y$24),0) -> 0 | V38: =IFERROR(INDIRECT("'" & $E38 & "'!" &verwijzing!Z$24),0) -> 0 | W38: =IFERROR(INDIRECT("'" & $E38 & "'!" &verwijzing!AA$24),0) -> 0 | X38: =IFERROR(INDIRECT("'" & $E38 & "'!" &verwijzing!AB$24),0) -> 0 | Y38: =IFERROR(INDIRECT("'" & $E38 & "'!" &verwijzing!AC$24),0) -> 0 | Z38: =IFERROR(INDIRECT("'" & $E38 & "'!" &verwijzing!AD$24),0) -> 0 | AA38: =IFERROR(INDIRECT("'" & $E38 & "'!" &verwijzing!AE$24),0) -> 0 | AB38: =IFERROR(INDIRECT("'" & $E38 & "'!" &verwijzing!AF$24),0) -> 0 | AC38: =IFERROR(INDIRECT("'" & $E38 & "'!" &verwijzing!AG$24),0) -> 0 | AD38: =IFERROR(INDIRECT("'" & $E38 & "'!" &verwijzing!AH$24),0) -> 0 | AE38: =IFERROR(INDIRECT("'" & $E38 & "'!" &verwijzing!AI$24),0) -> 0
C39: =INDIRECT("'Programma''s'!L11") -> 0 | D39: onzichtbaar | E39: =INDIRECT("'Programma''s'!J11") -> 0 | F39: =IFERROR(INDIRECT("'" & $E39 & "'!" &verwijzing!I$24),0) -> 0 | G39: =IFERROR(INDIRECT("'" & $E39 & "'!" &verwijzing!J$24),0) -> 0 | H39: =IFERROR(INDIRECT("'" & $E39 & "'!" &verwijzing!K$24),0) -> 0 | I39: =IFERROR(INDIRECT("'" & $E39 & "'!" &verwijzing!L$24),0) -> 0 | J39: =IFERROR(INDIRECT("'" & $E39 & "'!" &verwijzing!M$24),0) -> 0 | K39: =IFERROR(INDIRECT("'" & $E39 & "'!" &verwijzing!N$24),0) -> 0 | L39: =IFERROR(INDIRECT("'" & $E39 & "'!" &verwijzing!P$24),0) -> 0 | M39: =IFERROR(INDIRECT("'" & $E39 & "'!" &verwijzing!Q$24),0) -> 0 | N39: =IFERROR(INDIRECT("'" & $E39 & "'!" &verwijzing!R$24),0) -> 0 | O39: =IFERROR(INDIRECT("'" & $E39 & "'!" &verwijzing!S$24),0) -> 0 | P39: =IFERROR(INDIRECT("'" & $E39 & "'!" &verwijzing!T$24),0) -> 0 | Q39: =IFERROR(INDIRECT("'" & $E39 & "'!" &verwijzing!U$24),0) -> 0 | R39: =IFERROR(INDIRECT("'" & $E39 & "'!" &verwijzing!V$24),0) -> 0 | S39: =IFERROR(INDIRECT("'" & $E39 & "'!" &verwijzing!W$24),0) -> 0 | T39: =IFERROR(INDIRECT("'" & $E39 & "'!" &verwijzing!X$24),0) -> 0 | U39: =IFERROR(INDIRECT("'" & $E39 & "'!" &verwijzing!Y$24),0) -> 0 | V39: =IFERROR(INDIRECT("'" & $E39 & "'!" &verwijzing!Z$24),0) -> 0 | W39: =IFERROR(INDIRECT("'" & $E39 & "'!" &verwijzing!AA$24),0) -> 0 | X39: =IFERROR(INDIRECT("'" & $E39 & "'!" &verwijzing!AB$24),0) -> 0 | Y39: =IFERROR(INDIRECT("'" & $E39 & "'!" &verwijzing!AC$24),0) -> 0 | Z39: =IFERROR(INDIRECT("'" & $E39 & "'!" &verwijzing!AD$24),0) -> 0 | AA39: =IFERROR(INDIRECT("'" & $E39 & "'!" &verwijzing!AE$24),0) -> 0 | AB39: =IFERROR(INDIRECT("'" & $E39 & "'!" &verwijzing!AF$24),0) -> 0 | AC39: =IFERROR(INDIRECT("'" & $E39 & "'!" &verwijzing!AG$24),0) -> 0 | AD39: =IFERROR(INDIRECT("'" & $E39 & "'!" &verwijzing!AH$24),0) -> 0 | AE39: =IFERROR(INDIRECT("'" & $E39 & "'!" &verwijzing!AI$24),0) -> 0
C40: =INDIRECT("'Programma''s'!L12") -> 0 | D40: onzichtbaar | E40: =INDIRECT("'Programma''s'!J12") -> 0 | F40: =IFERROR(INDIRECT("'" & $E40 & "'!" &verwijzing!I$24),0) -> 0 | G40: =IFERROR(INDIRECT("'" & $E40 & "'!" &verwijzing!J$24),0) -> 0 | H40: =IFERROR(INDIRECT("'" & $E40 & "'!" &verwijzing!K$24),0) -> 0 | I40: =IFERROR(INDIRECT("'" & $E40 & "'!" &verwijzing!L$24),0) -> 0 | J40: =IFERROR(INDIRECT("'" & $E40 & "'!" &verwijzing!M$24),0) -> 0 | K40: =IFERROR(INDIRECT("'" & $E40 & "'!" &verwijzing!N$24),0) -> 0 | L40: =IFERROR(INDIRECT("'" & $E40 & "'!" &verwijzing!P$24),0) -> 0 | M40: =IFERROR(INDIRECT("'" & $E40 & "'!" &verwijzing!Q$24),0) -> 0 | N40: =IFERROR(INDIRECT("'" & $E40 & "'!" &verwijzing!R$24),0) -> 0 | O40: =IFERROR(INDIRECT("'" & $E40 & "'!" &verwijzing!S$24),0) -> 0 | P40: =IFERROR(INDIRECT("'" & $E40 & "'!" &verwijzing!T$24),0) -> 0 | Q40: =IFERROR(INDIRECT("'" & $E40 & "'!" &verwijzing!U$24),0) -> 0 | R40: =IFERROR(INDIRECT("'" & $E40 & "'!" &verwijzing!V$24),0) -> 0 | S40: =IFERROR(INDIRECT("'" & $E40 & "'!" &verwijzing!W$24),0) -> 0 | T40: =IFERROR(INDIRECT("'" & $E40 & "'!" &verwijzing!X$24),0) -> 0 | U40: =IFERROR(INDIRECT("'" & $E40 & "'!" &verwijzing!Y$24),0) -> 0 | V40: =IFERROR(INDIRECT("'" & $E40 & "'!" &verwijzing!Z$24),0) -> 0 | W40: =IFERROR(INDIRECT("'" & $E40 & "'!" &verwijzing!AA$24),0) -> 0 | X40: =IFERROR(INDIRECT("'" & $E40 & "'!" &verwijzing!AB$24),0) -> 0 | Y40: =IFERROR(INDIRECT("'" & $E40 & "'!" &verwijzing!AC$24),0) -> 0 | Z40: =IFERROR(INDIRECT("'" & $E40 & "'!" &verwijzing!AD$24),0) -> 0 | AA40: =IFERROR(INDIRECT("'" & $E40 & "'!" &verwijzing!AE$24),0) -> 0 | AB40: =IFERROR(INDIRECT("'" & $E40 & "'!" &verwijzing!AF$24),0) -> 0 | AC40: =IFERROR(INDIRECT("'" & $E40 & "'!" &verwijzing!AG$24),0) -> 0 | AD40: =IFERROR(INDIRECT("'" & $E40 & "'!" &verwijzing!AH$24),0) -> 0 | AE40: =IFERROR(INDIRECT("'" & $E40 & "'!" &verwijzing!AI$24),0) -> 0
C41: =INDIRECT("'Programma''s'!L13") -> 0 | D41: onzichtbaar | E41: =INDIRECT("'Programma''s'!J13") -> 0 | F41: =IFERROR(INDIRECT("'" & $E41 & "'!" &verwijzing!I$24),0) -> 0 | G41: =IFERROR(INDIRECT("'" & $E41 & "'!" &verwijzing!J$24),0) -> 0 | H41: =IFERROR(INDIRECT("'" & $E41 & "'!" &verwijzing!K$24),0) -> 0 | I41: =IFERROR(INDIRECT("'" & $E41 & "'!" &verwijzing!L$24),0) -> 0 | J41: =IFERROR(INDIRECT("'" & $E41 & "'!" &verwijzing!M$24),0) -> 0 | K41: =IFERROR(INDIRECT("'" & $E41 & "'!" &verwijzing!N$24),0) -> 0 | L41: =IFERROR(INDIRECT("'" & $E41 & "'!" &verwijzing!P$24),0) -> 0 | M41: =IFERROR(INDIRECT("'" & $E41 & "'!" &verwijzing!Q$24),0) -> 0 | N41: =IFERROR(INDIRECT("'" & $E41 & "'!" &verwijzing!R$24),0) -> 0 | O41: =IFERROR(INDIRECT("'" & $E41 & "'!" &verwijzing!S$24),0) -> 0 | P41: =IFERROR(INDIRECT("'" & $E41 & "'!" &verwijzing!T$24),0) -> 0 | Q41: =IFERROR(INDIRECT("'" & $E41 & "'!" &verwijzing!U$24),0) -> 0 | R41: =IFERROR(INDIRECT("'" & $E41 & "'!" &verwijzing!V$24),0) -> 0 | S41: =IFERROR(INDIRECT("'" & $E41 & "'!" &verwijzing!W$24),0) -> 0 | T41: =IFERROR(INDIRECT("'" & $E41 & "'!" &verwijzing!X$24),0) -> 0 | U41: =IFERROR(INDIRECT("'" & $E41 & "'!" &verwijzing!Y$24),0) -> 0 | V41: =IFERROR(INDIRECT("'" & $E41 & "'!" &verwijzing!Z$24),0) -> 0 | W41: =IFERROR(INDIRECT("'" & $E41 & "'!" &verwijzing!AA$24),0) -> 0 | X41: =IFERROR(INDIRECT("'" & $E41 & "'!" &verwijzing!AB$24),0) -> 0 | Y41: =IFERROR(INDIRECT("'" & $E41 & "'!" &verwijzing!AC$24),0) -> 0 | Z41: =IFERROR(INDIRECT("'" & $E41 & "'!" &verwijzing!AD$24),0) -> 0 | AA41: =IFERROR(INDIRECT("'" & $E41 & "'!" &verwijzing!AE$24),0) -> 0 | AB41: =IFERROR(INDIRECT("'" & $E41 & "'!" &verwijzing!AF$24),0) -> 0 | AC41: =IFERROR(INDIRECT("'" & $E41 & "'!" &verwijzing!AG$24),0) -> 0 | AD41: =IFERROR(INDIRECT("'" & $E41 & "'!" &verwijzing!AH$24),0) -> 0 | AE41: =IFERROR(INDIRECT("'" & $E41 & "'!" &verwijzing!AI$24),0) -> 0
C42: =INDIRECT("'Programma''s'!L14") -> 0 | D42: onzichtbaar | E42: =INDIRECT("'Programma''s'!J14") -> 0 | F42: =IFERROR(INDIRECT("'" & $E42 & "'!" &verwijzing!I$24),0) -> 0 | G42: =IFERROR(INDIRECT("'" & $E42 & "'!" &verwijzing!J$24),0) -> 0 | H42: =IFERROR(INDIRECT("'" & $E42 & "'!" &verwijzing!K$24),0) -> 0 | I42: =IFERROR(INDIRECT("'" & $E42 & "'!" &verwijzing!L$24),0) -> 0 | J42: =IFERROR(INDIRECT("'" & $E42 & "'!" &verwijzing!M$24),0) -> 0 | K42: =IFERROR(INDIRECT("'" & $E42 & "'!" &verwijzing!N$24),0) -> 0 | L42: =IFERROR(INDIRECT("'" & $E42 & "'!" &verwijzing!P$24),0) -> 0 | M42: =IFERROR(INDIRECT("'" & $E42 & "'!" &verwijzing!Q$24),0) -> 0 | N42: =IFERROR(INDIRECT("'" & $E42 & "'!" &verwijzing!R$24),0) -> 0 | O42: =IFERROR(INDIRECT("'" & $E42 & "'!" &verwijzing!S$24),0) -> 0 | P42: =IFERROR(INDIRECT("'" & $E42 & "'!" &verwijzing!T$24),0) -> 0 | Q42: =IFERROR(INDIRECT("'" & $E42 & "'!" &verwijzing!U$24),0) -> 0 | R42: =IFERROR(INDIRECT("'" & $E42 & "'!" &verwijzing!V$24),0) -> 0 | S42: =IFERROR(INDIRECT("'" & $E42 & "'!" &verwijzing!W$24),0) -> 0 | T42: =IFERROR(INDIRECT("'" & $E42 & "'!" &verwijzing!X$24),0) -> 0 | U42: =IFERROR(INDIRECT("'" & $E42 & "'!" &verwijzing!Y$24),0) -> 0 | V42: =IFERROR(INDIRECT("'" & $E42 & "'!" &verwijzing!Z$24),0) -> 0 | W42: =IFERROR(INDIRECT("'" & $E42 & "'!" &verwijzing!AA$24),0) -> 0 | X42: =IFERROR(INDIRECT("'" & $E42 & "'!" &verwijzing!AB$24),0) -> 0 | Y42: =IFERROR(INDIRECT("'" & $E42 & "'!" &verwijzing!AC$24),0) -> 0 | Z42: =IFERROR(INDIRECT("'" & $E42 & "'!" &verwijzing!AD$24),0) -> 0 | AA42: =IFERROR(INDIRECT("'" & $E42 & "'!" &verwijzing!AE$24),0) -> 0 | AB42: =IFERROR(INDIRECT("'" & $E42 & "'!" &verwijzing!AF$24),0) -> 0 | AC42: =IFERROR(INDIRECT("'" & $E42 & "'!" &verwijzing!AG$24),0) -> 0 | AD42: =IFERROR(INDIRECT("'" & $E42 & "'!" &verwijzing!AH$24),0) -> 0 | AE42: =IFERROR(INDIRECT("'" & $E42 & "'!" &verwijzing!AI$24),0) -> 0
C43: =INDIRECT("'Programma''s'!L15") -> 0 | D43: onzichtbaar | E43: =INDIRECT("'Programma''s'!J15") -> 0 | F43: =IFERROR(INDIRECT("'" & $E43 & "'!" &verwijzing!I$24),0) -> 0 | G43: =IFERROR(INDIRECT("'" & $E43 & "'!" &verwijzing!J$24),0) -> 0 | H43: =IFERROR(INDIRECT("'" & $E43 & "'!" &verwijzing!K$24),0) -> 0 | I43: =IFERROR(INDIRECT("'" & $E43 & "'!" &verwijzing!L$24),0) -> 0 | J43: =IFERROR(INDIRECT("'" & $E43 & "'!" &verwijzing!M$24),0) -> 0 | K43: =IFERROR(INDIRECT("'" & $E43 & "'!" &verwijzing!N$24),0) -> 0 | L43: =IFERROR(INDIRECT("'" & $E43 & "'!" &verwijzing!P$24),0) -> 0 | M43: =IFERROR(INDIRECT("'" & $E43 & "'!" &verwijzing!Q$24),0) -> 0 | N43: =IFERROR(INDIRECT("'" & $E43 & "'!" &verwijzing!R$24),0) -> 0 | O43: =IFERROR(INDIRECT("'" & $E43 & "'!" &verwijzing!S$24),0) -> 0 | P43: =IFERROR(INDIRECT("'" & $E43 & "'!" &verwijzing!T$24),0) -> 0 | Q43: =IFERROR(INDIRECT("'" & $E43 & "'!" &verwijzing!U$24),0) -> 0 | R43: =IFERROR(INDIRECT("'" & $E43 & "'!" &verwijzing!V$24),0) -> 0 | S43: =IFERROR(INDIRECT("'" & $E43 & "'!" &verwijzing!W$24),0) -> 0 | T43: =IFERROR(INDIRECT("'" & $E43 & "'!" &verwijzing!X$24),0) -> 0 | U43: =IFERROR(INDIRECT("'" & $E43 & "'!" &verwijzing!Y$24),0) -> 0 | V43: =IFERROR(INDIRECT("'" & $E43 & "'!" &verwijzing!Z$24),0) -> 0 | W43: =IFERROR(INDIRECT("'" & $E43 & "'!" &verwijzing!AA$24),0) -> 0 | X43: =IFERROR(INDIRECT("'" & $E43 & "'!" &verwijzing!AB$24),0) -> 0 | Y43: =IFERROR(INDIRECT("'" & $E43 & "'!" &verwijzing!AC$24),0) -> 0 | Z43: =IFERROR(INDIRECT("'" & $E43 & "'!" &verwijzing!AD$24),0) -> 0 | AA43: =IFERROR(INDIRECT("'" & $E43 & "'!" &verwijzing!AE$24),0) -> 0 | AB43: =IFERROR(INDIRECT("'" & $E43 & "'!" &verwijzing!AF$24),0) -> 0 | AC43: =IFERROR(INDIRECT("'" & $E43 & "'!" &verwijzing!AG$24),0) -> 0 | AD43: =IFERROR(INDIRECT("'" & $E43 & "'!" &verwijzing!AH$24),0) -> 0 | AE43: =IFERROR(INDIRECT("'" & $E43 & "'!" &verwijzing!AI$24),0) -> 0
